Workbook

Sheet Start
B2: Investitionsbeihilfen für Gemeindegebäude
B3: =DATA!X50 -> Modernisierung im Bestand Wärmeschutz und hygienische Lüftung
B11: Projektdaten
B12: Gemeinde | F12: Firma
B13: Gebäudebezeichnung | F13: Bearbeitung
B14: Straße | F14: Straße
B15: Postleitzahl | F15: Postleitzahl
B17: Gebäudedaten | H17: Kennwerte auf An bezogen
B18: Energiebezugsfläche des Gebäudes (An) | G18: m² | H18: qh,WS | I18: =IFERROR(SUMPRODUCT(Wärmeschutz!F5:F44,Wärmeschutz!L5:L44)/A_EBF,no_value) -> -
B19: davon mit modernisierter Beleuchtung | F19: =SUMIF(Anlagen!H5:H39,ja,Anlagen!J5:J39) -> 0 | G19: m² | H19: qel,bel | I19: =IFERROR(SUMPRODUCT(Anlagen!H61),no_value) -> -
B20: davon mit hygienischer Lüftung | F20: =SUMIF(Anlagen!I5:I39,ja,Anlagen!J5:J39) -> 0 | G20: m² | H20: va,RLT | I20: =IFERROR(Anlagen!F71/A_EBF,no_value) -> -
B22: Primärenergieeinsparung | F22: qp
B23: Verbesserung im Wärmeschutz | F23: =IFERROR(SUMPRODUCT(Wärmeschutz!F5:F44,Wärmeschutz!AM5:AM44)/F18,no_value) -> - | G23: kWh/(m²a) | H23: bezogen auf An
B24: Verbesserung im Beleuchtungseffizienz | F24: =IFERROR(IF(check_Bel=1,SUMPRODUCT(Anlagen!BJ5:BJ39,Anlagen!J5:J39)/F18,0),no_value) -> 0 | G24: kWh/(m²a) | H24: bezogen auf An
B25: Verbesserung in der Lüftungseffizienz | F25: =IFERROR(SUMPRODUCT(Anlagen!CJ5:CJ39,Anlagen!CY5:CY39)/A_EBF,no_value) -> - | G25: kWh/(m²a) | H25: bezogen auf An
B26: Summe | F26: =SUM(F23:F25) -> 0 | G26: kWh/(m²a) | H26: bezogen auf An
B28: Investitionsbeihilfen | F28: fSub | H28: fSub,An
B29: Bauliche Modernisierung | F29: =Wärmeschutz!F51 -> 0 | G29: € | H29: =IFERROR(F29/$F$18,no_value) -> - | I29: €/m²An
B30: Beleuchtungsmodernisierung | F30: =IF(check_Bel=1,Anlagen!F68,0) -> 0 | G30: € | H30: =IFERROR(F30/$F$18,no_value) -> - | I30: €/m²An
B31: Lüftungsanlagen mit Wärmerückgewinnung | F31: =Anlagen!F74 -> 0 | G31: € | H31: =IFERROR(F31/$F$18,no_value) -> - | I31: €/m²An
B32: Summe | F32: =SUM(F29:F31) -> 0 | G32: € | H32: =IFERROR(F32/$F$18,no_value) -> - | I32: €/m²An
B34: =Info!E5&" "&Info!E6 -> Ministère du Développement durable et des Infrastructures Département de l’Environnement | I34: =Anlagen!CE76 -> SubCalC, Version 1.02 (8.8.2014)
B35: =Info!E13 -> Goblet Lavandier & Associés S.A.
B37: Vermiedene CO2 Emissionen | E37: fCO2 | G37: fCO2,An | I37: fCO2,€
B38: Wärmeschutz | D38: =SUMPRODUCT(Wärmeschutz!F5:F44,Wärmeschutz!AR5:AR44)/1000 -> 0 | E38: toCO2/a | F38: =IFERROR(D38/A_EBF*1000,no_value) -> - | G38: kgCO2/(m²a) | H38: =IFERROR(F29/D38,no_value) -> - | I38: €/toCO2
B39: Beleuchtung | D39: =IF(check_Bel=1,SUMPRODUCT(Anlagen!G5:G39,Anlagen!BT5:BT39)/1000,0) -> 0 | E39: toCO2/a | F39: =IFERROR(D39/A_EBF*1000,no_value) -> - | G39: kgCO2/(m²a) | H39: =IFERROR(F30/D39,no_value) -> - | I39: €/toCO2
B40: Lüftung | D40: =SUMPRODUCT(Anlagen!DG5:DG39,Anlagen!CB5:CB39)/1000 -> 0 | E40: toCO2/a | F40: =IFERROR(D40/A_EBF*1000,no_value) -> - | G40: kgCO2/(m²a) | H40: =IFERROR(F31/D40,no_value) -> - | I40: €/toCO2
B41: Summe | D41: =SUM(D38:D40) -> 0 | E41: toCO2/a | F41: =SUM(F38:F40) -> 0 | G41: kgCO2/(m²a) | H41: =IFERROR(F32/D41,no_value) -> - | I41: €/toCO2
B43: Wirtschaftlichkeit | D43: Kosteneinsparung | F43: Investitionskosten | H43: ROI in a | I43: ROIsub in a
B44: =B38 -> Wärmeschutz | D44: =SUMPRODUCT(Wärmeschutz!F5:F44,Wärmeschutz!AL5:AL44) -> 0 | E44: €/a | F44: =SUMPRODUCT(Wärmeschutz!F5:F44,Wärmeschutz!AD5:AD44) -> 0 | G44: € | H44: =IFERROR(F44/D44,no_value) -> - | I44: =IFERROR((F44-F29)/D44,no_value) -> -
B45: =B39 -> Beleuchtung | D45: =IF(check_Bel=1,SUMPRODUCT(Anlagen!J5:J39,Anlagen!BK5:BK39),0) -> 0 | E45: €/a | F45: =IF(check_Bel=1,SUMPRODUCT(Anlagen!J5:J39,Anlagen!BO5:BO39),0) -> 0 | G45: =G44 -> € | H45: =IFERROR(F45/D45,no_value) -> - | I45: =IFERROR((F45-F30)/D45,no_value) -> -
B46: =B40 -> Lüftung | D46: =SUMPRODUCT(Anlagen!CB5:CB39,Anlagen!CZ5:CZ39) -> 0 | E46: €/a | F46: =SUMPRODUCT(Anlagen!CB5:CB39,Anlagen!CP5:CP39) -> 0 | G46: =G45 -> € | H46: =IFERROR(F46/D46,no_value) -> - | I46: =IFERROR((F46-F31)/D46,no_value) -> -
B47: Summe | D47: =SUM(D44:D46) -> 0 | E47: €/a | F47: =SUM(F44:F46) -> 0 | G47: =G46 -> € | H47: =IFERROR(F47/D47,no_value) -> - | I47: =IFERROR((F47-F32)/D47,no_value) -> -

Sheet Wärmeschutz
C2: Kurz- | D2: Mittlere Gebäudeinnentemperatur | F2: Bauteilfläche | G2: U-Wert vor Modernisierung | I2: Auswahl des Effizienzstandards | J2: Dämmstoffdicke Effizienzstandard | K2: U-Wert Effizienzstandard | L2: Projektierter U-Wert | M2: Vorgesehene Dämmstoffdicke | N2: Zielwertüberprüfung | P2: Bauteilförderung | R2: Bauteilförderung | T2: Spalte ESI-IV | U2: Check if Window | V2: Zeile Bauteil | W2: Mindestdämmstoff-dicke | X2: U-Wert Mindestanf. | Y2: Virtuelle Dämmstoff-dicke im Basisfall | Z2: Virtuelle Dämmstoff-dicke modernisiert | AA2: Differenz-Dämmstoffdicke | AB2: Grundkosten | AC2: spezifische Dämmstoffkosten | AD2: Gesamtkosten für die Modernisierung | AE2: U-Wert nach Modernisierung | AF2: Differenz U-Wert vzum Basisfall | AG2: Abminderungsfaktor | AH2: Heizgradtagstunden | AI2: =Anlagen!BG2 -> Energiebedarf vor Modernisierung | AJ2: =Anlagen!BH2 -> Energiebedarf nach Modernisierung | AK2: =Anlagen!BI2 -> Energieeinsparung | AL2: =Anlagen!BK2 -> Energiekosten-einsparung | AM2: =Anlagen!BJ2 -> Primärenergie-einsparung | AN2: =Anlagen!BP2 -> Kapitalrücklauf | AO2: =Anlagen!BQ2 -> Förderung | AP2: =Anlagen!BR2 -> Eigeninvestition | AQ2: =Anlagen!BS2 -> Kapitalrücklauf mit Förderung | AR2: Vermiedene Smissionen | AS2: =Anlagen!BU2 -> Förderung je CO2 Einsparung | AT2: =Anlagen!BV2 -> Investitionskosten | AU2: =Anlagen!BW2 -> Förderung | AV2: =Anlagen!BX2 -> Förderquote
C3: name | D3: normal beheizt (Standard) | F3: Abau | G3: Ubase | I3: ES | J3: dUeff | K3: Ueff | L3: Uproj | M3: dproj | N3: - | P3: fBau | R3: fsub,bau | T3: - | U3: - | V3: - | W3: dmin | X3: Umin | Y3: dbase | Z3: dproj | AA3: Dddiff | AB3: Kbau,g | AC3: Dkbau,s | AD3: Kbau,proj | AE3: Uuse | AF3: DUdiff | AG3: fabmin | AH3: HGTbau | AI3: qh,basis | AJ3: qh,proj | AK3: Dqh,bau | AL3: Dkh | AM3: Dqh,pim | AN3: rbau | AO3: fsub,bau | AP3: Kbau,sub | AQ3: rbau,sub | AR3: CO2bau | AS3: fbau,CO2 | AT3: Ibau,proj | AU3: Ibau,sub | AV3: zbau
B4: N° | C4: - | D4: Bauteiltyp | F4: m² | G4: W/(m²K) | I4: I - IV | J4: cm | K4: W/(m²K) | L4: W/(m²K) | M4: cm | N4: - | P4: €/m² | R4: € | T4: - | U4: - | V4: - | W4: =Y4 -> cm | X4: =AE4 -> W/(m²K) | Y4: cm | Z4: cm | AA4: cm | AB4: €/m² | AC4: €/(m²cm) | AD4: €/m² | AE4: W/(m²K) | AF4: W/(m²K) | AG4: - | AH4: Kkh/a | AI4: kWh/(m²a) | AJ4: kWh/(m²a) | AK4: kWh/(m²a) | AL4: €/(m²a) | AM4: €/(m²a) | AN4: a | AO4: €/m² | AP4: €/m² | AQ4: a | AR4: kgCO2/m² | AS4: €/toCo2 | AT4: € | AU4: € | AV4: %
B5: 1 | C5: A01 | I5: =IF(AND(D5<>"",V5<>"-"),IF(L5<=INDEX(DATA!$AM$6:$AM$20,V5),DATA!$AM$4,IF(L5<=INDEX(DATA!$AN$6:$AN$20,V5),DATA!$AN$4,IF(L5<=INDEX(DATA!$AO$6:$AO$20,V5),DATA!$AO$4,IF(L5<=INDEX(DATA!$AP$6:$AP$20,V5),DATA!$AP$4,"-")))),"-") -> - | J5: =IFERROR(INDEX(DATA!$AQ$6:$AU$20,V5,T5),no_value) -> - | K5: =IFERROR(INDEX(DATA!$AL$6:$AP$20,V5,T5),no_value) -> - | N5: =IFERROR(IF(U5=1,IF(IF(AND(ISNUMBER(L5*1),L5,K5)>K5*1,M5<W5),fail,pass),IF(IF(ISNUMBER(L5*1),L5,K5)>K5*1,fail,pass)),"") ->  | P5: =IFERROR(IF(N5=pass,INDEX(DATA!$AG$6:$AK$20,V5,T5),no_value),no_value) -> - | R5: =IFERROR(P5*F5,no_value) -> - | T5: =IFERROR(HLOOKUP(I5,DATA!$AG$4:$AK$5,2,FALSE)-DATA!$AF$5,no_value) -> 1 | U5: =IFERROR(VLOOKUP(D5,Liste_Bauteile,DATA!$AF$5,FALSE),no_value) -> - | V5: =IFERROR(VLOOKUP(D5,DATA!$AC$6:$AD$20,2,FALSE),no_value) -> - | W5: =IFERROR(INDEX(DATA!$AU$6:$AU$20,V5),no_value) -> - | X5: =IFERROR(INDEX(DATA!$AY$6:$AY$20,V5,1),no_value) -> - | Y5: =IF($AD$1="X",IFERROR(INDEX(DATA!$AZ$6:$AZ$20,V5,1),no_value),IF(I5=ESIV,0,IFERROR(INDEX(DATA!$BC$6:$BC$20,V5,1),no_value))) -> - | Z5: =J5 -> - | AA5: =IFERROR(IF(AND($AD$1<>"X",I5=ESIV),MAX(J5-Y5,J5),J5-Y5),no_value) -> - | AB5: =IF($AD$1="X",IF(I5=no_value,no_value,IFERROR(infla_WD*INDEX(DATA!$BA$6:$BA$20,V5,1),no_value)),IF(I5=no_value,no_value,IFERROR(infla_WD*INDEX(DATA!$BD$6:$BD$20,V5,1),no_value))) -> - | AC5: =IFERROR(IF(INDEX(DATA!$AF$6:$AF$20,V5,1)=1,infla_WD*C_cm_WB,MAX(0,infla_WD*TREND(DATA!$BH$5:$BK$5,DATA!$BH$4:$BK$4,AE5))),no_value) -> - | AD5: =IFERROR(AB5+AC5*IF(INDEX(DATA!$AF$6:$AF$20,V5,1)=1,AA5,1),no_value) -> - | AE5: =IFERROR(IF(ISNUMBER(L5),L5,K5),no_value) -> - | AF5: =IFERROR(G5-AE5,no_value) -> - | AG5: =IFERROR(INDEX(DATA!$AE$6:$AE$20,V5,1),no_value) -> - | AH5: =IF(AND(D5<>"",F5<>"",ISNUMBER(K5)),VLOOKUP($D$3,DATA!$BF$25:$BG$27,2,FALSE),no_value) -> - | AI5: =IFERROR(G5*AH5*AG5*e_Heiz,no_value) -> - | AJ5: =IFERROR(AE5*AH5*AG5*e_Heiz,no_value) -> - | AK5: =IFERROR(AF5*AH5*AG5*e_Heiz,no_value) -> - | AL5: =IFERROR(AK5*c_H,no_value) -> - | AM5: =IFERROR(AK5*qPh,no_value) -> - | AN5: =IFERROR(AD5/AL5,no_value) -> - | AO5: =P5 -> - | AP5: =IFERROR(AD5-P5,no_value) -> - | AQ5: =IFERROR(AP5/AL5,no_value) -> - | AR5: =IFERROR(AK5*co2_h,no_value) -> - | AS5: =IFERROR(ROUND(AO5/(AK5*co2_h)*1000,-2),no_value) -> - | AT5: =IFERROR(AD5*F5,no_value) -> - | AU5: =IFERROR(P5*F5,no_value) -> - | AV5: =IFERROR(AO5/AD5,no_value) -> -
B6: =B5+1 -> 2 | C6: A02 | I6: =IF(AND(D6<>"",V6<>"-"),IF(L6<=INDEX(DATA!$AM$6:$AM$20,V6),DATA!$AM$4,IF(L6<=INDEX(DATA!$AN$6:$AN$20,V6),DATA!$AN$4,IF(L6<=INDEX(DATA!$AO$6:$AO$20,V6),DATA!$AO$4,IF(L6<=INDEX(DATA!$AP$6:$AP$20,V6),DATA!$AP$4,"-")))),"-") -> - | J6: =IFERROR(INDEX(DATA!$AQ$6:$AU$20,V6,T6),no_value) -> - | K6: =IFERROR(INDEX(DATA!$AL$6:$AP$20,V6,T6),no_value) -> - | P6: =IFERROR(IF(N6=pass,INDEX(DATA!$AG$6:$AK$20,V6,T6),no_value),no_value) -> - | R6: - | T6: =IFERROR(HLOOKUP(I6,DATA!$AG$4:$AK$5,2,FALSE)-DATA!$AF$5,no_value) -> 1 | U6: =IFERROR(VLOOKUP(D6,Liste_Bauteile,DATA!$AF$5,FALSE),no_value) -> - | V6: =IFERROR(VLOOKUP(D6,DATA!$AC$6:$AD$20,2,FALSE),no_value) -> - | W6: =IFERROR(INDEX(DATA!$AU$6:$AU$20,V6),no_value) -> - | X6: =IFERROR(INDEX(DATA!$AY$6:$AY$20,V6,1),no_value) -> - | Y6: =IF($AD$1="X",IFERROR(INDEX(DATA!$AZ$6:$AZ$20,V6,1),no_value),IF(I6=ESIV,0,IFERROR(INDEX(DATA!$BC$6:$BC$20,V6,1),no_value))) -> - | Z6: =J6 -> - | AA6: - | AB6: =IF($AD$1="X",IF(I6=no_value,no_value,IFERROR(infla_WD*INDEX(DATA!$BA$6:$BA$20,V6,1),no_value)),IF(I6=no_value,no_value,IFERROR(infla_WD*INDEX(DATA!$BD$6:$BD$20,V6,1),no_value))) -> - | AC6: =IFERROR(IF(INDEX(DATA!$AF$6:$AF$20,V6,1)=1,infla_WD*C_cm_WB,MAX(0,infla_WD*TREND(DATA!$BH$5:$BK$5,DATA!$BH$4:$BK$4,AE6))),no_value) -> - | AD6: =IFERROR(AB6+AC6*IF(INDEX(DATA!$AF$6:$AF$20,V6,1)=1,AA6,1),no_value) -> - | AE6: - | AF6: - | AG6: =IFERROR(INDEX(DATA!$AE$6:$AE$20,V6,1),no_value) -> - | AH6: =IF(AND(D6<>"",F6<>"",ISNUMBER(K6)),VLOOKUP($D$3,DATA!$BF$25:$BG$27,2,FALSE),no_value) -> - | AI6: =IFERROR(G6*AH6*AG6*e_Heiz,no_value) -> - | AJ6: =IFERROR(AE6*AH6*AG6*e_Heiz,no_value) -> - | AK6: =IFERROR(AF6*AH6*AG6*e_Heiz,no_value) -> - | AL6: =IFERROR(AK6*c_H,no_value) -> - | AM6: =IFERROR(AK6*qPh,no_value) -> - | AN6: =IFERROR(AD6/AL6,no_value) -> - | AO6: =P6 -> - | AP6: - | AQ6: =IFERROR(AP6/AL6,no_value) -> - | AR6: - | AS6: =IFERROR(ROUND(AO6/(AK6*co2_h)*1000,-2),no_value) -> - | AT6: - | AU6: =IFERROR(P6*F6,no_value) -> - | AV6: =IFERROR(AO6/AD6,no_value) -> -
B7: =B6+1 -> 3 | C7: A03 | I7: =IF(AND(D7<>"",V7<>"-"),IF(L7<=INDEX(DATA!$AM$6:$AM$20,V7),DATA!$AM$4,IF(L7<=INDEX(DATA!$AN$6:$AN$20,V7),DATA!$AN$4,IF(L7<=INDEX(DATA!$AO$6:$AO$20,V7),DATA!$AO$4,IF(L7<=INDEX(DATA!$AP$6:$AP$20,V7),DATA!$AP$4,"-")))),"-") -> - | J7: =IFERROR(INDEX(DATA!$AQ$6:$AU$20,V7,T7),no_value) -> - | K7: =IFERROR(INDEX(DATA!$AL$6:$AP$20,V7,T7),no_value) -> - | P7: =IFERROR(IF(N7=pass,INDEX(DATA!$AG$6:$AK$20,V7,T7),no_value),no_value) -> - | R7: - | T7: =IFERROR(HLOOKUP(I7,DATA!$AG$4:$AK$5,2,FALSE)-DATA!$AF$5,no_value) -> 1 | U7: =IFERROR(VLOOKUP(D7,Liste_Bauteile,DATA!$AF$5,FALSE),no_value) -> - | V7: =IFERROR(VLOOKUP(D7,DATA!$AC$6:$AD$20,2,FALSE),no_value) -> - | W7: =IFERROR(INDEX(DATA!$AU$6:$AU$20,V7),no_value) -> - | X7: =IFERROR(INDEX(DATA!$AY$6:$AY$20,V7,1),no_value) -> - | Y7: =IF($AD$1="X",IFERROR(INDEX(DATA!$AZ$6:$AZ$20,V7,1),no_value),IF(I7=ESIV,0,IFERROR(INDEX(DATA!$BC$6:$BC$20,V7,1),no_value))) -> - | Z7: - | AA7: - | AB7: =IF($AD$1="X",IF(I7=no_value,no_value,IFERROR(infla_WD*INDEX(DATA!$BA$6:$BA$20,V7,1),no_value)),IF(I7=no_value,no_value,IFERROR(infla_WD*INDEX(DATA!$BD$6:$BD$20,V7,1),no_value))) -> - | AC7: =IFERROR(IF(INDEX(DATA!$AF$6:$AF$20,V7,1)=1,infla_WD*C_cm_WB,MAX(0,infla_WD*TREND(DATA!$BH$5:$BK$5,DATA!$BH$4:$BK$4,AE7))),no_value) -> - | AD7: =IFERROR(AB7+AC7*IF(INDEX(DATA!$AF$6:$AF$20,V7,1)=1,AA7,1),no_value) -> - | AE7: - | AF7: - | AG7: =IFERROR(INDEX(DATA!$AE$6:$AE$20,V7,1),no_value) -> - | AH7: =IF(AND(D7<>"",F7<>"",ISNUMBER(K7)),VLOOKUP($D$3,DATA!$BF$25:$BG$27,2,FALSE),no_value) -> - | AI7: - | AJ7: - | AK7: =IFERROR(AF7*AH7*AG7*e_Heiz,no_value) -> - | AL7: =IFERROR(AK7*c_H,no_value) -> - | AM7: - | AN7: - | AO7: - | AP7: - | AQ7: - | AR7: - | AS7: =IFERROR(ROUND(AO7/(AK7*co2_h)*1000,-2),no_value) -> - | AT7: - | AU7: - | AV7: -
B8: 4 | C8: A04 | I8: =IF(AND(D8<>"",V8<>"-"),IF(L8<=INDEX(DATA!$AM$6:$AM$20,V8),DATA!$AM$4,IF(L8<=INDEX(DATA!$AN$6:$AN$20,V8),DATA!$AN$4,IF(L8<=INDEX(DATA!$AO$6:$AO$20,V8),DATA!$AO$4,IF(L8<=INDEX(DATA!$AP$6:$AP$20,V8),DATA!$AP$4,"-")))),"-") -> - | J8: =IFERROR(INDEX(DATA!$AQ$6:$AU$20,V8,T8),no_value) -> - | K8: =IFERROR(INDEX(DATA!$AL$6:$AP$20,V8,T8),no_value) -> - | P8: =IFERROR(IF(N8=pass,INDEX(DATA!$AG$6:$AK$20,V8,T8),no_value),no_value) -> - | R8: - | T8: =IFERROR(HLOOKUP(I8,DATA!$AG$4:$AK$5,2,FALSE)-DATA!$AF$5,no_value) -> 1 | U8: =IFERROR(VLOOKUP(D8,Liste_Bauteile,DATA!$AF$5,FALSE),no_value) -> - | V8: =IFERROR(VLOOKUP(D8,DATA!$AC$6:$AD$20,2,FALSE),no_value) -> - | W8: =IFERROR(INDEX(DATA!$AU$6:$AU$20,V8),no_value) -> - | X8: =IFERROR(INDEX(DATA!$AY$6:$AY$20,V8,1),no_value) -> - | Y8: =IF($AD$1="X",IFERROR(INDEX(DATA!$AZ$6:$AZ$20,V8,1),no_value),IF(I8=ESIV,0,IFERROR(INDEX(DATA!$BC$6:$BC$20,V8,1),no_value))) -> - | Z8: - | AA8: - | AB8: =IF($AD$1="X",IF(I8=no_value,no_value,IFERROR(infla_WD*INDEX(DATA!$BA$6:$BA$20,V8,1),no_value)),IF(I8=no_value,no_value,IFERROR(infla_WD*INDEX(DATA!$BD$6:$BD$20,V8,1),no_value))) -> - | AC8: =IFERROR(IF(INDEX(DATA!$AF$6:$AF$20,V8,1)=1,infla_WD*C_cm_WB,MAX(0,infla_WD*TREND(DATA!$BH$5:$BK$5,DATA!$BH$4:$BK$4,AE8))),no_value) -> - | AD8: =IFERROR(AB8+AC8*IF(INDEX(DATA!$AF$6:$AF$20,V8,1)=1,AA8,1),no_value) -> - | AE8: - | AF8: - | AG8: =IFERROR(INDEX(DATA!$AE$6:$AE$20,V8,1),no_value) -> - | AH8: =IF(AND(D8<>"",F8<>"",ISNUMBER(K8)),VLOOKUP($D$3,DATA!$BF$25:$BG$27,2,FALSE),no_value) -> - | AI8: - | AJ8: - | AK8: - | AL8: - | AM8: - | AN8: - | AO8: - | AP8: - | AQ8: - | AR8: - | AS8: - | AT8: - | AU8: - | AV8: -
B9: 5 | C9: A05 | I9: =IF(AND(D9<>"",V9<>"-"),IF(L9<=INDEX(DATA!$AM$6:$AM$20,V9),DATA!$AM$4,IF(L9<=INDEX(DATA!$AN$6:$AN$20,V9),DATA!$AN$4,IF(L9<=INDEX(DATA!$AO$6:$AO$20,V9),DATA!$AO$4,IF(L9<=INDEX(DATA!$AP$6:$AP$20,V9),DATA!$AP$4,"-")))),"-") -> - | J9: =IFERROR(INDEX(DATA!$AQ$6:$AU$20,V9,T9),no_value) -> - | K9: =IFERROR(INDEX(DATA!$AL$6:$AP$20,V9,T9),no_value) -> - | P9: =IFERROR(IF(N9=pass,INDEX(DATA!$AG$6:$AK$20,V9,T9),no_value),no_value) -> - | R9: - | T9: =IFERROR(HLOOKUP(I9,DATA!$AG$4:$AK$5,2,FALSE)-DATA!$AF$5,no_value) -> 1 | U9: =IFERROR(VLOOKUP(D9,Liste_Bauteile,DATA!$AF$5,FALSE),no_value) -> - | V9: =IFERROR(VLOOKUP(D9,DATA!$AC$6:$AD$20,2,FALSE),no_value) -> - | W9: =IFERROR(INDEX(DATA!$AU$6:$AU$20,V9),no_value) -> - | X9: =IFERROR(INDEX(DATA!$AY$6:$AY$20,V9,1),no_value) -> - | Y9: =IF($AD$1="X",IFERROR(INDEX(DATA!$AZ$6:$AZ$20,V9,1),no_value),IF(I9=ESIV,0,IFERROR(INDEX(DATA!$BC$6:$BC$20,V9,1),no_value))) -> - | Z9: - | AA9: - | AB9: =IF($AD$1="X",IF(I9=no_value,no_value,IFERROR(infla_WD*INDEX(DATA!$BA$6:$BA$20,V9,1),no_value)),IF(I9=no_value,no_value,IFERROR(infla_WD*INDEX(DATA!$BD$6:$BD$20,V9,1),no_value))) -> - | AC9: =IFERROR(IF(INDEX(DATA!$AF$6:$AF$20,V9,1)=1,infla_WD*C_cm_WB,MAX(0,infla_WD*TREND(DATA!$BH$5:$BK$5,DATA!$BH$4:$BK$4,AE9))),no_value) -> - | AD9: =IFERROR(AB9+AC9*IF(INDEX(DATA!$AF$6:$AF$20,V9,1)=1,AA9,1),no_value) -> - | AE9: - | AF9: - | AG9: =IFERROR(INDEX(DATA!$AE$6:$AE$20,V9,1),no_value) -> - | AH9: =IF(AND(D9<>"",F9<>"",ISNUMBER(K9)),VLOOKUP($D$3,DATA!$BF$25:$BG$27,2,FALSE),no_value) -> - | AI9: - | AJ9: - | AK9: - | AL9: - | AM9: - | AN9: - | AO9: - | AP9: - | AQ9: - | AR9: - | AS9: - | AT9: - | AU9: - | AV9: -
B10: 6 | C10: A06 | I10: =IF(AND(D10<>"",V10<>"-"),IF(L10<=INDEX(DATA!$AM$6:$AM$20,V10),DATA!$AM$4,IF(L10<=INDEX(DATA!$AN$6:$AN$20,V10),DATA!$AN$4,IF(L10<=INDEX(DATA!$AO$6:$AO$20,V10),DATA!$AO$4,IF(L10<=INDEX(DATA!$AP$6:$AP$20,V10),DATA!$AP$4,"-")))),"-") -> - | J10: =IFERROR(INDEX(DATA!$AQ$6:$AU$20,V10,T10),no_value) -> - | K10: =IFERROR(INDEX(DATA!$AL$6:$AP$20,V10,T10),no_value) -> - | P10: =IFERROR(IF(N10=pass,INDEX(DATA!$AG$6:$AK$20,V10,T10),no_value),no_value) -> - | R10: - | T10: =IFERROR(HLOOKUP(I10,DATA!$AG$4:$AK$5,2,FALSE)-DATA!$AF$5,no_value) -> 1 | U10: =IFERROR(VLOOKUP(D10,Liste_Bauteile,DATA!$AF$5,FALSE),no_value) -> - | V10: =IFERROR(VLOOKUP(D10,DATA!$AC$6:$AD$20,2,FALSE),no_value) -> - | W10: =IFERROR(INDEX(DATA!$AU$6:$AU$20,V10),no_value) -> - | X10: =IFERROR(INDEX(DATA!$AY$6:$AY$20,V10,1),no_value) -> - | Y10: =IF($AD$1="X",IFERROR(INDEX(DATA!$AZ$6:$AZ$20,V10,1),no_value),IF(I10=ESIV,0,IFERROR(INDEX(DATA!$BC$6:$BC$20,V10,1),no_value))) -> - | Z10: - | AA10: - | AB10: =IF($AD$1="X",IF(I10=no_value,no_value,IFERROR(infla_WD*INDEX(DATA!$BA$6:$BA$20,V10,1),no_value)),IF(I10=no_value,no_value,IFERROR(infla_WD*INDEX(DATA!$BD$6:$BD$20,V10,1),no_value))) -> - | AC10: =IFERROR(IF(INDEX(DATA!$AF$6:$AF$20,V10,1)=1,infla_WD*C_cm_WB,MAX(0,infla_WD*TREND(DATA!$BH$5:$BK$5,DATA!$BH$4:$BK$4,AE10))),no_value) -> - | AD10: =IFERROR(AB10+AC10*IF(INDEX(DATA!$AF$6:$AF$20,V10,1)=1,AA10,1),no_value) -> - | AE10: - | AF10: - | AG10: =IFERROR(INDEX(DATA!$AE$6:$AE$20,V10,1),no_value) -> - | AH10: =IF(AND(D10<>"",F10<>"",ISNUMBER(K10)),VLOOKUP($D$3,DATA!$BF$25:$BG$27,2,FALSE),no_value) -> - | AI10: - | AJ10: - | AK10: - | AL10: - | AM10: - | AN10: - | AO10: - | AP10: - | AQ10: - | AR10: - | AS10: - | AT10: - | AU10: - | AV10: -
B11: 7 | C11: A07 | I11: =IF(AND(D11<>"",V11<>"-"),IF(L11<=INDEX(DATA!$AM$6:$AM$20,V11),DATA!$AM$4,IF(L11<=INDEX(DATA!$AN$6:$AN$20,V11),DATA!$AN$4,IF(L11<=INDEX(DATA!$AO$6:$AO$20,V11),DATA!$AO$4,IF(L11<=INDEX(DATA!$AP$6:$AP$20,V11),DATA!$AP$4,"-")))),"-") -> - | J11: =IFERROR(INDEX(DATA!$AQ$6:$AU$20,V11,T11),no_value) -> - | K11: =IFERROR(INDEX(DATA!$AL$6:$AP$20,V11,T11),no_value) -> - | P11: =IFERROR(IF(N11=pass,INDEX(DATA!$AG$6:$AK$20,V11,T11),no_value),no_value) -> - | R11: - | T11: =IFERROR(HLOOKUP(I11,DATA!$AG$4:$AK$5,2,FALSE)-DATA!$AF$5,no_value) -> 1 | U11: =IFERROR(VLOOKUP(D11,Liste_Bauteile,DATA!$AF$5,FALSE),no_value) -> - | V11: =IFERROR(VLOOKUP(D11,DATA!$AC$6:$AD$20,2,FALSE),no_value) -> - | W11: =IFERROR(INDEX(DATA!$AU$6:$AU$20,V11),no_value) -> - | X11: =IFERROR(INDEX(DATA!$AY$6:$AY$20,V11,1),no_value) -> - | Y11: =IF($AD$1="X",IFERROR(INDEX(DATA!$AZ$6:$AZ$20,V11,1),no_value),IF(I11=ESIV,0,IFERROR(INDEX(DATA!$BC$6:$BC$20,V11,1),no_value))) -> - | Z11: - | AA11: - | AB11: =IF($AD$1="X",IF(I11=no_value,no_value,IFERROR(infla_WD*INDEX(DATA!$BA$6:$BA$20,V11,1),no_value)),IF(I11=no_value,no_value,IFERROR(infla_WD*INDEX(DATA!$BD$6:$BD$20,V11,1),no_value))) -> - | AC11: =IFERROR(IF(INDEX(DATA!$AF$6:$AF$20,V11,1)=1,infla_WD*C_cm_WB,MAX(0,infla_WD*TREND(DATA!$BH$5:$BK$5,DATA!$BH$4:$BK$4,AE11))),no_value) -> - | AD11: =IFERROR(AB11+AC11*IF(INDEX(DATA!$AF$6:$AF$20,V11,1)=1,AA11,1),no_value) -> - | AE11: - | AF11: - | AG11: =IFERROR(INDEX(DATA!$AE$6:$AE$20,V11,1),no_value) -> - | AH11: =IF(AND(D11<>"",F11<>"",ISNUMBER(K11)),VLOOKUP($D$3,DATA!$BF$25:$BG$27,2,FALSE),no_value) -> - | AI11: - | AJ11: - | AK11: - | AL11: - | AM11: - | AN11: - | AO11: - | AP11: - | AQ11: - | AR11: - | AS11: - | AT11: - | AU11: - | AV11: -
B12: 8 | C12: A08 | I12: =IF(AND(D12<>"",V12<>"-"),IF(L12<=INDEX(DATA!$AM$6:$AM$20,V12),DATA!$AM$4,IF(L12<=INDEX(DATA!$AN$6:$AN$20,V12),DATA!$AN$4,IF(L12<=INDEX(DATA!$AO$6:$AO$20,V12),DATA!$AO$4,IF(L12<=INDEX(DATA!$AP$6:$AP$20,V12),DATA!$AP$4,"-")))),"-") -> - | J12: =IFERROR(INDEX(DATA!$AQ$6:$AU$20,V12,T12),no_value) -> - | K12: =IFERROR(INDEX(DATA!$AL$6:$AP$20,V12,T12),no_value) -> - | P12: =IFERROR(IF(N12=pass,INDEX(DATA!$AG$6:$AK$20,V12,T12),no_value),no_value) -> - | R12: - | T12: =IFERROR(HLOOKUP(I12,DATA!$AG$4:$AK$5,2,FALSE)-DATA!$AF$5,no_value) -> 1 | U12: =IFERROR(VLOOKUP(D12,Liste_Bauteile,DATA!$AF$5,FALSE),no_value) -> - | V12: =IFERROR(VLOOKUP(D12,DATA!$AC$6:$AD$20,2,FALSE),no_value) -> - | W12: =IFERROR(INDEX(DATA!$AU$6:$AU$20,V12),no_value) -> - | X12: =IFERROR(INDEX(DATA!$AY$6:$AY$20,V12,1),no_value) -> - | Y12: =IF($AD$1="X",IFERROR(INDEX(DATA!$AZ$6:$AZ$20,V12,1),no_value),IF(I12=ESIV,0,IFERROR(INDEX(DATA!$BC$6:$BC$20,V12,1),no_value))) -> - | Z12: - | AA12: - | AB12: =IF($AD$1="X",IF(I12=no_value,no_value,IFERROR(infla_WD*INDEX(DATA!$BA$6:$BA$20,V12,1),no_value)),IF(I12=no_value,no_value,IFERROR(infla_WD*INDEX(DATA!$BD$6:$BD$20,V12,1),no_value))) -> - | AC12: =IFERROR(IF(INDEX(DATA!$AF$6:$AF$20,V12,1)=1,infla_WD*C_cm_WB,MAX(0,infla_WD*TREND(DATA!$BH$5:$BK$5,DATA!$BH$4:$BK$4,AE12))),no_value) -> - | AD12: =IFERROR(AB12+AC12*IF(INDEX(DATA!$AF$6:$AF$20,V12,1)=1,AA12,1),no_value) -> - | AE12: - | AF12: - | AG12: =IFERROR(INDEX(DATA!$AE$6:$AE$20,V12,1),no_value) -> - | AH12: =IF(AND(D12<>"",F12<>"",ISNUMBER(K12)),VLOOKUP($D$3,DATA!$BF$25:$BG$27,2,FALSE),no_value) -> - | AI12: - | AJ12: - | AK12: - | AL12: - | AM12: - | AN12: - | AO12: - | AP12: - | AQ12: - | AR12: - | AS12: - | AT12: - | AU12: - | AV12: -
B13: 9 | C13: A09 | I13: =IF(AND(D13<>"",V13<>"-"),IF(L13<=INDEX(DATA!$AM$6:$AM$20,V13),DATA!$AM$4,IF(L13<=INDEX(DATA!$AN$6:$AN$20,V13),DATA!$AN$4,IF(L13<=INDEX(DATA!$AO$6:$AO$20,V13),DATA!$AO$4,IF(L13<=INDEX(DATA!$AP$6:$AP$20,V13),DATA!$AP$4,"-")))),"-") -> - | J13: =IFERROR(INDEX(DATA!$AQ$6:$AU$20,V13,T13),no_value) -> - | K13: =IFERROR(INDEX(DATA!$AL$6:$AP$20,V13,T13),no_value) -> - | P13: =IFERROR(IF(N13=pass,INDEX(DATA!$AG$6:$AK$20,V13,T13),no_value),no_value) -> - | R13: - | T13: =IFERROR(HLOOKUP(I13,DATA!$AG$4:$AK$5,2,FALSE)-DATA!$AF$5,no_value) -> 1 | U13: =IFERROR(VLOOKUP(D13,Liste_Bauteile,DATA!$AF$5,FALSE),no_value) -> - | V13: =IFERROR(VLOOKUP(D13,DATA!$AC$6:$AD$20,2,FALSE),no_value) -> - | W13: =IFERROR(INDEX(DATA!$AU$6:$AU$20,V13),no_value) -> - | X13: =IFERROR(INDEX(DATA!$AY$6:$AY$20,V13,1),no_value) -> - | Y13: =IF($AD$1="X",IFERROR(INDEX(DATA!$AZ$6:$AZ$20,V13,1),no_value),IF(I13=ESIV,0,IFERROR(INDEX(DATA!$BC$6:$BC$20,V13,1),no_value))) -> - | Z13: - | AA13: - | AB13: =IF($AD$1="X",IF(I13=no_value,no_value,IFERROR(infla_WD*INDEX(DATA!$BA$6:$BA$20,V13,1),no_value)),IF(I13=no_value,no_value,IFERROR(infla_WD*INDEX(DATA!$BD$6:$BD$20,V13,1),no_value))) -> - | AC13: =IFERROR(IF(INDEX(DATA!$AF$6:$AF$20,V13,1)=1,infla_WD*C_cm_WB,MAX(0,infla_WD*TREND(DATA!$BH$5:$BK$5,DATA!$BH$4:$BK$4,AE13))),no_value) -> - | AD13: =IFERROR(AB13+AC13*IF(INDEX(DATA!$AF$6:$AF$20,V13,1)=1,AA13,1),no_value) -> - | AE13: - | AF13: - | AG13: =IFERROR(INDEX(DATA!$AE$6:$AE$20,V13,1),no_value) -> - | AH13: =IF(AND(D13<>"",F13<>"",ISNUMBER(K13)),VLOOKUP($D$3,DATA!$BF$25:$BG$27,2,FALSE),no_value) -> - | AI13: - | AJ13: - | AK13: - | AL13: - | AM13: - | AN13: - | AO13: - | AP13: - | AQ13: - | AR13: - | AS13: - | AT13: - | AU13: - | AV13: -
B14: 10 | C14: A10 | I14: =IF(AND(D14<>"",V14<>"-"),IF(L14<=INDEX(DATA!$AM$6:$AM$20,V14),DATA!$AM$4,IF(L14<=INDEX(DATA!$AN$6:$AN$20,V14),DATA!$AN$4,IF(L14<=INDEX(DATA!$AO$6:$AO$20,V14),DATA!$AO$4,IF(L14<=INDEX(DATA!$AP$6:$AP$20,V14),DATA!$AP$4,"-")))),"-") -> - | J14: =IFERROR(INDEX(DATA!$AQ$6:$AU$20,V14,T14),no_value) -> - | K14: =IFERROR(INDEX(DATA!$AL$6:$AP$20,V14,T14),no_value) -> - | P14: =IFERROR(IF(N14=pass,INDEX(DATA!$AG$6:$AK$20,V14,T14),no_value),no_value) -> - | R14: - | T14: =IFERROR(HLOOKUP(I14,DATA!$AG$4:$AK$5,2,FALSE)-DATA!$AF$5,no_value) -> 1 | U14: =IFERROR(VLOOKUP(D14,Liste_Bauteile,DATA!$AF$5,FALSE),no_value) -> - | V14: =IFERROR(VLOOKUP(D14,DATA!$AC$6:$AD$20,2,FALSE),no_value) -> - | W14: =IFERROR(INDEX(DATA!$AU$6:$AU$20,V14),no_value) -> - | X14: =IFERROR(INDEX(DATA!$AY$6:$AY$20,V14,1),no_value) -> - | Y14: =IF($AD$1="X",IFERROR(INDEX(DATA!$AZ$6:$AZ$20,V14,1),no_value),IF(I14=ESIV,0,IFERROR(INDEX(DATA!$BC$6:$BC$20,V14,1),no_value))) -> - | Z14: - | AA14: - | AB14: =IF($AD$1="X",IF(I14=no_value,no_value,IFERROR(infla_WD*INDEX(DATA!$BA$6:$BA$20,V14,1),no_value)),IF(I14=no_value,no_value,IFERROR(infla_WD*INDEX(DATA!$BD$6:$BD$20,V14,1),no_value))) -> - | AC14: =IFERROR(IF(INDEX(DATA!$AF$6:$AF$20,V14,1)=1,infla_WD*C_cm_WB,MAX(0,infla_WD*TREND(DATA!$BH$5:$BK$5,DATA!$BH$4:$BK$4,AE14))),no_value) -> - | AD14: =IFERROR(AB14+AC14*IF(INDEX(DATA!$AF$6:$AF$20,V14,1)=1,AA14,1),no_value) -> - | AE14: - | AF14: - | AG14: =IFERROR(INDEX(DATA!$AE$6:$AE$20,V14,1),no_value) -> - | AH14: =IF(AND(D14<>"",F14<>"",ISNUMBER(K14)),VLOOKUP($D$3,DATA!$BF$25:$BG$27,2,FALSE),no_value) -> - | AI14: - | AJ14: - | AK14: - | AL14: - | AM14: - | AN14: - | AO14: - | AP14: - | AQ14: - | AR14: - | AS14: - | AT14: - | AU14: - | AV14: -
B15: 11 | C15: A11 | I15: =IF(AND(D15<>"",V15<>"-"),IF(L15<=INDEX(DATA!$AM$6:$AM$20,V15),DATA!$AM$4,IF(L15<=INDEX(DATA!$AN$6:$AN$20,V15),DATA!$AN$4,IF(L15<=INDEX(DATA!$AO$6:$AO$20,V15),DATA!$AO$4,IF(L15<=INDEX(DATA!$AP$6:$AP$20,V15),DATA!$AP$4,"-")))),"-") -> - | J15: =IFERROR(INDEX(DATA!$AQ$6:$AU$20,V15,T15),no_value) -> - | K15: =IFERROR(INDEX(DATA!$AL$6:$AP$20,V15,T15),no_value) -> - | P15: =IFERROR(IF(N15=pass,INDEX(DATA!$AG$6:$AK$20,V15,T15),no_value),no_value) -> - | R15: - | T15: =IFERROR(HLOOKUP(I15,DATA!$AG$4:$AK$5,2,FALSE)-DATA!$AF$5,no_value) -> 1 | U15: =IFERROR(VLOOKUP(D15,Liste_Bauteile,DATA!$AF$5,FALSE),no_value) -> - | V15: =IFERROR(VLOOKUP(D15,DATA!$AC$6:$AD$20,2,FALSE),no_value) -> - | W15: =IFERROR(INDEX(DATA!$AU$6:$AU$20,V15),no_value) -> - | X15: =IFERROR(INDEX(DATA!$AY$6:$AY$20,V15,1),no_value) -> - | Y15: =IF($AD$1="X",IFERROR(INDEX(DATA!$AZ$6:$AZ$20,V15,1),no_value),IF(I15=ESIV,0,IFERROR(INDEX(DATA!$BC$6:$BC$20,V15,1),no_value))) -> - | Z15: - | AA15: - | AB15: =IF($AD$1="X",IF(I15=no_value,no_value,IFERROR(infla_WD*INDEX(DATA!$BA$6:$BA$20,V15,1),no_value)),IF(I15=no_value,no_value,IFERROR(infla_WD*INDEX(DATA!$BD$6:$BD$20,V15,1),no_value))) -> - | AC15: =IFERROR(IF(INDEX(DATA!$AF$6:$AF$20,V15,1)=1,infla_WD*C_cm_WB,MAX(0,infla_WD*TREND(DATA!$BH$5:$BK$5,DATA!$BH$4:$BK$4,AE15))),no_value) -> - | AD15: =IFERROR(AB15+AC15*IF(INDEX(DATA!$AF$6:$AF$20,V15,1)=1,AA15,1),no_value) -> - | AE15: - | AF15: - | AG15: =IFERROR(INDEX(DATA!$AE$6:$AE$20,V15,1),no_value) -> - | AH15: =IF(AND(D15<>"",F15<>"",ISNUMBER(K15)),VLOOKUP($D$3,DATA!$BF$25:$BG$27,2,FALSE),no_value) -> - | AI15: - | AJ15: - | AK15: - | AL15: - | AM15: - | AN15: - | AO15: - | AP15: - | AQ15: - | AR15: - | AS15: - | AT15: - | AU15: - | AV15: -
B16: 12 | C16: A12 | I16: =IF(AND(D16<>"",V16<>"-"),IF(L16<=INDEX(DATA!$AM$6:$AM$20,V16),DATA!$AM$4,IF(L16<=INDEX(DATA!$AN$6:$AN$20,V16),DATA!$AN$4,IF(L16<=INDEX(DATA!$AO$6:$AO$20,V16),DATA!$AO$4,IF(L16<=INDEX(DATA!$AP$6:$AP$20,V16),DATA!$AP$4,"-")))),"-") -> - | J16: =IFERROR(INDEX(DATA!$AQ$6:$AU$20,V16,T16),no_value) -> - | K16: =IFERROR(INDEX(DATA!$AL$6:$AP$20,V16,T16),no_value) -> - | P16: =IFERROR(IF(N16=pass,INDEX(DATA!$AG$6:$AK$20,V16,T16),no_value),no_value) -> - | R16: - | T16: =IFERROR(HLOOKUP(I16,DATA!$AG$4:$AK$5,2,FALSE)-DATA!$AF$5,no_value) -> 1 | U16: =IFERROR(VLOOKUP(D16,Liste_Bauteile,DATA!$AF$5,FALSE),no_value) -> - | V16: =IFERROR(VLOOKUP(D16,DATA!$AC$6:$AD$20,2,FALSE),no_value) -> - | W16: =IFERROR(INDEX(DATA!$AU$6:$AU$20,V16),no_value) -> - | X16: =IFERROR(INDEX(DATA!$AY$6:$AY$20,V16,1),no_value) -> - | Y16: =IF($AD$1="X",IFERROR(INDEX(DATA!$AZ$6:$AZ$20,V16,1),no_value),IF(I16=ESIV,0,IFERROR(INDEX(DATA!$BC$6:$BC$20,V16,1),no_value))) -> - | Z16: - | AA16: - | AB16: =IF($AD$1="X",IF(I16=no_value,no_value,IFERROR(infla_WD*INDEX(DATA!$BA$6:$BA$20,V16,1),no_value)),IF(I16=no_value,no_value,IFERROR(infla_WD*INDEX(DATA!$BD$6:$BD$20,V16,1),no_value))) -> - | AC16: =IFERROR(IF(INDEX(DATA!$AF$6:$AF$20,V16,1)=1,infla_WD*C_cm_WB,MAX(0,infla_WD*TREND(DATA!$BH$5:$BK$5,DATA!$BH$4:$BK$4,AE16))),no_value) -> - | AD16: =IFERROR(AB16+AC16*IF(INDEX(DATA!$AF$6:$AF$20,V16,1)=1,AA16,1),no_value) -> - | AE16: - | AF16: - | AG16: =IFERROR(INDEX(DATA!$AE$6:$AE$20,V16,1),no_value) -> - | AH16: =IF(AND(D16<>"",F16<>"",ISNUMBER(K16)),VLOOKUP($D$3,DATA!$BF$25:$BG$27,2,FALSE),no_value) -> - | AI16: - | AJ16: - | AK16: - | AL16: - | AM16: - | AN16: - | AO16: - | AP16: - | AQ16: - | AR16: - | AS16: - | AT16: - | AU16: - | AV16: -
B17: 13 | C17: A13 | I17: =IF(AND(D17<>"",V17<>"-"),IF(L17<=INDEX(DATA!$AM$6:$AM$20,V17),DATA!$AM$4,IF(L17<=INDEX(DATA!$AN$6:$AN$20,V17),DATA!$AN$4,IF(L17<=INDEX(DATA!$AO$6:$AO$20,V17),DATA!$AO$4,IF(L17<=INDEX(DATA!$AP$6:$AP$20,V17),DATA!$AP$4,"-")))),"-") -> - | J17: =IFERROR(INDEX(DATA!$AQ$6:$AU$20,V17,T17),no_value) -> - | K17: =IFERROR(INDEX(DATA!$AL$6:$AP$20,V17,T17),no_value) -> - | P17: =IFERROR(IF(N17=pass,INDEX(DATA!$AG$6:$AK$20,V17,T17),no_value),no_value) -> - | R17: - | T17: =IFERROR(HLOOKUP(I17,DATA!$AG$4:$AK$5,2,FALSE)-DATA!$AF$5,no_value) -> 1 | U17: =IFERROR(VLOOKUP(D17,Liste_Bauteile,DATA!$AF$5,FALSE),no_value) -> - | V17: =IFERROR(VLOOKUP(D17,DATA!$AC$6:$AD$20,2,FALSE),no_value) -> - | W17: =IFERROR(INDEX(DATA!$AU$6:$AU$20,V17),no_value) -> - | X17: =IFERROR(INDEX(DATA!$AY$6:$AY$20,V17,1),no_value) -> - | Y17: =IF($AD$1="X",IFERROR(INDEX(DATA!$AZ$6:$AZ$20,V17,1),no_value),IF(I17=ESIV,0,IFERROR(INDEX(DATA!$BC$6:$BC$20,V17,1),no_value))) -> - | Z17: - | AA17: - | AB17: =IF($AD$1="X",IF(I17=no_value,no_value,IFERROR(infla_WD*INDEX(DATA!$BA$6:$BA$20,V17,1),no_value)),IF(I17=no_value,no_value,IFERROR(infla_WD*INDEX(DATA!$BD$6:$BD$20,V17,1),no_value))) -> - | AC17: =IFERROR(IF(INDEX(DATA!$AF$6:$AF$20,V17,1)=1,infla_WD*C_cm_WB,MAX(0,infla_WD*TREND(DATA!$BH$5:$BK$5,DATA!$BH$4:$BK$4,AE17))),no_value) -> - | AD17: =IFERROR(AB17+AC17*IF(INDEX(DATA!$AF$6:$AF$20,V17,1)=1,AA17,1),no_value) -> - | AE17: - | AF17: - | AG17: =IFERROR(INDEX(DATA!$AE$6:$AE$20,V17,1),no_value) -> - | AH17: =IF(AND(D17<>"",F17<>"",ISNUMBER(K17)),VLOOKUP($D$3,DATA!$BF$25:$BG$27,2,FALSE),no_value) -> - | AI17: - | AJ17: - | AK17: - | AL17: - | AM17: - | AN17: - | AO17: - | AP17: - | AQ17: - | AR17: - | AS17: - | AT17: - | AU17: - | AV17: -
B18: 14 | C18: A15 | I18: =IF(AND(D18<>"",V18<>"-"),IF(L18<=INDEX(DATA!$AM$6:$AM$20,V18),DATA!$AM$4,IF(L18<=INDEX(DATA!$AN$6:$AN$20,V18),DATA!$AN$4,IF(L18<=INDEX(DATA!$AO$6:$AO$20,V18),DATA!$AO$4,IF(L18<=INDEX(DATA!$AP$6:$AP$20,V18),DATA!$AP$4,"-")))),"-") -> - | J18: =IFERROR(INDEX(DATA!$AQ$6:$AU$20,V18,T18),no_value) -> - | K18: =IFERROR(INDEX(DATA!$AL$6:$AP$20,V18,T18),no_value) -> - | P18: =IFERROR(IF(N18=pass,INDEX(DATA!$AG$6:$AK$20,V18,T18),no_value),no_value) -> - | R18: - | T18: =IFERROR(HLOOKUP(I18,DATA!$AG$4:$AK$5,2,FALSE)-DATA!$AF$5,no_value) -> 1 | U18: =IFERROR(VLOOKUP(D18,Liste_Bauteile,DATA!$AF$5,FALSE),no_value) -> - | V18: =IFERROR(VLOOKUP(D18,DATA!$AC$6:$AD$20,2,FALSE),no_value) -> - | W18: =IFERROR(INDEX(DATA!$AU$6:$AU$20,V18),no_value) -> - | X18: =IFERROR(INDEX(DATA!$AY$6:$AY$20,V18,1),no_value) -> - | Y18: =IF($AD$1="X",IFERROR(INDEX(DATA!$AZ$6:$AZ$20,V18,1),no_value),IF(I18=ESIV,0,IFERROR(INDEX(DATA!$BC$6:$BC$20,V18,1),no_value))) -> - | Z18: - | AA18: - | AB18: =IF($AD$1="X",IF(I18=no_value,no_value,IFERROR(infla_WD*INDEX(DATA!$BA$6:$BA$20,V18,1),no_value)),IF(I18=no_value,no_value,IFERROR(infla_WD*INDEX(DATA!$BD$6:$BD$20,V18,1),no_value))) -> - | AC18: =IFERROR(IF(INDEX(DATA!$AF$6:$AF$20,V18,1)=1,infla_WD*C_cm_WB,MAX(0,infla_WD*TREND(DATA!$BH$5:$BK$5,DATA!$BH$4:$BK$4,AE18))),no_value) -> - | AD18: =IFERROR(AB18+AC18*IF(INDEX(DATA!$AF$6:$AF$20,V18,1)=1,AA18,1),no_value) -> - | AE18: - | AF18: - | AG18: =IFERROR(INDEX(DATA!$AE$6:$AE$20,V18,1),no_value) -> - | AH18: =IF(AND(D18<>"",F18<>"",ISNUMBER(K18)),VLOOKUP($D$3,DATA!$BF$25:$BG$27,2,FALSE),no_value) -> - | AI18: - | AJ18: - | AK18: - | AL18: - | AM18: - | AN18: - | AO18: - | AP18: - | AQ18: - | AR18: - | AS18: - | AT18: - | AU18: - | AV18: -
B19: 15 | C19: A16 | I19: =IF(AND(D19<>"",V19<>"-"),IF(L19<=INDEX(DATA!$AM$6:$AM$20,V19),DATA!$AM$4,IF(L19<=INDEX(DATA!$AN$6:$AN$20,V19),DATA!$AN$4,IF(L19<=INDEX(DATA!$AO$6:$AO$20,V19),DATA!$AO$4,IF(L19<=INDEX(DATA!$AP$6:$AP$20,V19),DATA!$AP$4,"-")))),"-") -> - | J19: =IFERROR(INDEX(DATA!$AQ$6:$AU$20,V19,T19),no_value) -> - | K19: =IFERROR(INDEX(DATA!$AL$6:$AP$20,V19,T19),no_value) -> - | P19: =IFERROR(IF(N19=pass,INDEX(DATA!$AG$6:$AK$20,V19,T19),no_value),no_value) -> - | R19: - | T19: =IFERROR(HLOOKUP(I19,DATA!$AG$4:$AK$5,2,FALSE)-DATA!$AF$5,no_value) -> 1 | U19: =IFERROR(VLOOKUP(D19,Liste_Bauteile,DATA!$AF$5,FALSE),no_value) -> - | V19: =IFERROR(VLOOKUP(D19,DATA!$AC$6:$AD$20,2,FALSE),no_value) -> - | W19: =IFERROR(INDEX(DATA!$AU$6:$AU$20,V19),no_value) -> - | X19: =IFERROR(INDEX(DATA!$AY$6:$AY$20,V19,1),no_value) -> - | Y19: =IF($AD$1="X",IFERROR(INDEX(DATA!$AZ$6:$AZ$20,V19,1),no_value),IF(I19=ESIV,0,IFERROR(INDEX(DATA!$BC$6:$BC$20,V19,1),no_value))) -> - | Z19: - | AA19: - | AB19: =IF($AD$1="X",IF(I19=no_value,no_value,IFERROR(infla_WD*INDEX(DATA!$BA$6:$BA$20,V19,1),no_value)),IF(I19=no_value,no_value,IFERROR(infla_WD*INDEX(DATA!$BD$6:$BD$20,V19,1),no_value))) -> - | AC19: =IFERROR(IF(INDEX(DATA!$AF$6:$AF$20,V19,1)=1,infla_WD*C_cm_WB,MAX(0,infla_WD*TREND(DATA!$BH$5:$BK$5,DATA!$BH$4:$BK$4,AE19))),no_value) -> - | AD19: =IFERROR(AB19+AC19*IF(INDEX(DATA!$AF$6:$AF$20,V19,1)=1,AA19,1),no_value) -> - | AE19: - | AF19: - | AG19: =IFERROR(INDEX(DATA!$AE$6:$AE$20,V19,1),no_value) -> - | AH19: =IF(AND(D19<>"",F19<>"",ISNUMBER(K19)),VLOOKUP($D$3,DATA!$BF$25:$BG$27,2,FALSE),no_value) -> - | AI19: - | AJ19: - | AK19: - | AL19: - | AM19: - | AN19: - | AO19: - | AP19: - | AQ19: - | AR19: - | AS19: - | AT19: - | AU19: - | AV19: -
B20: 16 | C20: A17 | I20: =IF(AND(D20<>"",V20<>"-"),IF(L20<=INDEX(DATA!$AM$6:$AM$20,V20),DATA!$AM$4,IF(L20<=INDEX(DATA!$AN$6:$AN$20,V20),DATA!$AN$4,IF(L20<=INDEX(DATA!$AO$6:$AO$20,V20),DATA!$AO$4,IF(L20<=INDEX(DATA!$AP$6:$AP$20,V20),DATA!$AP$4,"-")))),"-") -> - | J20: =IFERROR(INDEX(DATA!$AQ$6:$AU$20,V20,T20),no_value) -> - | K20: =IFERROR(INDEX(DATA!$AL$6:$AP$20,V20,T20),no_value) -> - | P20: =IFERROR(IF(N20=pass,INDEX(DATA!$AG$6:$AK$20,V20,T20),no_value),no_value) -> - | R20: - | T20: =IFERROR(HLOOKUP(I20,DATA!$AG$4:$AK$5,2,FALSE)-DATA!$AF$5,no_value) -> 1 | U20: =IFERROR(VLOOKUP(D20,Liste_Bauteile,DATA!$AF$5,FALSE),no_value) -> - | V20: =IFERROR(VLOOKUP(D20,DATA!$AC$6:$AD$20,2,FALSE),no_value) -> - | W20: =IFERROR(INDEX(DATA!$AU$6:$AU$20,V20),no_value) -> - | X20: =IFERROR(INDEX(DATA!$AY$6:$AY$20,V20,1),no_value) -> - | Y20: =IF($AD$1="X",IFERROR(INDEX(DATA!$AZ$6:$AZ$20,V20,1),no_value),IF(I20=ESIV,0,IFERROR(INDEX(DATA!$BC$6:$BC$20,V20,1),no_value))) -> - | Z20: - | AA20: - | AB20: =IF($AD$1="X",IF(I20=no_value,no_value,IFERROR(infla_WD*INDEX(DATA!$BA$6:$BA$20,V20,1),no_value)),IF(I20=no_value,no_value,IFERROR(infla_WD*INDEX(DATA!$BD$6:$BD$20,V20,1),no_value))) -> - | AC20: =IFERROR(IF(INDEX(DATA!$AF$6:$AF$20,V20,1)=1,infla_WD*C_cm_WB,MAX(0,infla_WD*TREND(DATA!$BH$5:$BK$5,DATA!$BH$4:$BK$4,AE20))),no_value) -> - | AD20: =IFERROR(AB20+AC20*IF(INDEX(DATA!$AF$6:$AF$20,V20,1)=1,AA20,1),no_value) -> - | AE20: - | AF20: - | AG20: =IFERROR(INDEX(DATA!$AE$6:$AE$20,V20,1),no_value) -> - | AH20: =IF(AND(D20<>"",F20<>"",ISNUMBER(K20)),VLOOKUP($D$3,DATA!$BF$25:$BG$27,2,FALSE),no_value) -> - | AI20: - | AJ20: - | AK20: - | AL20: - | AM20: - | AN20: - | AO20: - | AP20: - | AQ20: - | AR20: - | AS20: - | AT20: - | AU20: - | AV20: -
B21: 17 | C21: A18 | I21: =IF(AND(D21<>"",V21<>"-"),IF(L21<=INDEX(DATA!$AM$6:$AM$20,V21),DATA!$AM$4,IF(L21<=INDEX(DATA!$AN$6:$AN$20,V21),DATA!$AN$4,IF(L21<=INDEX(DATA!$AO$6:$AO$20,V21),DATA!$AO$4,IF(L21<=INDEX(DATA!$AP$6:$AP$20,V21),DATA!$AP$4,"-")))),"-") -> - | J21: =IFERROR(INDEX(DATA!$AQ$6:$AU$20,V21,T21),no_value) -> - | K21: =IFERROR(INDEX(DATA!$AL$6:$AP$20,V21,T21),no_value) -> - | P21: =IFERROR(IF(N21=pass,INDEX(DATA!$AG$6:$AK$20,V21,T21),no_value),no_value) -> - | R21: - | T21: =IFERROR(HLOOKUP(I21,DATA!$AG$4:$AK$5,2,FALSE)-DATA!$AF$5,no_value) -> 1 | U21: =IFERROR(VLOOKUP(D21,Liste_Bauteile,DATA!$AF$5,FALSE),no_value) -> - | V21: =IFERROR(VLOOKUP(D21,DATA!$AC$6:$AD$20,2,FALSE),no_value) -> - | W21: =IFERROR(INDEX(DATA!$AU$6:$AU$20,V21),no_value) -> - | X21: =IFERROR(INDEX(DATA!$AY$6:$AY$20,V21,1),no_value) -> - | Y21: =IF($AD$1="X",IFERROR(INDEX(DATA!$AZ$6:$AZ$20,V21,1),no_value),IF(I21=ESIV,0,IFERROR(INDEX(DATA!$BC$6:$BC$20,V21,1),no_value))) -> - | Z21: - | AA21: - | AB21: =IF($AD$1="X",IF(I21=no_value,no_value,IFERROR(infla_WD*INDEX(DATA!$BA$6:$BA$20,V21,1),no_value)),IF(I21=no_value,no_value,IFERROR(infla_WD*INDEX(DATA!$BD$6:$BD$20,V21,1),no_value))) -> - | AC21: =IFERROR(IF(INDEX(DATA!$AF$6:$AF$20,V21,1)=1,infla_WD*C_cm_WB,MAX(0,infla_WD*TREND(DATA!$BH$5:$BK$5,DATA!$BH$4:$BK$4,AE21))),no_value) -> - | AD21: =IFERROR(AB21+AC21*IF(INDEX(DATA!$AF$6:$AF$20,V21,1)=1,AA21,1),no_value) -> - | AE21: - | AF21: - | AG21: =IFERROR(INDEX(DATA!$AE$6:$AE$20,V21,1),no_value) -> - | AH21: =IF(AND(D21<>"",F21<>"",ISNUMBER(K21)),VLOOKUP($D$3,DATA!$BF$25:$BG$27,2,FALSE),no_value) -> - | AI21: - | AJ21: - | AK21: - | AL21: - | AM21: - | AN21: - | AO21: - | AP21: - | AQ21: - | AR21: - | AS21: - | AT21: - | AU21: - | AV21: -
B22: 18 | C22: A19 | I22: =IF(AND(D22<>"",V22<>"-"),IF(L22<=INDEX(DATA!$AM$6:$AM$20,V22),DATA!$AM$4,IF(L22<=INDEX(DATA!$AN$6:$AN$20,V22),DATA!$AN$4,IF(L22<=INDEX(DATA!$AO$6:$AO$20,V22),DATA!$AO$4,IF(L22<=INDEX(DATA!$AP$6:$AP$20,V22),DATA!$AP$4,"-")))),"-") -> - | J22: =IFERROR(INDEX(DATA!$AQ$6:$AU$20,V22,T22),no_value) -> - | K22: =IFERROR(INDEX(DATA!$AL$6:$AP$20,V22,T22),no_value) -> - | P22: =IFERROR(IF(N22=pass,INDEX(DATA!$AG$6:$AK$20,V22,T22),no_value),no_value) -> - | R22: - | T22: =IFERROR(HLOOKUP(I22,DATA!$AG$4:$AK$5,2,FALSE)-DATA!$AF$5,no_value) -> 1 | U22: =IFERROR(VLOOKUP(D22,Liste_Bauteile,DATA!$AF$5,FALSE),no_value) -> - | V22: =IFERROR(VLOOKUP(D22,DATA!$AC$6:$AD$20,2,FALSE),no_value) -> - | W22: =IFERROR(INDEX(DATA!$AU$6:$AU$20,V22),no_value) -> - | X22: =IFERROR(INDEX(DATA!$AY$6:$AY$20,V22,1),no_value) -> - | Y22: =IF($AD$1="X",IFERROR(INDEX(DATA!$AZ$6:$AZ$20,V22,1),no_value),IF(I22=ESIV,0,IFERROR(INDEX(DATA!$BC$6:$BC$20,V22,1),no_value))) -> - | Z22: - | AA22: - | AB22: =IF($AD$1="X",IF(I22=no_value,no_value,IFERROR(infla_WD*INDEX(DATA!$BA$6:$BA$20,V22,1),no_value)),IF(I22=no_value,no_value,IFERROR(infla_WD*INDEX(DATA!$BD$6:$BD$20,V22,1),no_value))) -> - | AC22: =IFERROR(IF(INDEX(DATA!$AF$6:$AF$20,V22,1)=1,infla_WD*C_cm_WB,MAX(0,infla_WD*TREND(DATA!$BH$5:$BK$5,DATA!$BH$4:$BK$4,AE22))),no_value) -> - | AD22: =IFERROR(AB22+AC22*IF(INDEX(DATA!$AF$6:$AF$20,V22,1)=1,AA22,1),no_value) -> - | AE22: - | AF22: - | AG22: =IFERROR(INDEX(DATA!$AE$6:$AE$20,V22,1),no_value) -> - | AH22: =IF(AND(D22<>"",F22<>"",ISNUMBER(K22)),VLOOKUP($D$3,DATA!$BF$25:$BG$27,2,FALSE),no_value) -> - | AI22: - | AJ22: - | AK22: - | AL22: - | AM22: - | AN22: - | AO22: - | AP22: - | AQ22: - | AR22: - | AS22: - | AT22: - | AU22: - | AV22: -
B23: 19 | C23: A20 | I23: =IF(AND(D23<>"",V23<>"-"),IF(L23<=INDEX(DATA!$AM$6:$AM$20,V23),DATA!$AM$4,IF(L23<=INDEX(DATA!$AN$6:$AN$20,V23),DATA!$AN$4,IF(L23<=INDEX(DATA!$AO$6:$AO$20,V23),DATA!$AO$4,IF(L23<=INDEX(DATA!$AP$6:$AP$20,V23),DATA!$AP$4,"-")))),"-") -> - | J23: =IFERROR(INDEX(DATA!$AQ$6:$AU$20,V23,T23),no_value) -> - | K23: =IFERROR(INDEX(DATA!$AL$6:$AP$20,V23,T23),no_value) -> - | P23: =IFERROR(IF(N23=pass,INDEX(DATA!$AG$6:$AK$20,V23,T23),no_value),no_value) -> - | R23: - | T23: =IFERROR(HLOOKUP(I23,DATA!$AG$4:$AK$5,2,FALSE)-DATA!$AF$5,no_value) -> 1 | U23: =IFERROR(VLOOKUP(D23,Liste_Bauteile,DATA!$AF$5,FALSE),no_value) -> - | V23: =IFERROR(VLOOKUP(D23,DATA!$AC$6:$AD$20,2,FALSE),no_value) -> - | W23: =IFERROR(INDEX(DATA!$AU$6:$AU$20,V23),no_value) -> - | X23: =IFERROR(INDEX(DATA!$AY$6:$AY$20,V23,1),no_value) -> - | Y23: =IF($AD$1="X",IFERROR(INDEX(DATA!$AZ$6:$AZ$20,V23,1),no_value),IF(I23=ESIV,0,IFERROR(INDEX(DATA!$BC$6:$BC$20,V23,1),no_value))) -> - | Z23: - | AA23: - | AB23: =IF($AD$1="X",IF(I23=no_value,no_value,IFERROR(infla_WD*INDEX(DATA!$BA$6:$BA$20,V23,1),no_value)),IF(I23=no_value,no_value,IFERROR(infla_WD*INDEX(DATA!$BD$6:$BD$20,V23,1),no_value))) -> - | AC23: =IFERROR(IF(INDEX(DATA!$AF$6:$AF$20,V23,1)=1,infla_WD*C_cm_WB,MAX(0,infla_WD*TREND(DATA!$BH$5:$BK$5,DATA!$BH$4:$BK$4,AE23))),no_value) -> - | AD23: =IFERROR(AB23+AC23*IF(INDEX(DATA!$AF$6:$AF$20,V23,1)=1,AA23,1),no_value) -> - | AE23: - | AF23: - | AG23: =IFERROR(INDEX(DATA!$AE$6:$AE$20,V23,1),no_value) -> - | AH23: =IF(AND(D23<>"",F23<>"",ISNUMBER(K23)),VLOOKUP($D$3,DATA!$BF$25:$BG$27,2,FALSE),no_value) -> - | AI23: - | AJ23: - | AK23: - | AL23: - | AM23: - | AN23: - | AO23: - | AP23: - | AQ23: - | AR23: - | AS23: - | AT23: - | AU23: - | AV23: -
B24: 20 | C24: A22 | I24: =IF(AND(D24<>"",V24<>"-"),IF(L24<=INDEX(DATA!$AM$6:$AM$20,V24),DATA!$AM$4,IF(L24<=INDEX(DATA!$AN$6:$AN$20,V24),DATA!$AN$4,IF(L24<=INDEX(DATA!$AO$6:$AO$20,V24),DATA!$AO$4,IF(L24<=INDEX(DATA!$AP$6:$AP$20,V24),DATA!$AP$4,"-")))),"-") -> - | J24: =IFERROR(INDEX(DATA!$AQ$6:$AU$20,V24,T24),no_value) -> - | K24: =IFERROR(INDEX(DATA!$AL$6:$AP$20,V24,T24),no_value) -> - | P24: =IFERROR(IF(N24=pass,INDEX(DATA!$AG$6:$AK$20,V24,T24),no_value),no_value) -> - | R24: - | T24: =IFERROR(HLOOKUP(I24,DATA!$AG$4:$AK$5,2,FALSE)-DATA!$AF$5,no_value) -> 1 | U24: =IFERROR(VLOOKUP(D24,Liste_Bauteile,DATA!$AF$5,FALSE),no_value) -> - | V24: =IFERROR(VLOOKUP(D24,DATA!$AC$6:$AD$20,2,FALSE),no_value) -> - | W24: =IFERROR(INDEX(DATA!$AU$6:$AU$20,V24),no_value) -> - | X24: =IFERROR(INDEX(DATA!$AY$6:$AY$20,V24,1),no_value) -> - | Y24: =IF($AD$1="X",IFERROR(INDEX(DATA!$AZ$6:$AZ$20,V24,1),no_value),IF(I24=ESIV,0,IFERROR(INDEX(DATA!$BC$6:$BC$20,V24,1),no_value))) -> - | Z24: - | AA24: - | AB24: =IF($AD$1="X",IF(I24=no_value,no_value,IFERROR(infla_WD*INDEX(DATA!$BA$6:$BA$20,V24,1),no_value)),IF(I24=no_value,no_value,IFERROR(infla_WD*INDEX(DATA!$BD$6:$BD$20,V24,1),no_value))) -> - | AC24: =IFERROR(IF(INDEX(DATA!$AF$6:$AF$20,V24,1)=1,infla_WD*C_cm_WB,MAX(0,infla_WD*TREND(DATA!$BH$5:$BK$5,DATA!$BH$4:$BK$4,AE24))),no_value) -> - | AD24: =IFERROR(AB24+AC24*IF(INDEX(DATA!$AF$6:$AF$20,V24,1)=1,AA24,1),no_value) -> - | AE24: - | AF24: - | AG24: =IFERROR(INDEX(DATA!$AE$6:$AE$20,V24,1),no_value) -> - | AH24: =IF(AND(D24<>"",F24<>"",ISNUMBER(K24)),VLOOKUP($D$3,DATA!$BF$25:$BG$27,2,FALSE),no_value) -> - | AI24: - | AJ24: - | AK24: - | AL24: - | AM24: - | AN24: - | AO24: - | AP24: - | AQ24: - | AR24: - | AS24: - | AT24: - | AU24: - | AV24: -
B25: 21 | C25: A21 | I25: =IF(AND(D25<>"",V25<>"-"),IF(L25<=INDEX(DATA!$AM$6:$AM$20,V25),DATA!$AM$4,IF(L25<=INDEX(DATA!$AN$6:$AN$20,V25),DATA!$AN$4,IF(L25<=INDEX(DATA!$AO$6:$AO$20,V25),DATA!$AO$4,IF(L25<=INDEX(DATA!$AP$6:$AP$20,V25),DATA!$AP$4,"-")))),"-") -> - | J25: =IFERROR(INDEX(DATA!$AQ$6:$AU$20,V25,T25),no_value) -> - | K25: =IFERROR(INDEX(DATA!$AL$6:$AP$20,V25,T25),no_value) -> - | P25: =IFERROR(IF(N25=pass,INDEX(DATA!$AG$6:$AK$20,V25,T25),no_value),no_value) -> - | R25: - | T25: =IFERROR(HLOOKUP(I25,DATA!$AG$4:$AK$5,2,FALSE)-DATA!$AF$5,no_value) -> 1 | U25: =IFERROR(VLOOKUP(D25,Liste_Bauteile,DATA!$AF$5,FALSE),no_value) -> - | V25: =IFERROR(VLOOKUP(D25,DATA!$AC$6:$AD$20,2,FALSE),no_value) -> - | W25: =IFERROR(INDEX(DATA!$AU$6:$AU$20,V25),no_value) -> - | X25: =IFERROR(INDEX(DATA!$AY$6:$AY$20,V25,1),no_value) -> - | Y25: =IF($AD$1="X",IFERROR(INDEX(DATA!$AZ$6:$AZ$20,V25,1),no_value),IF(I25=ESIV,0,IFERROR(INDEX(DATA!$BC$6:$BC$20,V25,1),no_value))) -> - | Z25: - | AA25: - | AB25: =IF($AD$1="X",IF(I25=no_value,no_value,IFERROR(infla_WD*INDEX(DATA!$BA$6:$BA$20,V25,1),no_value)),IF(I25=no_value,no_value,IFERROR(infla_WD*INDEX(DATA!$BD$6:$BD$20,V25,1),no_value))) -> - | AC25: =IFERROR(IF(INDEX(DATA!$AF$6:$AF$20,V25,1)=1,infla_WD*C_cm_WB,MAX(0,infla_WD*TREND(DATA!$BH$5:$BK$5,DATA!$BH$4:$BK$4,AE25))),no_value) -> - | AD25: =IFERROR(AB25+AC25*IF(INDEX(DATA!$AF$6:$AF$20,V25,1)=1,AA25,1),no_value) -> - | AE25: - | AF25: - | AG25: =IFERROR(INDEX(DATA!$AE$6:$AE$20,V25,1),no_value) -> - | AH25: =IF(AND(D25<>"",F25<>"",ISNUMBER(K25)),VLOOKUP($D$3,DATA!$BF$25:$BG$27,2,FALSE),no_value) -> - | AI25: - | AJ25: - | AK25: - | AL25: - | AM25: - | AN25: - | AO25: - | AP25: - | AQ25: - | AR25: - | AS25: - | AT25: - | AU25: - | AV25: -
B26: 22 | C26: A22 | I26: =IF(AND(D26<>"",V26<>"-"),IF(L26<=INDEX(DATA!$AM$6:$AM$20,V26),DATA!$AM$4,IF(L26<=INDEX(DATA!$AN$6:$AN$20,V26),DATA!$AN$4,IF(L26<=INDEX(DATA!$AO$6:$AO$20,V26),DATA!$AO$4,IF(L26<=INDEX(DATA!$AP$6:$AP$20,V26),DATA!$AP$4,"-")))),"-") -> - | J26: =IFERROR(INDEX(DATA!$AQ$6:$AU$20,V26,T26),no_value) -> - | K26: =IFERROR(INDEX(DATA!$AL$6:$AP$20,V26,T26),no_value) -> - | P26: =IFERROR(IF(N26=pass,INDEX(DATA!$AG$6:$AK$20,V26,T26),no_value),no_value) -> - | R26: - | T26: =IFERROR(HLOOKUP(I26,DATA!$AG$4:$AK$5,2,FALSE)-DATA!$AF$5,no_value) -> 1 | U26: =IFERROR(VLOOKUP(D26,Liste_Bauteile,DATA!$AF$5,FALSE),no_value) -> - | V26: =IFERROR(VLOOKUP(D26,DATA!$AC$6:$AD$20,2,FALSE),no_value) -> - | W26: =IFERROR(INDEX(DATA!$AU$6:$AU$20,V26),no_value) -> - | X26: =IFERROR(INDEX(DATA!$AY$6:$AY$20,V26,1),no_value) -> - | Y26: =IF($AD$1="X",IFERROR(INDEX(DATA!$AZ$6:$AZ$20,V26,1),no_value),IF(I26=ESIV,0,IFERROR(INDEX(DATA!$BC$6:$BC$20,V26,1),no_value))) -> - | Z26: - | AA26: - | AB26: =IF($AD$1="X",IF(I26=no_value,no_value,IFERROR(infla_WD*INDEX(DATA!$BA$6:$BA$20,V26,1),no_value)),IF(I26=no_value,no_value,IFERROR(infla_WD*INDEX(DATA!$BD$6:$BD$20,V26,1),no_value))) -> - | AC26: =IFERROR(IF(INDEX(DATA!$AF$6:$AF$20,V26,1)=1,infla_WD*C_cm_WB,MAX(0,infla_WD*TREND(DATA!$BH$5:$BK$5,DATA!$BH$4:$BK$4,AE26))),no_value) -> - | AD26: =IFERROR(AB26+AC26*IF(INDEX(DATA!$AF$6:$AF$20,V26,1)=1,AA26,1),no_value) -> - | AE26: - | AF26: - | AG26: =IFERROR(INDEX(DATA!$AE$6:$AE$20,V26,1),no_value) -> - | AH26: =IF(AND(D26<>"",F26<>"",ISNUMBER(K26)),VLOOKUP($D$3,DATA!$BF$25:$BG$27,2,FALSE),no_value) -> - | AI26: - | AJ26: - | AK26: - | AL26: - | AM26: - | AN26: - | AO26: - | AP26: - | AQ26: - | AR26: - | AS26: - | AT26: - | AU26: - | AV26: -
B27: 23 | C27: A23 | I27: =IF(AND(D27<>"",V27<>"-"),IF(L27<=INDEX(DATA!$AM$6:$AM$20,V27),DATA!$AM$4,IF(L27<=INDEX(DATA!$AN$6:$AN$20,V27),DATA!$AN$4,IF(L27<=INDEX(DATA!$AO$6:$AO$20,V27),DATA!$AO$4,IF(L27<=INDEX(DATA!$AP$6:$AP$20,V27),DATA!$AP$4,"-")))),"-") -> - | J27: =IFERROR(INDEX(DATA!$AQ$6:$AU$20,V27,T27),no_value) -> - | K27: =IFERROR(INDEX(DATA!$AL$6:$AP$20,V27,T27),no_value) -> - | P27: =IFERROR(IF(N27=pass,INDEX(DATA!$AG$6:$AK$20,V27,T27),no_value),no_value) -> - | R27: - | T27: =IFERROR(HLOOKUP(I27,DATA!$AG$4:$AK$5,2,FALSE)-DATA!$AF$5,no_value) -> 1 | U27: =IFERROR(VLOOKUP(D27,Liste_Bauteile,DATA!$AF$5,FALSE),no_value) -> - | V27: =IFERROR(VLOOKUP(D27,DATA!$AC$6:$AD$20,2,FALSE),no_value) -> - | W27: =IFERROR(INDEX(DATA!$AU$6:$AU$20,V27),no_value) -> - | X27: =IFERROR(INDEX(DATA!$AY$6:$AY$20,V27,1),no_value) -> - | Y27: =IF($AD$1="X",IFERROR(INDEX(DATA!$AZ$6:$AZ$20,V27,1),no_value),IF(I27=ESIV,0,IFERROR(INDEX(DATA!$BC$6:$BC$20,V27,1),no_value))) -> - | Z27: - | AA27: - | AB27: =IF($AD$1="X",IF(I27=no_value,no_value,IFERROR(infla_WD*INDEX(DATA!$BA$6:$BA$20,V27,1),no_value)),IF(I27=no_value,no_value,IFERROR(infla_WD*INDEX(DATA!$BD$6:$BD$20,V27,1),no_value))) -> - | AC27: =IFERROR(IF(INDEX(DATA!$AF$6:$AF$20,V27,1)=1,infla_WD*C_cm_WB,MAX(0,infla_WD*TREND(DATA!$BH$5:$BK$5,DATA!$BH$4:$BK$4,AE27))),no_value) -> - | AD27: =IFERROR(AB27+AC27*IF(INDEX(DATA!$AF$6:$AF$20,V27,1)=1,AA27,1),no_value) -> - | AE27: - | AF27: - | AG27: =IFERROR(INDEX(DATA!$AE$6:$AE$20,V27,1),no_value) -> - | AH27: =IF(AND(D27<>"",F27<>"",ISNUMBER(K27)),VLOOKUP($D$3,DATA!$BF$25:$BG$27,2,FALSE),no_value) -> - | AI27: - | AJ27: - | AK27: - | AL27: - | AM27: - | AN27: - | AO27: - | AP27: - | AQ27: - | AR27: - | AS27: - | AT27: - | AU27: - | AV27: -
B28: 24 | C28: A24 | I28: =IF(AND(D28<>"",V28<>"-"),IF(L28<=INDEX(DATA!$AM$6:$AM$20,V28),DATA!$AM$4,IF(L28<=INDEX(DATA!$AN$6:$AN$20,V28),DATA!$AN$4,IF(L28<=INDEX(DATA!$AO$6:$AO$20,V28),DATA!$AO$4,IF(L28<=INDEX(DATA!$AP$6:$AP$20,V28),DATA!$AP$4,"-")))),"-") -> - | J28: =IFERROR(INDEX(DATA!$AQ$6:$AU$20,V28,T28),no_value) -> - | K28: =IFERROR(INDEX(DATA!$AL$6:$AP$20,V28,T28),no_value) -> - | P28: =IFERROR(IF(N28=pass,INDEX(DATA!$AG$6:$AK$20,V28,T28),no_value),no_value) -> - | R28: - | T28: =IFERROR(HLOOKUP(I28,DATA!$AG$4:$AK$5,2,FALSE)-DATA!$AF$5,no_value) -> 1 | U28: =IFERROR(VLOOKUP(D28,Liste_Bauteile,DATA!$AF$5,FALSE),no_value) -> - | V28: =IFERROR(VLOOKUP(D28,DATA!$AC$6:$AD$20,2,FALSE),no_value) -> - | W28: =IFERROR(INDEX(DATA!$AU$6:$AU$20,V28),no_value) -> - | X28: =IFERROR(INDEX(DATA!$AY$6:$AY$20,V28,1),no_value) -> - | Y28: =IF($AD$1="X",IFERROR(INDEX(DATA!$AZ$6:$AZ$20,V28,1),no_value),IF(I28=ESIV,0,IFERROR(INDEX(DATA!$BC$6:$BC$20,V28,1),no_value))) -> - | Z28: - | AA28: - | AB28: =IF($AD$1="X",IF(I28=no_value,no_value,IFERROR(infla_WD*INDEX(DATA!$BA$6:$BA$20,V28,1),no_value)),IF(I28=no_value,no_value,IFERROR(infla_WD*INDEX(DATA!$BD$6:$BD$20,V28,1),no_value))) -> - | AC28: =IFERROR(IF(INDEX(DATA!$AF$6:$AF$20,V28,1)=1,infla_WD*C_cm_WB,MAX(0,infla_WD*TREND(DATA!$BH$5:$BK$5,DATA!$BH$4:$BK$4,AE28))),no_value) -> - | AD28: =IFERROR(AB28+AC28*IF(INDEX(DATA!$AF$6:$AF$20,V28,1)=1,AA28,1),no_value) -> - | AE28: - | AF28: - | AG28: =IFERROR(INDEX(DATA!$AE$6:$AE$20,V28,1),no_value) -> - | AH28: =IF(AND(D28<>"",F28<>"",ISNUMBER(K28)),VLOOKUP($D$3,DATA!$BF$25:$BG$27,2,FALSE),no_value) -> - | AI28: - | AJ28: - | AK28: - | AL28: - | AM28: - | AN28: - | AO28: - | AP28: - | AQ28: - | AR28: - | AS28: - | AT28: - | AU28: - | AV28: -
B29: 25 | C29: A25 | I29: =IF(AND(D29<>"",V29<>"-"),IF(L29<=INDEX(DATA!$AM$6:$AM$20,V29),DATA!$AM$4,IF(L29<=INDEX(DATA!$AN$6:$AN$20,V29),DATA!$AN$4,IF(L29<=INDEX(DATA!$AO$6:$AO$20,V29),DATA!$AO$4,IF(L29<=INDEX(DATA!$AP$6:$AP$20,V29),DATA!$AP$4,"-")))),"-") -> - | J29: =IFERROR(INDEX(DATA!$AQ$6:$AU$20,V29,T29),no_value) -> - | K29: =IFERROR(INDEX(DATA!$AL$6:$AP$20,V29,T29),no_value) -> - | P29: =IFERROR(IF(N29=pass,INDEX(DATA!$AG$6:$AK$20,V29,T29),no_value),no_value) -> - | R29: - | T29: =IFERROR(HLOOKUP(I29,DATA!$AG$4:$AK$5,2,FALSE)-DATA!$AF$5,no_value) -> 1 | U29: =IFERROR(VLOOKUP(D29,Liste_Bauteile,DATA!$AF$5,FALSE),no_value) -> - | V29: =IFERROR(VLOOKUP(D29,DATA!$AC$6:$AD$20,2,FALSE),no_value) -> - | W29: =IFERROR(INDEX(DATA!$AU$6:$AU$20,V29),no_value) -> - | X29: =IFERROR(INDEX(DATA!$AY$6:$AY$20,V29,1),no_value) -> - | Y29: =IF($AD$1="X",IFERROR(INDEX(DATA!$AZ$6:$AZ$20,V29,1),no_value),IF(I29=ESIV,0,IFERROR(INDEX(DATA!$BC$6:$BC$20,V29,1),no_value))) -> - | Z29: - | AA29: - | AB29: =IF($AD$1="X",IF(I29=no_value,no_value,IFERROR(infla_WD*INDEX(DATA!$BA$6:$BA$20,V29,1),no_value)),IF(I29=no_value,no_value,IFERROR(infla_WD*INDEX(DATA!$BD$6:$BD$20,V29,1),no_value))) -> - | AC29: =IFERROR(IF(INDEX(DATA!$AF$6:$AF$20,V29,1)=1,infla_WD*C_cm_WB,MAX(0,infla_WD*TREND(DATA!$BH$5:$BK$5,DATA!$BH$4:$BK$4,AE29))),no_value) -> - | AD29: =IFERROR(AB29+AC29*IF(INDEX(DATA!$AF$6:$AF$20,V29,1)=1,AA29,1),no_value) -> - | AE29: - | AF29: - | AG29: =IFERROR(INDEX(DATA!$AE$6:$AE$20,V29,1),no_value) -> - | AH29: =IF(AND(D29<>"",F29<>"",ISNUMBER(K29)),VLOOKUP($D$3,DATA!$BF$25:$BG$27,2,FALSE),no_value) -> - | AI29: - | AJ29: - | AK29: - | AL29: - | AM29: - | AN29: - | AO29: - | AP29: - | AQ29: - | AR29: - | AS29: - | AT29: - | AU29: - | AV29: -
B30: 26 | C30: A26 | I30: =IF(AND(D30<>"",V30<>"-"),IF(L30<=INDEX(DATA!$AM$6:$AM$20,V30),DATA!$AM$4,IF(L30<=INDEX(DATA!$AN$6:$AN$20,V30),DATA!$AN$4,IF(L30<=INDEX(DATA!$AO$6:$AO$20,V30),DATA!$AO$4,IF(L30<=INDEX(DATA!$AP$6:$AP$20,V30),DATA!$AP$4,"-")))),"-") -> - | J30: =IFERROR(INDEX(DATA!$AQ$6:$AU$20,V30,T30),no_value) -> - | K30: =IFERROR(INDEX(DATA!$AL$6:$AP$20,V30,T30),no_value) -> - | P30: =IFERROR(IF(N30=pass,INDEX(DATA!$AG$6:$AK$20,V30,T30),no_value),no_value) -> - | R30: - | T30: =IFERROR(HLOOKUP(I30,DATA!$AG$4:$AK$5,2,FALSE)-DATA!$AF$5,no_value) -> 1 | U30: =IFERROR(VLOOKUP(D30,Liste_Bauteile,DATA!$AF$5,FALSE),no_value) -> - | V30: =IFERROR(VLOOKUP(D30,DATA!$AC$6:$AD$20,2,FALSE),no_value) -> - | W30: =IFERROR(INDEX(DATA!$AU$6:$AU$20,V30),no_value) -> - | X30: =IFERROR(INDEX(DATA!$AY$6:$AY$20,V30,1),no_value) -> - | Y30: =IF($AD$1="X",IFERROR(INDEX(DATA!$AZ$6:$AZ$20,V30,1),no_value),IF(I30=ESIV,0,IFERROR(INDEX(DATA!$BC$6:$BC$20,V30,1),no_value))) -> - | Z30: - | AA30: - | AB30: =IF($AD$1="X",IF(I30=no_value,no_value,IFERROR(infla_WD*INDEX(DATA!$BA$6:$BA$20,V30,1),no_value)),IF(I30=no_value,no_value,IFERROR(infla_WD*INDEX(DATA!$BD$6:$BD$20,V30,1),no_value))) -> - | AC30: =IFERROR(IF(INDEX(DATA!$AF$6:$AF$20,V30,1)=1,infla_WD*C_cm_WB,MAX(0,infla_WD*TREND(DATA!$BH$5:$BK$5,DATA!$BH$4:$BK$4,AE30))),no_value) -> - | AD30: =IFERROR(AB30+AC30*IF(INDEX(DATA!$AF$6:$AF$20,V30,1)=1,AA30,1),no_value) -> - | AE30: - | AF30: - | AG30: =IFERROR(INDEX(DATA!$AE$6:$AE$20,V30,1),no_value) -> - | AH30: =IF(AND(D30<>"",F30<>"",ISNUMBER(K30)),VLOOKUP($D$3,DATA!$BF$25:$BG$27,2,FALSE),no_value) -> - | AI30: - | AJ30: - | AK30: - | AL30: - | AM30: - | AN30: - | AO30: - | AP30: - | AQ30: - | AR30: - | AS30: - | AT30: - | AU30: - | AV30: -
B31: =B30+1 -> 27 | C31: A27 | I31: =IF(AND(D31<>"",V31<>"-"),IF(L31<=INDEX(DATA!$AM$6:$AM$20,V31),DATA!$AM$4,IF(L31<=INDEX(DATA!$AN$6:$AN$20,V31),DATA!$AN$4,IF(L31<=INDEX(DATA!$AO$6:$AO$20,V31),DATA!$AO$4,IF(L31<=INDEX(DATA!$AP$6:$AP$20,V31),DATA!$AP$4,"-")))),"-") -> - | J31: =IFERROR(INDEX(DATA!$AQ$6:$AU$20,V31,T31),no_value) -> - | K31: =IFERROR(INDEX(DATA!$AL$6:$AP$20,V31,T31),no_value) -> - | P31: =IFERROR(IF(N31=pass,INDEX(DATA!$AG$6:$AK$20,V31,T31),no_value),no_value) -> - | R31: - | T31: =IFERROR(HLOOKUP(I31,DATA!$AG$4:$AK$5,2,FALSE)-DATA!$AF$5,no_value) -> 1 | U31: =IFERROR(VLOOKUP(D31,Liste_Bauteile,DATA!$AF$5,FALSE),no_value) -> - | V31: =IFERROR(VLOOKUP(D31,DATA!$AC$6:$AD$20,2,FALSE),no_value) -> - | W31: =IFERROR(INDEX(DATA!$AU$6:$AU$20,V31),no_value) -> - | X31: =IFERROR(INDEX(DATA!$AY$6:$AY$20,V31,1),no_value) -> - | Y31: =IF($AD$1="X",IFERROR(INDEX(DATA!$AZ$6:$AZ$20,V31,1),no_value),IF(I31=ESIV,0,IFERROR(INDEX(DATA!$BC$6:$BC$20,V31,1),no_value))) -> - | Z31: - | AA31: - | AB31: =IF($AD$1="X",IF(I31=no_value,no_value,IFERROR(infla_WD*INDEX(DATA!$BA$6:$BA$20,V31,1),no_value)),IF(I31=no_value,no_value,IFERROR(infla_WD*INDEX(DATA!$BD$6:$BD$20,V31,1),no_value))) -> - | AC31: =IFERROR(IF(INDEX(DATA!$AF$6:$AF$20,V31,1)=1,infla_WD*C_cm_WB,MAX(0,infla_WD*TREND(DATA!$BH$5:$BK$5,DATA!$BH$4:$BK$4,AE31))),no_value) -> - | AD31: =IFERROR(AB31+AC31*IF(INDEX(DATA!$AF$6:$AF$20,V31,1)=1,AA31,1),no_value) -> - | AE31: - | AF31: - | AG31: =IFERROR(INDEX(DATA!$AE$6:$AE$20,V31,1),no_value) -> - | AH31: =IF(AND(D31<>"",F31<>"",ISNUMBER(K31)),VLOOKUP($D$3,DATA!$BF$25:$BG$27,2,FALSE),no_value) -> - | AI31: - | AJ31: - | AK31: - | AL31: - | AM31: - | AN31: - | AO31: - | AP31: - | AQ31: - | AR31: - | AS31: - | AT31: - | AU31: - | AV31: -
B32: 28 | C32: A28 | I32: =IF(AND(D32<>"",V32<>"-"),IF(L32<=INDEX(DATA!$AM$6:$AM$20,V32),DATA!$AM$4,IF(L32<=INDEX(DATA!$AN$6:$AN$20,V32),DATA!$AN$4,IF(L32<=INDEX(DATA!$AO$6:$AO$20,V32),DATA!$AO$4,IF(L32<=INDEX(DATA!$AP$6:$AP$20,V32),DATA!$AP$4,"-")))),"-") -> - | J32: =IFERROR(INDEX(DATA!$AQ$6:$AU$20,V32,T32),no_value) -> - | K32: =IFERROR(INDEX(DATA!$AL$6:$AP$20,V32,T32),no_value) -> - | P32: =IFERROR(IF(N32=pass,INDEX(DATA!$AG$6:$AK$20,V32,T32),no_value),no_value) -> - | R32: - | T32: =IFERROR(HLOOKUP(I32,DATA!$AG$4:$AK$5,2,FALSE)-DATA!$AF$5,no_value) -> 1 | U32: =IFERROR(VLOOKUP(D32,Liste_Bauteile,DATA!$AF$5,FALSE),no_value) -> - | V32: =IFERROR(VLOOKUP(D32,DATA!$AC$6:$AD$20,2,FALSE),no_value) -> - | W32: =IFERROR(INDEX(DATA!$AU$6:$AU$20,V32),no_value) -> - | X32: =IFERROR(INDEX(DATA!$AY$6:$AY$20,V32,1),no_value) -> - | Y32: =IF($AD$1="X",IFERROR(INDEX(DATA!$AZ$6:$AZ$20,V32,1),no_value),IF(I32=ESIV,0,IFERROR(INDEX(DATA!$BC$6:$BC$20,V32,1),no_value))) -> - | Z32: - | AA32: - | AB32: =IF($AD$1="X",IF(I32=no_value,no_value,IFERROR(infla_WD*INDEX(DATA!$BA$6:$BA$20,V32,1),no_value)),IF(I32=no_value,no_value,IFERROR(infla_WD*INDEX(DATA!$BD$6:$BD$20,V32,1),no_value))) -> - | AC32: =IFERROR(IF(INDEX(DATA!$AF$6:$AF$20,V32,1)=1,infla_WD*C_cm_WB,MAX(0,infla_WD*TREND(DATA!$BH$5:$BK$5,DATA!$BH$4:$BK$4,AE32))),no_value) -> - | AD32: =IFERROR(AB32+AC32*IF(INDEX(DATA!$AF$6:$AF$20,V32,1)=1,AA32,1),no_value) -> - | AE32: - | AF32: - | AG32: =IFERROR(INDEX(DATA!$AE$6:$AE$20,V32,1),no_value) -> - | AH32: =IF(AND(D32<>"",F32<>"",ISNUMBER(K32)),VLOOKUP($D$3,DATA!$BF$25:$BG$27,2,FALSE),no_value) -> - | AI32: - | AJ32: - | AK32: - | AL32: - | AM32: - | AN32: - | AO32: - | AP32: - | AQ32: - | AR32: - | AS32: - | AT32: - | AU32: - | AV32: -
B33: 29 | C33: A29 | I33: =IF(AND(D33<>"",V33<>"-"),IF(L33<=INDEX(DATA!$AM$6:$AM$20,V33),DATA!$AM$4,IF(L33<=INDEX(DATA!$AN$6:$AN$20,V33),DATA!$AN$4,IF(L33<=INDEX(DATA!$AO$6:$AO$20,V33),DATA!$AO$4,IF(L33<=INDEX(DATA!$AP$6:$AP$20,V33),DATA!$AP$4,"-")))),"-") -> - | J33: =IFERROR(INDEX(DATA!$AQ$6:$AU$20,V33,T33),no_value) -> - | K33: =IFERROR(INDEX(DATA!$AL$6:$AP$20,V33,T33),no_value) -> - | P33: =IFERROR(IF(N33=pass,INDEX(DATA!$AG$6:$AK$20,V33,T33),no_value),no_value) -> - | R33: - | T33: =IFERROR(HLOOKUP(I33,DATA!$AG$4:$AK$5,2,FALSE)-DATA!$AF$5,no_value) -> 1 | U33: =IFERROR(VLOOKUP(D33,Liste_Bauteile,DATA!$AF$5,FALSE),no_value) -> - | V33: =IFERROR(VLOOKUP(D33,DATA!$AC$6:$AD$20,2,FALSE),no_value) -> - | W33: =IFERROR(INDEX(DATA!$AU$6:$AU$20,V33),no_value) -> - | X33: =IFERROR(INDEX(DATA!$AY$6:$AY$20,V33,1),no_value) -> - | Y33: =IF($AD$1="X",IFERROR(INDEX(DATA!$AZ$6:$AZ$20,V33,1),no_value),IF(I33=ESIV,0,IFERROR(INDEX(DATA!$BC$6:$BC$20,V33,1),no_value))) -> - | Z33: - | AA33: - | AB33: =IF($AD$1="X",IF(I33=no_value,no_value,IFERROR(infla_WD*INDEX(DATA!$BA$6:$BA$20,V33,1),no_value)),IF(I33=no_value,no_value,IFERROR(infla_WD*INDEX(DATA!$BD$6:$BD$20,V33,1),no_value))) -> - | AC33: =IFERROR(IF(INDEX(DATA!$AF$6:$AF$20,V33,1)=1,infla_WD*C_cm_WB,MAX(0,infla_WD*TREND(DATA!$BH$5:$BK$5,DATA!$BH$4:$BK$4,AE33))),no_value) -> - | AD33: =IFERROR(AB33+AC33*IF(INDEX(DATA!$AF$6:$AF$20,V33,1)=1,AA33,1),no_value) -> - | AE33: - | AF33: - | AG33: =IFERROR(INDEX(DATA!$AE$6:$AE$20,V33,1),no_value) -> - | AH33: =IF(AND(D33<>"",F33<>"",ISNUMBER(K33)),VLOOKUP($D$3,DATA!$BF$25:$BG$27,2,FALSE),no_value) -> - | AI33: - | AJ33: - | AK33: - | AL33: - | AM33: - | AN33: - | AO33: - | AP33: - | AQ33: - | AR33: - | AS33: - | AT33: - | AU33: - | AV33: -
B34: 30 | C34: A30 | I34: =IF(AND(D34<>"",V34<>"-"),IF(L34<=INDEX(DATA!$AM$6:$AM$20,V34),DATA!$AM$4,IF(L34<=INDEX(DATA!$AN$6:$AN$20,V34),DATA!$AN$4,IF(L34<=INDEX(DATA!$AO$6:$AO$20,V34),DATA!$AO$4,IF(L34<=INDEX(DATA!$AP$6:$AP$20,V34),DATA!$AP$4,"-")))),"-") -> - | J34: =IFERROR(INDEX(DATA!$AQ$6:$AU$20,V34,T34),no_value) -> - | K34: =IFERROR(INDEX(DATA!$AL$6:$AP$20,V34,T34),no_value) -> - | P34: =IFERROR(IF(N34=pass,INDEX(DATA!$AG$6:$AK$20,V34,T34),no_value),no_value) -> - | R34: - | T34: =IFERROR(HLOOKUP(I34,DATA!$AG$4:$AK$5,2,FALSE)-DATA!$AF$5,no_value) -> 1 | U34: =IFERROR(VLOOKUP(D34,Liste_Bauteile,DATA!$AF$5,FALSE),no_value) -> - | V34: =IFERROR(VLOOKUP(D34,DATA!$AC$6:$AD$20,2,FALSE),no_value) -> - | W34: =IFERROR(INDEX(DATA!$AU$6:$AU$20,V34),no_value) -> - | X34: =IFERROR(INDEX(DATA!$AY$6:$AY$20,V34,1),no_value) -> - | Y34: =IF($AD$1="X",IFERROR(INDEX(DATA!$AZ$6:$AZ$20,V34,1),no_value),IF(I34=ESIV,0,IFERROR(INDEX(DATA!$BC$6:$BC$20,V34,1),no_value))) -> - | Z34: - | AA34: - | AB34: =IF($AD$1="X",IF(I34=no_value,no_value,IFERROR(infla_WD*INDEX(DATA!$BA$6:$BA$20,V34,1),no_value)),IF(I34=no_value,no_value,IFERROR(infla_WD*INDEX(DATA!$BD$6:$BD$20,V34,1),no_value))) -> - | AC34: =IFERROR(IF(INDEX(DATA!$AF$6:$AF$20,V34,1)=1,infla_WD*C_cm_WB,MAX(0,infla_WD*TREND(DATA!$BH$5:$BK$5,DATA!$BH$4:$BK$4,AE34))),no_value) -> - | AD34: =IFERROR(AB34+AC34*IF(INDEX(DATA!$AF$6:$AF$20,V34,1)=1,AA34,1),no_value) -> - | AE34: - | AF34: - | AG34: =IFERROR(INDEX(DATA!$AE$6:$AE$20,V34,1),no_value) -> - | AH34: =IF(AND(D34<>"",F34<>"",ISNUMBER(K34)),VLOOKUP($D$3,DATA!$BF$25:$BG$27,2,FALSE),no_value) -> - | AI34: - | AJ34: - | AK34: - | AL34: - | AM34: - | AN34: - | AO34: - | AP34: - | AQ34: - | AR34: - | AS34: - | AT34: - | AU34: - | AV34: -
B35: 31 | C35: A31 | I35: =IF(AND(D35<>"",V35<>"-"),IF(L35<=INDEX(DATA!$AM$6:$AM$20,V35),DATA!$AM$4,IF(L35<=INDEX(DATA!$AN$6:$AN$20,V35),DATA!$AN$4,IF(L35<=INDEX(DATA!$AO$6:$AO$20,V35),DATA!$AO$4,IF(L35<=INDEX(DATA!$AP$6:$AP$20,V35),DATA!$AP$4,"-")))),"-") -> - | J35: =IFERROR(INDEX(DATA!$AQ$6:$AU$20,V35,T35),no_value) -> - | K35: =IFERROR(INDEX(DATA!$AL$6:$AP$20,V35,T35),no_value) -> - | P35: =IFERROR(IF(N35=pass,INDEX(DATA!$AG$6:$AK$20,V35,T35),no_value),no_value) -> - | R35: - | T35: =IFERROR(HLOOKUP(I35,DATA!$AG$4:$AK$5,2,FALSE)-DATA!$AF$5,no_value) -> 1 | U35: =IFERROR(VLOOKUP(D35,Liste_Bauteile,DATA!$AF$5,FALSE),no_value) -> - | V35: =IFERROR(VLOOKUP(D35,DATA!$AC$6:$AD$20,2,FALSE),no_value) -> - | W35: =IFERROR(INDEX(DATA!$AU$6:$AU$20,V35),no_value) -> - | X35: =IFERROR(INDEX(DATA!$AY$6:$AY$20,V35,1),no_value) -> - | Y35: =IF($AD$1="X",IFERROR(INDEX(DATA!$AZ$6:$AZ$20,V35,1),no_value),IF(I35=ESIV,0,IFERROR(INDEX(DATA!$BC$6:$BC$20,V35,1),no_value))) -> - | Z35: - | AA35: - | AB35: =IF($AD$1="X",IF(I35=no_value,no_value,IFERROR(infla_WD*INDEX(DATA!$BA$6:$BA$20,V35,1),no_value)),IF(I35=no_value,no_value,IFERROR(infla_WD*INDEX(DATA!$BD$6:$BD$20,V35,1),no_value))) -> - | AC35: =IFERROR(IF(INDEX(DATA!$AF$6:$AF$20,V35,1)=1,infla_WD*C_cm_WB,MAX(0,infla_WD*TREND(DATA!$BH$5:$BK$5,DATA!$BH$4:$BK$4,AE35))),no_value) -> - | AD35: =IFERROR(AB35+AC35*IF(INDEX(DATA!$AF$6:$AF$20,V35,1)=1,AA35,1),no_value) -> - | AE35: - | AF35: - | AG35: =IFERROR(INDEX(DATA!$AE$6:$AE$20,V35,1),no_value) -> - | AH35: =IF(AND(D35<>"",F35<>"",ISNUMBER(K35)),VLOOKUP($D$3,DATA!$BF$25:$BG$27,2,FALSE),no_value) -> - | AI35: - | AJ35: - | AK35: - | AL35: - | AM35: - | AN35: - | AO35: - | AP35: - | AQ35: - | AR35: - | AS35: - | AT35: - | AU35: - | AV35: -
B36: 32 | C36: A32 | I36: =IF(AND(D36<>"",V36<>"-"),IF(L36<=INDEX(DATA!$AM$6:$AM$20,V36),DATA!$AM$4,IF(L36<=INDEX(DATA!$AN$6:$AN$20,V36),DATA!$AN$4,IF(L36<=INDEX(DATA!$AO$6:$AO$20,V36),DATA!$AO$4,IF(L36<=INDEX(DATA!$AP$6:$AP$20,V36),DATA!$AP$4,"-")))),"-") -> - | J36: =IFERROR(INDEX(DATA!$AQ$6:$AU$20,V36,T36),no_value) -> - | K36: =IFERROR(INDEX(DATA!$AL$6:$AP$20,V36,T36),no_value) -> - | P36: =IFERROR(IF(N36=pass,INDEX(DATA!$AG$6:$AK$20,V36,T36),no_value),no_value) -> - | R36: - | T36: =IFERROR(HLOOKUP(I36,DATA!$AG$4:$AK$5,2,FALSE)-DATA!$AF$5,no_value) -> 1 | U36: =IFERROR(VLOOKUP(D36,Liste_Bauteile,DATA!$AF$5,FALSE),no_value) -> - | V36: =IFERROR(VLOOKUP(D36,DATA!$AC$6:$AD$20,2,FALSE),no_value) -> - | W36: =IFERROR(INDEX(DATA!$AU$6:$AU$20,V36),no_value) -> - | X36: =IFERROR(INDEX(DATA!$AY$6:$AY$20,V36,1),no_value) -> - | Y36: =IF($AD$1="X",IFERROR(INDEX(DATA!$AZ$6:$AZ$20,V36,1),no_value),IF(I36=ESIV,0,IFERROR(INDEX(DATA!$BC$6:$BC$20,V36,1),no_value))) -> - | Z36: - | AA36: - | AB36: =IF($AD$1="X",IF(I36=no_value,no_value,IFERROR(infla_WD*INDEX(DATA!$BA$6:$BA$20,V36,1),no_value)),IF(I36=no_value,no_value,IFERROR(infla_WD*INDEX(DATA!$BD$6:$BD$20,V36,1),no_value))) -> - | AC36: =IFERROR(IF(INDEX(DATA!$AF$6:$AF$20,V36,1)=1,infla_WD*C_cm_WB,MAX(0,infla_WD*TREND(DATA!$BH$5:$BK$5,DATA!$BH$4:$BK$4,AE36))),no_value) -> - | AD36: =IFERROR(AB36+AC36*IF(INDEX(DATA!$AF$6:$AF$20,V36,1)=1,AA36,1),no_value) -> - | AE36: - | AF36: - | AG36: =IFERROR(INDEX(DATA!$AE$6:$AE$20,V36,1),no_value) -> - | AH36: =IF(AND(D36<>"",F36<>"",ISNUMBER(K36)),VLOOKUP($D$3,DATA!$BF$25:$BG$27,2,FALSE),no_value) -> - | AI36: - | AJ36: - | AK36: - | AL36: - | AM36: - | AN36: - | AO36: - | AP36: - | AQ36: - | AR36: - | AS36: - | AT36: - | AU36: - | AV36: -
B37: 33 | C37: A33 | I37: =IF(AND(D37<>"",V37<>"-"),IF(L37<=INDEX(DATA!$AM$6:$AM$20,V37),DATA!$AM$4,IF(L37<=INDEX(DATA!$AN$6:$AN$20,V37),DATA!$AN$4,IF(L37<=INDEX(DATA!$AO$6:$AO$20,V37),DATA!$AO$4,IF(L37<=INDEX(DATA!$AP$6:$AP$20,V37),DATA!$AP$4,"-")))),"-") -> - | J37: =IFERROR(INDEX(DATA!$AQ$6:$AU$20,V37,T37),no_value) -> - | K37: =IFERROR(INDEX(DATA!$AL$6:$AP$20,V37,T37),no_value) -> - | P37: =IFERROR(IF(N37=pass,INDEX(DATA!$AG$6:$AK$20,V37,T37),no_value),no_value) -> - | R37: - | T37: =IFERROR(HLOOKUP(I37,DATA!$AG$4:$AK$5,2,FALSE)-DATA!$AF$5,no_value) -> 1 | U37: =IFERROR(VLOOKUP(D37,Liste_Bauteile,DATA!$AF$5,FALSE),no_value) -> - | V37: =IFERROR(VLOOKUP(D37,DATA!$AC$6:$AD$20,2,FALSE),no_value) -> - | W37: =IFERROR(INDEX(DATA!$AU$6:$AU$20,V37),no_value) -> - | X37: =IFERROR(INDEX(DATA!$AY$6:$AY$20,V37,1),no_value) -> - | Y37: =IF($AD$1="X",IFERROR(INDEX(DATA!$AZ$6:$AZ$20,V37,1),no_value),IF(I37=ESIV,0,IFERROR(INDEX(DATA!$BC$6:$BC$20,V37,1),no_value))) -> - | Z37: - | AA37: - | AB37: =IF($AD$1="X",IF(I37=no_value,no_value,IFERROR(infla_WD*INDEX(DATA!$BA$6:$BA$20,V37,1),no_value)),IF(I37=no_value,no_value,IFERROR(infla_WD*INDEX(DATA!$BD$6:$BD$20,V37,1),no_value))) -> - | AC37: =IFERROR(IF(INDEX(DATA!$AF$6:$AF$20,V37,1)=1,infla_WD*C_cm_WB,MAX(0,infla_WD*TREND(DATA!$BH$5:$BK$5,DATA!$BH$4:$BK$4,AE37))),no_value) -> - | AD37: =IFERROR(AB37+AC37*IF(INDEX(DATA!$AF$6:$AF$20,V37,1)=1,AA37,1),no_value) -> - | AE37: - | AF37: - | AG37: =IFERROR(INDEX(DATA!$AE$6:$AE$20,V37,1),no_value) -> - | AH37: =IF(AND(D37<>"",F37<>"",ISNUMBER(K37)),VLOOKUP($D$3,DATA!$BF$25:$BG$27,2,FALSE),no_value) -> - | AI37: - | AJ37: - | AK37: - | AL37: - | AM37: - | AN37: - | AO37: - | AP37: - | AQ37: - | AR37: - | AS37: - | AT37: - | AU37: - | AV37: -
B38: 34 | C38: A34 | I38: =IF(AND(D38<>"",V38<>"-"),IF(L38<=INDEX(DATA!$AM$6:$AM$20,V38),DATA!$AM$4,IF(L38<=INDEX(DATA!$AN$6:$AN$20,V38),DATA!$AN$4,IF(L38<=INDEX(DATA!$AO$6:$AO$20,V38),DATA!$AO$4,IF(L38<=INDEX(DATA!$AP$6:$AP$20,V38),DATA!$AP$4,"-")))),"-") -> - | J38: =IFERROR(INDEX(DATA!$AQ$6:$AU$20,V38,T38),no_value) -> - | K38: =IFERROR(INDEX(DATA!$AL$6:$AP$20,V38,T38),no_value) -> - | P38: =IFERROR(IF(N38=pass,INDEX(DATA!$AG$6:$AK$20,V38,T38),no_value),no_value) -> - | R38: - | T38: =IFERROR(HLOOKUP(I38,DATA!$AG$4:$AK$5,2,FALSE)-DATA!$AF$5,no_value) -> 1 | U38: =IFERROR(VLOOKUP(D38,Liste_Bauteile,DATA!$AF$5,FALSE),no_value) -> - | V38: =IFERROR(VLOOKUP(D38,DATA!$AC$6:$AD$20,2,FALSE),no_value) -> - | W38: =IFERROR(INDEX(DATA!$AU$6:$AU$20,V38),no_value) -> - | X38: =IFERROR(INDEX(DATA!$AY$6:$AY$20,V38,1),no_value) -> - | Y38: =IF($AD$1="X",IFERROR(INDEX(DATA!$AZ$6:$AZ$20,V38,1),no_value),IF(I38=ESIV,0,IFERROR(INDEX(DATA!$BC$6:$BC$20,V38,1),no_value))) -> - | Z38: - | AA38: - | AB38: =IF($AD$1="X",IF(I38=no_value,no_value,IFERROR(infla_WD*INDEX(DATA!$BA$6:$BA$20,V38,1),no_value)),IF(I38=no_value,no_value,IFERROR(infla_WD*INDEX(DATA!$BD$6:$BD$20,V38,1),no_value))) -> - | AC38: =IFERROR(IF(INDEX(DATA!$AF$6:$AF$20,V38,1)=1,infla_WD*C_cm_WB,MAX(0,infla_WD*TREND(DATA!$BH$5:$BK$5,DATA!$BH$4:$BK$4,AE38))),no_value) -> - | AD38: =IFERROR(AB38+AC38*IF(INDEX(DATA!$AF$6:$AF$20,V38,1)=1,AA38,1),no_value) -> - | AE38: - | AF38: - | AG38: =IFERROR(INDEX(DATA!$AE$6:$AE$20,V38,1),no_value) -> - | AH38: =IF(AND(D38<>"",F38<>"",ISNUMBER(K38)),VLOOKUP($D$3,DATA!$BF$25:$BG$27,2,FALSE),no_value) -> - | AI38: - | AJ38: - | AK38: - | AL38: - | AM38: - | AN38: - | AO38: - | AP38: - | AQ38: - | AR38: - | AS38: - | AT38: - | AU38: - | AV38: -
B39: 35 | C39: A35 | I39: =IF(AND(D39<>"",V39<>"-"),IF(L39<=INDEX(DATA!$AM$6:$AM$20,V39),DATA!$AM$4,IF(L39<=INDEX(DATA!$AN$6:$AN$20,V39),DATA!$AN$4,IF(L39<=INDEX(DATA!$AO$6:$AO$20,V39),DATA!$AO$4,IF(L39<=INDEX(DATA!$AP$6:$AP$20,V39),DATA!$AP$4,"-")))),"-") -> - | J39: =IFERROR(INDEX(DATA!$AQ$6:$AU$20,V39,T39),no_value) -> - | K39: =IFERROR(INDEX(DATA!$AL$6:$AP$20,V39,T39),no_value) -> - | P39: =IFERROR(IF(N39=pass,INDEX(DATA!$AG$6:$AK$20,V39,T39),no_value),no_value) -> - | R39: - | T39: =IFERROR(HLOOKUP(I39,DATA!$AG$4:$AK$5,2,FALSE)-DATA!$AF$5,no_value) -> 1 | U39: =IFERROR(VLOOKUP(D39,Liste_Bauteile,DATA!$AF$5,FALSE),no_value) -> - | V39: =IFERROR(VLOOKUP(D39,DATA!$AC$6:$AD$20,2,FALSE),no_value) -> - | W39: =IFERROR(INDEX(DATA!$AU$6:$AU$20,V39),no_value) -> - | X39: =IFERROR(INDEX(DATA!$AY$6:$AY$20,V39,1),no_value) -> - | Y39: =IF($AD$1="X",IFERROR(INDEX(DATA!$AZ$6:$AZ$20,V39,1),no_value),IF(I39=ESIV,0,IFERROR(INDEX(DATA!$BC$6:$BC$20,V39,1),no_value))) -> - | Z39: - | AA39: - | AB39: =IF($AD$1="X",IF(I39=no_value,no_value,IFERROR(infla_WD*INDEX(DATA!$BA$6:$BA$20,V39,1),no_value)),IF(I39=no_value,no_value,IFERROR(infla_WD*INDEX(DATA!$BD$6:$BD$20,V39,1),no_value))) -> - | AC39: =IFERROR(IF(INDEX(DATA!$AF$6:$AF$20,V39,1)=1,infla_WD*C_cm_WB,MAX(0,infla_WD*TREND(DATA!$BH$5:$BK$5,DATA!$BH$4:$BK$4,AE39))),no_value) -> - | AD39: =IFERROR(AB39+AC39*IF(INDEX(DATA!$AF$6:$AF$20,V39,1)=1,AA39,1),no_value) -> - | AE39: - | AF39: - | AG39: =IFERROR(INDEX(DATA!$AE$6:$AE$20,V39,1),no_value) -> - | AH39: =IF(AND(D39<>"",F39<>"",ISNUMBER(K39)),VLOOKUP($D$3,DATA!$BF$25:$BG$27,2,FALSE),no_value) -> - | AI39: - | AJ39: - | AK39: - | AL39: - | AM39: - | AN39: - | AO39: - | AP39: - | AQ39: - | AR39: - | AS39: - | AT39: - | AU39: - | AV39: -
B40: 36 | C40: A36 | I40: =IF(AND(D40<>"",V40<>"-"),IF(L40<=INDEX(DATA!$AM$6:$AM$20,V40),DATA!$AM$4,IF(L40<=INDEX(DATA!$AN$6:$AN$20,V40),DATA!$AN$4,IF(L40<=INDEX(DATA!$AO$6:$AO$20,V40),DATA!$AO$4,IF(L40<=INDEX(DATA!$AP$6:$AP$20,V40),DATA!$AP$4,"-")))),"-") -> - | J40: =IFERROR(INDEX(DATA!$AQ$6:$AU$20,V40,T40),no_value) -> - | K40: =IFERROR(INDEX(DATA!$AL$6:$AP$20,V40,T40),no_value) -> - | P40: =IFERROR(IF(N40=pass,INDEX(DATA!$AG$6:$AK$20,V40,T40),no_value),no_value) -> - | R40: - | T40: =IFERROR(HLOOKUP(I40,DATA!$AG$4:$AK$5,2,FALSE)-DATA!$AF$5,no_value) -> 1 | U40: =IFERROR(VLOOKUP(D40,Liste_Bauteile,DATA!$AF$5,FALSE),no_value) -> - | V40: =IFERROR(VLOOKUP(D40,DATA!$AC$6:$AD$20,2,FALSE),no_value) -> - | W40: =IFERROR(INDEX(DATA!$AU$6:$AU$20,V40),no_value) -> - | X40: =IFERROR(INDEX(DATA!$AY$6:$AY$20,V40,1),no_value) -> - | Y40: =IF($AD$1="X",IFERROR(INDEX(DATA!$AZ$6:$AZ$20,V40,1),no_value),IF(I40=ESIV,0,IFERROR(INDEX(DATA!$BC$6:$BC$20,V40,1),no_value))) -> - | Z40: - | AA40: - | AB40: =IF($AD$1="X",IF(I40=no_value,no_value,IFERROR(infla_WD*INDEX(DATA!$BA$6:$BA$20,V40,1),no_value)),IF(I40=no_value,no_value,IFERROR(infla_WD*INDEX(DATA!$BD$6:$BD$20,V40,1),no_value))) -> - | AC40: =IFERROR(IF(INDEX(DATA!$AF$6:$AF$20,V40,1)=1,infla_WD*C_cm_WB,MAX(0,infla_WD*TREND(DATA!$BH$5:$BK$5,DATA!$BH$4:$BK$4,AE40))),no_value) -> - | AD40: =IFERROR(AB40+AC40*IF(INDEX(DATA!$AF$6:$AF$20,V40,1)=1,AA40,1),no_value) -> - | AE40: - | AF40: - | AG40: =IFERROR(INDEX(DATA!$AE$6:$AE$20,V40,1),no_value) -> - | AH40: =IF(AND(D40<>"",F40<>"",ISNUMBER(K40)),VLOOKUP($D$3,DATA!$BF$25:$BG$27,2,FALSE),no_value) -> - | AI40: - | AJ40: - | AK40: - | AL40: - | AM40: - | AN40: - | AO40: - | AP40: - | AQ40: - | AR40: - | AS40: - | AT40: - | AU40: - | AV40: -
B41: 37 | C41: A37 | I41: =IF(AND(D41<>"",V41<>"-"),IF(L41<=INDEX(DATA!$AM$6:$AM$20,V41),DATA!$AM$4,IF(L41<=INDEX(DATA!$AN$6:$AN$20,V41),DATA!$AN$4,IF(L41<=INDEX(DATA!$AO$6:$AO$20,V41),DATA!$AO$4,IF(L41<=INDEX(DATA!$AP$6:$AP$20,V41),DATA!$AP$4,"-")))),"-") -> - | J41: =IFERROR(INDEX(DATA!$AQ$6:$AU$20,V41,T41),no_value) -> - | K41: =IFERROR(INDEX(DATA!$AL$6:$AP$20,V41,T41),no_value) -> - | P41: =IFERROR(IF(N41=pass,INDEX(DATA!$AG$6:$AK$20,V41,T41),no_value),no_value) -> - | R41: - | T41: =IFERROR(HLOOKUP(I41,DATA!$AG$4:$AK$5,2,FALSE)-DATA!$AF$5,no_value) -> 1 | U41: =IFERROR(VLOOKUP(D41,Liste_Bauteile,DATA!$AF$5,FALSE),no_value) -> - | V41: =IFERROR(VLOOKUP(D41,DATA!$AC$6:$AD$20,2,FALSE),no_value) -> - | W41: =IFERROR(INDEX(DATA!$AU$6:$AU$20,V41),no_value) -> - | X41: =IFERROR(INDEX(DATA!$AY$6:$AY$20,V41,1),no_value) -> - | Y41: =IF($AD$1="X",IFERROR(INDEX(DATA!$AZ$6:$AZ$20,V41,1),no_value),IF(I41=ESIV,0,IFERROR(INDEX(DATA!$BC$6:$BC$20,V41,1),no_value))) -> - | Z41: - | AA41: - | AB41: =IF($AD$1="X",IF(I41=no_value,no_value,IFERROR(infla_WD*INDEX(DATA!$BA$6:$BA$20,V41,1),no_value)),IF(I41=no_value,no_value,IFERROR(infla_WD*INDEX(DATA!$BD$6:$BD$20,V41,1),no_value))) -> - | AC41: =IFERROR(IF(INDEX(DATA!$AF$6:$AF$20,V41,1)=1,infla_WD*C_cm_WB,MAX(0,infla_WD*TREND(DATA!$BH$5:$BK$5,DATA!$BH$4:$BK$4,AE41))),no_value) -> - | AD41: =IFERROR(AB41+AC41*IF(INDEX(DATA!$AF$6:$AF$20,V41,1)=1,AA41,1),no_value) -> - | AE41: - | AF41: - | AG41: =IFERROR(INDEX(DATA!$AE$6:$AE$20,V41,1),no_value) -> - | AH41: =IF(AND(D41<>"",F41<>"",ISNUMBER(K41)),VLOOKUP($D$3,DATA!$BF$25:$BG$27,2,FALSE),no_value) -> - | AI41: - | AJ41: - | AK41: - | AL41: - | AM41: - | AN41: - | AO41: - | AP41: - | AQ41: - | AR41: - | AS41: - | AT41: - | AU41: - | AV41: -
B42: 38 | C42: A38 | I42: =IF(AND(D42<>"",V42<>"-"),IF(L42<=INDEX(DATA!$AM$6:$AM$20,V42),DATA!$AM$4,IF(L42<=INDEX(DATA!$AN$6:$AN$20,V42),DATA!$AN$4,IF(L42<=INDEX(DATA!$AO$6:$AO$20,V42),DATA!$AO$4,IF(L42<=INDEX(DATA!$AP$6:$AP$20,V42),DATA!$AP$4,"-")))),"-") -> - | J42: =IFERROR(INDEX(DATA!$AQ$6:$AU$20,V42,T42),no_value) -> - | K42: =IFERROR(INDEX(DATA!$AL$6:$AP$20,V42,T42),no_value) -> - | P42: =IFERROR(IF(N42=pass,INDEX(DATA!$AG$6:$AK$20,V42,T42),no_value),no_value) -> - | R42: - | T42: =IFERROR(HLOOKUP(I42,DATA!$AG$4:$AK$5,2,FALSE)-DATA!$AF$5,no_value) -> 1 | U42: =IFERROR(VLOOKUP(D42,Liste_Bauteile,DATA!$AF$5,FALSE),no_value) -> - | V42: =IFERROR(VLOOKUP(D42,DATA!$AC$6:$AD$20,2,FALSE),no_value) -> - | W42: =IFERROR(INDEX(DATA!$AU$6:$AU$20,V42),no_value) -> - | X42: =IFERROR(INDEX(DATA!$AY$6:$AY$20,V42,1),no_value) -> - | Y42: =IF($AD$1="X",IFERROR(INDEX(DATA!$AZ$6:$AZ$20,V42,1),no_value),IF(I42=ESIV,0,IFERROR(INDEX(DATA!$BC$6:$BC$20,V42,1),no_value))) -> - | Z42: - | AA42: - | AB42: =IF($AD$1="X",IF(I42=no_value,no_value,IFERROR(infla_WD*INDEX(DATA!$BA$6:$BA$20,V42,1),no_value)),IF(I42=no_value,no_value,IFERROR(infla_WD*INDEX(DATA!$BD$6:$BD$20,V42,1),no_value))) -> - | AC42: =IFERROR(IF(INDEX(DATA!$AF$6:$AF$20,V42,1)=1,infla_WD*C_cm_WB,MAX(0,infla_WD*TREND(DATA!$BH$5:$BK$5,DATA!$BH$4:$BK$4,AE42))),no_value) -> - | AD42: =IFERROR(AB42+AC42*IF(INDEX(DATA!$AF$6:$AF$20,V42,1)=1,AA42,1),no_value) -> - | AE42: - | AF42: - | AG42: =IFERROR(INDEX(DATA!$AE$6:$AE$20,V42,1),no_value) -> - | AH42: =IF(AND(D42<>"",F42<>"",ISNUMBER(K42)),VLOOKUP($D$3,DATA!$BF$25:$BG$27,2,FALSE),no_value) -> - | AI42: - | AJ42: - | AK42: - | AL42: - | AM42: - | AN42: - | AO42: - | AP42: - | AQ42: - | AR42: - | AS42: - | AT42: - | AU42: - | AV42: -
B43: 39 | C43: A39 | I43: =IF(AND(D43<>"",V43<>"-"),IF(L43<=INDEX(DATA!$AM$6:$AM$20,V43),DATA!$AM$4,IF(L43<=INDEX(DATA!$AN$6:$AN$20,V43),DATA!$AN$4,IF(L43<=INDEX(DATA!$AO$6:$AO$20,V43),DATA!$AO$4,IF(L43<=INDEX(DATA!$AP$6:$AP$20,V43),DATA!$AP$4,"-")))),"-") -> - | J43: =IFERROR(INDEX(DATA!$AQ$6:$AU$20,V43,T43),no_value) -> - | K43: =IFERROR(INDEX(DATA!$AL$6:$AP$20,V43,T43),no_value) -> - | P43: =IFERROR(IF(N43=pass,INDEX(DATA!$AG$6:$AK$20,V43,T43),no_value),no_value) -> - | R43: - | T43: =IFERROR(HLOOKUP(I43,DATA!$AG$4:$AK$5,2,FALSE)-DATA!$AF$5,no_value) -> 1 | U43: =IFERROR(VLOOKUP(D43,Liste_Bauteile,DATA!$AF$5,FALSE),no_value) -> - | V43: =IFERROR(VLOOKUP(D43,DATA!$AC$6:$AD$20,2,FALSE),no_value) -> - | W43: =IFERROR(INDEX(DATA!$AU$6:$AU$20,V43),no_value) -> - | X43: =IFERROR(INDEX(DATA!$AY$6:$AY$20,V43,1),no_value) -> - | Y43: =IF($AD$1="X",IFERROR(INDEX(DATA!$AZ$6:$AZ$20,V43,1),no_value),IF(I43=ESIV,0,IFERROR(INDEX(DATA!$BC$6:$BC$20,V43,1),no_value))) -> - | Z43: - | AA43: - | AB43: =IF($AD$1="X",IF(I43=no_value,no_value,IFERROR(infla_WD*INDEX(DATA!$BA$6:$BA$20,V43,1),no_value)),IF(I43=no_value,no_value,IFERROR(infla_WD*INDEX(DATA!$BD$6:$BD$20,V43,1),no_value))) -> - | AC43: =IFERROR(IF(INDEX(DATA!$AF$6:$AF$20,V43,1)=1,infla_WD*C_cm_WB,MAX(0,infla_WD*TREND(DATA!$BH$5:$BK$5,DATA!$BH$4:$BK$4,AE43))),no_value) -> - | AD43: =IFERROR(AB43+AC43*IF(INDEX(DATA!$AF$6:$AF$20,V43,1)=1,AA43,1),no_value) -> - | AE43: - | AF43: - | AG43: =IFERROR(INDEX(DATA!$AE$6:$AE$20,V43,1),no_value) -> - | AH43: =IF(AND(D43<>"",F43<>"",ISNUMBER(K43)),VLOOKUP($D$3,DATA!$BF$25:$BG$27,2,FALSE),no_value) -> - | AI43: - | AJ43: - | AK43: - | AL43: - | AM43: - | AN43: - | AO43: - | AP43: - | AQ43: - | AR43: - | AS43: - | AT43: - | AU43: - | AV43: -
B44: 40 | C44: A40 | I44: =IF(AND(D44<>"",V44<>"-"),IF(L44<=INDEX(DATA!$AM$6:$AM$20,V44),DATA!$AM$4,IF(L44<=INDEX(DATA!$AN$6:$AN$20,V44),DATA!$AN$4,IF(L44<=INDEX(DATA!$AO$6:$AO$20,V44),DATA!$AO$4,IF(L44<=INDEX(DATA!$AP$6:$AP$20,V44),DATA!$AP$4,"-")))),"-") -> - | J44: =IFERROR(INDEX(DATA!$AQ$6:$AU$20,V44,T44),no_value) -> - | K44: =IFERROR(INDEX(DATA!$AL$6:$AP$20,V44,T44),no_value) -> - | P44: =IFERROR(IF(N44=pass,INDEX(DATA!$AG$6:$AK$20,V44,T44),no_value),no_value) -> - | R44: - | T44: =IFERROR(HLOOKUP(I44,DATA!$AG$4:$AK$5,2,FALSE)-DATA!$AF$5,no_value) -> 1 | U44: =IFERROR(VLOOKUP(D44,Liste_Bauteile,DATA!$AF$5,FALSE),no_value) -> - | V44: =IFERROR(VLOOKUP(D44,DATA!$AC$6:$AD$20,2,FALSE),no_value) -> - | W44: =IFERROR(INDEX(DATA!$AU$6:$AU$20,V44),no_value) -> - | X44: =IFERROR(INDEX(DATA!$AY$6:$AY$20,V44,1),no_value) -> - | Y44: =IF($AD$1="X",IFERROR(INDEX(DATA!$AZ$6:$AZ$20,V44,1),no_value),IF(I44=ESIV,0,IFERROR(INDEX(DATA!$BC$6:$BC$20,V44,1),no_value))) -> - | Z44: - | AA44: - | AB44: =IF($AD$1="X",IF(I44=no_value,no_value,IFERROR(infla_WD*INDEX(DATA!$BA$6:$BA$20,V44,1),no_value)),IF(I44=no_value,no_value,IFERROR(infla_WD*INDEX(DATA!$BD$6:$BD$20,V44,1),no_value))) -> - | AC44: =IFERROR(IF(INDEX(DATA!$AF$6:$AF$20,V44,1)=1,infla_WD*C_cm_WB,MAX(0,infla_WD*TREND(DATA!$BH$5:$BK$5,DATA!$BH$4:$BK$4,AE44))),no_value) -> - | AD44: =IFERROR(AB44+AC44*IF(INDEX(DATA!$AF$6:$AF$20,V44,1)=1,AA44,1),no_value) -> - | AE44: - | AF44: - | AG44: =IFERROR(INDEX(DATA!$AE$6:$AE$20,V44,1),no_value) -> - | AH44: =IF(AND(D44<>"",F44<>"",ISNUMBER(K44)),VLOOKUP($D$3,DATA!$BF$25:$BG$27,2,FALSE),no_value) -> - | AI44: - | AJ44: - | AK44: - | AL44: - | AM44: - | AN44: - | AO44: - | AP44: - | AQ44: - | AR44: - | AS44: - | AT44: - | AU44: - | AV44: -
B46: Förderung für die Bauteilmodernisierung | F46: fFörderung, Bau | I46: Energiekennwerte auf An bezogen | P46: Qp,Heiz
B47: Mittlerer U-Wert aller Bauteile Bestand (inkl. FX) | F47: =IFERROR(SUMPRODUCT(G5:G44,F5:F44,AG5:AG44)/SUM(F5:F44),no_value) -> - | I47: =Anlagen!B42 -> Bestand | P47: =IFERROR(SUMPRODUCT(AI5:AI44,F5:F44)/Start!F18,no_value) -> - | AN47: =SUMPRODUCT(AN5:AN44,F5:F44)/SUM(F5:F44) ->  | AQ47: =SUMPRODUCT(AQ5:AQ44,F5:F44)/SUM(F5:F44) -> 
B48: Mittlerer U-Wert aller Bauteile modernisiert (inkl. FX) | F48: =IFERROR(SUMPRODUCT(L5:L44,F5:F44,AG5:AG44)/SUM(F5:F44),no_value) -> - | I48: =Anlagen!B43 -> Modernisiert | P48: =IFERROR(SUMPRODUCT(AJ5:AJ44,F5:F44)/Start!F18,no_value) -> -
B49: Verbesserung im mittleren U-Wert | F49: =IFERROR(1-F48/F47,no_value) -> - | I49: =Anlagen!B44 -> Energetische Verbesserung in % | P49: =IFERROR(1-P48/P47,no_value) -> -
B50: Förderung über Bauteilsanierung | F50: =IF(F56=pass,SUMIF(N5:N44,pass,R5:R44),no_value) -> 0
B51: Summe Förderung | F51: =IFERROR(F50,no_value) -> 0 | I51: Primärenergieeinsparung | P51: =IFERROR(P47-P48,no_value) -> -
B53: Gesamtprojekt - Zielwerte | F53: qZiel,WS
B54: Zielwert - Gesamtprojekt | F54: =IFERROR(SUMPRODUCT(F5:F44,AG5:AG44,K5:K44)/SUM(F5:F44),no_value) -> -
B55: Erreichter Wert - Gesamtprojekt | F55: =IFERROR(SUMPRODUCT(F5:F44,AG5:AG44,L5:L44)/SUM(F5:F44),no_value) -> -
B56: Anforderung erfüllt | F56: =IFERROR(IF(F55<=F54,pass,fail),fail) -> ü
B57: =Start!B34 -> Ministère du Développement durable et des Infrastructures Département de l’Environnement | R57: =Start!I34 -> SubCalC, Version 1.02 (8.8.2014)
B58: =Start!B35 -> Goblet Lavandier & Associés S.A.

Sheet Anlagen
AO1: x | AR1: 11 | AS1: 2543 | AT1: 207 | AU1: 0.3 | AX1: 0.25 | CG1: 250 | CK1: 13
C2: Kurz- | D2: Nutzungsart | F2: Raumanzahl | G2: Raumfläche (NGF) | H2: Modernisierung Beleuchtung | I2: Modernisierung hygienische Lüftung | J2: Nettogrundfläche der Zone | L2: typischer Raumindex | M2: Individuelle Raumtiefe | N2: Individuelle Raumbreite | O2: Individuelle Raumhöhe | P2: Höhe der Nutzebene | Q2: Individuelle Raumhöhe - Nutzebene | R2: Individueller Raumindex | S2: Raumindex für Zielwert | U2: typische Beleuchtungsstärke | V2: projektierte Beleuchtungsstärke | W2: ="Grenzwert Em, typ max. + "&grenz_em*100&"%" -> Grenzwert Em, typ max. + 50% | Y2: Spezifische Leistung vor Modernisierung | Z2: Zielwert für spez. Leistung bei Em,proj | AA2: Projektierte spez. Leistung bei Em,proj | AB2: ="Grenzwert qel, ziel max. + "&grenz_Pel*100&"%" -> Grenzwert qel, ziel max. + 25% | AD2: Förderung bezogen auf Em,typ | AF2: Spezifisches Tageslichtangebot | AG2: Tageslichtsteuerung vorhanden | AH2: Bonusförderung Tageslichtnutzung | AJ2: Präsentkontrolle vorhanden | AK2: Bonusförderung Präsenzkontrolle | AM2: Förderung Beleuchtung | AO2: =Y2 -> Spezifische Leistung vor Modernisierung | AP2: Förderbare Beleuchtungstärke | AQ2: Förderbare Beleuchtungstärke | AR2: Tage im Jahr | AS2: Tagstungen | AT2: Nachtstunden | AU2: Rel.Abwesenheit | AV2: Manuelle Bediehnung | AW2: Präsentmelder | AX2: Basiswert für Tageslichtnutzung | AY2: Stunde tLi,11, manuel | AZ2: Stunde tLi,11, geregelt | BA2: Betriebszeit manuelle Steuerung | BB2: Betriebszeit Präsenzerfassung | BC2: Betriebszeit Tageslichtsteuerung | BD2: Betriebszeit Tages-licht + Präsenz | BE2: Betriebszeit für Berechnung | BF2: Tageslichtautonomie | BG2: Energiebedarf vor Modernisierung | BH2: Energiebedarf nach Modernisierung | BI2: Energieeinsparung | BJ2: Primärenergie-einsparung | BK2: Energiekosten-einsparung | BL2: Kosten Beleuchtung | BM2: Kosten Tageslicht | BN2: Kosten Präsenz | BO2: Kosten Gesamt | BP2: Kapitalrücklauf | BQ2: Förderung | BR2: Eigeninvestition | BS2: Kapitalrücklauf mit Förderung | BT2: =DG2 -> Kapitalrücklauf mit Förderung | BU2: Förderung je CO2 Einsparung | BV2: Investitionskosten | BW2: Förderung | BX2: Förderquote | BZ2: Hygienischer Volumenstrom | CA2: Projektierter Volumenstrom | CB2: Volumenstrom | CC2: ="Grenzwert Vrlt, typ max. + "&grenz_nRLT*100&"%" -> Grenzwert Vrlt, typ max. + 50% | CE2: Förderung Lüftungsanlage | CG2: Betriebstage im Jahr | CH2: Check if Subsidies are applicable | CI2: Förderbarer spez. Volumenstrom | CJ2: Förderbarer Volumenstrom | CK2: tägliche Betriebszeit | CL2: Betriebsstunden Lüftung | CM2: Zonentemperatur | CN2: Luftungsgradtage | CO2: ="Kosten "&DATA_RLT!B5 -> Kosten Abuftanlage | CP2: ="Kosten "&DATA_RLT!B12 -> Kosten RLT-H70SFP | CQ2: Kostendifferenz | CR2: Thermischer Bedarf Abluft | CS2: ="Thermischer Bedarf "&DATA_RLT!B12 -> Thermischer Bedarf RLT-H70SFP | CT2: ="Strombedarf "&DATA_RLT!B5 -> Strombedarf Abuftanlage | CU2: ="Strombedarf "&DATA_RLT!B12 -> Strombedarf RLT-H70SFP | CV2: =CY2 -> Primärenergie-einsparung | CW2: Thermische Einsparung zu Abluft | CX2: Elektrische Einsparung zu Abluft | CY2: =BJ2 -> Primärenergie-einsparung | CZ2: =BK2 -> Energiekosten-einsparung | DA2: Wartung | DB2: Jahreskosten-Einsparung | DC2: =BP2 -> Kapitalrücklauf | DD2: =BQ2 -> Förderung | DE2: =BR2 -> Eigeninvestition | DF2: =BS2 -> Kapitalrücklauf mit Förderung | DG2: =BS2 -> Kapitalrücklauf mit Förderung | DH2: =BU2 -> Förderung je CO2 Einsparung | DI2: =BV2 -> Investitionskosten | DJ2: Förderung | DK2: =BX2 -> Förderquote
C3: name | D3: nach Reglement grand-ducal 2010 | F3: St. | G3: An | H3: ja/nein | I3: ja/nein | J3: An | L3: ktyp | M3: TRaum | N3: BRaum | O3: hRaum | P3: hNe | Q3: h'Raum | R3: kind | S3: kuse | U3: Em, typ | V3: Em,proj | W3: - | Y3: qel,base | Z3: qel,ziel | AA3: qel,proj | AB3: - | AD3: fBel | AF3: AFe/An | AG3: ja/nein | AH3: fday | AJ3: ja/nein | AK3: fprä | AM3: fsub,Bel | AO3: fRef | AP3: Em,sub | AQ3: Em,sub | AR3: dJahr | AS3: tTag | AT3: tNacht | AU3: Ca | AV3: rman | AW3: rprä | AX3: zg0 | AY3: tLi,11,man | AZ3: tLi,11,auto | BA3: hman | BB3: hprä | BC3: hday | BD3: hprä,day | BE3: huse | BF3: %hday | BG3: qbel,basis | BH3: qbel,proj | BI3: Dqbel | BJ3: Dqbel,prim | BK3: Dkbel | BL3: Kbel | BM3: Kday | BN3: Kprä | BO3: Kbel,proj | BP3: rbel | BQ3: fsub,bel | BR3: Kbel,sub | BS3: rbel,sub | BT3: CO2RLT | BU3: fbel,CO2 | BV3: Ibel,proj | BW3: Ibel,sub | BX3: zbel | BZ3: nhyg | CA3: nproj | CB3: VRLT | CC3: - | CE3: fsub,RLT | CG3: dRLT | CH3: sub | CI3: n'RLT,sub | CJ3: V'RLT,sub | CK3: tRLT | CL3: hRLT | CM3: Heat | CN3: HGTRLT | CO3: KAbluft | CP3: KRLT-H70SFP | CQ3: DKRLT | CR3: qh,RLT | CS3: qel,RLT | CT3: qh,RLT | CU3: qel,RLT | CV3: DqPrim | CW3: Dqh,RLT | CX3: Dqel,RLT | CY3: DqPrim | CZ3: DkRLT,e | DA3: DkRLT,w | DB3: DkRLT | DC3: rRLT | DD3: fsub,RLT | DE3: KRLT,sub | DF3: rRLT,sub | DG3: CO2RLT | DH3: fbel,CO2 | DI3: IRLT,proj | DJ3: IRLT,sub | DK3: zRLT
B4: N° | C4: - | D4: Bezeichnung | F4: - | G4: m² | H4: - | I4: - | J4: m² | L4: - | M4: m | N4: m | O4: m | P4: m | Q4: m | R4: - | S4: - | U4: lux | V4: lux | W4: - | Y4: W/m² | Z4: W/m² | AA4: W/m² | AB4: - | AD4: €/m² | AF4: m²/m² | AG4: - | AH4: =AD4 -> €/m² | AJ4: - | AK4: =AH4 -> €/m² | AM4: € | AO4: 1 | AP4: Lux | AQ4: W/m² | AR4: d/a | AS4: h/a | AT4: h/a | AU4: - | AV4: - | AW4: - | AX4: - | AY4: =AZ80 -> 6.6 | AZ4: =BA80 -> 3.3 | BA4: h/a | BB4: h/a | BC4: h/a | BD4: h/a | BE4: h/a | BF4: % | BG4: kWh/m² | BH4: kWh/m² | BI4: kWh/m² | BJ4: kWh/m² | BK4: €/(m².a) | BL4: €/m² | BM4: €/m² | BN4: €/m² | BO4: €/m² | BP4: a | BQ4: €/m² | BR4: €/m² | BS4: a | BT4: kgCO2/m² | BU4: €/toCo2 | BV4: € | BW4: € | BX4: % | BZ4: (m³/h)/m² | CA4: (m³/h)/m² | CB4: m³/h | CC4: - | CE4: € | CG4: d/a | CH4: 1, 0 | CI4: m³/h | CJ4: m³/h | CK4: h/d | CL4: h/a | CM4: ja/nein | CN4: Kkh/a | CO4: €/(m³/h) | CP4: €/(m³/h) | CQ4: €/(m³/h) | CR4: kWh/(m³/h) | CS4: kWh/(m³/h) | CT4: kWh/(m³/h) | CU4: kWh/(m³/h) | CV4: kWh/(m³/h) | CW4: kWh/(m³/h) | CX4: kWh/(m³/h) | CY4: kWh/(m³/h) | CZ4: €/(m³/h) | DA4: €/(m³/h) | DB4: €/(m³/h) | DC4: a | DD4: €/(m³/h) | DE4: €/(m³/h) | DF4: =DC4 -> a | DG4: kgCO2/(m³/h) | DH4: €/toCO2 | DI4: € | DJ4: € | DK4: -
B5: 1 | C5: A01 | J5: =IFERROR(IF(AND(ISNUMBER(F5),ISNUMBER(G5)),F5*G5,no_value),no_value) -> - | L5: =IF(H5=ja,IFERROR(VLOOKUP(D5,Tabelle_Nutzung,Nutzungen!$S$75,FALSE),no_value),no_value) -> - | M5: =VLOOKUP($D5,Tabelle_Nutzung,Nutzungen!$BC$75,FALSE) ->  | N5: =VLOOKUP($D5,Tabelle_Nutzung,Nutzungen!$BB$75,FALSE) ->  | O5: =VLOOKUP($D5,Tabelle_Nutzung,Nutzungen!$BA$75,FALSE) ->  | P5: =IFERROR(VLOOKUP(D5,Tabelle_Nutzung,Nutzungen!$P$75,FALSE),no_value) -> - | Q5: =IFERROR(IF(O5<>"",MAX(O5-P5,0),no_value),no_value) -> - | R5: =IF(AND(ISNUMBER(Q5),ISNUMBER(N5),ISNUMBER(Q5)),M5*N5/(Q5*(M5+N5)),no_value) -> - | S5: =IF(H5=ja,IFERROR(IF(AND(ISNUMBER(R5),M5<>"",N5<>"",O5<>"",M5>0,N5>0,O5>0),R5,L5),no_value),no_value) -> - | U5: =IF(H5=ja,IFERROR(VLOOKUP(D5,Tabelle_Nutzung,Nutzungen!$O$75,FALSE),no_value),no_value) -> - | V5: =U5 -> - | W5: =IFERROR(IF(IFERROR(IF(ISNUMBER(V5),V5,U5),no_value)>U5*(1+grenz_em),fail,pass),"") ->  | Y5: =IFERROR(Z5*(1+$AO$4),no_value) -> - | Z5: =IFERROR(IF(ISNUMBER(V5),V5,U5)/(f_WF*f_lm*f_nlb*(a0_ID*LN(S5)+a1_ID))*(1+f_bel_req),no_value) -> - | AA5: =Z5 -> - | AB5: =IFERROR(IF(AA5>Z5*(1+grenz_Pel),fail,pass),"") ->  | AD5: =IFERROR(IF(AND(J5<>no_value,H5=ja),IF(OR(W5=fail,AB5=fail),no_value,MAX(MIN(K_bel_sub_max,AP5*K_bel_sub_m+K_bel_sub_b),K_bel_sub_min)),no_value),no_value) -> - | AF5: =IF($AO$1="X",IFERROR(VLOOKUP(D5,Tabelle_Nutzung,Nutzungen!$BM$75,FALSE),no_value),$AX$1) -> - | AG5: ja | AH5: =IFERROR(IF(AND(AG5=ja,W5=pass,AB5=pass,AF5>=f_day_min,AF5<>""),MAX(MIN(K_day_sub_max,AP5*K_day_sub_m+K_day_sub_b),K_day_sub_min),no_valu),no_value) -> - | AJ5: ja | AK5: =IFERROR(IF(AND(AJ5=ja,W5=pass,AB5=pass),MAX(MIN(K_pr_sub_max,AP5*K_pr_sub_m+K_pr_sub_b),K_pr_sub_min),no_valu),no_value) -> - | AM5: =IFERROR(IF(ROUND(SUM(AD5,AH5,AK5)*J5,-1)>0,ROUND(SUM(AD5,AH5,AK5)*J5,-1),no_value),no_value) -> - | AO5: =Y5 -> - | AP5: =IFERROR(MIN(U5,V5),no_value) -> 0 | AQ5: =IFERROR(MIN(Z5,AA5),no_value) -> 0 | AR5: =IF($AO$1="X",IFERROR(VLOOKUP($D5,Tabelle_Nutzung,Nutzungen!$G$75,FALSE),no_value),$AR$1) -> - | AS5: =IF($AO$1="X",IFERROR(VLOOKUP($D5,Tabelle_Nutzung,Nutzungen!$I$75,FALSE),no_value),$AS$1) -> - | AT5: =IF($AO$1="X",IFERROR(VLOOKUP($D5,Tabelle_Nutzung,Nutzungen!$J$75,FALSE),no_value),$AT$1) -> - | AU5: =IF($AO$1="X",IFERROR(VLOOKUP(D5,Tabelle_Nutzung,Nutzungen!$R$75,FALSE),no_value),$AU$1) -> - | AV5: =IF(ISNUMBER(AU5),IF(AND(AU5>=0.9,D5<>Nutzungen!$B$93),1-AU5*0.95,1-AU5*0.5),no_value) -> - | AW5: =IF(ISNUMBER(AU5),1-AU5*0.95,no_value) -> - | AX5: =IF(AND($J5<>no_value,H5=ja),MAX(0.175,0.35*(0.375+V5/800)),no_value) -> - | AY5: =IF(ISNUMBER($AX5),IF($AF5>=$AX5,AY$4,0.5*(11-AY$4)*COS(PI()*$AF5/$AX5)+0.5*(11+AY$4)),no_value) -> - | AZ5: =IF(ISNUMBER($AX5),IF($AF5>=$AX5,AZ$4,0.5*(11-AZ$4)*COS(PI()*$AF5/$AX5)+0.5*(11+AZ$4)),no_value) -> - | BA5: =IFERROR(AV5*($AY5*$AS5/$AR5/11+$AT5/$AR5)*$AR5,no_value) -> - | BB5: =IFERROR(AW5*($AY5*$AS5/$AR5/11+$AT5/$AR5)*$AR5,no_value) -> - | BC5: =IFERROR(AV5*($AZ5*$AS5/$AR5/11+$AT5/$AR5)*$AR5,no_value) -> - | BD5: =IFERROR(AW5*($AZ5*$AS5/$AR5/11+$AT5/$AR5)*$AR5,no_value) -> - | BE5: =IF(AND(AG5=ja,AJ5=ja),BD5,IF(AG5=ja,BC5,IF(AJ5=ja,BB5,BA5))) -> - | BF5: =IFERROR(BE5/BA5,no_value) -> - | BG5: =IFERROR(AO5*BA5/1000,no_value) -> - | BH5: =IFERROR(BE5*IF(ISNUMBER(AA5),AA5,Z5)/1000,no_value) -> - | BI5: =IFERROR(BG5-BH5,no_value) -> - | BJ5: =IFERROR(BI5*qpel,0) -> 0 | BK5: =IFERROR(BI5*c_el,no_value) -> - | BL5: =IFERROR(IF(AND(J5<>no_value,H5=ja),IF(OR(W5=fail,AB5=fail),no_value,infla_Bel*MAX(MIN(K_bel_inv_max,AP5*K_bel_inv_m+K_bel_inv_b),K_bel_inv_min)),no_value),no_value) -> - | BM5: =IFERROR(IF(AND(AG5=ja,W5=pass,AB5=pass),infla_Bel*MAX(MIN(K_day_inv_max,AP5*K_day_inv_m+K_day_inv_b),K_day_inv_min),no_valu),no_value) -> - | BN5: =IFERROR(IF(AND(AJ5=ja,W5=pass,AB5=pass),infla_Bel*MAX(MIN(K_pr_inv_max,AP5*K_pr_inv_m+K_pr_inv_b),K_pr_inv_min),no_valu),no_value) -> - | BO5: =IF(SUM(BL5:BN5)>0,SUM(BL5:BN5),no_value) -> - | BP5: =IFERROR(BO5/BK5,no_value) -> - | BQ5: =IFERROR(IF(H5=ja,AM5/J5,no_value),no_value) -> - | BR5: =IFERROR(BO5-BQ5,no_value) -> - | BS5: =IFERROR(BR5/BK5,no_value) -> - | BT5: =IFERROR(MAX(0,BI5*co2_el),no_value) -> - | BU5: =IFERROR(ROUND(BQ5/(BI5*0.651/1000),-2),no_value) -> - | BV5: =IFERROR(BO5*J5,no_value) -> - | BW5: =IFERROR(AM5,no_value) -> - | BX5: =IFERROR(BW5/BV5,no_value) -> - | BZ5: =IF(I5=ja,VLOOKUP(D5,Tabelle_Nutzung,Nutzungen!$AA$75,FALSE),no_value) -> - | CB5: =IFERROR(IF(CH5=1,J5*IF(ISNUMBER(CA5),CA5,BZ5),no_value),no_value) -> - | CC5: =IFERROR(IF(CH5=1,IF(IFERROR(IF(ISNUMBER(CA5),CA5,BZ5),no_value)>BZ5*(1+grenz_nRLT),fail,pass),""),"") ->  | CE5: =IFERROR(DD5*CI5*J5,no_value) -> - | CG5: =IF($AO$1="X",IFERROR(VLOOKUP($D5,Tabelle_Nutzung,Nutzungen!$L$75,FALSE),no_value),$CG$1) -> - | CH5: =IFERROR(VLOOKUP(D5,Tabelle_Nutzung,Nutzungen!$BN$75,FALSE),no_value) -> - | CI5: =IF(CH5=1,MIN(BZ5,CA5),no_value) -> - | CJ5: =IFERROR(J5*CI5,no_value) -> - | CK5: =IF($AO$1="X",IFERROR(VLOOKUP($D5,Tabelle_Nutzung,Nutzungen!$K$75,FALSE),no_value),$CK$1) -> - | CL5: =IFERROR(IF(CH5=1,CG5*CK5,no_value),no_value) -> - | CM5: =IFERROR(IF(VLOOKUP($D5,Tabelle_Nutzung,Nutzungen!$AK$75,FALSE)>15,ja,nein),no_value) -> - | CN5: =IFERROR(IF(CH5=1,IF(CM5=ja,HGT_Global/24*CK5,0),no_value),no_value) -> - | CO5: =IFERROR(IF(AND(CH5=1,CJ5>0),DATA_RLT!$AA$5,no_value),no_value) -> - | CP5: =IFERROR(IF(AND(CH5=1,CJ5>0),DATA_RLT!$AA$12,no_value),no_value) -> - | CQ5: =IFERROR(CP5-CO5,no_value) -> - | CR5: =IF(AND(CJ5>0,I5=ja),IFERROR(e_Heiz*cpl*CN5*((1-WRG_Abluft)),no_value),no_value) -> - | CS5: =IF(AND(CJ5>0,I5=ja),IFERROR(e_Heiz*cpl*CN5*((1-WRG_RLT_H70SFP)),no_value),no_value) -> - | CT5: =IF(AND(CJ5>0,I5=ja,CH5=1),CL5*(SFP_Abluft)/3600,no_value) -> - | CU5: =IF(AND(CJ5>0,I5=ja,CH5=1),CL5*(SFP_RLT_H70SFP)/3600,no_value) -> - | CV5: =IFERROR((CR5-CS5)*qPh+(CT5-CU5)*qpel,no_value) -> - | CW5: =IF(AND(CJ5>0,I5=ja,CH5=1),IFERROR(e_Heiz*cpl*CN5*((1-WRG_Abluft)-(1-WRG_RLT_H70SFP)),no_value),no_value) -> - | CX5: =IF(AND(CJ5>0,I5=ja,CH5=1),CL5*(SFP_Abluft-SFP_RLT_H70SFP)/3600,no_value) -> - | CY5: =IFERROR(CW5*qPh+CX5*qpel,0) -> 0 | CZ5: =IFERROR(CW5*c_H+CX5*c_el,no_value) -> - | DA5: =IFERROR(IF(AND(CJ5>0),CQ5*Wartung_RLT*-1,no_value),no_value) -> - | DB5: =IFERROR(CZ5+DA5,no_value) -> - | DC5: =IFERROR(IF(CQ5/DB5>0,CQ5/DB5,0),0) -> 0 | DD5: =IF(AND(CJ5>0,CC5=pass,ISNUMBER(DC5)),$F$73,no_value) -> - | DE5: =IFERROR(CQ5-DD5,no_value) -> - | DF5: =IFERROR(IF(DE5/DB5>=0,DE5/DB5,0),0) -> 0 | DG5: =IFERROR(MAX(0,CW5*co2_h+CX5*co2_el),no_value) -> - | DH5: =IFERROR(MAX(0,ROUND(DD5/(CX5*co2_el+CW5*co2_h)*1000,-2)),0) -> 0 | DI5: =IFERROR(CP5*CA5*G5,no_value) -> - | DJ5: =CE5 -> - | DK5: =IFERROR(DD5/CP5,no_value) -> -
B6: =B5+1 -> 2 | C6: A02 | J6: - | L6: =IF(H6=ja,IFERROR(VLOOKUP(D6,Tabelle_Nutzung,Nutzungen!$S$75,FALSE),no_value),no_value) -> - | M6: =VLOOKUP($D6,Tabelle_Nutzung,Nutzungen!$BC$75,FALSE) ->  | N6: =VLOOKUP($D6,Tabelle_Nutzung,Nutzungen!$BB$75,FALSE) ->  | O6: =VLOOKUP($D6,Tabelle_Nutzung,Nutzungen!$BA$75,FALSE) ->  | P6: =IFERROR(VLOOKUP(D6,Tabelle_Nutzung,Nutzungen!$P$75,FALSE),no_value) -> - | Q6: =IFERROR(IF(O6<>"",MAX(O6-P6,0),no_value),no_value) -> - | R6: =IF(AND(ISNUMBER(Q6),ISNUMBER(N6),ISNUMBER(Q6)),M6*N6/(Q6*(M6+N6)),no_value) -> - | S6: =IF(H6=ja,IFERROR(IF(AND(ISNUMBER(R6),M6<>"",N6<>"",O6<>"",M6>0,N6>0,O6>0),R6,L6),no_value),no_value) -> - | U6: =IF(H6=ja,IFERROR(VLOOKUP(D6,Tabelle_Nutzung,Nutzungen!$O$75,FALSE),no_value),no_value) -> - | V6: =U6 -> - | W6: =IFERROR(IF(IFERROR(IF(ISNUMBER(V6),V6,U6),no_value)>U6*(1+grenz_em),fail,pass),"") ->  | Y6: =IFERROR(Z6*(1+$AO$4),no_value) -> - | Z6: =IFERROR(IF(ISNUMBER(V6),V6,U6)/(f_WF*f_lm*f_nlb*(a0_ID*LN(S6)+a1_ID))*(1+f_bel_req),no_value) -> - | AA6: =Z6 -> - | AB6: =IFERROR(IF(AA6>Z6*(1+grenz_Pel),fail,pass),"") ->  | AD6: - | AF6: =IF($AO$1="X",IFERROR(VLOOKUP(D6,Tabelle_Nutzung,Nutzungen!$BM$75,FALSE),no_value),$AX$1) -> - | AG6: =AG5 -> ja | AH6: =IFERROR(IF(AND(AG6=ja,W6=pass,AB6=pass,AF6>=f_day_min,AF6<>""),MAX(MIN(K_day_sub_max,AP6*K_day_sub_m+K_day_sub_b),K_day_sub_min),no_valu),no_value) -> - | AJ6: =AJ5 -> ja | AK6: =IFERROR(IF(AND(AJ6=ja,W6=pass,AB6=pass),MAX(MIN(K_pr_sub_max,AP6*K_pr_sub_m+K_pr_sub_b),K_pr_sub_min),no_valu),no_value) -> - | AM6: =IFERROR(IF(ROUND(SUM(AD6,AH6,AK6)*J6,-1)>0,ROUND(SUM(AD6,AH6,AK6)*J6,-1),no_value),no_value) -> - | AO6: =Y6 -> - | AP6: 0 | AQ6: 0 | AR6: =IF($AO$1="X",IFERROR(VLOOKUP($D6,Tabelle_Nutzung,Nutzungen!$G$75,FALSE),no_value),$AR$1) -> - | AS6: =IF($AO$1="X",IFERROR(VLOOKUP($D6,Tabelle_Nutzung,Nutzungen!$I$75,FALSE),no_value),$AS$1) -> - | AT6: =IF($AO$1="X",IFERROR(VLOOKUP($D6,Tabelle_Nutzung,Nutzungen!$J$75,FALSE),no_value),$AT$1) -> - | AU6: =IF($AO$1="X",IFERROR(VLOOKUP(D6,Tabelle_Nutzung,Nutzungen!$R$75,FALSE),no_value),$AU$1) -> - | AV6: =IF(ISNUMBER(AU6),IF(AND(AU6>=0.9,D6<>Nutzungen!$B$93),1-AU6*0.95,1-AU6*0.5),no_value) -> - | AW6: =IF(ISNUMBER(AU6),1-AU6*0.95,no_value) -> - | AX6: - | AY6: =IF(ISNUMBER($AX6),IF($AF6>=$AX6,AY$4,0.5*(11-AY$4)*COS(PI()*$AF6/$AX6)+0.5*(11+AY$4)),no_value) -> - | AZ6: =IF(ISNUMBER($AX6),IF($AF6>=$AX6,AZ$4,0.5*(11-AZ$4)*COS(PI()*$AF6/$AX6)+0.5*(11+AZ$4)),no_value) -> - | BA6: =IFERROR(AV6*($AY6*$AS6/$AR6/11+$AT6/$AR6)*$AR6,no_value) -> - | BB6: =IFERROR(AW6*($AY6*$AS6/$AR6/11+$AT6/$AR6)*$AR6,no_value) -> - | BC6: =IFERROR(AV6*($AZ6*$AS6/$AR6/11+$AT6/$AR6)*$AR6,no_value) -> - | BD6: =IFERROR(AW6*($AZ6*$AS6/$AR6/11+$AT6/$AR6)*$AR6,no_value) -> - | BE6: =IF(AND(AG6=ja,AJ6=ja),BD6,IF(AG6=ja,BC6,IF(AJ6=ja,BB6,BA6))) -> - | BF6: - | BG6: =IFERROR(AO6*BA6/1000,no_value) -> - | BH6: - | BI6: =IFERROR(BG6-BH6,no_value) -> - | BJ6: 0 | BK6: - | BL6: - | BM6: =IFERROR(IF(AND(AG6=ja,W6=pass,AB6=pass),infla_Bel*MAX(MIN(K_day_inv_max,AP6*K_day_inv_m+K_day_inv_b),K_day_inv_min),no_valu),no_value) -> - | BN6: =IFERROR(IF(AND(AJ6=ja,W6=pass,AB6=pass),infla_Bel*MAX(MIN(K_pr_inv_max,AP6*K_pr_inv_m+K_pr_inv_b),K_pr_inv_min),no_valu),no_value) -> - | BO6: =IF(SUM(BL6:BN6)>0,SUM(BL6:BN6),no_value) -> - | BP6: =IFERROR(BO6/BK6,no_value) -> - | BQ6: - | BR6: =IFERROR(BO6-BQ6,no_value) -> - | BS6: =IFERROR(BR6/BK6,no_value) -> - | BT6: - | BU6: =IFERROR(ROUND(BQ6/(BI6*0.651/1000),-2),no_value) -> - | BV6: =IFERROR(BO6*J6,no_value) -> - | BW6: =IFERROR(AM6,no_value) -> - | BX6: =IFERROR(BW6/BV6,no_value) -> - | BZ6: =IF(I6=ja,VLOOKUP(D6,Tabelle_Nutzung,Nutzungen!$AA$75,FALSE),no_value) -> - | CB6: - | CE6: - | CG6: =IF($AO$1="X",IFERROR(VLOOKUP($D6,Tabelle_Nutzung,Nutzungen!$L$75,FALSE),no_value),$CG$1) -> - | CH6: =IFERROR(VLOOKUP(D6,Tabelle_Nutzung,Nutzungen!$BN$75,FALSE),no_value) -> - | CI6: - | CJ6: - | CK6: =IF($AO$1="X",IFERROR(VLOOKUP($D6,Tabelle_Nutzung,Nutzungen!$K$75,FALSE),no_value),$CK$1) -> - | CL6: - | CM6: =IFERROR(IF(VLOOKUP($D6,Tabelle_Nutzung,Nutzungen!$AK$75,FALSE)>15,ja,nein),no_value) -> - | CN6: - | CO6: =IFERROR(IF(AND(CH6=1,CJ6>0),DATA_RLT!$AA$5,no_value),no_value) -> - | CP6: =IFERROR(IF(AND(CH6=1,CJ6>0),DATA_RLT!$AA$12,no_value),no_value) -> - | CQ6: =IFERROR(CP6-CO6,no_value) -> - | CR6: - | CS6: - | CT6: - | CU6: - | CV6: =IFERROR((CR6-CS6)*qPh+(CT6-CU6)*qpel,no_value) -> - | CW6: - | CX6: - | CY6: =IFERROR(CW6*qPh+CX6*qpel,0) -> 0 | CZ6: =IFERROR(CW6*c_H+CX6*c_el,no_value) -> - | DA6: - | DB6: =IFERROR(CZ6+DA6,no_value) -> - | DC6: =IFERROR(IF(CQ6/DB6>0,CQ6/DB6,0),0) -> 0 | DD6: - | DE6: =IFERROR(CQ6-DD6,no_value) -> - | DF6: =IFERROR(IF(DE6/DB6>=0,DE6/DB6,0),0) -> 0 | DG6: - | DH6: 0 | DI6: - | DJ6: =CE6 -> - | DK6: =IFERROR(DD6/CP6,no_value) -> -
B7: =B6+1 -> 3 | C7: A03 | J7: - | L7: =IF(H7=ja,IFERROR(VLOOKUP(D7,Tabelle_Nutzung,Nutzungen!$S$75,FALSE),no_value),no_value) -> - | M7: =VLOOKUP($D7,Tabelle_Nutzung,Nutzungen!$BC$75,FALSE) ->  | N7: =VLOOKUP($D7,Tabelle_Nutzung,Nutzungen!$BB$75,FALSE) ->  | O7: =VLOOKUP($D7,Tabelle_Nutzung,Nutzungen!$BA$75,FALSE) ->  | P7: =IFERROR(VLOOKUP(D7,Tabelle_Nutzung,Nutzungen!$P$75,FALSE),no_value) -> - | Q7: - | R7: - | S7: - | U7: =IF(H7=ja,IFERROR(VLOOKUP(D7,Tabelle_Nutzung,Nutzungen!$O$75,FALSE),no_value),no_value) -> - | V7: - | Y7: - | Z7: - | AA7: - | AD7: - | AF7: =IF($AO$1="X",IFERROR(VLOOKUP(D7,Tabelle_Nutzung,Nutzungen!$BM$75,FALSE),no_value),$AX$1) -> - | AG7: =AG6 -> ja | AH7: =IFERROR(IF(AND(AG7=ja,W7=pass,AB7=pass,AF7>=f_day_min,AF7<>""),MAX(MIN(K_day_sub_max,AP7*K_day_sub_m+K_day_sub_b),K_day_sub_min),no_valu),no_value) -> - | AJ7: =AJ6 -> ja | AK7: =IFERROR(IF(AND(AJ7=ja,W7=pass,AB7=pass),MAX(MIN(K_pr_sub_max,AP7*K_pr_sub_m+K_pr_sub_b),K_pr_sub_min),no_valu),no_value) -> - | AM7: - | AO7: =Y7 -> - | AP7: 0 | AQ7: 0 | AR7: =IF($AO$1="X",IFERROR(VLOOKUP($D7,Tabelle_Nutzung,Nutzungen!$G$75,FALSE),no_value),$AR$1) -> - | AS7: =IF($AO$1="X",IFERROR(VLOOKUP($D7,Tabelle_Nutzung,Nutzungen!$I$75,FALSE),no_value),$AS$1) -> - | AT7: =IF($AO$1="X",IFERROR(VLOOKUP($D7,Tabelle_Nutzung,Nutzungen!$J$75,FALSE),no_value),$AT$1) -> - | AU7: =IF($AO$1="X",IFERROR(VLOOKUP(D7,Tabelle_Nutzung,Nutzungen!$R$75,FALSE),no_value),$AU$1) -> - | AV7: =IF(ISNUMBER(AU7),IF(AND(AU7>=0.9,D7<>Nutzungen!$B$93),1-AU7*0.95,1-AU7*0.5),no_value) -> - | AW7: - | AX7: - | AY7: =IF(ISNUMBER($AX7),IF($AF7>=$AX7,AY$4,0.5*(11-AY$4)*COS(PI()*$AF7/$AX7)+0.5*(11+AY$4)),no_value) -> - | AZ7: - | BA7: - | BB7: - | BC7: - | BD7: - | BE7: - | BF7: - | BG7: - | BH7: - | BI7: =IFERROR(BG7-BH7,no_value) -> - | BJ7: 0 | BK7: - | BL7: - | BM7: =IFERROR(IF(AND(AG7=ja,W7=pass,AB7=pass),infla_Bel*MAX(MIN(K_day_inv_max,AP7*K_day_inv_m+K_day_inv_b),K_day_inv_min),no_valu),no_value) -> - | BN7: =IFERROR(IF(AND(AJ7=ja,W7=pass,AB7=pass),infla_Bel*MAX(MIN(K_pr_inv_max,AP7*K_pr_inv_m+K_pr_inv_b),K_pr_inv_min),no_valu),no_value) -> - | BO7: - | BP7: - | BQ7: - | BR7: - | BS7: - | BT7: - | BU7: - | BV7: - | BW7: - | BX7: - | BZ7: =IF(I7=ja,VLOOKUP(D7,Tabelle_Nutzung,Nutzungen!$AA$75,FALSE),no_value) -> - | CB7: - | CE7: - | CG7: =IF($AO$1="X",IFERROR(VLOOKUP($D7,Tabelle_Nutzung,Nutzungen!$L$75,FALSE),no_value),$CG$1) -> - | CH7: =IFERROR(VLOOKUP(D7,Tabelle_Nutzung,Nutzungen!$BN$75,FALSE),no_value) -> - | CI7: - | CJ7: - | CK7: =IF($AO$1="X",IFERROR(VLOOKUP($D7,Tabelle_Nutzung,Nutzungen!$K$75,FALSE),no_value),$CK$1) -> - | CL7: - | CM7: =IFERROR(IF(VLOOKUP($D7,Tabelle_Nutzung,Nutzungen!$AK$75,FALSE)>15,ja,nein),no_value) -> - | CN7: - | CO7: =IFERROR(IF(AND(CH7=1,CJ7>0),DATA_RLT!$AA$5,no_value),no_value) -> - | CP7: =IFERROR(IF(AND(CH7=1,CJ7>0),DATA_RLT!$AA$12,no_value),no_value) -> - | CQ7: - | CR7: - | CS7: - | CT7: - | CU7: - | CV7: - | CW7: - | CX7: - | CY7: 0 | CZ7: - | DA7: - | DB7: - | DC7: 0 | DD7: - | DE7: - | DF7: 0 | DG7: - | DH7: 0 | DI7: - | DJ7: - | DK7: -
B8: 4 | C8: A04 | J8: - | L8: =IF(H8=ja,IFERROR(VLOOKUP(D8,Tabelle_Nutzung,Nutzungen!$S$75,FALSE),no_value),no_value) -> - | M8: =VLOOKUP($D8,Tabelle_Nutzung,Nutzungen!$BC$75,FALSE) ->  | N8: =VLOOKUP($D8,Tabelle_Nutzung,Nutzungen!$BB$75,FALSE) ->  | O8: =VLOOKUP($D8,Tabelle_Nutzung,Nutzungen!$BA$75,FALSE) ->  | P8: =IFERROR(VLOOKUP(D8,Tabelle_Nutzung,Nutzungen!$P$75,FALSE),no_value) -> - | Q8: - | R8: - | S8: - | U8: =IF(H8=ja,IFERROR(VLOOKUP(D8,Tabelle_Nutzung,Nutzungen!$O$75,FALSE),no_value),no_value) -> - | V8: - | Y8: - | Z8: - | AA8: - | AD8: - | AF8: =IF($AO$1="X",IFERROR(VLOOKUP(D8,Tabelle_Nutzung,Nutzungen!$BM$75,FALSE),no_value),$AX$1) -> - | AG8: ja | AH8: =IFERROR(IF(AND(AG8=ja,W8=pass,AB8=pass,AF8>=f_day_min,AF8<>""),MAX(MIN(K_day_sub_max,AP8*K_day_sub_m+K_day_sub_b),K_day_sub_min),no_valu),no_value) -> - | AJ8: ja | AK8: =IFERROR(IF(AND(AJ8=ja,W8=pass,AB8=pass),MAX(MIN(K_pr_sub_max,AP8*K_pr_sub_m+K_pr_sub_b),K_pr_sub_min),no_valu),no_value) -> - | AM8: - | AO8: - | AP8: 0 | AQ8: 0 | AR8: =IF($AO$1="X",IFERROR(VLOOKUP($D8,Tabelle_Nutzung,Nutzungen!$G$75,FALSE),no_value),$AR$1) -> - | AS8: =IF($AO$1="X",IFERROR(VLOOKUP($D8,Tabelle_Nutzung,Nutzungen!$I$75,FALSE),no_value),$AS$1) -> - | AT8: =IF($AO$1="X",IFERROR(VLOOKUP($D8,Tabelle_Nutzung,Nutzungen!$J$75,FALSE),no_value),$AT$1) -> - | AU8: =IF($AO$1="X",IFERROR(VLOOKUP(D8,Tabelle_Nutzung,Nutzungen!$R$75,FALSE),no_value),$AU$1) -> - | AV8: =IF(ISNUMBER(AU8),IF(AND(AU8>=0.9,D8<>Nutzungen!$B$93),1-AU8*0.95,1-AU8*0.5),no_value) -> - | AW8: - | AX8: - | AY8: - | AZ8: - | BA8: - | BB8: - | BC8: - | BD8: - | BE8: - | BF8: - | BG8: - | BH8: - | BI8: =IFERROR(BG8-BH8,no_value) -> - | BJ8: 0 | BK8: - | BL8: - | BM8: =IFERROR(IF(AND(AG8=ja,W8=pass,AB8=pass),infla_Bel*MAX(MIN(K_day_inv_max,AP8*K_day_inv_m+K_day_inv_b),K_day_inv_min),no_valu),no_value) -> - | BN8: =IFERROR(IF(AND(AJ8=ja,W8=pass,AB8=pass),infla_Bel*MAX(MIN(K_pr_inv_max,AP8*K_pr_inv_m+K_pr_inv_b),K_pr_inv_min),no_valu),no_value) -> - | BO8: - | BP8: - | BQ8: - | BR8: - | BS8: - | BT8: - | BU8: - | BV8: - | BW8: - | BX8: - | BZ8: =IF(I8=ja,VLOOKUP(D8,Tabelle_Nutzung,Nutzungen!$AA$75,FALSE),no_value) -> - | CB8: - | CE8: - | CG8: =IF($AO$1="X",IFERROR(VLOOKUP($D8,Tabelle_Nutzung,Nutzungen!$L$75,FALSE),no_value),$CG$1) -> - | CH8: =IFERROR(VLOOKUP(D8,Tabelle_Nutzung,Nutzungen!$BN$75,FALSE),no_value) -> - | CI8: - | CJ8: - | CK8: =IF($AO$1="X",IFERROR(VLOOKUP($D8,Tabelle_Nutzung,Nutzungen!$K$75,FALSE),no_value),$CK$1) -> - | CL8: - | CM8: =IFERROR(IF(VLOOKUP($D8,Tabelle_Nutzung,Nutzungen!$AK$75,FALSE)>15,ja,nein),no_value) -> - | CN8: - | CO8: =IFERROR(IF(AND(CH8=1,CJ8>0),DATA_RLT!$AA$5,no_value),no_value) -> - | CP8: =IFERROR(IF(AND(CH8=1,CJ8>0),DATA_RLT!$AA$12,no_value),no_value) -> - | CQ8: - | CR8: - | CS8: - | CT8: - | CU8: - | CV8: - | CW8: - | CX8: - | CY8: 0 | CZ8: - | DA8: - | DB8: - | DC8: 0 | DD8: - | DE8: - | DF8: 0 | DG8: - | DH8: 0 | DI8: - | DJ8: - | DK8: -
B9: 5 | C9: A05 | J9: - | L9: =IF(H9=ja,IFERROR(VLOOKUP(D9,Tabelle_Nutzung,Nutzungen!$S$75,FALSE),no_value),no_value) -> - | M9: =VLOOKUP($D9,Tabelle_Nutzung,Nutzungen!$BC$75,FALSE) ->  | N9: =VLOOKUP($D9,Tabelle_Nutzung,Nutzungen!$BB$75,FALSE) ->  | O9: =VLOOKUP($D9,Tabelle_Nutzung,Nutzungen!$BA$75,FALSE) ->  | P9: =IFERROR(VLOOKUP(D9,Tabelle_Nutzung,Nutzungen!$P$75,FALSE),no_value) -> - | Q9: - | R9: - | S9: - | U9: =IF(H9=ja,IFERROR(VLOOKUP(D9,Tabelle_Nutzung,Nutzungen!$O$75,FALSE),no_value),no_value) -> - | V9: - | Y9: - | Z9: - | AA9: - | AD9: - | AF9: =IF($AO$1="X",IFERROR(VLOOKUP(D9,Tabelle_Nutzung,Nutzungen!$BM$75,FALSE),no_value),$AX$1) -> - | AG9: ja | AH9: =IFERROR(IF(AND(AG9=ja,W9=pass,AB9=pass,AF9>=f_day_min,AF9<>""),MAX(MIN(K_day_sub_max,AP9*K_day_sub_m+K_day_sub_b),K_day_sub_min),no_valu),no_value) -> - | AJ9: ja | AK9: =IFERROR(IF(AND(AJ9=ja,W9=pass,AB9=pass),MAX(MIN(K_pr_sub_max,AP9*K_pr_sub_m+K_pr_sub_b),K_pr_sub_min),no_valu),no_value) -> - | AM9: - | AO9: - | AP9: 0 | AQ9: 0 | AR9: =IF($AO$1="X",IFERROR(VLOOKUP($D9,Tabelle_Nutzung,Nutzungen!$G$75,FALSE),no_value),$AR$1) -> - | AS9: =IF($AO$1="X",IFERROR(VLOOKUP($D9,Tabelle_Nutzung,Nutzungen!$I$75,FALSE),no_value),$AS$1) -> - | AT9: =IF($AO$1="X",IFERROR(VLOOKUP($D9,Tabelle_Nutzung,Nutzungen!$J$75,FALSE),no_value),$AT$1) -> - | AU9: =IF($AO$1="X",IFERROR(VLOOKUP(D9,Tabelle_Nutzung,Nutzungen!$R$75,FALSE),no_value),$AU$1) -> - | AV9: =IF(ISNUMBER(AU9),IF(AND(AU9>=0.9,D9<>Nutzungen!$B$93),1-AU9*0.95,1-AU9*0.5),no_value) -> - | AW9: - | AX9: - | AY9: - | AZ9: - | BA9: - | BB9: - | BC9: - | BD9: - | BE9: - | BF9: - | BG9: - | BH9: - | BI9: =IFERROR(BG9-BH9,no_value) -> - | BJ9: 0 | BK9: - | BL9: - | BM9: =IFERROR(IF(AND(AG9=ja,W9=pass,AB9=pass),infla_Bel*MAX(MIN(K_day_inv_max,AP9*K_day_inv_m+K_day_inv_b),K_day_inv_min),no_valu),no_value) -> - | BN9: =IFERROR(IF(AND(AJ9=ja,W9=pass,AB9=pass),infla_Bel*MAX(MIN(K_pr_inv_max,AP9*K_pr_inv_m+K_pr_inv_b),K_pr_inv_min),no_valu),no_value) -> - | BO9: - | BP9: - | BQ9: - | BR9: - | BS9: - | BT9: - | BU9: - | BV9: - | BW9: - | BX9: - | BZ9: =IF(I9=ja,VLOOKUP(D9,Tabelle_Nutzung,Nutzungen!$AA$75,FALSE),no_value) -> - | CB9: - | CE9: - | CG9: =IF($AO$1="X",IFERROR(VLOOKUP($D9,Tabelle_Nutzung,Nutzungen!$L$75,FALSE),no_value),$CG$1) -> - | CH9: =IFERROR(VLOOKUP(D9,Tabelle_Nutzung,Nutzungen!$BN$75,FALSE),no_value) -> - | CI9: - | CJ9: - | CK9: =IF($AO$1="X",IFERROR(VLOOKUP($D9,Tabelle_Nutzung,Nutzungen!$K$75,FALSE),no_value),$CK$1) -> - | CL9: - | CM9: =IFERROR(IF(VLOOKUP($D9,Tabelle_Nutzung,Nutzungen!$AK$75,FALSE)>15,ja,nein),no_value) -> - | CN9: - | CO9: =IFERROR(IF(AND(CH9=1,CJ9>0),DATA_RLT!$AA$5,no_value),no_value) -> - | CP9: =IFERROR(IF(AND(CH9=1,CJ9>0),DATA_RLT!$AA$12,no_value),no_value) -> - | CQ9: - | CR9: - | CS9: - | CT9: - | CU9: - | CV9: - | CW9: - | CX9: - | CY9: 0 | CZ9: - | DA9: - | DB9: - | DC9: 0 | DD9: - | DE9: - | DF9: 0 | DG9: - | DH9: 0 | DI9: - | DJ9: - | DK9: -
B10: 6 | C10: A06 | J10: - | L10: =IF(H10=ja,IFERROR(VLOOKUP(D10,Tabelle_Nutzung,Nutzungen!$S$75,FALSE),no_value),no_value) -> - | M10: =VLOOKUP($D10,Tabelle_Nutzung,Nutzungen!$BC$75,FALSE) ->  | N10: =VLOOKUP($D10,Tabelle_Nutzung,Nutzungen!$BB$75,FALSE) ->  | O10: =VLOOKUP($D10,Tabelle_Nutzung,Nutzungen!$BA$75,FALSE) ->  | P10: =IFERROR(VLOOKUP(D10,Tabelle_Nutzung,Nutzungen!$P$75,FALSE),no_value) -> - | Q10: - | R10: - | S10: - | U10: =IF(H10=ja,IFERROR(VLOOKUP(D10,Tabelle_Nutzung,Nutzungen!$O$75,FALSE),no_value),no_value) -> - | V10: - | Y10: - | Z10: - | AA10: - | AD10: - | AF10: =IF($AO$1="X",IFERROR(VLOOKUP(D10,Tabelle_Nutzung,Nutzungen!$BM$75,FALSE),no_value),$AX$1) -> - | AG10: ja | AH10: =IFERROR(IF(AND(AG10=ja,W10=pass,AB10=pass,AF10>=f_day_min,AF10<>""),MAX(MIN(K_day_sub_max,AP10*K_day_sub_m+K_day_sub_b),K_day_sub_min),no_valu),no_value) -> - | AJ10: ja | AK10: =IFERROR(IF(AND(AJ10=ja,W10=pass,AB10=pass),MAX(MIN(K_pr_sub_max,AP10*K_pr_sub_m+K_pr_sub_b),K_pr_sub_min),no_valu),no_value) -> - | AM10: - | AO10: - | AP10: 0 | AQ10: 0 | AR10: =IF($AO$1="X",IFERROR(VLOOKUP($D10,Tabelle_Nutzung,Nutzungen!$G$75,FALSE),no_value),$AR$1) -> - | AS10: =IF($AO$1="X",IFERROR(VLOOKUP($D10,Tabelle_Nutzung,Nutzungen!$I$75,FALSE),no_value),$AS$1) -> - | AT10: =IF($AO$1="X",IFERROR(VLOOKUP($D10,Tabelle_Nutzung,Nutzungen!$J$75,FALSE),no_value),$AT$1) -> - | AU10: =IF($AO$1="X",IFERROR(VLOOKUP(D10,Tabelle_Nutzung,Nutzungen!$R$75,FALSE),no_value),$AU$1) -> - | AV10: =IF(ISNUMBER(AU10),IF(AND(AU10>=0.9,D10<>Nutzungen!$B$93),1-AU10*0.95,1-AU10*0.5),no_value) -> - | AW10: - | AX10: - | AY10: - | AZ10: - | BA10: - | BB10: - | BC10: - | BD10: - | BE10: - | BF10: - | BG10: - | BH10: - | BI10: - | BJ10: 0 | BK10: - | BL10: - | BM10: =IFERROR(IF(AND(AG10=ja,W10=pass,AB10=pass),infla_Bel*MAX(MIN(K_day_inv_max,AP10*K_day_inv_m+K_day_inv_b),K_day_inv_min),no_valu),no_value) -> - | BN10: =IFERROR(IF(AND(AJ10=ja,W10=pass,AB10=pass),infla_Bel*MAX(MIN(K_pr_inv_max,AP10*K_pr_inv_m+K_pr_inv_b),K_pr_inv_min),no_valu),no_value) -> - | BO10: - | BP10: - | BQ10: - | BR10: - | BS10: - | BT10: - | BU10: - | BV10: - | BW10: - | BX10: - | BZ10: =IF(I10=ja,VLOOKUP(D10,Tabelle_Nutzung,Nutzungen!$AA$75,FALSE),no_value) -> - | CB10: - | CE10: - | CG10: =IF($AO$1="X",IFERROR(VLOOKUP($D10,Tabelle_Nutzung,Nutzungen!$L$75,FALSE),no_value),$CG$1) -> - | CH10: =IFERROR(VLOOKUP(D10,Tabelle_Nutzung,Nutzungen!$BN$75,FALSE),no_value) -> - | CI10: - | CJ10: - | CK10: =IF($AO$1="X",IFERROR(VLOOKUP($D10,Tabelle_Nutzung,Nutzungen!$K$75,FALSE),no_value),$CK$1) -> - | CL10: - | CM10: =IFERROR(IF(VLOOKUP($D10,Tabelle_Nutzung,Nutzungen!$AK$75,FALSE)>15,ja,nein),no_value) -> - | CN10: - | CO10: =IFERROR(IF(AND(CH10=1,CJ10>0),DATA_RLT!$AA$5,no_value),no_value) -> - | CP10: =IFERROR(IF(AND(CH10=1,CJ10>0),DATA_RLT!$AA$12,no_value),no_value) -> - | CQ10: - | CR10: - | CS10: - | CT10: - | CU10: - | CV10: - | CW10: - | CX10: - | CY10: 0 | CZ10: - | DA10: - | DB10: - | DC10: 0 | DD10: - | DE10: - | DF10: 0 | DG10: - | DH10: 0 | DI10: - | DJ10: - | DK10: -
B11: 7 | C11: A07 | J11: - | L11: =IF(H11=ja,IFERROR(VLOOKUP(D11,Tabelle_Nutzung,Nutzungen!$S$75,FALSE),no_value),no_value) -> - | M11: =VLOOKUP($D11,Tabelle_Nutzung,Nutzungen!$BC$75,FALSE) ->  | N11: =VLOOKUP($D11,Tabelle_Nutzung,Nutzungen!$BB$75,FALSE) ->  | O11: =VLOOKUP($D11,Tabelle_Nutzung,Nutzungen!$BA$75,FALSE) ->  | P11: =IFERROR(VLOOKUP(D11,Tabelle_Nutzung,Nutzungen!$P$75,FALSE),no_value) -> - | Q11: - | R11: - | S11: - | U11: =IF(H11=ja,IFERROR(VLOOKUP(D11,Tabelle_Nutzung,Nutzungen!$O$75,FALSE),no_value),no_value) -> - | V11: - | Y11: - | Z11: - | AA11: - | AD11: - | AF11: =IF($AO$1="X",IFERROR(VLOOKUP(D11,Tabelle_Nutzung,Nutzungen!$BM$75,FALSE),no_value),$AX$1) -> - | AG11: ja | AH11: =IFERROR(IF(AND(AG11=ja,W11=pass,AB11=pass,AF11>=f_day_min,AF11<>""),MAX(MIN(K_day_sub_max,AP11*K_day_sub_m+K_day_sub_b),K_day_sub_min),no_valu),no_value) -> - | AJ11: ja | AK11: =IFERROR(IF(AND(AJ11=ja,W11=pass,AB11=pass),MAX(MIN(K_pr_sub_max,AP11*K_pr_sub_m+K_pr_sub_b),K_pr_sub_min),no_valu),no_value) -> - | AM11: - | AO11: - | AP11: 0 | AQ11: 0 | AR11: =IF($AO$1="X",IFERROR(VLOOKUP($D11,Tabelle_Nutzung,Nutzungen!$G$75,FALSE),no_value),$AR$1) -> - | AS11: =IF($AO$1="X",IFERROR(VLOOKUP($D11,Tabelle_Nutzung,Nutzungen!$I$75,FALSE),no_value),$AS$1) -> - | AT11: =IF($AO$1="X",IFERROR(VLOOKUP($D11,Tabelle_Nutzung,Nutzungen!$J$75,FALSE),no_value),$AT$1) -> - | AU11: =IF($AO$1="X",IFERROR(VLOOKUP(D11,Tabelle_Nutzung,Nutzungen!$R$75,FALSE),no_value),$AU$1) -> - | AV11: =IF(ISNUMBER(AU11),IF(AND(AU11>=0.9,D11<>Nutzungen!$B$93),1-AU11*0.95,1-AU11*0.5),no_value) -> - | AW11: - | AX11: - | AY11: - | AZ11: - | BA11: - | BB11: - | BC11: - | BD11: - | BE11: - | BF11: - | BG11: - | BH11: - | BI11: - | BJ11: 0 | BK11: - | BL11: - | BM11: =IFERROR(IF(AND(AG11=ja,W11=pass,AB11=pass),infla_Bel*MAX(MIN(K_day_inv_max,AP11*K_day_inv_m+K_day_inv_b),K_day_inv_min),no_valu),no_value) -> - | BN11: =IFERROR(IF(AND(AJ11=ja,W11=pass,AB11=pass),infla_Bel*MAX(MIN(K_pr_inv_max,AP11*K_pr_inv_m+K_pr_inv_b),K_pr_inv_min),no_valu),no_value) -> - | BO11: - | BP11: - | BQ11: - | BR11: - | BS11: - | BT11: - | BU11: - | BV11: - | BW11: - | BX11: - | BZ11: =IF(I11=ja,VLOOKUP(D11,Tabelle_Nutzung,Nutzungen!$AA$75,FALSE),no_value) -> - | CB11: - | CE11: - | CG11: =IF($AO$1="X",IFERROR(VLOOKUP($D11,Tabelle_Nutzung,Nutzungen!$L$75,FALSE),no_value),$CG$1) -> - | CH11: =IFERROR(VLOOKUP(D11,Tabelle_Nutzung,Nutzungen!$BN$75,FALSE),no_value) -> - | CI11: - | CJ11: - | CK11: =IF($AO$1="X",IFERROR(VLOOKUP($D11,Tabelle_Nutzung,Nutzungen!$K$75,FALSE),no_value),$CK$1) -> - | CL11: - | CM11: =IFERROR(IF(VLOOKUP($D11,Tabelle_Nutzung,Nutzungen!$AK$75,FALSE)>15,ja,nein),no_value) -> - | CN11: - | CO11: =IFERROR(IF(AND(CH11=1,CJ11>0),DATA_RLT!$AA$5,no_value),no_value) -> - | CP11: =IFERROR(IF(AND(CH11=1,CJ11>0),DATA_RLT!$AA$12,no_value),no_value) -> - | CQ11: - | CR11: - | CS11: - | CT11: - | CU11: - | CV11: - | CW11: - | CX11: - | CY11: 0 | CZ11: - | DA11: - | DB11: - | DC11: 0 | DD11: - | DE11: - | DF11: 0 | DG11: - | DH11: 0 | DI11: - | DJ11: - | DK11: -
B12: 8 | C12: A08 | J12: - | L12: =IF(H12=ja,IFERROR(VLOOKUP(D12,Tabelle_Nutzung,Nutzungen!$S$75,FALSE),no_value),no_value) -> - | M12: =VLOOKUP($D12,Tabelle_Nutzung,Nutzungen!$BC$75,FALSE) ->  | N12: =VLOOKUP($D12,Tabelle_Nutzung,Nutzungen!$BB$75,FALSE) ->  | O12: =VLOOKUP($D12,Tabelle_Nutzung,Nutzungen!$BA$75,FALSE) ->  | P12: =IFERROR(VLOOKUP(D12,Tabelle_Nutzung,Nutzungen!$P$75,FALSE),no_value) -> - | Q12: - | R12: - | S12: - | U12: =IF(H12=ja,IFERROR(VLOOKUP(D12,Tabelle_Nutzung,Nutzungen!$O$75,FALSE),no_value),no_value) -> - | V12: - | Y12: - | Z12: - | AA12: - | AD12: - | AF12: =IF($AO$1="X",IFERROR(VLOOKUP(D12,Tabelle_Nutzung,Nutzungen!$BM$75,FALSE),no_value),$AX$1) -> - | AG12: ja | AH12: =IFERROR(IF(AND(AG12=ja,W12=pass,AB12=pass,AF12>=f_day_min,AF12<>""),MAX(MIN(K_day_sub_max,AP12*K_day_sub_m+K_day_sub_b),K_day_sub_min),no_valu),no_value) -> - | AJ12: ja | AK12: =IFERROR(IF(AND(AJ12=ja,W12=pass,AB12=pass),MAX(MIN(K_pr_sub_max,AP12*K_pr_sub_m+K_pr_sub_b),K_pr_sub_min),no_valu),no_value) -> - | AM12: - | AO12: - | AP12: 0 | AQ12: 0 | AR12: =IF($AO$1="X",IFERROR(VLOOKUP($D12,Tabelle_Nutzung,Nutzungen!$G$75,FALSE),no_value),$AR$1) -> - | AS12: =IF($AO$1="X",IFERROR(VLOOKUP($D12,Tabelle_Nutzung,Nutzungen!$I$75,FALSE),no_value),$AS$1) -> - | AT12: =IF($AO$1="X",IFERROR(VLOOKUP($D12,Tabelle_Nutzung,Nutzungen!$J$75,FALSE),no_value),$AT$1) -> - | AU12: =IF($AO$1="X",IFERROR(VLOOKUP(D12,Tabelle_Nutzung,Nutzungen!$R$75,FALSE),no_value),$AU$1) -> - | AV12: =IF(ISNUMBER(AU12),IF(AND(AU12>=0.9,D12<>Nutzungen!$B$93),1-AU12*0.95,1-AU12*0.5),no_value) -> - | AW12: - | AX12: - | AY12: - | AZ12: - | BA12: - | BB12: - | BC12: - | BD12: - | BE12: - | BF12: - | BG12: - | BH12: - | BI12: - | BJ12: 0 | BK12: - | BL12: - | BM12: =IFERROR(IF(AND(AG12=ja,W12=pass,AB12=pass),infla_Bel*MAX(MIN(K_day_inv_max,AP12*K_day_inv_m+K_day_inv_b),K_day_inv_min),no_valu),no_value) -> - | BN12: =IFERROR(IF(AND(AJ12=ja,W12=pass,AB12=pass),infla_Bel*MAX(MIN(K_pr_inv_max,AP12*K_pr_inv_m+K_pr_inv_b),K_pr_inv_min),no_valu),no_value) -> - | BO12: - | BP12: - | BQ12: - | BR12: - | BS12: - | BT12: - | BU12: - | BV12: - | BW12: - | BX12: - | BZ12: =IF(I12=ja,VLOOKUP(D12,Tabelle_Nutzung,Nutzungen!$AA$75,FALSE),no_value) -> - | CB12: - | CE12: - | CG12: =IF($AO$1="X",IFERROR(VLOOKUP($D12,Tabelle_Nutzung,Nutzungen!$L$75,FALSE),no_value),$CG$1) -> - | CH12: =IFERROR(VLOOKUP(D12,Tabelle_Nutzung,Nutzungen!$BN$75,FALSE),no_value) -> - | CI12: - | CJ12: - | CK12: =IF($AO$1="X",IFERROR(VLOOKUP($D12,Tabelle_Nutzung,Nutzungen!$K$75,FALSE),no_value),$CK$1) -> - | CL12: - | CM12: =IFERROR(IF(VLOOKUP($D12,Tabelle_Nutzung,Nutzungen!$AK$75,FALSE)>15,ja,nein),no_value) -> - | CN12: - | CO12: =IFERROR(IF(AND(CH12=1,CJ12>0),DATA_RLT!$AA$5,no_value),no_value) -> - | CP12: =IFERROR(IF(AND(CH12=1,CJ12>0),DATA_RLT!$AA$12,no_value),no_value) -> - | CQ12: - | CR12: - | CS12: - | CT12: - | CU12: - | CV12: - | CW12: - | CX12: - | CY12: 0 | CZ12: - | DA12: - | DB12: - | DC12: 0 | DD12: - | DE12: - | DF12: 0 | DG12: - | DH12: 0 | DI12: - | DJ12: - | DK12: -
B13: 9 | C13: A09 | J13: - | L13: =IF(H13=ja,IFERROR(VLOOKUP(D13,Tabelle_Nutzung,Nutzungen!$S$75,FALSE),no_value),no_value) -> - | M13: =VLOOKUP($D13,Tabelle_Nutzung,Nutzungen!$BC$75,FALSE) ->  | N13: =VLOOKUP($D13,Tabelle_Nutzung,Nutzungen!$BB$75,FALSE) ->  | O13: =VLOOKUP($D13,Tabelle_Nutzung,Nutzungen!$BA$75,FALSE) ->  | P13: =IFERROR(VLOOKUP(D13,Tabelle_Nutzung,Nutzungen!$P$75,FALSE),no_value) -> - | Q13: - | R13: - | S13: - | U13: =IF(H13=ja,IFERROR(VLOOKUP(D13,Tabelle_Nutzung,Nutzungen!$O$75,FALSE),no_value),no_value) -> - | V13: - | Y13: - | Z13: - | AA13: - | AD13: - | AF13: =IF($AO$1="X",IFERROR(VLOOKUP(D13,Tabelle_Nutzung,Nutzungen!$BM$75,FALSE),no_value),$AX$1) -> - | AG13: ja | AH13: =IFERROR(IF(AND(AG13=ja,W13=pass,AB13=pass,AF13>=f_day_min,AF13<>""),MAX(MIN(K_day_sub_max,AP13*K_day_sub_m+K_day_sub_b),K_day_sub_min),no_valu),no_value) -> - | AJ13: ja | AK13: =IFERROR(IF(AND(AJ13=ja,W13=pass,AB13=pass),MAX(MIN(K_pr_sub_max,AP13*K_pr_sub_m+K_pr_sub_b),K_pr_sub_min),no_valu),no_value) -> - | AM13: - | AO13: - | AP13: 0 | AQ13: 0 | AR13: =IF($AO$1="X",IFERROR(VLOOKUP($D13,Tabelle_Nutzung,Nutzungen!$G$75,FALSE),no_value),$AR$1) -> - | AS13: =IF($AO$1="X",IFERROR(VLOOKUP($D13,Tabelle_Nutzung,Nutzungen!$I$75,FALSE),no_value),$AS$1) -> - | AT13: =IF($AO$1="X",IFERROR(VLOOKUP($D13,Tabelle_Nutzung,Nutzungen!$J$75,FALSE),no_value),$AT$1) -> - | AU13: =IF($AO$1="X",IFERROR(VLOOKUP(D13,Tabelle_Nutzung,Nutzungen!$R$75,FALSE),no_value),$AU$1) -> - | AV13: =IF(ISNUMBER(AU13),IF(AND(AU13>=0.9,D13<>Nutzungen!$B$93),1-AU13*0.95,1-AU13*0.5),no_value) -> - | AW13: - | AX13: - | AY13: - | AZ13: - | BA13: - | BB13: - | BC13: - | BD13: - | BE13: - | BF13: - | BG13: - | BH13: - | BI13: - | BJ13: 0 | BK13: - | BL13: - | BM13: =IFERROR(IF(AND(AG13=ja,W13=pass,AB13=pass),infla_Bel*MAX(MIN(K_day_inv_max,AP13*K_day_inv_m+K_day_inv_b),K_day_inv_min),no_valu),no_value) -> - | BN13: =IFERROR(IF(AND(AJ13=ja,W13=pass,AB13=pass),infla_Bel*MAX(MIN(K_pr_inv_max,AP13*K_pr_inv_m+K_pr_inv_b),K_pr_inv_min),no_valu),no_value) -> - | BO13: - | BP13: - | BQ13: - | BR13: - | BS13: - | BT13: - | BU13: - | BV13: - | BW13: - | BX13: - | BZ13: =IF(I13=ja,VLOOKUP(D13,Tabelle_Nutzung,Nutzungen!$AA$75,FALSE),no_value) -> - | CB13: - | CE13: - | CG13: =IF($AO$1="X",IFERROR(VLOOKUP($D13,Tabelle_Nutzung,Nutzungen!$L$75,FALSE),no_value),$CG$1) -> - | CH13: =IFERROR(VLOOKUP(D13,Tabelle_Nutzung,Nutzungen!$BN$75,FALSE),no_value) -> - | CI13: - | CJ13: - | CK13: =IF($AO$1="X",IFERROR(VLOOKUP($D13,Tabelle_Nutzung,Nutzungen!$K$75,FALSE),no_value),$CK$1) -> - | CL13: - | CM13: =IFERROR(IF(VLOOKUP($D13,Tabelle_Nutzung,Nutzungen!$AK$75,FALSE)>15,ja,nein),no_value) -> - | CN13: - | CO13: =IFERROR(IF(AND(CH13=1,CJ13>0),DATA_RLT!$AA$5,no_value),no_value) -> - | CP13: =IFERROR(IF(AND(CH13=1,CJ13>0),DATA_RLT!$AA$12,no_value),no_value) -> - | CQ13: - | CR13: - | CS13: - | CT13: - | CU13: - | CV13: - | CW13: - | CX13: - | CY13: 0 | CZ13: - | DA13: - | DB13: - | DC13: 0 | DD13: - | DE13: - | DF13: 0 | DG13: - | DH13: 0 | DI13: - | DJ13: - | DK13: -
B14: 10 | C14: A10 | J14: - | L14: =IF(H14=ja,IFERROR(VLOOKUP(D14,Tabelle_Nutzung,Nutzungen!$S$75,FALSE),no_value),no_value) -> - | M14: =VLOOKUP($D14,Tabelle_Nutzung,Nutzungen!$BC$75,FALSE) ->  | N14: =VLOOKUP($D14,Tabelle_Nutzung,Nutzungen!$BB$75,FALSE) ->  | O14: =VLOOKUP($D14,Tabelle_Nutzung,Nutzungen!$BA$75,FALSE) ->  | P14: =IFERROR(VLOOKUP(D14,Tabelle_Nutzung,Nutzungen!$P$75,FALSE),no_value) -> - | Q14: - | R14: - | S14: - | U14: =IF(H14=ja,IFERROR(VLOOKUP(D14,Tabelle_Nutzung,Nutzungen!$O$75,FALSE),no_value),no_value) -> - | V14: - | Y14: - | Z14: - | AA14: - | AD14: - | AF14: =IF($AO$1="X",IFERROR(VLOOKUP(D14,Tabelle_Nutzung,Nutzungen!$BM$75,FALSE),no_value),$AX$1) -> - | AG14: ja | AH14: =IFERROR(IF(AND(AG14=ja,W14=pass,AB14=pass,AF14>=f_day_min,AF14<>""),MAX(MIN(K_day_sub_max,AP14*K_day_sub_m+K_day_sub_b),K_day_sub_min),no_valu),no_value) -> - | AJ14: ja | AK14: =IFERROR(IF(AND(AJ14=ja,W14=pass,AB14=pass),MAX(MIN(K_pr_sub_max,AP14*K_pr_sub_m+K_pr_sub_b),K_pr_sub_min),no_valu),no_value) -> - | AM14: - | AO14: - | AP14: 0 | AQ14: 0 | AR14: =IF($AO$1="X",IFERROR(VLOOKUP($D14,Tabelle_Nutzung,Nutzungen!$G$75,FALSE),no_value),$AR$1) -> - | AS14: =IF($AO$1="X",IFERROR(VLOOKUP($D14,Tabelle_Nutzung,Nutzungen!$I$75,FALSE),no_value),$AS$1) -> - | AT14: =IF($AO$1="X",IFERROR(VLOOKUP($D14,Tabelle_Nutzung,Nutzungen!$J$75,FALSE),no_value),$AT$1) -> - | AU14: =IF($AO$1="X",IFERROR(VLOOKUP(D14,Tabelle_Nutzung,Nutzungen!$R$75,FALSE),no_value),$AU$1) -> - | AV14: =IF(ISNUMBER(AU14),IF(AND(AU14>=0.9,D14<>Nutzungen!$B$93),1-AU14*0.95,1-AU14*0.5),no_value) -> - | AW14: - | AX14: - | AY14: - | AZ14: - | BA14: - | BB14: - | BC14: - | BD14: - | BE14: - | BF14: - | BG14: - | BH14: - | BI14: - | BJ14: 0 | BK14: - | BL14: - | BM14: =IFERROR(IF(AND(AG14=ja,W14=pass,AB14=pass),infla_Bel*MAX(MIN(K_day_inv_max,AP14*K_day_inv_m+K_day_inv_b),K_day_inv_min),no_valu),no_value) -> - | BN14: =IFERROR(IF(AND(AJ14=ja,W14=pass,AB14=pass),infla_Bel*MAX(MIN(K_pr_inv_max,AP14*K_pr_inv_m+K_pr_inv_b),K_pr_inv_min),no_valu),no_value) -> - | BO14: - | BP14: - | BQ14: - | BR14: - | BS14: - | BT14: - | BU14: - | BV14: - | BW14: - | BX14: - | BZ14: =IF(I14=ja,VLOOKUP(D14,Tabelle_Nutzung,Nutzungen!$AA$75,FALSE),no_value) -> - | CB14: - | CE14: - | CG14: =IF($AO$1="X",IFERROR(VLOOKUP($D14,Tabelle_Nutzung,Nutzungen!$L$75,FALSE),no_value),$CG$1) -> - | CH14: =IFERROR(VLOOKUP(D14,Tabelle_Nutzung,Nutzungen!$BN$75,FALSE),no_value) -> - | CI14: - | CJ14: - | CK14: =IF($AO$1="X",IFERROR(VLOOKUP($D14,Tabelle_Nutzung,Nutzungen!$K$75,FALSE),no_value),$CK$1) -> - | CL14: - | CM14: =IFERROR(IF(VLOOKUP($D14,Tabelle_Nutzung,Nutzungen!$AK$75,FALSE)>15,ja,nein),no_value) -> - | CN14: - | CO14: =IFERROR(IF(AND(CH14=1,CJ14>0),DATA_RLT!$AA$5,no_value),no_value) -> - | CP14: =IFERROR(IF(AND(CH14=1,CJ14>0),DATA_RLT!$AA$12,no_value),no_value) -> - | CQ14: - | CR14: - | CS14: - | CT14: - | CU14: - | CV14: - | CW14: - | CX14: - | CY14: 0 | CZ14: - | DA14: - | DB14: - | DC14: 0 | DD14: - | DE14: - | DF14: 0 | DG14: - | DH14: 0 | DI14: - | DJ14: - | DK14: -
B15: 11 | C15: A11 | J15: - | L15: =IF(H15=ja,IFERROR(VLOOKUP(D15,Tabelle_Nutzung,Nutzungen!$S$75,FALSE),no_value),no_value) -> - | M15: =VLOOKUP($D15,Tabelle_Nutzung,Nutzungen!$BC$75,FALSE) ->  | N15: =VLOOKUP($D15,Tabelle_Nutzung,Nutzungen!$BB$75,FALSE) ->  | O15: =VLOOKUP($D15,Tabelle_Nutzung,Nutzungen!$BA$75,FALSE) ->  | P15: =IFERROR(VLOOKUP(D15,Tabelle_Nutzung,Nutzungen!$P$75,FALSE),no_value) -> - | Q15: - | R15: - | S15: - | U15: =IF(H15=ja,IFERROR(VLOOKUP(D15,Tabelle_Nutzung,Nutzungen!$O$75,FALSE),no_value),no_value) -> - | V15: - | Y15: - | Z15: - | AA15: - | AD15: - | AF15: =IF($AO$1="X",IFERROR(VLOOKUP(D15,Tabelle_Nutzung,Nutzungen!$BM$75,FALSE),no_value),$AX$1) -> - | AG15: ja | AH15: =IFERROR(IF(AND(AG15=ja,W15=pass,AB15=pass,AF15>=f_day_min,AF15<>""),MAX(MIN(K_day_sub_max,AP15*K_day_sub_m+K_day_sub_b),K_day_sub_min),no_valu),no_value) -> - | AJ15: ja | AK15: =IFERROR(IF(AND(AJ15=ja,W15=pass,AB15=pass),MAX(MIN(K_pr_sub_max,AP15*K_pr_sub_m+K_pr_sub_b),K_pr_sub_min),no_valu),no_value) -> - | AM15: - | AO15: - | AP15: 0 | AQ15: 0 | AR15: =IF($AO$1="X",IFERROR(VLOOKUP($D15,Tabelle_Nutzung,Nutzungen!$G$75,FALSE),no_value),$AR$1) -> - | AS15: =IF($AO$1="X",IFERROR(VLOOKUP($D15,Tabelle_Nutzung,Nutzungen!$I$75,FALSE),no_value),$AS$1) -> - | AT15: =IF($AO$1="X",IFERROR(VLOOKUP($D15,Tabelle_Nutzung,Nutzungen!$J$75,FALSE),no_value),$AT$1) -> - | AU15: =IF($AO$1="X",IFERROR(VLOOKUP(D15,Tabelle_Nutzung,Nutzungen!$R$75,FALSE),no_value),$AU$1) -> - | AV15: =IF(ISNUMBER(AU15),IF(AND(AU15>=0.9,D15<>Nutzungen!$B$93),1-AU15*0.95,1-AU15*0.5),no_value) -> - | AW15: - | AX15: - | AY15: - | AZ15: - | BA15: - | BB15: - | BC15: - | BD15: - | BE15: - | BF15: - | BG15: - | BH15: - | BI15: - | BJ15: 0 | BK15: - | BL15: - | BM15: =IFERROR(IF(AND(AG15=ja,W15=pass,AB15=pass),infla_Bel*MAX(MIN(K_day_inv_max,AP15*K_day_inv_m+K_day_inv_b),K_day_inv_min),no_valu),no_value) -> - | BN15: =IFERROR(IF(AND(AJ15=ja,W15=pass,AB15=pass),infla_Bel*MAX(MIN(K_pr_inv_max,AP15*K_pr_inv_m+K_pr_inv_b),K_pr_inv_min),no_valu),no_value) -> - | BO15: - | BP15: - | BQ15: - | BR15: - | BS15: - | BT15: - | BU15: - | BV15: - | BW15: - | BX15: - | BZ15: =IF(I15=ja,VLOOKUP(D15,Tabelle_Nutzung,Nutzungen!$AA$75,FALSE),no_value) -> - | CB15: - | CE15: - | CG15: =IF($AO$1="X",IFERROR(VLOOKUP($D15,Tabelle_Nutzung,Nutzungen!$L$75,FALSE),no_value),$CG$1) -> - | CH15: =IFERROR(VLOOKUP(D15,Tabelle_Nutzung,Nutzungen!$BN$75,FALSE),no_value) -> - | CI15: - | CJ15: - | CK15: =IF($AO$1="X",IFERROR(VLOOKUP($D15,Tabelle_Nutzung,Nutzungen!$K$75,FALSE),no_value),$CK$1) -> - | CL15: - | CM15: =IFERROR(IF(VLOOKUP($D15,Tabelle_Nutzung,Nutzungen!$AK$75,FALSE)>15,ja,nein),no_value) -> - | CN15: - | CO15: =IFERROR(IF(AND(CH15=1,CJ15>0),DATA_RLT!$AA$5,no_value),no_value) -> - | CP15: =IFERROR(IF(AND(CH15=1,CJ15>0),DATA_RLT!$AA$12,no_value),no_value) -> - | CQ15: - | CR15: - | CS15: - | CT15: - | CU15: - | CV15: - | CW15: - | CX15: - | CY15: 0 | CZ15: - | DA15: - | DB15: - | DC15: 0 | DD15: - | DE15: - | DF15: 0 | DG15: - | DH15: 0 | DI15: - | DJ15: - | DK15: -
B16: 12 | C16: A12 | J16: - | L16: =IF(H16=ja,IFERROR(VLOOKUP(D16,Tabelle_Nutzung,Nutzungen!$S$75,FALSE),no_value),no_value) -> - | M16: =VLOOKUP($D16,Tabelle_Nutzung,Nutzungen!$BC$75,FALSE) ->  | N16: =VLOOKUP($D16,Tabelle_Nutzung,Nutzungen!$BB$75,FALSE) ->  | O16: =VLOOKUP($D16,Tabelle_Nutzung,Nutzungen!$BA$75,FALSE) ->  | P16: =IFERROR(VLOOKUP(D16,Tabelle_Nutzung,Nutzungen!$P$75,FALSE),no_value) -> - | Q16: - | R16: - | S16: - | U16: =IF(H16=ja,IFERROR(VLOOKUP(D16,Tabelle_Nutzung,Nutzungen!$O$75,FALSE),no_value),no_value) -> - | V16: - | Y16: - | Z16: - | AA16: - | AD16: - | AF16: =IF($AO$1="X",IFERROR(VLOOKUP(D16,Tabelle_Nutzung,Nutzungen!$BM$75,FALSE),no_value),$AX$1) -> - | AG16: ja | AH16: =IFERROR(IF(AND(AG16=ja,W16=pass,AB16=pass,AF16>=f_day_min,AF16<>""),MAX(MIN(K_day_sub_max,AP16*K_day_sub_m+K_day_sub_b),K_day_sub_min),no_valu),no_value) -> - | AJ16: ja | AK16: =IFERROR(IF(AND(AJ16=ja,W16=pass,AB16=pass),MAX(MIN(K_pr_sub_max,AP16*K_pr_sub_m+K_pr_sub_b),K_pr_sub_min),no_valu),no_value) -> - | AM16: - | AO16: - | AP16: 0 | AQ16: 0 | AR16: =IF($AO$1="X",IFERROR(VLOOKUP($D16,Tabelle_Nutzung,Nutzungen!$G$75,FALSE),no_value),$AR$1) -> - | AS16: =IF($AO$1="X",IFERROR(VLOOKUP($D16,Tabelle_Nutzung,Nutzungen!$I$75,FALSE),no_value),$AS$1) -> - | AT16: =IF($AO$1="X",IFERROR(VLOOKUP($D16,Tabelle_Nutzung,Nutzungen!$J$75,FALSE),no_value),$AT$1) -> - | AU16: =IF($AO$1="X",IFERROR(VLOOKUP(D16,Tabelle_Nutzung,Nutzungen!$R$75,FALSE),no_value),$AU$1) -> - | AV16: =IF(ISNUMBER(AU16),IF(AND(AU16>=0.9,D16<>Nutzungen!$B$93),1-AU16*0.95,1-AU16*0.5),no_value) -> - | AW16: - | AX16: - | AY16: - | AZ16: - | BA16: - | BB16: - | BC16: - | BD16: - | BE16: - | BF16: - | BG16: - | BH16: - | BI16: - | BJ16: 0 | BK16: - | BL16: - | BM16: =IFERROR(IF(AND(AG16=ja,W16=pass,AB16=pass),infla_Bel*MAX(MIN(K_day_inv_max,AP16*K_day_inv_m+K_day_inv_b),K_day_inv_min),no_valu),no_value) -> - | BN16: =IFERROR(IF(AND(AJ16=ja,W16=pass,AB16=pass),infla_Bel*MAX(MIN(K_pr_inv_max,AP16*K_pr_inv_m+K_pr_inv_b),K_pr_inv_min),no_valu),no_value) -> - | BO16: - | BP16: - | BQ16: - | BR16: - | BS16: - | BT16: - | BU16: - | BV16: - | BW16: - | BX16: - | BZ16: =IF(I16=ja,VLOOKUP(D16,Tabelle_Nutzung,Nutzungen!$AA$75,FALSE),no_value) -> - | CB16: - | CE16: - | CG16: =IF($AO$1="X",IFERROR(VLOOKUP($D16,Tabelle_Nutzung,Nutzungen!$L$75,FALSE),no_value),$CG$1) -> - | CH16: =IFERROR(VLOOKUP(D16,Tabelle_Nutzung,Nutzungen!$BN$75,FALSE),no_value) -> - | CI16: - | CJ16: - | CK16: =IF($AO$1="X",IFERROR(VLOOKUP($D16,Tabelle_Nutzung,Nutzungen!$K$75,FALSE),no_value),$CK$1) -> - | CL16: - | CM16: =IFERROR(IF(VLOOKUP($D16,Tabelle_Nutzung,Nutzungen!$AK$75,FALSE)>15,ja,nein),no_value) -> - | CN16: - | CO16: =IFERROR(IF(AND(CH16=1,CJ16>0),DATA_RLT!$AA$5,no_value),no_value) -> - | CP16: =IFERROR(IF(AND(CH16=1,CJ16>0),DATA_RLT!$AA$12,no_value),no_value) -> - | CQ16: - | CR16: - | CS16: - | CT16: - | CU16: - | CV16: - | CW16: - | CX16: - | CY16: 0 | CZ16: - | DA16: - | DB16: - | DC16: 0 | DD16: - | DE16: - | DF16: 0 | DG16: - | DH16: 0 | DI16: - | DJ16: - | DK16: -
B17: 13 | C17: A13 | J17: - | L17: =IF(H17=ja,IFERROR(VLOOKUP(D17,Tabelle_Nutzung,Nutzungen!$S$75,FALSE),no_value),no_value) -> - | M17: =VLOOKUP($D17,Tabelle_Nutzung,Nutzungen!$BC$75,FALSE) ->  | N17: =VLOOKUP($D17,Tabelle_Nutzung,Nutzungen!$BB$75,FALSE) ->  | O17: =VLOOKUP($D17,Tabelle_Nutzung,Nutzungen!$BA$75,FALSE) ->  | P17: =IFERROR(VLOOKUP(D17,Tabelle_Nutzung,Nutzungen!$P$75,FALSE),no_value) -> - | Q17: - | R17: - | S17: - | U17: =IF(H17=ja,IFERROR(VLOOKUP(D17,Tabelle_Nutzung,Nutzungen!$O$75,FALSE),no_value),no_value) -> - | V17: - | Y17: - | Z17: - | AA17: - | AD17: - | AF17: =IF($AO$1="X",IFERROR(VLOOKUP(D17,Tabelle_Nutzung,Nutzungen!$BM$75,FALSE),no_value),$AX$1) -> - | AG17: ja | AH17: =IFERROR(IF(AND(AG17=ja,W17=pass,AB17=pass,AF17>=f_day_min,AF17<>""),MAX(MIN(K_day_sub_max,AP17*K_day_sub_m+K_day_sub_b),K_day_sub_min),no_valu),no_value) -> - | AJ17: ja | AK17: =IFERROR(IF(AND(AJ17=ja,W17=pass,AB17=pass),MAX(MIN(K_pr_sub_max,AP17*K_pr_sub_m+K_pr_sub_b),K_pr_sub_min),no_valu),no_value) -> - | AM17: - | AO17: - | AP17: 0 | AQ17: 0 | AR17: =IF($AO$1="X",IFERROR(VLOOKUP($D17,Tabelle_Nutzung,Nutzungen!$G$75,FALSE),no_value),$AR$1) -> - | AS17: =IF($AO$1="X",IFERROR(VLOOKUP($D17,Tabelle_Nutzung,Nutzungen!$I$75,FALSE),no_value),$AS$1) -> - | AT17: =IF($AO$1="X",IFERROR(VLOOKUP($D17,Tabelle_Nutzung,Nutzungen!$J$75,FALSE),no_value),$AT$1) -> - | AU17: =IF($AO$1="X",IFERROR(VLOOKUP(D17,Tabelle_Nutzung,Nutzungen!$R$75,FALSE),no_value),$AU$1) -> - | AV17: =IF(ISNUMBER(AU17),IF(AND(AU17>=0.9,D17<>Nutzungen!$B$93),1-AU17*0.95,1-AU17*0.5),no_value) -> - | AW17: - | AX17: - | AY17: =IF(ISNUMBER($AX17),IF($AF17>=$AX17,AY$4,0.5*(11-AY$4)*COS(PI()*$AF17/$AX17)+0.5*(11+AY$4)),no_value) -> - | AZ17: =IF(ISNUMBER($AX17),IF($AF17>=$AX17,AZ$4,0.5*(11-AZ$4)*COS(PI()*$AF17/$AX17)+0.5*(11+AZ$4)),no_value) -> - | BA17: - | BB17: =IFERROR(AW17*($AY17*$AS17/$AR17/11+$AT17/$AR17)*$AR17,no_value) -> - | BC17: =IFERROR(AV17*($AZ17*$AS17/$AR17/11+$AT17/$AR17)*$AR17,no_value) -> - | BD17: =IFERROR(AW17*($AZ17*$AS17/$AR17/11+$AT17/$AR17)*$AR17,no_value) -> - | BE17: - | BF17: - | BG17: - | BH17: - | BI17: - | BJ17: 0 | BK17: - | BL17: - | BM17: =IFERROR(IF(AND(AG17=ja,W17=pass,AB17=pass),infla_Bel*MAX(MIN(K_day_inv_max,AP17*K_day_inv_m+K_day_inv_b),K_day_inv_min),no_valu),no_value) -> - | BN17: =IFERROR(IF(AND(AJ17=ja,W17=pass,AB17=pass),infla_Bel*MAX(MIN(K_pr_inv_max,AP17*K_pr_inv_m+K_pr_inv_b),K_pr_inv_min),no_valu),no_value) -> - | BO17: - | BP17: - | BQ17: - | BR17: - | BS17: - | BT17: - | BU17: - | BV17: - | BW17: - | BX17: - | BZ17: =IF(I17=ja,VLOOKUP(D17,Tabelle_Nutzung,Nutzungen!$AA$75,FALSE),no_value) -> - | CB17: - | CE17: - | CG17: =IF($AO$1="X",IFERROR(VLOOKUP($D17,Tabelle_Nutzung,Nutzungen!$L$75,FALSE),no_value),$CG$1) -> - | CH17: =IFERROR(VLOOKUP(D17,Tabelle_Nutzung,Nutzungen!$BN$75,FALSE),no_value) -> - | CI17: - | CJ17: - | CK17: =IF($AO$1="X",IFERROR(VLOOKUP($D17,Tabelle_Nutzung,Nutzungen!$K$75,FALSE),no_value),$CK$1) -> - | CL17: - | CM17: =IFERROR(IF(VLOOKUP($D17,Tabelle_Nutzung,Nutzungen!$AK$75,FALSE)>15,ja,nein),no_value) -> - | CN17: - | CO17: =IFERROR(IF(AND(CH17=1,CJ17>0),DATA_RLT!$AA$5,no_value),no_value) -> - | CP17: =IFERROR(IF(AND(CH17=1,CJ17>0),DATA_RLT!$AA$12,no_value),no_value) -> - | CQ17: - | CR17: - | CS17: - | CT17: - | CU17: - | CV17: - | CW17: - | CX17: - | CY17: 0 | CZ17: - | DA17: - | DB17: - | DC17: 0 | DD17: - | DE17: - | DF17: 0 | DG17: - | DH17: 0 | DI17: - | DJ17: - | DK17: -
B18: 14 | C18: A15 | J18: - | L18: =IF(H18=ja,IFERROR(VLOOKUP(D18,Tabelle_Nutzung,Nutzungen!$S$75,FALSE),no_value),no_value) -> - | M18: =VLOOKUP($D18,Tabelle_Nutzung,Nutzungen!$BC$75,FALSE) ->  | N18: =VLOOKUP($D18,Tabelle_Nutzung,Nutzungen!$BB$75,FALSE) ->  | O18: =VLOOKUP($D18,Tabelle_Nutzung,Nutzungen!$BA$75,FALSE) ->  | P18: =IFERROR(VLOOKUP(D18,Tabelle_Nutzung,Nutzungen!$P$75,FALSE),no_value) -> - | Q18: - | R18: - | S18: - | U18: =IF(H18=ja,IFERROR(VLOOKUP(D18,Tabelle_Nutzung,Nutzungen!$O$75,FALSE),no_value),no_value) -> - | V18: - | Y18: - | Z18: - | AA18: - | AD18: - | AF18: =IF($AO$1="X",IFERROR(VLOOKUP(D18,Tabelle_Nutzung,Nutzungen!$BM$75,FALSE),no_value),$AX$1) -> - | AG18: ja | AH18: =IFERROR(IF(AND(AG18=ja,W18=pass,AB18=pass,AF18>=f_day_min,AF18<>""),MAX(MIN(K_day_sub_max,AP18*K_day_sub_m+K_day_sub_b),K_day_sub_min),no_valu),no_value) -> - | AJ18: ja | AK18: =IFERROR(IF(AND(AJ18=ja,W18=pass,AB18=pass),MAX(MIN(K_pr_sub_max,AP18*K_pr_sub_m+K_pr_sub_b),K_pr_sub_min),no_valu),no_value) -> - | AM18: - | AO18: - | AP18: 0 | AQ18: 0 | AR18: =IF($AO$1="X",IFERROR(VLOOKUP($D18,Tabelle_Nutzung,Nutzungen!$G$75,FALSE),no_value),$AR$1) -> - | AS18: =IF($AO$1="X",IFERROR(VLOOKUP($D18,Tabelle_Nutzung,Nutzungen!$I$75,FALSE),no_value),$AS$1) -> - | AT18: =IF($AO$1="X",IFERROR(VLOOKUP($D18,Tabelle_Nutzung,Nutzungen!$J$75,FALSE),no_value),$AT$1) -> - | AU18: =IF($AO$1="X",IFERROR(VLOOKUP(D18,Tabelle_Nutzung,Nutzungen!$R$75,FALSE),no_value),$AU$1) -> - | AV18: =IF(ISNUMBER(AU18),IF(AND(AU18>=0.9,D18<>Nutzungen!$B$93),1-AU18*0.95,1-AU18*0.5),no_value) -> - | AW18: - | AX18: - | AY18: - | AZ18: - | BA18: - | BB18: - | BC18: - | BD18: - | BE18: - | BF18: - | BG18: - | BH18: - | BI18: - | BJ18: 0 | BK18: - | BL18: - | BM18: =IFERROR(IF(AND(AG18=ja,W18=pass,AB18=pass),infla_Bel*MAX(MIN(K_day_inv_max,AP18*K_day_inv_m+K_day_inv_b),K_day_inv_min),no_valu),no_value) -> - | BN18: =IFERROR(IF(AND(AJ18=ja,W18=pass,AB18=pass),infla_Bel*MAX(MIN(K_pr_inv_max,AP18*K_pr_inv_m+K_pr_inv_b),K_pr_inv_min),no_valu),no_value) -> - | BO18: - | BP18: - | BQ18: - | BR18: - | BS18: - | BT18: - | BU18: - | BV18: - | BW18: - | BX18: - | BZ18: =IF(I18=ja,VLOOKUP(D18,Tabelle_Nutzung,Nutzungen!$AA$75,FALSE),no_value) -> - | CB18: - | CE18: - | CG18: =IF($AO$1="X",IFERROR(VLOOKUP($D18,Tabelle_Nutzung,Nutzungen!$L$75,FALSE),no_value),$CG$1) -> - | CH18: =IFERROR(VLOOKUP(D18,Tabelle_Nutzung,Nutzungen!$BN$75,FALSE),no_value) -> - | CI18: - | CJ18: - | CK18: =IF($AO$1="X",IFERROR(VLOOKUP($D18,Tabelle_Nutzung,Nutzungen!$K$75,FALSE),no_value),$CK$1) -> - | CL18: - | CM18: =IFERROR(IF(VLOOKUP($D18,Tabelle_Nutzung,Nutzungen!$AK$75,FALSE)>15,ja,nein),no_value) -> - | CN18: - | CO18: =IFERROR(IF(AND(CH18=1,CJ18>0),DATA_RLT!$AA$5,no_value),no_value) -> - | CP18: =IFERROR(IF(AND(CH18=1,CJ18>0),DATA_RLT!$AA$12,no_value),no_value) -> - | CQ18: - | CR18: - | CS18: - | CT18: - | CU18: - | CV18: - | CW18: - | CX18: - | CY18: 0 | CZ18: - | DA18: - | DB18: - | DC18: 0 | DD18: - | DE18: - | DF18: 0 | DG18: - | DH18: 0 | DI18: - | DJ18: - | DK18: -
B19: 15 | C19: A16 | J19: - | L19: =IF(H19=ja,IFERROR(VLOOKUP(D19,Tabelle_Nutzung,Nutzungen!$S$75,FALSE),no_value),no_value) -> - | M19: =VLOOKUP($D19,Tabelle_Nutzung,Nutzungen!$BC$75,FALSE) ->  | N19: =VLOOKUP($D19,Tabelle_Nutzung,Nutzungen!$BB$75,FALSE) ->  | O19: =VLOOKUP($D19,Tabelle_Nutzung,Nutzungen!$BA$75,FALSE) ->  | P19: =IFERROR(VLOOKUP(D19,Tabelle_Nutzung,Nutzungen!$P$75,FALSE),no_value) -> - | Q19: - | R19: - | S19: - | U19: =IF(H19=ja,IFERROR(VLOOKUP(D19,Tabelle_Nutzung,Nutzungen!$O$75,FALSE),no_value),no_value) -> - | V19: - | Y19: - | Z19: - | AA19: - | AD19: - | AF19: =IF($AO$1="X",IFERROR(VLOOKUP(D19,Tabelle_Nutzung,Nutzungen!$BM$75,FALSE),no_value),$AX$1) -> - | AG19: ja | AH19: =IFERROR(IF(AND(AG19=ja,W19=pass,AB19=pass,AF19>=f_day_min,AF19<>""),MAX(MIN(K_day_sub_max,AP19*K_day_sub_m+K_day_sub_b),K_day_sub_min),no_valu),no_value) -> - | AJ19: ja | AK19: =IFERROR(IF(AND(AJ19=ja,W19=pass,AB19=pass),MAX(MIN(K_pr_sub_max,AP19*K_pr_sub_m+K_pr_sub_b),K_pr_sub_min),no_valu),no_value) -> - | AM19: - | AO19: - | AP19: 0 | AQ19: 0 | AR19: =IF($AO$1="X",IFERROR(VLOOKUP($D19,Tabelle_Nutzung,Nutzungen!$G$75,FALSE),no_value),$AR$1) -> - | AS19: =IF($AO$1="X",IFERROR(VLOOKUP($D19,Tabelle_Nutzung,Nutzungen!$I$75,FALSE),no_value),$AS$1) -> - | AT19: =IF($AO$1="X",IFERROR(VLOOKUP($D19,Tabelle_Nutzung,Nutzungen!$J$75,FALSE),no_value),$AT$1) -> - | AU19: =IF($AO$1="X",IFERROR(VLOOKUP(D19,Tabelle_Nutzung,Nutzungen!$R$75,FALSE),no_value),$AU$1) -> - | AV19: =IF(ISNUMBER(AU19),IF(AND(AU19>=0.9,D19<>Nutzungen!$B$93),1-AU19*0.95,1-AU19*0.5),no_value) -> - | AW19: - | AX19: - | AY19: - | AZ19: - | BA19: - | BB19: - | BC19: - | BD19: - | BE19: - | BF19: - | BG19: - | BH19: - | BI19: - | BJ19: 0 | BK19: - | BL19: - | BM19: =IFERROR(IF(AND(AG19=ja,W19=pass,AB19=pass),infla_Bel*MAX(MIN(K_day_inv_max,AP19*K_day_inv_m+K_day_inv_b),K_day_inv_min),no_valu),no_value) -> - | BN19: =IFERROR(IF(AND(AJ19=ja,W19=pass,AB19=pass),infla_Bel*MAX(MIN(K_pr_inv_max,AP19*K_pr_inv_m+K_pr_inv_b),K_pr_inv_min),no_valu),no_value) -> - | BO19: - | BP19: - | BQ19: - | BR19: - | BS19: - | BT19: - | BU19: - | BV19: - | BW19: - | BX19: - | BZ19: =IF(I19=ja,VLOOKUP(D19,Tabelle_Nutzung,Nutzungen!$AA$75,FALSE),no_value) -> - | CB19: - | CE19: - | CG19: =IF($AO$1="X",IFERROR(VLOOKUP($D19,Tabelle_Nutzung,Nutzungen!$L$75,FALSE),no_value),$CG$1) -> - | CH19: =IFERROR(VLOOKUP(D19,Tabelle_Nutzung,Nutzungen!$BN$75,FALSE),no_value) -> - | CI19: - | CJ19: - | CK19: =IF($AO$1="X",IFERROR(VLOOKUP($D19,Tabelle_Nutzung,Nutzungen!$K$75,FALSE),no_value),$CK$1) -> - | CL19: - | CM19: =IFERROR(IF(VLOOKUP($D19,Tabelle_Nutzung,Nutzungen!$AK$75,FALSE)>15,ja,nein),no_value) -> - | CN19: - | CO19: =IFERROR(IF(AND(CH19=1,CJ19>0),DATA_RLT!$AA$5,no_value),no_value) -> - | CP19: =IFERROR(IF(AND(CH19=1,CJ19>0),DATA_RLT!$AA$12,no_value),no_value) -> - | CQ19: - | CR19: - | CS19: - | CT19: - | CU19: - | CV19: - | CW19: - | CX19: - | CY19: 0 | CZ19: - | DA19: - | DB19: - | DC19: 0 | DD19: - | DE19: - | DF19: 0 | DG19: - | DH19: 0 | DI19: - | DJ19: - | DK19: -
B20: 16 | C20: A17 | J20: - | L20: =IF(H20=ja,IFERROR(VLOOKUP(D20,Tabelle_Nutzung,Nutzungen!$S$75,FALSE),no_value),no_value) -> - | M20: =VLOOKUP($D20,Tabelle_Nutzung,Nutzungen!$BC$75,FALSE) ->  | N20: =VLOOKUP($D20,Tabelle_Nutzung,Nutzungen!$BB$75,FALSE) ->  | O20: =VLOOKUP($D20,Tabelle_Nutzung,Nutzungen!$BA$75,FALSE) ->  | P20: =IFERROR(VLOOKUP(D20,Tabelle_Nutzung,Nutzungen!$P$75,FALSE),no_value) -> - | Q20: - | R20: - | S20: - | U20: =IF(H20=ja,IFERROR(VLOOKUP(D20,Tabelle_Nutzung,Nutzungen!$O$75,FALSE),no_value),no_value) -> - | V20: - | Y20: - | Z20: - | AA20: - | AD20: - | AF20: =IF($AO$1="X",IFERROR(VLOOKUP(D20,Tabelle_Nutzung,Nutzungen!$BM$75,FALSE),no_value),$AX$1) -> - | AG20: ja | AH20: =IFERROR(IF(AND(AG20=ja,W20=pass,AB20=pass,AF20>=f_day_min,AF20<>""),MAX(MIN(K_day_sub_max,AP20*K_day_sub_m+K_day_sub_b),K_day_sub_min),no_valu),no_value) -> - | AJ20: ja | AK20: =IFERROR(IF(AND(AJ20=ja,W20=pass,AB20=pass),MAX(MIN(K_pr_sub_max,AP20*K_pr_sub_m+K_pr_sub_b),K_pr_sub_min),no_valu),no_value) -> - | AM20: - | AO20: - | AP20: 0 | AQ20: 0 | AR20: =IF($AO$1="X",IFERROR(VLOOKUP($D20,Tabelle_Nutzung,Nutzungen!$G$75,FALSE),no_value),$AR$1) -> - | AS20: =IF($AO$1="X",IFERROR(VLOOKUP($D20,Tabelle_Nutzung,Nutzungen!$I$75,FALSE),no_value),$AS$1) -> - | AT20: =IF($AO$1="X",IFERROR(VLOOKUP($D20,Tabelle_Nutzung,Nutzungen!$J$75,FALSE),no_value),$AT$1) -> - | AU20: =IF($AO$1="X",IFERROR(VLOOKUP(D20,Tabelle_Nutzung,Nutzungen!$R$75,FALSE),no_value),$AU$1) -> - | AV20: =IF(ISNUMBER(AU20),IF(AND(AU20>=0.9,D20<>Nutzungen!$B$93),1-AU20*0.95,1-AU20*0.5),no_value) -> - | AW20: - | AX20: - | AY20: - | AZ20: - | BA20: - | BB20: - | BC20: - | BD20: - | BE20: - | BF20: - | BG20: - | BH20: - | BI20: - | BJ20: 0 | BK20: - | BL20: - | BM20: =IFERROR(IF(AND(AG20=ja,W20=pass,AB20=pass),infla_Bel*MAX(MIN(K_day_inv_max,AP20*K_day_inv_m+K_day_inv_b),K_day_inv_min),no_valu),no_value) -> - | BN20: =IFERROR(IF(AND(AJ20=ja,W20=pass,AB20=pass),infla_Bel*MAX(MIN(K_pr_inv_max,AP20*K_pr_inv_m+K_pr_inv_b),K_pr_inv_min),no_valu),no_value) -> - | BO20: - | BP20: - | BQ20: - | BR20: - | BS20: - | BT20: - | BU20: - | BV20: - | BW20: - | BX20: - | BZ20: =IF(I20=ja,VLOOKUP(D20,Tabelle_Nutzung,Nutzungen!$AA$75,FALSE),no_value) -> - | CB20: - | CE20: - | CG20: =IF($AO$1="X",IFERROR(VLOOKUP($D20,Tabelle_Nutzung,Nutzungen!$L$75,FALSE),no_value),$CG$1) -> - | CH20: =IFERROR(VLOOKUP(D20,Tabelle_Nutzung,Nutzungen!$BN$75,FALSE),no_value) -> - | CI20: - | CJ20: - | CK20: =IF($AO$1="X",IFERROR(VLOOKUP($D20,Tabelle_Nutzung,Nutzungen!$K$75,FALSE),no_value),$CK$1) -> - | CL20: - | CM20: =IFERROR(IF(VLOOKUP($D20,Tabelle_Nutzung,Nutzungen!$AK$75,FALSE)>15,ja,nein),no_value) -> - | CN20: - | CO20: =IFERROR(IF(AND(CH20=1,CJ20>0),DATA_RLT!$AA$5,no_value),no_value) -> - | CP20: =IFERROR(IF(AND(CH20=1,CJ20>0),DATA_RLT!$AA$12,no_value),no_value) -> - | CQ20: - | CR20: - | CS20: - | CT20: - | CU20: - | CV20: - | CW20: - | CX20: - | CY20: 0 | CZ20: - | DA20: - | DB20: - | DC20: 0 | DD20: - | DE20: - | DF20: 0 | DG20: - | DH20: 0 | DI20: - | DJ20: - | DK20: -
B21: 17 | C21: A18 | J21: - | L21: =IF(H21=ja,IFERROR(VLOOKUP(D21,Tabelle_Nutzung,Nutzungen!$S$75,FALSE),no_value),no_value) -> - | M21: =VLOOKUP($D21,Tabelle_Nutzung,Nutzungen!$BC$75,FALSE) ->  | N21: =VLOOKUP($D21,Tabelle_Nutzung,Nutzungen!$BB$75,FALSE) ->  | O21: =VLOOKUP($D21,Tabelle_Nutzung,Nutzungen!$BA$75,FALSE) ->  | P21: =IFERROR(VLOOKUP(D21,Tabelle_Nutzung,Nutzungen!$P$75,FALSE),no_value) -> - | Q21: - | R21: - | S21: - | U21: =IF(H21=ja,IFERROR(VLOOKUP(D21,Tabelle_Nutzung,Nutzungen!$O$75,FALSE),no_value),no_value) -> - | V21: - | Y21: - | Z21: - | AA21: - | AD21: - | AF21: =IF($AO$1="X",IFERROR(VLOOKUP(D21,Tabelle_Nutzung,Nutzungen!$BM$75,FALSE),no_value),$AX$1) -> - | AG21: ja | AH21: =IFERROR(IF(AND(AG21=ja,W21=pass,AB21=pass,AF21>=f_day_min,AF21<>""),MAX(MIN(K_day_sub_max,AP21*K_day_sub_m+K_day_sub_b),K_day_sub_min),no_valu),no_value) -> - | AJ21: ja | AK21: =IFERROR(IF(AND(AJ21=ja,W21=pass,AB21=pass),MAX(MIN(K_pr_sub_max,AP21*K_pr_sub_m+K_pr_sub_b),K_pr_sub_min),no_valu),no_value) -> - | AM21: - | AO21: - | AP21: 0 | AQ21: 0 | AR21: =IF($AO$1="X",IFERROR(VLOOKUP($D21,Tabelle_Nutzung,Nutzungen!$G$75,FALSE),no_value),$AR$1) -> - | AS21: =IF($AO$1="X",IFERROR(VLOOKUP($D21,Tabelle_Nutzung,Nutzungen!$I$75,FALSE),no_value),$AS$1) -> - | AT21: =IF($AO$1="X",IFERROR(VLOOKUP($D21,Tabelle_Nutzung,Nutzungen!$J$75,FALSE),no_value),$AT$1) -> - | AU21: =IF($AO$1="X",IFERROR(VLOOKUP(D21,Tabelle_Nutzung,Nutzungen!$R$75,FALSE),no_value),$AU$1) -> - | AV21: =IF(ISNUMBER(AU21),IF(AND(AU21>=0.9,D21<>Nutzungen!$B$93),1-AU21*0.95,1-AU21*0.5),no_value) -> - | AW21: - | AX21: - | AY21: - | AZ21: - | BA21: - | BB21: - | BC21: - | BD21: - | BE21: - | BF21: - | BG21: - | BH21: - | BI21: - | BJ21: 0 | BK21: - | BL21: - | BM21: =IFERROR(IF(AND(AG21=ja,W21=pass,AB21=pass),infla_Bel*MAX(MIN(K_day_inv_max,AP21*K_day_inv_m+K_day_inv_b),K_day_inv_min),no_valu),no_value) -> - | BN21: =IFERROR(IF(AND(AJ21=ja,W21=pass,AB21=pass),infla_Bel*MAX(MIN(K_pr_inv_max,AP21*K_pr_inv_m+K_pr_inv_b),K_pr_inv_min),no_valu),no_value) -> - | BO21: - | BP21: - | BQ21: - | BR21: - | BS21: - | BT21: - | BU21: - | BV21: - | BW21: - | BX21: - | BZ21: =IF(I21=ja,VLOOKUP(D21,Tabelle_Nutzung,Nutzungen!$AA$75,FALSE),no_value) -> - | CB21: - | CE21: - | CG21: =IF($AO$1="X",IFERROR(VLOOKUP($D21,Tabelle_Nutzung,Nutzungen!$L$75,FALSE),no_value),$CG$1) -> - | CH21: =IFERROR(VLOOKUP(D21,Tabelle_Nutzung,Nutzungen!$BN$75,FALSE),no_value) -> - | CI21: - | CJ21: - | CK21: =IF($AO$1="X",IFERROR(VLOOKUP($D21,Tabelle_Nutzung,Nutzungen!$K$75,FALSE),no_value),$CK$1) -> - | CL21: - | CM21: =IFERROR(IF(VLOOKUP($D21,Tabelle_Nutzung,Nutzungen!$AK$75,FALSE)>15,ja,nein),no_value) -> - | CN21: - | CO21: =IFERROR(IF(AND(CH21=1,CJ21>0),DATA_RLT!$AA$5,no_value),no_value) -> - | CP21: =IFERROR(IF(AND(CH21=1,CJ21>0),DATA_RLT!$AA$12,no_value),no_value) -> - | CQ21: - | CR21: - | CS21: - | CT21: - | CU21: - | CV21: - | CW21: - | CX21: - | CY21: 0 | CZ21: - | DA21: - | DB21: - | DC21: 0 | DD21: - | DE21: - | DF21: 0 | DG21: - | DH21: 0 | DI21: - | DJ21: - | DK21: -
B22: 18 | C22: A19 | J22: - | L22: =IF(H22=ja,IFERROR(VLOOKUP(D22,Tabelle_Nutzung,Nutzungen!$S$75,FALSE),no_value),no_value) -> - | M22: =VLOOKUP($D22,Tabelle_Nutzung,Nutzungen!$BC$75,FALSE) ->  | N22: =VLOOKUP($D22,Tabelle_Nutzung,Nutzungen!$BB$75,FALSE) ->  | O22: =VLOOKUP($D22,Tabelle_Nutzung,Nutzungen!$BA$75,FALSE) ->  | P22: =IFERROR(VLOOKUP(D22,Tabelle_Nutzung,Nutzungen!$P$75,FALSE),no_value) -> - | Q22: - | R22: - | S22: - | U22: =IF(H22=ja,IFERROR(VLOOKUP(D22,Tabelle_Nutzung,Nutzungen!$O$75,FALSE),no_value),no_value) -> - | V22: - | Y22: - | Z22: - | AA22: - | AD22: - | AF22: =IF($AO$1="X",IFERROR(VLOOKUP(D22,Tabelle_Nutzung,Nutzungen!$BM$75,FALSE),no_value),$AX$1) -> - | AG22: ja | AH22: =IFERROR(IF(AND(AG22=ja,W22=pass,AB22=pass,AF22>=f_day_min,AF22<>""),MAX(MIN(K_day_sub_max,AP22*K_day_sub_m+K_day_sub_b),K_day_sub_min),no_valu),no_value) -> - | AJ22: ja | AK22: =IFERROR(IF(AND(AJ22=ja,W22=pass,AB22=pass),MAX(MIN(K_pr_sub_max,AP22*K_pr_sub_m+K_pr_sub_b),K_pr_sub_min),no_valu),no_value) -> - | AM22: - | AO22: - | AP22: 0 | AQ22: 0 | AR22: =IF($AO$1="X",IFERROR(VLOOKUP($D22,Tabelle_Nutzung,Nutzungen!$G$75,FALSE),no_value),$AR$1) -> - | AS22: =IF($AO$1="X",IFERROR(VLOOKUP($D22,Tabelle_Nutzung,Nutzungen!$I$75,FALSE),no_value),$AS$1) -> - | AT22: =IF($AO$1="X",IFERROR(VLOOKUP($D22,Tabelle_Nutzung,Nutzungen!$J$75,FALSE),no_value),$AT$1) -> - | AU22: =IF($AO$1="X",IFERROR(VLOOKUP(D22,Tabelle_Nutzung,Nutzungen!$R$75,FALSE),no_value),$AU$1) -> - | AV22: =IF(ISNUMBER(AU22),IF(AND(AU22>=0.9,D22<>Nutzungen!$B$93),1-AU22*0.95,1-AU22*0.5),no_value) -> - | AW22: - | AX22: - | AY22: - | AZ22: - | BA22: - | BB22: - | BC22: - | BD22: - | BE22: - | BF22: - | BG22: - | BH22: - | BI22: - | BJ22: 0 | BK22: - | BL22: - | BM22: =IFERROR(IF(AND(AG22=ja,W22=pass,AB22=pass),infla_Bel*MAX(MIN(K_day_inv_max,AP22*K_day_inv_m+K_day_inv_b),K_day_inv_min),no_valu),no_value) -> - | BN22: =IFERROR(IF(AND(AJ22=ja,W22=pass,AB22=pass),infla_Bel*MAX(MIN(K_pr_inv_max,AP22*K_pr_inv_m+K_pr_inv_b),K_pr_inv_min),no_valu),no_value) -> - | BO22: - | BP22: - | BQ22: - | BR22: - | BS22: - | BT22: - | BU22: - | BV22: - | BW22: - | BX22: - | BZ22: =IF(I22=ja,VLOOKUP(D22,Tabelle_Nutzung,Nutzungen!$AA$75,FALSE),no_value) -> - | CB22: - | CE22: - | CG22: =IF($AO$1="X",IFERROR(VLOOKUP($D22,Tabelle_Nutzung,Nutzungen!$L$75,FALSE),no_value),$CG$1) -> - | CH22: =IFERROR(VLOOKUP(D22,Tabelle_Nutzung,Nutzungen!$BN$75,FALSE),no_value) -> - | CI22: - | CJ22: - | CK22: =IF($AO$1="X",IFERROR(VLOOKUP($D22,Tabelle_Nutzung,Nutzungen!$K$75,FALSE),no_value),$CK$1) -> - | CL22: - | CM22: =IFERROR(IF(VLOOKUP($D22,Tabelle_Nutzung,Nutzungen!$AK$75,FALSE)>15,ja,nein),no_value) -> - | CN22: - | CO22: =IFERROR(IF(AND(CH22=1,CJ22>0),DATA_RLT!$AA$5,no_value),no_value) -> - | CP22: =IFERROR(IF(AND(CH22=1,CJ22>0),DATA_RLT!$AA$12,no_value),no_value) -> - | CQ22: - | CR22: - | CS22: - | CT22: - | CU22: - | CV22: - | CW22: - | CX22: - | CY22: 0 | CZ22: - | DA22: - | DB22: - | DC22: 0 | DD22: - | DE22: - | DF22: 0 | DG22: - | DH22: 0 | DI22: - | DJ22: - | DK22: -
B23: 19 | C23: A20 | J23: - | L23: =IF(H23=ja,IFERROR(VLOOKUP(D23,Tabelle_Nutzung,Nutzungen!$S$75,FALSE),no_value),no_value) -> - | M23: =VLOOKUP($D23,Tabelle_Nutzung,Nutzungen!$BC$75,FALSE) ->  | N23: =VLOOKUP($D23,Tabelle_Nutzung,Nutzungen!$BB$75,FALSE) ->  | O23: =VLOOKUP($D23,Tabelle_Nutzung,Nutzungen!$BA$75,FALSE) ->  | P23: =IFERROR(VLOOKUP(D23,Tabelle_Nutzung,Nutzungen!$P$75,FALSE),no_value) -> - | Q23: - | R23: - | S23: - | U23: =IF(H23=ja,IFERROR(VLOOKUP(D23,Tabelle_Nutzung,Nutzungen!$O$75,FALSE),no_value),no_value) -> - | V23: - | Y23: - | Z23: - | AA23: - | AD23: - | AF23: =IF($AO$1="X",IFERROR(VLOOKUP(D23,Tabelle_Nutzung,Nutzungen!$BM$75,FALSE),no_value),$AX$1) -> - | AG23: ja | AH23: =IFERROR(IF(AND(AG23=ja,W23=pass,AB23=pass,AF23>=f_day_min,AF23<>""),MAX(MIN(K_day_sub_max,AP23*K_day_sub_m+K_day_sub_b),K_day_sub_min),no_valu),no_value) -> - | AJ23: ja | AK23: =IFERROR(IF(AND(AJ23=ja,W23=pass,AB23=pass),MAX(MIN(K_pr_sub_max,AP23*K_pr_sub_m+K_pr_sub_b),K_pr_sub_min),no_valu),no_value) -> - | AM23: - | AO23: - | AP23: 0 | AQ23: 0 | AR23: =IF($AO$1="X",IFERROR(VLOOKUP($D23,Tabelle_Nutzung,Nutzungen!$G$75,FALSE),no_value),$AR$1) -> - | AS23: =IF($AO$1="X",IFERROR(VLOOKUP($D23,Tabelle_Nutzung,Nutzungen!$I$75,FALSE),no_value),$AS$1) -> - | AT23: =IF($AO$1="X",IFERROR(VLOOKUP($D23,Tabelle_Nutzung,Nutzungen!$J$75,FALSE),no_value),$AT$1) -> - | AU23: =IF($AO$1="X",IFERROR(VLOOKUP(D23,Tabelle_Nutzung,Nutzungen!$R$75,FALSE),no_value),$AU$1) -> - | AV23: =IF(ISNUMBER(AU23),IF(AND(AU23>=0.9,D23<>Nutzungen!$B$93),1-AU23*0.95,1-AU23*0.5),no_value) -> - | AW23: - | AX23: - | AY23: - | AZ23: - | BA23: - | BB23: - | BC23: - | BD23: - | BE23: - | BF23: - | BG23: - | BH23: - | BI23: - | BJ23: 0 | BK23: - | BL23: - | BM23: =IFERROR(IF(AND(AG23=ja,W23=pass,AB23=pass),infla_Bel*MAX(MIN(K_day_inv_max,AP23*K_day_inv_m+K_day_inv_b),K_day_inv_min),no_valu),no_value) -> - | BN23: =IFERROR(IF(AND(AJ23=ja,W23=pass,AB23=pass),infla_Bel*MAX(MIN(K_pr_inv_max,AP23*K_pr_inv_m+K_pr_inv_b),K_pr_inv_min),no_valu),no_value) -> - | BO23: - | BP23: - | BQ23: - | BR23: - | BS23: - | BT23: - | BU23: - | BV23: - | BW23: - | BX23: - | BZ23: =IF(I23=ja,VLOOKUP(D23,Tabelle_Nutzung,Nutzungen!$AA$75,FALSE),no_value) -> - | CB23: - | CE23: - | CG23: =IF($AO$1="X",IFERROR(VLOOKUP($D23,Tabelle_Nutzung,Nutzungen!$L$75,FALSE),no_value),$CG$1) -> - | CH23: =IFERROR(VLOOKUP(D23,Tabelle_Nutzung,Nutzungen!$BN$75,FALSE),no_value) -> - | CI23: - | CJ23: - | CK23: =IF($AO$1="X",IFERROR(VLOOKUP($D23,Tabelle_Nutzung,Nutzungen!$K$75,FALSE),no_value),$CK$1) -> - | CL23: - | CM23: =IFERROR(IF(VLOOKUP($D23,Tabelle_Nutzung,Nutzungen!$AK$75,FALSE)>15,ja,nein),no_value) -> - | CN23: - | CO23: =IFERROR(IF(AND(CH23=1,CJ23>0),DATA_RLT!$AA$5,no_value),no_value) -> - | CP23: =IFERROR(IF(AND(CH23=1,CJ23>0),DATA_RLT!$AA$12,no_value),no_value) -> - | CQ23: - | CR23: - | CS23: - | CT23: - | CU23: - | CV23: - | CW23: - | CX23: - | CY23: 0 | CZ23: - | DA23: - | DB23: - | DC23: 0 | DD23: - | DE23: - | DF23: 0 | DG23: - | DH23: 0 | DI23: - | DJ23: - | DK23: -
B24: 20 | C24: A22 | J24: =IFERROR(IF(AND(ISNUMBER(F24),ISNUMBER(G24)),F24*G24,no_value),no_value) -> - | L24: =IF(H24=ja,IFERROR(VLOOKUP(D24,Tabelle_Nutzung,Nutzungen!$S$75,FALSE),no_value),no_value) -> - | M24: =VLOOKUP($D24,Tabelle_Nutzung,Nutzungen!$BC$75,FALSE) ->  | N24: =VLOOKUP($D24,Tabelle_Nutzung,Nutzungen!$BB$75,FALSE) ->  | O24: =VLOOKUP($D24,Tabelle_Nutzung,Nutzungen!$BA$75,FALSE) ->  | P24: =IFERROR(VLOOKUP(D24,Tabelle_Nutzung,Nutzungen!$P$75,FALSE),no_value) -> - | Q24: - | R24: - | S24: - | U24: =IF(H24=ja,IFERROR(VLOOKUP(D24,Tabelle_Nutzung,Nutzungen!$O$75,FALSE),no_value),no_value) -> - | V24: - | Y24: - | Z24: - | AA24: - | AD24: - | AF24: =IF($AO$1="X",IFERROR(VLOOKUP(D24,Tabelle_Nutzung,Nutzungen!$BM$75,FALSE),no_value),$AX$1) -> - | AG24: ja | AH24: =IFERROR(IF(AND(AG24=ja,W24=pass,AB24=pass,AF24>=f_day_min,AF24<>""),MAX(MIN(K_day_sub_max,AP24*K_day_sub_m+K_day_sub_b),K_day_sub_min),no_valu),no_value) -> - | AJ24: ja | AK24: =IFERROR(IF(AND(AJ24=ja,W24=pass,AB24=pass),MAX(MIN(K_pr_sub_max,AP24*K_pr_sub_m+K_pr_sub_b),K_pr_sub_min),no_valu),no_value) -> - | AM24: =IFERROR(IF(ROUND(SUM(AD24,AH24,AK24)*J24,-1)>0,ROUND(SUM(AD24,AH24,AK24)*J24,-1),no_value),no_value) -> - | AO24: - | AP24: 0 | AQ24: 0 | AR24: =IF($AO$1="X",IFERROR(VLOOKUP($D24,Tabelle_Nutzung,Nutzungen!$G$75,FALSE),no_value),$AR$1) -> - | AS24: =IF($AO$1="X",IFERROR(VLOOKUP($D24,Tabelle_Nutzung,Nutzungen!$I$75,FALSE),no_value),$AS$1) -> - | AT24: =IF($AO$1="X",IFERROR(VLOOKUP($D24,Tabelle_Nutzung,Nutzungen!$J$75,FALSE),no_value),$AT$1) -> - | AU24: =IF($AO$1="X",IFERROR(VLOOKUP(D24,Tabelle_Nutzung,Nutzungen!$R$75,FALSE),no_value),$AU$1) -> - | AV24: =IF(ISNUMBER(AU24),IF(AND(AU24>=0.9,D24<>Nutzungen!$B$93),1-AU24*0.95,1-AU24*0.5),no_value) -> - | AW24: - | AX24: - | AY24: - | AZ24: - | BA24: - | BB24: - | BC24: - | BD24: - | BE24: - | BF24: - | BG24: - | BH24: - | BI24: - | BJ24: 0 | BK24: - | BL24: - | BM24: =IFERROR(IF(AND(AG24=ja,W24=pass,AB24=pass),infla_Bel*MAX(MIN(K_day_inv_max,AP24*K_day_inv_m+K_day_inv_b),K_day_inv_min),no_valu),no_value) -> - | BN24: =IFERROR(IF(AND(AJ24=ja,W24=pass,AB24=pass),infla_Bel*MAX(MIN(K_pr_inv_max,AP24*K_pr_inv_m+K_pr_inv_b),K_pr_inv_min),no_valu),no_value) -> - | BO24: - | BP24: - | BQ24: - | BR24: - | BS24: - | BT24: - | BU24: - | BV24: - | BW24: - | BX24: - | BZ24: =IF(I24=ja,VLOOKUP(D24,Tabelle_Nutzung,Nutzungen!$AA$75,FALSE),no_value) -> - | CB24: - | CE24: - | CG24: =IF($AO$1="X",IFERROR(VLOOKUP($D24,Tabelle_Nutzung,Nutzungen!$L$75,FALSE),no_value),$CG$1) -> - | CH24: =IFERROR(VLOOKUP(D24,Tabelle_Nutzung,Nutzungen!$BN$75,FALSE),no_value) -> - | CI24: - | CJ24: - | CK24: =IF($AO$1="X",IFERROR(VLOOKUP($D24,Tabelle_Nutzung,Nutzungen!$K$75,FALSE),no_value),$CK$1) -> - | CL24: - | CM24: =IFERROR(IF(VLOOKUP($D24,Tabelle_Nutzung,Nutzungen!$AK$75,FALSE)>15,ja,nein),no_value) -> - | CN24: - | CO24: =IFERROR(IF(AND(CH24=1,CJ24>0),DATA_RLT!$AA$5,no_value),no_value) -> - | CP24: =IFERROR(IF(AND(CH24=1,CJ24>0),DATA_RLT!$AA$12,no_value),no_value) -> - | CQ24: - | CR24: - | CS24: - | CT24: - | CU24: - | CV24: - | CW24: - | CX24: - | CY24: 0 | CZ24: - | DA24: - | DB24: - | DC24: 0 | DD24: - | DE24: - | DF24: 0 | DG24: - | DH24: 0 | DI24: - | DJ24: - | DK24: -
B25: 21 | C25: A21 | J25: - | L25: =IF(H25=ja,IFERROR(VLOOKUP(D25,Tabelle_Nutzung,Nutzungen!$S$75,FALSE),no_value),no_value) -> - | M25: =VLOOKUP($D25,Tabelle_Nutzung,Nutzungen!$BC$75,FALSE) ->  | N25: =VLOOKUP($D25,Tabelle_Nutzung,Nutzungen!$BB$75,FALSE) ->  | O25: =VLOOKUP($D25,Tabelle_Nutzung,Nutzungen!$BA$75,FALSE) ->  | P25: =IFERROR(VLOOKUP(D25,Tabelle_Nutzung,Nutzungen!$P$75,FALSE),no_value) -> - | Q25: - | R25: - | S25: - | U25: =IF(H25=ja,IFERROR(VLOOKUP(D25,Tabelle_Nutzung,Nutzungen!$O$75,FALSE),no_value),no_value) -> - | V25: - | Y25: - | Z25: - | AA25: - | AD25: - | AF25: =IF($AO$1="X",IFERROR(VLOOKUP(D25,Tabelle_Nutzung,Nutzungen!$BM$75,FALSE),no_value),$AX$1) -> - | AG25: ja | AH25: =IFERROR(IF(AND(AG25=ja,W25=pass,AB25=pass,AF25>=f_day_min,AF25<>""),MAX(MIN(K_day_sub_max,AP25*K_day_sub_m+K_day_sub_b),K_day_sub_min),no_valu),no_value) -> - | AJ25: ja | AK25: =IFERROR(IF(AND(AJ25=ja,W25=pass,AB25=pass),MAX(MIN(K_pr_sub_max,AP25*K_pr_sub_m+K_pr_sub_b),K_pr_sub_min),no_valu),no_value) -> - | AM25: - | AO25: - | AP25: 0 | AQ25: 0 | AR25: =IF($AO$1="X",IFERROR(VLOOKUP($D25,Tabelle_Nutzung,Nutzungen!$G$75,FALSE),no_value),$AR$1) -> - | AS25: =IF($AO$1="X",IFERROR(VLOOKUP($D25,Tabelle_Nutzung,Nutzungen!$I$75,FALSE),no_value),$AS$1) -> - | AT25: =IF($AO$1="X",IFERROR(VLOOKUP($D25,Tabelle_Nutzung,Nutzungen!$J$75,FALSE),no_value),$AT$1) -> - | AU25: =IF($AO$1="X",IFERROR(VLOOKUP(D25,Tabelle_Nutzung,Nutzungen!$R$75,FALSE),no_value),$AU$1) -> - | AV25: =IF(ISNUMBER(AU25),IF(AND(AU25>=0.9,D25<>Nutzungen!$B$93),1-AU25*0.95,1-AU25*0.5),no_value) -> - | AW25: - | AX25: - | AY25: =IF(ISNUMBER($AX25),IF($AF25>=$AX25,AY$4,0.5*(11-AY$4)*COS(PI()*$AF25/$AX25)+0.5*(11+AY$4)),no_value) -> - | AZ25: - | BA25: - | BB25: - | BC25: - | BD25: - | BE25: - | BF25: - | BG25: - | BH25: - | BI25: - | BJ25: 0 | BK25: - | BL25: - | BM25: =IFERROR(IF(AND(AG25=ja,W25=pass,AB25=pass),infla_Bel*MAX(MIN(K_day_inv_max,AP25*K_day_inv_m+K_day_inv_b),K_day_inv_min),no_valu),no_value) -> - | BN25: =IFERROR(IF(AND(AJ25=ja,W25=pass,AB25=pass),infla_Bel*MAX(MIN(K_pr_inv_max,AP25*K_pr_inv_m+K_pr_inv_b),K_pr_inv_min),no_valu),no_value) -> - | BO25: - | BP25: - | BQ25: - | BR25: - | BS25: - | BT25: - | BU25: - | BV25: - | BW25: - | BX25: - | BZ25: =IF(I25=ja,VLOOKUP(D25,Tabelle_Nutzung,Nutzungen!$AA$75,FALSE),no_value) -> - | CB25: - | CE25: - | CG25: =IF($AO$1="X",IFERROR(VLOOKUP($D25,Tabelle_Nutzung,Nutzungen!$L$75,FALSE),no_value),$CG$1) -> - | CH25: =IFERROR(VLOOKUP(D25,Tabelle_Nutzung,Nutzungen!$BN$75,FALSE),no_value) -> - | CI25: - | CJ25: - | CK25: =IF($AO$1="X",IFERROR(VLOOKUP($D25,Tabelle_Nutzung,Nutzungen!$K$75,FALSE),no_value),$CK$1) -> - | CL25: - | CM25: =IFERROR(IF(VLOOKUP($D25,Tabelle_Nutzung,Nutzungen!$AK$75,FALSE)>15,ja,nein),no_value) -> - | CN25: - | CO25: =IFERROR(IF(AND(CH25=1,CJ25>0),DATA_RLT!$AA$5,no_value),no_value) -> - | CP25: =IFERROR(IF(AND(CH25=1,CJ25>0),DATA_RLT!$AA$12,no_value),no_value) -> - | CQ25: - | CR25: - | CS25: - | CT25: - | CU25: - | CV25: - | CW25: - | CX25: - | CY25: 0 | CZ25: - | DA25: - | DB25: - | DC25: 0 | DD25: - | DE25: - | DF25: 0 | DG25: - | DH25: 0 | DI25: - | DJ25: - | DK25: -
B26: 22 | C26: A22 | J26: =IFERROR(IF(AND(ISNUMBER(F26),ISNUMBER(G26)),F26*G26,no_value),no_value) -> - | L26: =IF(H26=ja,IFERROR(VLOOKUP(D26,Tabelle_Nutzung,Nutzungen!$S$75,FALSE),no_value),no_value) -> - | M26: =VLOOKUP($D26,Tabelle_Nutzung,Nutzungen!$BC$75,FALSE) ->  | N26: =VLOOKUP($D26,Tabelle_Nutzung,Nutzungen!$BB$75,FALSE) ->  | O26: =VLOOKUP($D26,Tabelle_Nutzung,Nutzungen!$BA$75,FALSE) ->  | P26: =IFERROR(VLOOKUP(D26,Tabelle_Nutzung,Nutzungen!$P$75,FALSE),no_value) -> - | Q26: - | R26: - | S26: - | U26: =IF(H26=ja,IFERROR(VLOOKUP(D26,Tabelle_Nutzung,Nutzungen!$O$75,FALSE),no_value),no_value) -> - | V26: - | Y26: - | Z26: - | AA26: - | AD26: - | AF26: =IF($AO$1="X",IFERROR(VLOOKUP(D26,Tabelle_Nutzung,Nutzungen!$BM$75,FALSE),no_value),$AX$1) -> - | AG26: ja | AH26: =IFERROR(IF(AND(AG26=ja,W26=pass,AB26=pass,AF26>=f_day_min,AF26<>""),MAX(MIN(K_day_sub_max,AP26*K_day_sub_m+K_day_sub_b),K_day_sub_min),no_valu),no_value) -> - | AJ26: ja | AK26: =IFERROR(IF(AND(AJ26=ja,W26=pass,AB26=pass),MAX(MIN(K_pr_sub_max,AP26*K_pr_sub_m+K_pr_sub_b),K_pr_sub_min),no_valu),no_value) -> - | AM26: =IFERROR(IF(ROUND(SUM(AD26,AH26,AK26)*J26,-1)>0,ROUND(SUM(AD26,AH26,AK26)*J26,-1),no_value),no_value) -> - | AO26: - | AP26: 0 | AQ26: 0 | AR26: =IF($AO$1="X",IFERROR(VLOOKUP($D26,Tabelle_Nutzung,Nutzungen!$G$75,FALSE),no_value),$AR$1) -> - | AS26: =IF($AO$1="X",IFERROR(VLOOKUP($D26,Tabelle_Nutzung,Nutzungen!$I$75,FALSE),no_value),$AS$1) -> - | AT26: =IF($AO$1="X",IFERROR(VLOOKUP($D26,Tabelle_Nutzung,Nutzungen!$J$75,FALSE),no_value),$AT$1) -> - | AU26: =IF($AO$1="X",IFERROR(VLOOKUP(D26,Tabelle_Nutzung,Nutzungen!$R$75,FALSE),no_value),$AU$1) -> - | AV26: =IF(ISNUMBER(AU26),IF(AND(AU26>=0.9,D26<>Nutzungen!$B$93),1-AU26*0.95,1-AU26*0.5),no_value) -> - | AW26: =IF(ISNUMBER(AU26),1-AU26*0.95,no_value) -> - | AX26: - | AY26: - | AZ26: - | BA26: - | BB26: - | BC26: - | BD26: - | BE26: =IF(AND(AG26=ja,AJ26=ja),BD26,IF(AG26=ja,BC26,IF(AJ26=ja,BB26,BA26))) -> - | BF26: - | BG26: =IFERROR(AO26*BA26/1000,no_value) -> - | BH26: - | BI26: =IFERROR(BG26-BH26,no_value) -> - | BJ26: 0 | BK26: - | BL26: - | BM26: =IFERROR(IF(AND(AG26=ja,W26=pass,AB26=pass),infla_Bel*MAX(MIN(K_day_inv_max,AP26*K_day_inv_m+K_day_inv_b),K_day_inv_min),no_valu),no_value) -> - | BN26: =IFERROR(IF(AND(AJ26=ja,W26=pass,AB26=pass),infla_Bel*MAX(MIN(K_pr_inv_max,AP26*K_pr_inv_m+K_pr_inv_b),K_pr_inv_min),no_valu),no_value) -> - | BO26: =IF(SUM(BL26:BN26)>0,SUM(BL26:BN26),no_value) -> - | BP26: =IFERROR(BO26/BK26,no_value) -> - | BQ26: - | BR26: =IFERROR(BO26-BQ26,no_value) -> - | BS26: =IFERROR(BR26/BK26,no_value) -> - | BT26: - | BU26: - | BV26: - | BW26: =IFERROR(AM26,no_value) -> - | BX26: =IFERROR(BW26/BV26,no_value) -> - | BZ26: =IF(I26=ja,VLOOKUP(D26,Tabelle_Nutzung,Nutzungen!$AA$75,FALSE),no_value) -> - | CB26: - | CE26: - | CG26: =IF($AO$1="X",IFERROR(VLOOKUP($D26,Tabelle_Nutzung,Nutzungen!$L$75,FALSE),no_value),$CG$1) -> - | CH26: =IFERROR(VLOOKUP(D26,Tabelle_Nutzung,Nutzungen!$BN$75,FALSE),no_value) -> - | CI26: - | CJ26: - | CK26: =IF($AO$1="X",IFERROR(VLOOKUP($D26,Tabelle_Nutzung,Nutzungen!$K$75,FALSE),no_value),$CK$1) -> - | CL26: - | CM26: =IFERROR(IF(VLOOKUP($D26,Tabelle_Nutzung,Nutzungen!$AK$75,FALSE)>15,ja,nein),no_value) -> - | CN26: - | CO26: =IFERROR(IF(AND(CH26=1,CJ26>0),DATA_RLT!$AA$5,no_value),no_value) -> - | CP26: =IFERROR(IF(AND(CH26=1,CJ26>0),DATA_RLT!$AA$12,no_value),no_value) -> - | CQ26: - | CR26: - | CS26: - | CT26: - | CU26: - | CV26: - | CW26: - | CX26: - | CY26: 0 | CZ26: - | DA26: - | DB26: - | DC26: 0 | DD26: - | DE26: - | DF26: 0 | DG26: - | DH26: 0 | DI26: - | DJ26: - | DK26: -
B27: 23 | C27: A23 | J27: - | L27: =IF(H27=ja,IFERROR(VLOOKUP(D27,Tabelle_Nutzung,Nutzungen!$S$75,FALSE),no_value),no_value) -> - | M27: =VLOOKUP($D27,Tabelle_Nutzung,Nutzungen!$BC$75,FALSE) ->  | N27: =VLOOKUP($D27,Tabelle_Nutzung,Nutzungen!$BB$75,FALSE) ->  | O27: =VLOOKUP($D27,Tabelle_Nutzung,Nutzungen!$BA$75,FALSE) ->  | P27: =IFERROR(VLOOKUP(D27,Tabelle_Nutzung,Nutzungen!$P$75,FALSE),no_value) -> - | Q27: - | R27: - | S27: - | U27: =IF(H27=ja,IFERROR(VLOOKUP(D27,Tabelle_Nutzung,Nutzungen!$O$75,FALSE),no_value),no_value) -> - | V27: - | Y27: - | Z27: - | AA27: - | AD27: - | AF27: =IF($AO$1="X",IFERROR(VLOOKUP(D27,Tabelle_Nutzung,Nutzungen!$BM$75,FALSE),no_value),$AX$1) -> - | AG27: ja | AH27: =IFERROR(IF(AND(AG27=ja,W27=pass,AB27=pass,AF27>=f_day_min,AF27<>""),MAX(MIN(K_day_sub_max,AP27*K_day_sub_m+K_day_sub_b),K_day_sub_min),no_valu),no_value) -> - | AJ27: ja | AK27: =IFERROR(IF(AND(AJ27=ja,W27=pass,AB27=pass),MAX(MIN(K_pr_sub_max,AP27*K_pr_sub_m+K_pr_sub_b),K_pr_sub_min),no_valu),no_value) -> - | AM27: - | AO27: - | AP27: 0 | AQ27: 0 | AR27: =IF($AO$1="X",IFERROR(VLOOKUP($D27,Tabelle_Nutzung,Nutzungen!$G$75,FALSE),no_value),$AR$1) -> - | AS27: =IF($AO$1="X",IFERROR(VLOOKUP($D27,Tabelle_Nutzung,Nutzungen!$I$75,FALSE),no_value),$AS$1) -> - | AT27: =IF($AO$1="X",IFERROR(VLOOKUP($D27,Tabelle_Nutzung,Nutzungen!$J$75,FALSE),no_value),$AT$1) -> - | AU27: =IF($AO$1="X",IFERROR(VLOOKUP(D27,Tabelle_Nutzung,Nutzungen!$R$75,FALSE),no_value),$AU$1) -> - | AV27: =IF(ISNUMBER(AU27),IF(AND(AU27>=0.9,D27<>Nutzungen!$B$93),1-AU27*0.95,1-AU27*0.5),no_value) -> - | AW27: - | AX27: - | AY27: - | AZ27: - | BA27: - | BB27: - | BC27: - | BD27: - | BE27: - | BF27: - | BG27: - | BH27: - | BI27: - | BJ27: 0 | BK27: - | BL27: - | BM27: =IFERROR(IF(AND(AG27=ja,W27=pass,AB27=pass),infla_Bel*MAX(MIN(K_day_inv_max,AP27*K_day_inv_m+K_day_inv_b),K_day_inv_min),no_valu),no_value) -> - | BN27: =IFERROR(IF(AND(AJ27=ja,W27=pass,AB27=pass),infla_Bel*MAX(MIN(K_pr_inv_max,AP27*K_pr_inv_m+K_pr_inv_b),K_pr_inv_min),no_valu),no_value) -> - | BO27: - | BP27: - | BQ27: - | BR27: - | BS27: - | BT27: - | BU27: - | BV27: - | BW27: - | BX27: - | BZ27: =IF(I27=ja,VLOOKUP(D27,Tabelle_Nutzung,Nutzungen!$AA$75,FALSE),no_value) -> - | CB27: - | CE27: - | CG27: =IF($AO$1="X",IFERROR(VLOOKUP($D27,Tabelle_Nutzung,Nutzungen!$L$75,FALSE),no_value),$CG$1) -> - | CH27: =IFERROR(VLOOKUP(D27,Tabelle_Nutzung,Nutzungen!$BN$75,FALSE),no_value) -> - | CI27: - | CJ27: - | CK27: =IF($AO$1="X",IFERROR(VLOOKUP($D27,Tabelle_Nutzung,Nutzungen!$K$75,FALSE),no_value),$CK$1) -> - | CL27: - | CM27: =IFERROR(IF(VLOOKUP($D27,Tabelle_Nutzung,Nutzungen!$AK$75,FALSE)>15,ja,nein),no_value) -> - | CN27: - | CO27: =IFERROR(IF(AND(CH27=1,CJ27>0),DATA_RLT!$AA$5,no_value),no_value) -> - | CP27: =IFERROR(IF(AND(CH27=1,CJ27>0),DATA_RLT!$AA$12,no_value),no_value) -> - | CQ27: - | CR27: - | CS27: - | CT27: - | CU27: - | CV27: - | CW27: - | CX27: - | CY27: 0 | CZ27: - | DA27: - | DB27: - | DC27: 0 | DD27: - | DE27: - | DF27: 0 | DG27: - | DH27: 0 | DI27: - | DJ27: - | DK27: -
B28: 24 | C28: A24 | J28: - | L28: =IF(H28=ja,IFERROR(VLOOKUP(D28,Tabelle_Nutzung,Nutzungen!$S$75,FALSE),no_value),no_value) -> - | M28: =VLOOKUP($D28,Tabelle_Nutzung,Nutzungen!$BC$75,FALSE) ->  | N28: =VLOOKUP($D28,Tabelle_Nutzung,Nutzungen!$BB$75,FALSE) ->  | O28: =VLOOKUP($D28,Tabelle_Nutzung,Nutzungen!$BA$75,FALSE) ->  | P28: =IFERROR(VLOOKUP(D28,Tabelle_Nutzung,Nutzungen!$P$75,FALSE),no_value) -> - | Q28: - | R28: - | S28: - | U28: =IF(H28=ja,IFERROR(VLOOKUP(D28,Tabelle_Nutzung,Nutzungen!$O$75,FALSE),no_value),no_value) -> - | V28: - | Y28: - | Z28: - | AA28: - | AD28: - | AF28: =IF($AO$1="X",IFERROR(VLOOKUP(D28,Tabelle_Nutzung,Nutzungen!$BM$75,FALSE),no_value),$AX$1) -> - | AG28: ja | AH28: =IFERROR(IF(AND(AG28=ja,W28=pass,AB28=pass,AF28>=f_day_min,AF28<>""),MAX(MIN(K_day_sub_max,AP28*K_day_sub_m+K_day_sub_b),K_day_sub_min),no_valu),no_value) -> - | AJ28: ja | AK28: =IFERROR(IF(AND(AJ28=ja,W28=pass,AB28=pass),MAX(MIN(K_pr_sub_max,AP28*K_pr_sub_m+K_pr_sub_b),K_pr_sub_min),no_valu),no_value) -> - | AM28: - | AO28: - | AP28: 0 | AQ28: 0 | AR28: =IF($AO$1="X",IFERROR(VLOOKUP($D28,Tabelle_Nutzung,Nutzungen!$G$75,FALSE),no_value),$AR$1) -> - | AS28: =IF($AO$1="X",IFERROR(VLOOKUP($D28,Tabelle_Nutzung,Nutzungen!$I$75,FALSE),no_value),$AS$1) -> - | AT28: =IF($AO$1="X",IFERROR(VLOOKUP($D28,Tabelle_Nutzung,Nutzungen!$J$75,FALSE),no_value),$AT$1) -> - | AU28: =IF($AO$1="X",IFERROR(VLOOKUP(D28,Tabelle_Nutzung,Nutzungen!$R$75,FALSE),no_value),$AU$1) -> - | AV28: =IF(ISNUMBER(AU28),IF(AND(AU28>=0.9,D28<>Nutzungen!$B$93),1-AU28*0.95,1-AU28*0.5),no_value) -> - | AW28: - | AX28: - | AY28: - | AZ28: - | BA28: - | BB28: - | BC28: - | BD28: - | BE28: - | BF28: - | BG28: - | BH28: - | BI28: - | BJ28: 0 | BK28: - | BL28: - | BM28: =IFERROR(IF(AND(AG28=ja,W28=pass,AB28=pass),infla_Bel*MAX(MIN(K_day_inv_max,AP28*K_day_inv_m+K_day_inv_b),K_day_inv_min),no_valu),no_value) -> - | BN28: =IFERROR(IF(AND(AJ28=ja,W28=pass,AB28=pass),infla_Bel*MAX(MIN(K_pr_inv_max,AP28*K_pr_inv_m+K_pr_inv_b),K_pr_inv_min),no_valu),no_value) -> - | BO28: - | BP28: - | BQ28: - | BR28: - | BS28: - | BT28: - | BU28: - | BV28: - | BW28: - | BX28: - | BZ28: =IF(I28=ja,VLOOKUP(D28,Tabelle_Nutzung,Nutzungen!$AA$75,FALSE),no_value) -> - | CB28: - | CE28: - | CG28: =IF($AO$1="X",IFERROR(VLOOKUP($D28,Tabelle_Nutzung,Nutzungen!$L$75,FALSE),no_value),$CG$1) -> - | CH28: =IFERROR(VLOOKUP(D28,Tabelle_Nutzung,Nutzungen!$BN$75,FALSE),no_value) -> - | CI28: - | CJ28: - | CK28: =IF($AO$1="X",IFERROR(VLOOKUP($D28,Tabelle_Nutzung,Nutzungen!$K$75,FALSE),no_value),$CK$1) -> - | CL28: - | CM28: =IFERROR(IF(VLOOKUP($D28,Tabelle_Nutzung,Nutzungen!$AK$75,FALSE)>15,ja,nein),no_value) -> - | CN28: - | CO28: =IFERROR(IF(AND(CH28=1,CJ28>0),DATA_RLT!$AA$5,no_value),no_value) -> - | CP28: =IFERROR(IF(AND(CH28=1,CJ28>0),DATA_RLT!$AA$12,no_value),no_value) -> - | CQ28: - | CR28: - | CS28: - | CT28: - | CU28: - | CV28: - | CW28: - | CX28: - | CY28: 0 | CZ28: - | DA28: - | DB28: - | DC28: 0 | DD28: - | DE28: - | DF28: 0 | DG28: - | DH28: 0 | DI28: - | DJ28: - | DK28: -
B29: 25 | C29: A25 | J29: - | L29: =IF(H29=ja,IFERROR(VLOOKUP(D29,Tabelle_Nutzung,Nutzungen!$S$75,FALSE),no_value),no_value) -> - | M29: =VLOOKUP($D29,Tabelle_Nutzung,Nutzungen!$BC$75,FALSE) ->  | N29: =VLOOKUP($D29,Tabelle_Nutzung,Nutzungen!$BB$75,FALSE) ->  | O29: =VLOOKUP($D29,Tabelle_Nutzung,Nutzungen!$BA$75,FALSE) ->  | P29: =IFERROR(VLOOKUP(D29,Tabelle_Nutzung,Nutzungen!$P$75,FALSE),no_value) -> - | Q29: - | R29: - | S29: - | U29: =IF(H29=ja,IFERROR(VLOOKUP(D29,Tabelle_Nutzung,Nutzungen!$O$75,FALSE),no_value),no_value) -> - | V29: - | Y29: - | Z29: - | AA29: - | AD29: - | AF29: =IF($AO$1="X",IFERROR(VLOOKUP(D29,Tabelle_Nutzung,Nutzungen!$BM$75,FALSE),no_value),$AX$1) -> - | AG29: ja | AH29: =IFERROR(IF(AND(AG29=ja,W29=pass,AB29=pass,AF29>=f_day_min,AF29<>""),MAX(MIN(K_day_sub_max,AP29*K_day_sub_m+K_day_sub_b),K_day_sub_min),no_valu),no_value) -> - | AJ29: ja | AK29: =IFERROR(IF(AND(AJ29=ja,W29=pass,AB29=pass),MAX(MIN(K_pr_sub_max,AP29*K_pr_sub_m+K_pr_sub_b),K_pr_sub_min),no_valu),no_value) -> - | AM29: - | AO29: - | AP29: 0 | AQ29: 0 | AR29: =IF($AO$1="X",IFERROR(VLOOKUP($D29,Tabelle_Nutzung,Nutzungen!$G$75,FALSE),no_value),$AR$1) -> - | AS29: =IF($AO$1="X",IFERROR(VLOOKUP($D29,Tabelle_Nutzung,Nutzungen!$I$75,FALSE),no_value),$AS$1) -> - | AT29: =IF($AO$1="X",IFERROR(VLOOKUP($D29,Tabelle_Nutzung,Nutzungen!$J$75,FALSE),no_value),$AT$1) -> - | AU29: =IF($AO$1="X",IFERROR(VLOOKUP(D29,Tabelle_Nutzung,Nutzungen!$R$75,FALSE),no_value),$AU$1) -> - | AV29: =IF(ISNUMBER(AU29),IF(AND(AU29>=0.9,D29<>Nutzungen!$B$93),1-AU29*0.95,1-AU29*0.5),no_value) -> - | AW29: - | AX29: - | AY29: - | AZ29: - | BA29: - | BB29: - | BC29: - | BD29: - | BE29: - | BF29: - | BG29: - | BH29: - | BI29: - | BJ29: 0 | BK29: - | BL29: - | BM29: =IFERROR(IF(AND(AG29=ja,W29=pass,AB29=pass),infla_Bel*MAX(MIN(K_day_inv_max,AP29*K_day_inv_m+K_day_inv_b),K_day_inv_min),no_valu),no_value) -> - | BN29: =IFERROR(IF(AND(AJ29=ja,W29=pass,AB29=pass),infla_Bel*MAX(MIN(K_pr_inv_max,AP29*K_pr_inv_m+K_pr_inv_b),K_pr_inv_min),no_valu),no_value) -> - | BO29: - | BP29: - | BQ29: - | BR29: - | BS29: - | BT29: - | BU29: - | BV29: - | BW29: - | BX29: - | BZ29: =IF(I29=ja,VLOOKUP(D29,Tabelle_Nutzung,Nutzungen!$AA$75,FALSE),no_value) -> - | CB29: - | CE29: - | CG29: =IF($AO$1="X",IFERROR(VLOOKUP($D29,Tabelle_Nutzung,Nutzungen!$L$75,FALSE),no_value),$CG$1) -> - | CH29: =IFERROR(VLOOKUP(D29,Tabelle_Nutzung,Nutzungen!$BN$75,FALSE),no_value) -> - | CI29: - | CJ29: - | CK29: =IF($AO$1="X",IFERROR(VLOOKUP($D29,Tabelle_Nutzung,Nutzungen!$K$75,FALSE),no_value),$CK$1) -> - | CL29: - | CM29: =IFERROR(IF(VLOOKUP($D29,Tabelle_Nutzung,Nutzungen!$AK$75,FALSE)>15,ja,nein),no_value) -> - | CN29: - | CO29: =IFERROR(IF(AND(CH29=1,CJ29>0),DATA_RLT!$AA$5,no_value),no_value) -> - | CP29: =IFERROR(IF(AND(CH29=1,CJ29>0),DATA_RLT!$AA$12,no_value),no_value) -> - | CQ29: - | CR29: - | CS29: - | CT29: - | CU29: - | CV29: - | CW29: - | CX29: - | CY29: 0 | CZ29: - | DA29: - | DB29: - | DC29: 0 | DD29: - | DE29: - | DF29: 0 | DG29: - | DH29: 0 | DI29: - | DJ29: - | DK29: -
B30: 26 | C30: A26 | J30: - | L30: =IF(H30=ja,IFERROR(VLOOKUP(D30,Tabelle_Nutzung,Nutzungen!$S$75,FALSE),no_value),no_value) -> - | M30: =VLOOKUP($D30,Tabelle_Nutzung,Nutzungen!$BC$75,FALSE) ->  | N30: =VLOOKUP($D30,Tabelle_Nutzung,Nutzungen!$BB$75,FALSE) ->  | O30: =VLOOKUP($D30,Tabelle_Nutzung,Nutzungen!$BA$75,FALSE) ->  | P30: =IFERROR(VLOOKUP(D30,Tabelle_Nutzung,Nutzungen!$P$75,FALSE),no_value) -> - | Q30: - | R30: - | S30: - | U30: =IF(H30=ja,IFERROR(VLOOKUP(D30,Tabelle_Nutzung,Nutzungen!$O$75,FALSE),no_value),no_value) -> - | V30: - | Y30: - | Z30: - | AA30: - | AD30: - | AF30: =IF($AO$1="X",IFERROR(VLOOKUP(D30,Tabelle_Nutzung,Nutzungen!$BM$75,FALSE),no_value),$AX$1) -> - | AG30: ja | AH30: =IFERROR(IF(AND(AG30=ja,W30=pass,AB30=pass,AF30>=f_day_min,AF30<>""),MAX(MIN(K_day_sub_max,AP30*K_day_sub_m+K_day_sub_b),K_day_sub_min),no_valu),no_value) -> - | AJ30: ja | AK30: =IFERROR(IF(AND(AJ30=ja,W30=pass,AB30=pass),MAX(MIN(K_pr_sub_max,AP30*K_pr_sub_m+K_pr_sub_b),K_pr_sub_min),no_valu),no_value) -> - | AM30: - | AO30: - | AP30: 0 | AQ30: 0 | AR30: =IF($AO$1="X",IFERROR(VLOOKUP($D30,Tabelle_Nutzung,Nutzungen!$G$75,FALSE),no_value),$AR$1) -> - | AS30: =IF($AO$1="X",IFERROR(VLOOKUP($D30,Tabelle_Nutzung,Nutzungen!$I$75,FALSE),no_value),$AS$1) -> - | AT30: =IF($AO$1="X",IFERROR(VLOOKUP($D30,Tabelle_Nutzung,Nutzungen!$J$75,FALSE),no_value),$AT$1) -> - | AU30: =IF($AO$1="X",IFERROR(VLOOKUP(D30,Tabelle_Nutzung,Nutzungen!$R$75,FALSE),no_value),$AU$1) -> - | AV30: =IF(ISNUMBER(AU30),IF(AND(AU30>=0.9,D30<>Nutzungen!$B$93),1-AU30*0.95,1-AU30*0.5),no_value) -> - | AW30: - | AX30: - | AY30: - | AZ30: - | BA30: - | BB30: - | BC30: - | BD30: - | BE30: - | BF30: - | BG30: =IFERROR(AO30*BA30/1000,no_value) -> - | BH30: - | BI30: =IFERROR(BG30-BH30,no_value) -> - | BJ30: 0 | BK30: - | BL30: - | BM30: =IFERROR(IF(AND(AG30=ja,W30=pass,AB30=pass),infla_Bel*MAX(MIN(K_day_inv_max,AP30*K_day_inv_m+K_day_inv_b),K_day_inv_min),no_valu),no_value) -> - | BN30: =IFERROR(IF(AND(AJ30=ja,W30=pass,AB30=pass),infla_Bel*MAX(MIN(K_pr_inv_max,AP30*K_pr_inv_m+K_pr_inv_b),K_pr_inv_min),no_valu),no_value) -> - | BO30: - | BP30: - | BQ30: - | BR30: - | BS30: - | BT30: - | BU30: - | BV30: - | BW30: - | BX30: - | BZ30: =IF(I30=ja,VLOOKUP(D30,Tabelle_Nutzung,Nutzungen!$AA$75,FALSE),no_value) -> - | CB30: - | CE30: - | CG30: =IF($AO$1="X",IFERROR(VLOOKUP($D30,Tabelle_Nutzung,Nutzungen!$L$75,FALSE),no_value),$CG$1) -> - | CH30: =IFERROR(VLOOKUP(D30,Tabelle_Nutzung,Nutzungen!$BN$75,FALSE),no_value) -> - | CI30: - | CJ30: - | CK30: =IF($AO$1="X",IFERROR(VLOOKUP($D30,Tabelle_Nutzung,Nutzungen!$K$75,FALSE),no_value),$CK$1) -> - | CL30: - | CM30: =IFERROR(IF(VLOOKUP($D30,Tabelle_Nutzung,Nutzungen!$AK$75,FALSE)>15,ja,nein),no_value) -> - | CN30: - | CO30: =IFERROR(IF(AND(CH30=1,CJ30>0),DATA_RLT!$AA$5,no_value),no_value) -> - | CP30: =IFERROR(IF(AND(CH30=1,CJ30>0),DATA_RLT!$AA$12,no_value),no_value) -> - | CQ30: - | CR30: - | CS30: - | CT30: - | CU30: - | CV30: - | CW30: - | CX30: - | CY30: 0 | CZ30: - | DA30: - | DB30: - | DC30: 0 | DD30: - | DE30: - | DF30: 0 | DG30: - | DH30: 0 | DI30: - | DJ30: - | DK30: -
B31: 27 | C31: A27 | J31: - | L31: =IF(H31=ja,IFERROR(VLOOKUP(D31,Tabelle_Nutzung,Nutzungen!$S$75,FALSE),no_value),no_value) -> - | M31: =VLOOKUP($D31,Tabelle_Nutzung,Nutzungen!$BC$75,FALSE) ->  | N31: =VLOOKUP($D31,Tabelle_Nutzung,Nutzungen!$BB$75,FALSE) ->  | O31: =VLOOKUP($D31,Tabelle_Nutzung,Nutzungen!$BA$75,FALSE) ->  | P31: =IFERROR(VLOOKUP(D31,Tabelle_Nutzung,Nutzungen!$P$75,FALSE),no_value) -> - | Q31: - | R31: - | S31: - | U31: =IF(H31=ja,IFERROR(VLOOKUP(D31,Tabelle_Nutzung,Nutzungen!$O$75,FALSE),no_value),no_value) -> - | V31: - | Y31: - | Z31: - | AA31: - | AD31: - | AF31: =IF($AO$1="X",IFERROR(VLOOKUP(D31,Tabelle_Nutzung,Nutzungen!$BM$75,FALSE),no_value),$AX$1) -> - | AG31: ja | AH31: =IFERROR(IF(AND(AG31=ja,W31=pass,AB31=pass,AF31>=f_day_min,AF31<>""),MAX(MIN(K_day_sub_max,AP31*K_day_sub_m+K_day_sub_b),K_day_sub_min),no_valu),no_value) -> - | AJ31: ja | AK31: =IFERROR(IF(AND(AJ31=ja,W31=pass,AB31=pass),MAX(MIN(K_pr_sub_max,AP31*K_pr_sub_m+K_pr_sub_b),K_pr_sub_min),no_valu),no_value) -> - | AM31: - | AO31: - | AP31: 0 | AQ31: 0 | AR31: =IF($AO$1="X",IFERROR(VLOOKUP($D31,Tabelle_Nutzung,Nutzungen!$G$75,FALSE),no_value),$AR$1) -> - | AS31: =IF($AO$1="X",IFERROR(VLOOKUP($D31,Tabelle_Nutzung,Nutzungen!$I$75,FALSE),no_value),$AS$1) -> - | AT31: =IF($AO$1="X",IFERROR(VLOOKUP($D31,Tabelle_Nutzung,Nutzungen!$J$75,FALSE),no_value),$AT$1) -> - | AU31: =IF($AO$1="X",IFERROR(VLOOKUP(D31,Tabelle_Nutzung,Nutzungen!$R$75,FALSE),no_value),$AU$1) -> - | AV31: =IF(ISNUMBER(AU31),IF(AND(AU31>=0.9,D31<>Nutzungen!$B$93),1-AU31*0.95,1-AU31*0.5),no_value) -> - | AW31: - | AX31: - | AY31: - | AZ31: - | BA31: - | BB31: - | BC31: - | BD31: - | BE31: - | BF31: - | BG31: - | BH31: - | BI31: - | BJ31: 0 | BK31: - | BL31: - | BM31: =IFERROR(IF(AND(AG31=ja,W31=pass,AB31=pass),infla_Bel*MAX(MIN(K_day_inv_max,AP31*K_day_inv_m+K_day_inv_b),K_day_inv_min),no_valu),no_value) -> - | BN31: =IFERROR(IF(AND(AJ31=ja,W31=pass,AB31=pass),infla_Bel*MAX(MIN(K_pr_inv_max,AP31*K_pr_inv_m+K_pr_inv_b),K_pr_inv_min),no_valu),no_value) -> - | BO31: - | BP31: - | BQ31: - | BR31: - | BS31: - | BT31: - | BU31: - | BV31: - | BW31: - | BX31: - | BZ31: =IF(I31=ja,VLOOKUP(D31,Tabelle_Nutzung,Nutzungen!$AA$75,FALSE),no_value) -> - | CB31: - | CE31: - | CG31: =IF($AO$1="X",IFERROR(VLOOKUP($D31,Tabelle_Nutzung,Nutzungen!$L$75,FALSE),no_value),$CG$1) -> - | CH31: =IFERROR(VLOOKUP(D31,Tabelle_Nutzung,Nutzungen!$BN$75,FALSE),no_value) -> - | CI31: - | CJ31: - | CK31: =IF($AO$1="X",IFERROR(VLOOKUP($D31,Tabelle_Nutzung,Nutzungen!$K$75,FALSE),no_value),$CK$1) -> - | CL31: - | CM31: =IFERROR(IF(VLOOKUP($D31,Tabelle_Nutzung,Nutzungen!$AK$75,FALSE)>15,ja,nein),no_value) -> - | CN31: - | CO31: =IFERROR(IF(AND(CH31=1,CJ31>0),DATA_RLT!$AA$5,no_value),no_value) -> - | CP31: =IFERROR(IF(AND(CH31=1,CJ31>0),DATA_RLT!$AA$12,no_value),no_value) -> - | CQ31: - | CR31: - | CS31: - | CT31: - | CU31: - | CV31: - | CW31: - | CX31: - | CY31: 0 | CZ31: - | DA31: - | DB31: - | DC31: 0 | DD31: - | DE31: - | DF31: 0 | DG31: - | DH31: 0 | DI31: - | DJ31: - | DK31: -
B32: 28 | C32: A28 | J32: - | L32: =IF(H32=ja,IFERROR(VLOOKUP(D32,Tabelle_Nutzung,Nutzungen!$S$75,FALSE),no_value),no_value) -> - | M32: =VLOOKUP($D32,Tabelle_Nutzung,Nutzungen!$BC$75,FALSE) ->  | N32: =VLOOKUP($D32,Tabelle_Nutzung,Nutzungen!$BB$75,FALSE) ->  | O32: =VLOOKUP($D32,Tabelle_Nutzung,Nutzungen!$BA$75,FALSE) ->  | P32: =IFERROR(VLOOKUP(D32,Tabelle_Nutzung,Nutzungen!$P$75,FALSE),no_value) -> - | Q32: - | R32: - | S32: - | U32: =IF(H32=ja,IFERROR(VLOOKUP(D32,Tabelle_Nutzung,Nutzungen!$O$75,FALSE),no_value),no_value) -> - | V32: - | Y32: - | Z32: - | AA32: - | AD32: - | AF32: =IF($AO$1="X",IFERROR(VLOOKUP(D32,Tabelle_Nutzung,Nutzungen!$BM$75,FALSE),no_value),$AX$1) -> - | AG32: ja | AH32: =IFERROR(IF(AND(AG32=ja,W32=pass,AB32=pass,AF32>=f_day_min,AF32<>""),MAX(MIN(K_day_sub_max,AP32*K_day_sub_m+K_day_sub_b),K_day_sub_min),no_valu),no_value) -> - | AJ32: ja | AK32: =IFERROR(IF(AND(AJ32=ja,W32=pass,AB32=pass),MAX(MIN(K_pr_sub_max,AP32*K_pr_sub_m+K_pr_sub_b),K_pr_sub_min),no_valu),no_value) -> - | AM32: - | AO32: - | AP32: 0 | AQ32: 0 | AR32: =IF($AO$1="X",IFERROR(VLOOKUP($D32,Tabelle_Nutzung,Nutzungen!$G$75,FALSE),no_value),$AR$1) -> - | AS32: =IF($AO$1="X",IFERROR(VLOOKUP($D32,Tabelle_Nutzung,Nutzungen!$I$75,FALSE),no_value),$AS$1) -> - | AT32: =IF($AO$1="X",IFERROR(VLOOKUP($D32,Tabelle_Nutzung,Nutzungen!$J$75,FALSE),no_value),$AT$1) -> - | AU32: =IF($AO$1="X",IFERROR(VLOOKUP(D32,Tabelle_Nutzung,Nutzungen!$R$75,FALSE),no_value),$AU$1) -> - | AV32: =IF(ISNUMBER(AU32),IF(AND(AU32>=0.9,D32<>Nutzungen!$B$93),1-AU32*0.95,1-AU32*0.5),no_value) -> - | AW32: - | AX32: - | AY32: - | AZ32: - | BA32: - | BB32: - | BC32: - | BD32: - | BE32: - | BF32: - | BG32: - | BH32: - | BI32: - | BJ32: 0 | BK32: - | BL32: - | BM32: =IFERROR(IF(AND(AG32=ja,W32=pass,AB32=pass),infla_Bel*MAX(MIN(K_day_inv_max,AP32*K_day_inv_m+K_day_inv_b),K_day_inv_min),no_valu),no_value) -> - | BN32: =IFERROR(IF(AND(AJ32=ja,W32=pass,AB32=pass),infla_Bel*MAX(MIN(K_pr_inv_max,AP32*K_pr_inv_m+K_pr_inv_b),K_pr_inv_min),no_valu),no_value) -> - | BO32: - | BP32: - | BQ32: - | BR32: - | BS32: - | BT32: - | BU32: - | BV32: - | BW32: - | BX32: - | BZ32: =IF(I32=ja,VLOOKUP(D32,Tabelle_Nutzung,Nutzungen!$AA$75,FALSE),no_value) -> - | CB32: - | CE32: - | CG32: =IF($AO$1="X",IFERROR(VLOOKUP($D32,Tabelle_Nutzung,Nutzungen!$L$75,FALSE),no_value),$CG$1) -> - | CH32: =IFERROR(VLOOKUP(D32,Tabelle_Nutzung,Nutzungen!$BN$75,FALSE),no_value) -> - | CI32: - | CJ32: - | CK32: =IF($AO$1="X",IFERROR(VLOOKUP($D32,Tabelle_Nutzung,Nutzungen!$K$75,FALSE),no_value),$CK$1) -> - | CL32: - | CM32: =IFERROR(IF(VLOOKUP($D32,Tabelle_Nutzung,Nutzungen!$AK$75,FALSE)>15,ja,nein),no_value) -> - | CN32: - | CO32: =IFERROR(IF(AND(CH32=1,CJ32>0),DATA_RLT!$AA$5,no_value),no_value) -> - | CP32: =IFERROR(IF(AND(CH32=1,CJ32>0),DATA_RLT!$AA$12,no_value),no_value) -> - | CQ32: - | CR32: - | CS32: - | CT32: - | CU32: - | CV32: - | CW32: - | CX32: - | CY32: 0 | CZ32: - | DA32: - | DB32: - | DC32: 0 | DD32: - | DE32: - | DF32: 0 | DG32: - | DH32: 0 | DI32: - | DJ32: - | DK32: -
B33: 29 | C33: A29 | J33: - | L33: =IF(H33=ja,IFERROR(VLOOKUP(D33,Tabelle_Nutzung,Nutzungen!$S$75,FALSE),no_value),no_value) -> - | M33: =VLOOKUP($D33,Tabelle_Nutzung,Nutzungen!$BC$75,FALSE) ->  | N33: =VLOOKUP($D33,Tabelle_Nutzung,Nutzungen!$BB$75,FALSE) ->  | O33: =VLOOKUP($D33,Tabelle_Nutzung,Nutzungen!$BA$75,FALSE) ->  | P33: =IFERROR(VLOOKUP(D33,Tabelle_Nutzung,Nutzungen!$P$75,FALSE),no_value) -> - | Q33: - | R33: - | S33: - | U33: =IF(H33=ja,IFERROR(VLOOKUP(D33,Tabelle_Nutzung,Nutzungen!$O$75,FALSE),no_value),no_value) -> - | V33: - | Y33: - | Z33: - | AA33: - | AD33: - | AF33: =IF($AO$1="X",IFERROR(VLOOKUP(D33,Tabelle_Nutzung,Nutzungen!$BM$75,FALSE),no_value),$AX$1) -> - | AG33: ja | AH33: =IFERROR(IF(AND(AG33=ja,W33=pass,AB33=pass,AF33>=f_day_min,AF33<>""),MAX(MIN(K_day_sub_max,AP33*K_day_sub_m+K_day_sub_b),K_day_sub_min),no_valu),no_value) -> - | AJ33: ja | AK33: =IFERROR(IF(AND(AJ33=ja,W33=pass,AB33=pass),MAX(MIN(K_pr_sub_max,AP33*K_pr_sub_m+K_pr_sub_b),K_pr_sub_min),no_valu),no_value) -> - | AM33: - | AO33: - | AP33: 0 | AQ33: 0 | AR33: =IF($AO$1="X",IFERROR(VLOOKUP($D33,Tabelle_Nutzung,Nutzungen!$G$75,FALSE),no_value),$AR$1) -> - | AS33: =IF($AO$1="X",IFERROR(VLOOKUP($D33,Tabelle_Nutzung,Nutzungen!$I$75,FALSE),no_value),$AS$1) -> - | AT33: =IF($AO$1="X",IFERROR(VLOOKUP($D33,Tabelle_Nutzung,Nutzungen!$J$75,FALSE),no_value),$AT$1) -> - | AU33: =IF($AO$1="X",IFERROR(VLOOKUP(D33,Tabelle_Nutzung,Nutzungen!$R$75,FALSE),no_value),$AU$1) -> - | AV33: =IF(ISNUMBER(AU33),IF(AND(AU33>=0.9,D33<>Nutzungen!$B$93),1-AU33*0.95,1-AU33*0.5),no_value) -> - | AW33: - | AX33: - | AY33: - | AZ33: - | BA33: - | BB33: - | BC33: - | BD33: - | BE33: - | BF33: - | BG33: - | BH33: - | BI33: - | BJ33: 0 | BK33: - | BL33: - | BM33: =IFERROR(IF(AND(AG33=ja,W33=pass,AB33=pass),infla_Bel*MAX(MIN(K_day_inv_max,AP33*K_day_inv_m+K_day_inv_b),K_day_inv_min),no_valu),no_value) -> - | BN33: =IFERROR(IF(AND(AJ33=ja,W33=pass,AB33=pass),infla_Bel*MAX(MIN(K_pr_inv_max,AP33*K_pr_inv_m+K_pr_inv_b),K_pr_inv_min),no_valu),no_value) -> - | BO33: - | BP33: - | BQ33: - | BR33: - | BS33: - | BT33: - | BU33: - | BV33: - | BW33: - | BX33: - | BZ33: =IF(I33=ja,VLOOKUP(D33,Tabelle_Nutzung,Nutzungen!$AA$75,FALSE),no_value) -> - | CB33: - | CE33: - | CG33: =IF($AO$1="X",IFERROR(VLOOKUP($D33,Tabelle_Nutzung,Nutzungen!$L$75,FALSE),no_value),$CG$1) -> - | CH33: =IFERROR(VLOOKUP(D33,Tabelle_Nutzung,Nutzungen!$BN$75,FALSE),no_value) -> - | CI33: - | CJ33: - | CK33: =IF($AO$1="X",IFERROR(VLOOKUP($D33,Tabelle_Nutzung,Nutzungen!$K$75,FALSE),no_value),$CK$1) -> - | CL33: - | CM33: =IFERROR(IF(VLOOKUP($D33,Tabelle_Nutzung,Nutzungen!$AK$75,FALSE)>15,ja,nein),no_value) -> - | CN33: - | CO33: =IFERROR(IF(AND(CH33=1,CJ33>0),DATA_RLT!$AA$5,no_value),no_value) -> - | CP33: =IFERROR(IF(AND(CH33=1,CJ33>0),DATA_RLT!$AA$12,no_value),no_value) -> - | CQ33: - | CR33: - | CS33: - | CT33: - | CU33: - | CV33: - | CW33: - | CX33: - | CY33: 0 | CZ33: - | DA33: - | DB33: - | DC33: 0 | DD33: - | DE33: - | DF33: 0 | DG33: - | DH33: 0 | DI33: - | DJ33: - | DK33: -
B34: 30 | C34: A30 | J34: - | L34: =IF(H34=ja,IFERROR(VLOOKUP(D34,Tabelle_Nutzung,Nutzungen!$S$75,FALSE),no_value),no_value) -> - | M34: =VLOOKUP($D34,Tabelle_Nutzung,Nutzungen!$BC$75,FALSE) ->  | N34: =VLOOKUP($D34,Tabelle_Nutzung,Nutzungen!$BB$75,FALSE) ->  | O34: =VLOOKUP($D34,Tabelle_Nutzung,Nutzungen!$BA$75,FALSE) ->  | P34: =IFERROR(VLOOKUP(D34,Tabelle_Nutzung,Nutzungen!$P$75,FALSE),no_value) -> - | Q34: - | R34: - | S34: - | U34: =IF(H34=ja,IFERROR(VLOOKUP(D34,Tabelle_Nutzung,Nutzungen!$O$75,FALSE),no_value),no_value) -> - | V34: - | Y34: - | Z34: - | AA34: - | AD34: - | AF34: =IF($AO$1="X",IFERROR(VLOOKUP(D34,Tabelle_Nutzung,Nutzungen!$BM$75,FALSE),no_value),$AX$1) -> - | AG34: ja | AH34: =IFERROR(IF(AND(AG34=ja,W34=pass,AB34=pass,AF34>=f_day_min,AF34<>""),MAX(MIN(K_day_sub_max,AP34*K_day_sub_m+K_day_sub_b),K_day_sub_min),no_valu),no_value) -> - | AJ34: ja | AK34: =IFERROR(IF(AND(AJ34=ja,W34=pass,AB34=pass),MAX(MIN(K_pr_sub_max,AP34*K_pr_sub_m+K_pr_sub_b),K_pr_sub_min),no_valu),no_value) -> - | AM34: - | AO34: - | AP34: 0 | AQ34: 0 | AR34: =IF($AO$1="X",IFERROR(VLOOKUP($D34,Tabelle_Nutzung,Nutzungen!$G$75,FALSE),no_value),$AR$1) -> - | AS34: =IF($AO$1="X",IFERROR(VLOOKUP($D34,Tabelle_Nutzung,Nutzungen!$I$75,FALSE),no_value),$AS$1) -> - | AT34: =IF($AO$1="X",IFERROR(VLOOKUP($D34,Tabelle_Nutzung,Nutzungen!$J$75,FALSE),no_value),$AT$1) -> - | AU34: =IF($AO$1="X",IFERROR(VLOOKUP(D34,Tabelle_Nutzung,Nutzungen!$R$75,FALSE),no_value),$AU$1) -> - | AV34: =IF(ISNUMBER(AU34),IF(AND(AU34>=0.9,D34<>Nutzungen!$B$93),1-AU34*0.95,1-AU34*0.5),no_value) -> - | AW34: - | AX34: - | AY34: - | AZ34: - | BA34: - | BB34: - | BC34: - | BD34: - | BE34: - | BF34: - | BG34: - | BH34: - | BI34: - | BJ34: 0 | BK34: - | BL34: - | BM34: =IFERROR(IF(AND(AG34=ja,W34=pass,AB34=pass),infla_Bel*MAX(MIN(K_day_inv_max,AP34*K_day_inv_m+K_day_inv_b),K_day_inv_min),no_valu),no_value) -> - | BN34: =IFERROR(IF(AND(AJ34=ja,W34=pass,AB34=pass),infla_Bel*MAX(MIN(K_pr_inv_max,AP34*K_pr_inv_m+K_pr_inv_b),K_pr_inv_min),no_valu),no_value) -> - | BO34: - | BP34: - | BQ34: - | BR34: - | BS34: - | BT34: - | BU34: - | BV34: - | BW34: - | BX34: - | BZ34: =IF(I34=ja,VLOOKUP(D34,Tabelle_Nutzung,Nutzungen!$AA$75,FALSE),no_value) -> - | CB34: - | CE34: - | CG34: =IF($AO$1="X",IFERROR(VLOOKUP($D34,Tabelle_Nutzung,Nutzungen!$L$75,FALSE),no_value),$CG$1) -> - | CH34: =IFERROR(VLOOKUP(D34,Tabelle_Nutzung,Nutzungen!$BN$75,FALSE),no_value) -> - | CI34: - | CJ34: - | CK34: =IF($AO$1="X",IFERROR(VLOOKUP($D34,Tabelle_Nutzung,Nutzungen!$K$75,FALSE),no_value),$CK$1) -> - | CL34: - | CM34: =IFERROR(IF(VLOOKUP($D34,Tabelle_Nutzung,Nutzungen!$AK$75,FALSE)>15,ja,nein),no_value) -> - | CN34: - | CO34: =IFERROR(IF(AND(CH34=1,CJ34>0),DATA_RLT!$AA$5,no_value),no_value) -> - | CP34: =IFERROR(IF(AND(CH34=1,CJ34>0),DATA_RLT!$AA$12,no_value),no_value) -> - | CQ34: - | CR34: - | CS34: - | CT34: - | CU34: - | CV34: - | CW34: - | CX34: - | CY34: 0 | CZ34: - | DA34: - | DB34: - | DC34: 0 | DD34: - | DE34: - | DF34: 0 | DG34: - | DH34: 0 | DI34: - | DJ34: - | DK34: -
B35: 31 | C35: A31 | J35: - | L35: =IF(H35=ja,IFERROR(VLOOKUP(D35,Tabelle_Nutzung,Nutzungen!$S$75,FALSE),no_value),no_value) -> - | M35: =VLOOKUP($D35,Tabelle_Nutzung,Nutzungen!$BC$75,FALSE) ->  | N35: =VLOOKUP($D35,Tabelle_Nutzung,Nutzungen!$BB$75,FALSE) ->  | O35: =VLOOKUP($D35,Tabelle_Nutzung,Nutzungen!$BA$75,FALSE) ->  | P35: =IFERROR(VLOOKUP(D35,Tabelle_Nutzung,Nutzungen!$P$75,FALSE),no_value) -> - | Q35: - | R35: - | S35: - | U35: =IF(H35=ja,IFERROR(VLOOKUP(D35,Tabelle_Nutzung,Nutzungen!$O$75,FALSE),no_value),no_value) -> - | V35: - | Y35: - | Z35: - | AA35: - | AD35: - | AF35: =IF($AO$1="X",IFERROR(VLOOKUP(D35,Tabelle_Nutzung,Nutzungen!$BM$75,FALSE),no_value),$AX$1) -> - | AG35: ja | AH35: =IFERROR(IF(AND(AG35=ja,W35=pass,AB35=pass,AF35>=f_day_min,AF35<>""),MAX(MIN(K_day_sub_max,AP35*K_day_sub_m+K_day_sub_b),K_day_sub_min),no_valu),no_value) -> - | AJ35: ja | AK35: =IFERROR(IF(AND(AJ35=ja,W35=pass,AB35=pass),MAX(MIN(K_pr_sub_max,AP35*K_pr_sub_m+K_pr_sub_b),K_pr_sub_min),no_valu),no_value) -> - | AM35: - | AO35: - | AP35: 0 | AQ35: 0 | AR35: =IF($AO$1="X",IFERROR(VLOOKUP($D35,Tabelle_Nutzung,Nutzungen!$G$75,FALSE),no_value),$AR$1) -> - | AS35: =IF($AO$1="X",IFERROR(VLOOKUP($D35,Tabelle_Nutzung,Nutzungen!$I$75,FALSE),no_value),$AS$1) -> - | AT35: =IF($AO$1="X",IFERROR(VLOOKUP($D35,Tabelle_Nutzung,Nutzungen!$J$75,FALSE),no_value),$AT$1) -> - | AU35: =IF($AO$1="X",IFERROR(VLOOKUP(D35,Tabelle_Nutzung,Nutzungen!$R$75,FALSE),no_value),$AU$1) -> - | AV35: =IF(ISNUMBER(AU35),IF(AND(AU35>=0.9,D35<>Nutzungen!$B$93),1-AU35*0.95,1-AU35*0.5),no_value) -> - | AW35: - | AX35: - | AY35: - | AZ35: - | BA35: - | BB35: - | BC35: - | BD35: - | BE35: - | BF35: - | BG35: - | BH35: - | BI35: - | BJ35: 0 | BK35: - | BL35: - | BM35: =IFERROR(IF(AND(AG35=ja,W35=pass,AB35=pass),infla_Bel*MAX(MIN(K_day_inv_max,AP35*K_day_inv_m+K_day_inv_b),K_day_inv_min),no_valu),no_value) -> - | BN35: =IFERROR(IF(AND(AJ35=ja,W35=pass,AB35=pass),infla_Bel*MAX(MIN(K_pr_inv_max,AP35*K_pr_inv_m+K_pr_inv_b),K_pr_inv_min),no_valu),no_value) -> - | BO35: - | BP35: - | BQ35: - | BR35: - | BS35: - | BT35: - | BU35: - | BV35: - | BW35: - | BX35: - | BZ35: =IF(I35=ja,VLOOKUP(D35,Tabelle_Nutzung,Nutzungen!$AA$75,FALSE),no_value) -> - | CB35: - | CE35: - | CG35: =IF($AO$1="X",IFERROR(VLOOKUP($D35,Tabelle_Nutzung,Nutzungen!$L$75,FALSE),no_value),$CG$1) -> - | CH35: =IFERROR(VLOOKUP(D35,Tabelle_Nutzung,Nutzungen!$BN$75,FALSE),no_value) -> - | CI35: - | CJ35: - | CK35: =IF($AO$1="X",IFERROR(VLOOKUP($D35,Tabelle_Nutzung,Nutzungen!$K$75,FALSE),no_value),$CK$1) -> - | CL35: - | CM35: =IFERROR(IF(VLOOKUP($D35,Tabelle_Nutzung,Nutzungen!$AK$75,FALSE)>15,ja,nein),no_value) -> - | CN35: - | CO35: =IFERROR(IF(AND(CH35=1,CJ35>0),DATA_RLT!$AA$5,no_value),no_value) -> - | CP35: =IFERROR(IF(AND(CH35=1,CJ35>0),DATA_RLT!$AA$12,no_value),no_value) -> - | CQ35: - | CR35: - | CS35: - | CT35: - | CU35: - | CV35: - | CW35: - | CX35: - | CY35: 0 | CZ35: - | DA35: - | DB35: - | DC35: 0 | DD35: - | DE35: - | DF35: 0 | DG35: - | DH35: 0 | DI35: - | DJ35: - | DK35: -
B36: 32 | C36: A32 | J36: - | L36: =IF(H36=ja,IFERROR(VLOOKUP(D36,Tabelle_Nutzung,Nutzungen!$S$75,FALSE),no_value),no_value) -> - | M36: =VLOOKUP($D36,Tabelle_Nutzung,Nutzungen!$BC$75,FALSE) ->  | N36: =VLOOKUP($D36,Tabelle_Nutzung,Nutzungen!$BB$75,FALSE) ->  | O36: =VLOOKUP($D36,Tabelle_Nutzung,Nutzungen!$BA$75,FALSE) ->  | P36: =IFERROR(VLOOKUP(D36,Tabelle_Nutzung,Nutzungen!$P$75,FALSE),no_value) -> - | Q36: - | R36: - | S36: - | U36: =IF(H36=ja,IFERROR(VLOOKUP(D36,Tabelle_Nutzung,Nutzungen!$O$75,FALSE),no_value),no_value) -> - | V36: - | Y36: - | Z36: - | AA36: - | AD36: - | AF36: =IF($AO$1="X",IFERROR(VLOOKUP(D36,Tabelle_Nutzung,Nutzungen!$BM$75,FALSE),no_value),$AX$1) -> - | AG36: ja | AH36: =IFERROR(IF(AND(AG36=ja,W36=pass,AB36=pass,AF36>=f_day_min,AF36<>""),MAX(MIN(K_day_sub_max,AP36*K_day_sub_m+K_day_sub_b),K_day_sub_min),no_valu),no_value) -> - | AJ36: ja | AK36: =IFERROR(IF(AND(AJ36=ja,W36=pass,AB36=pass),MAX(MIN(K_pr_sub_max,AP36*K_pr_sub_m+K_pr_sub_b),K_pr_sub_min),no_valu),no_value) -> - | AM36: - | AO36: - | AP36: 0 | AQ36: 0 | AR36: =IF($AO$1="X",IFERROR(VLOOKUP($D36,Tabelle_Nutzung,Nutzungen!$G$75,FALSE),no_value),$AR$1) -> - | AS36: =IF($AO$1="X",IFERROR(VLOOKUP($D36,Tabelle_Nutzung,Nutzungen!$I$75,FALSE),no_value),$AS$1) -> - | AT36: =IF($AO$1="X",IFERROR(VLOOKUP($D36,Tabelle_Nutzung,Nutzungen!$J$75,FALSE),no_value),$AT$1) -> - | AU36: =IF($AO$1="X",IFERROR(VLOOKUP(D36,Tabelle_Nutzung,Nutzungen!$R$75,FALSE),no_value),$AU$1) -> - | AV36: =IF(ISNUMBER(AU36),IF(AND(AU36>=0.9,D36<>Nutzungen!$B$93),1-AU36*0.95,1-AU36*0.5),no_value) -> - | AW36: - | AX36: - | AY36: - | AZ36: - | BA36: - | BB36: - | BC36: - | BD36: - | BE36: - | BF36: - | BG36: - | BH36: - | BI36: - | BJ36: 0 | BK36: - | BL36: - | BM36: =IFERROR(IF(AND(AG36=ja,W36=pass,AB36=pass),infla_Bel*MAX(MIN(K_day_inv_max,AP36*K_day_inv_m+K_day_inv_b),K_day_inv_min),no_valu),no_value) -> - | BN36: =IFERROR(IF(AND(AJ36=ja,W36=pass,AB36=pass),infla_Bel*MAX(MIN(K_pr_inv_max,AP36*K_pr_inv_m+K_pr_inv_b),K_pr_inv_min),no_valu),no_value) -> - | BO36: - | BP36: - | BQ36: - | BR36: - | BS36: - | BT36: - | BU36: - | BV36: - | BW36: - | BX36: - | BZ36: =IF(I36=ja,VLOOKUP(D36,Tabelle_Nutzung,Nutzungen!$AA$75,FALSE),no_value) -> - | CB36: - | CE36: - | CG36: =IF($AO$1="X",IFERROR(VLOOKUP($D36,Tabelle_Nutzung,Nutzungen!$L$75,FALSE),no_value),$CG$1) -> - | CH36: =IFERROR(VLOOKUP(D36,Tabelle_Nutzung,Nutzungen!$BN$75,FALSE),no_value) -> - | CI36: - | CJ36: - | CK36: =IF($AO$1="X",IFERROR(VLOOKUP($D36,Tabelle_Nutzung,Nutzungen!$K$75,FALSE),no_value),$CK$1) -> - | CL36: - | CM36: =IFERROR(IF(VLOOKUP($D36,Tabelle_Nutzung,Nutzungen!$AK$75,FALSE)>15,ja,nein),no_value) -> - | CN36: - | CO36: =IFERROR(IF(AND(CH36=1,CJ36>0),DATA_RLT!$AA$5,no_value),no_value) -> - | CP36: =IFERROR(IF(AND(CH36=1,CJ36>0),DATA_RLT!$AA$12,no_value),no_value) -> - | CQ36: - | CR36: - | CS36: - | CT36: - | CU36: - | CV36: - | CW36: - | CX36: - | CY36: 0 | CZ36: - | DA36: - | DB36: - | DC36: 0 | DD36: - | DE36: - | DF36: 0 | DG36: - | DH36: 0 | DI36: - | DJ36: - | DK36: -
B37: 33 | C37: A33 | J37: - | L37: =IF(H37=ja,IFERROR(VLOOKUP(D37,Tabelle_Nutzung,Nutzungen!$S$75,FALSE),no_value),no_value) -> - | M37: =VLOOKUP($D37,Tabelle_Nutzung,Nutzungen!$BC$75,FALSE) ->  | N37: =VLOOKUP($D37,Tabelle_Nutzung,Nutzungen!$BB$75,FALSE) ->  | O37: =VLOOKUP($D37,Tabelle_Nutzung,Nutzungen!$BA$75,FALSE) ->  | P37: =IFERROR(VLOOKUP(D37,Tabelle_Nutzung,Nutzungen!$P$75,FALSE),no_value) -> - | Q37: - | R37: - | S37: - | U37: =IF(H37=ja,IFERROR(VLOOKUP(D37,Tabelle_Nutzung,Nutzungen!$O$75,FALSE),no_value),no_value) -> - | V37: - | Y37: - | Z37: - | AA37: - | AD37: - | AF37: =IF($AO$1="X",IFERROR(VLOOKUP(D37,Tabelle_Nutzung,Nutzungen!$BM$75,FALSE),no_value),$AX$1) -> - | AG37: ja | AH37: =IFERROR(IF(AND(AG37=ja,W37=pass,AB37=pass,AF37>=f_day_min,AF37<>""),MAX(MIN(K_day_sub_max,AP37*K_day_sub_m+K_day_sub_b),K_day_sub_min),no_valu),no_value) -> - | AJ37: ja | AK37: =IFERROR(IF(AND(AJ37=ja,W37=pass,AB37=pass),MAX(MIN(K_pr_sub_max,AP37*K_pr_sub_m+K_pr_sub_b),K_pr_sub_min),no_valu),no_value) -> - | AM37: - | AO37: - | AP37: 0 | AQ37: 0 | AR37: =IF($AO$1="X",IFERROR(VLOOKUP($D37,Tabelle_Nutzung,Nutzungen!$G$75,FALSE),no_value),$AR$1) -> - | AS37: =IF($AO$1="X",IFERROR(VLOOKUP($D37,Tabelle_Nutzung,Nutzungen!$I$75,FALSE),no_value),$AS$1) -> - | AT37: =IF($AO$1="X",IFERROR(VLOOKUP($D37,Tabelle_Nutzung,Nutzungen!$J$75,FALSE),no_value),$AT$1) -> - | AU37: =IF($AO$1="X",IFERROR(VLOOKUP(D37,Tabelle_Nutzung,Nutzungen!$R$75,FALSE),no_value),$AU$1) -> - | AV37: =IF(ISNUMBER(AU37),IF(AND(AU37>=0.9,D37<>Nutzungen!$B$93),1-AU37*0.95,1-AU37*0.5),no_value) -> - | AW37: - | AX37: - | AY37: - | AZ37: - | BA37: - | BB37: - | BC37: - | BD37: - | BE37: - | BF37: - | BG37: =IFERROR(AO37*BA37/1000,no_value) -> - | BH37: - | BI37: - | BJ37: 0 | BK37: - | BL37: - | BM37: =IFERROR(IF(AND(AG37=ja,W37=pass,AB37=pass),infla_Bel*MAX(MIN(K_day_inv_max,AP37*K_day_inv_m+K_day_inv_b),K_day_inv_min),no_valu),no_value) -> - | BN37: =IFERROR(IF(AND(AJ37=ja,W37=pass,AB37=pass),infla_Bel*MAX(MIN(K_pr_inv_max,AP37*K_pr_inv_m+K_pr_inv_b),K_pr_inv_min),no_valu),no_value) -> - | BO37: - | BP37: - | BQ37: - | BR37: - | BS37: =IFERROR(BR37/BK37,no_value) -> - | BT37: - | BU37: - | BV37: - | BW37: - | BX37: - | BZ37: =IF(I37=ja,VLOOKUP(D37,Tabelle_Nutzung,Nutzungen!$AA$75,FALSE),no_value) -> - | CB37: - | CE37: - | CG37: =IF($AO$1="X",IFERROR(VLOOKUP($D37,Tabelle_Nutzung,Nutzungen!$L$75,FALSE),no_value),$CG$1) -> - | CH37: =IFERROR(VLOOKUP(D37,Tabelle_Nutzung,Nutzungen!$BN$75,FALSE),no_value) -> - | CI37: - | CJ37: - | CK37: =IF($AO$1="X",IFERROR(VLOOKUP($D37,Tabelle_Nutzung,Nutzungen!$K$75,FALSE),no_value),$CK$1) -> - | CL37: - | CM37: =IFERROR(IF(VLOOKUP($D37,Tabelle_Nutzung,Nutzungen!$AK$75,FALSE)>15,ja,nein),no_value) -> - | CN37: - | CO37: =IFERROR(IF(AND(CH37=1,CJ37>0),DATA_RLT!$AA$5,no_value),no_value) -> - | CP37: =IFERROR(IF(AND(CH37=1,CJ37>0),DATA_RLT!$AA$12,no_value),no_value) -> - | CQ37: - | CR37: - | CS37: - | CT37: - | CU37: - | CV37: - | CW37: - | CX37: - | CY37: 0 | CZ37: - | DA37: - | DB37: - | DC37: 0 | DD37: - | DE37: - | DF37: 0 | DG37: - | DH37: 0 | DI37: - | DJ37: - | DK37: -
B38: 34 | C38: A34 | J38: - | L38: =IF(H38=ja,IFERROR(VLOOKUP(D38,Tabelle_Nutzung,Nutzungen!$S$75,FALSE),no_value),no_value) -> - | M38: =VLOOKUP($D38,Tabelle_Nutzung,Nutzungen!$BC$75,FALSE) ->  | N38: =VLOOKUP($D38,Tabelle_Nutzung,Nutzungen!$BB$75,FALSE) ->  | O38: =VLOOKUP($D38,Tabelle_Nutzung,Nutzungen!$BA$75,FALSE) ->  | P38: =IFERROR(VLOOKUP(D38,Tabelle_Nutzung,Nutzungen!$P$75,FALSE),no_value) -> - | Q38: - | R38: - | S38: - | U38: =IF(H38=ja,IFERROR(VLOOKUP(D38,Tabelle_Nutzung,Nutzungen!$O$75,FALSE),no_value),no_value) -> - | V38: - | Y38: - | Z38: - | AA38: - | AD38: - | AF38: =IF($AO$1="X",IFERROR(VLOOKUP(D38,Tabelle_Nutzung,Nutzungen!$BM$75,FALSE),no_value),$AX$1) -> - | AG38: ja | AH38: =IFERROR(IF(AND(AG38=ja,W38=pass,AB38=pass,AF38>=f_day_min,AF38<>""),MAX(MIN(K_day_sub_max,AP38*K_day_sub_m+K_day_sub_b),K_day_sub_min),no_valu),no_value) -> - | AJ38: ja | AK38: =IFERROR(IF(AND(AJ38=ja,W38=pass,AB38=pass),MAX(MIN(K_pr_sub_max,AP38*K_pr_sub_m+K_pr_sub_b),K_pr_sub_min),no_valu),no_value) -> - | AM38: - | AO38: - | AP38: 0 | AQ38: 0 | AR38: =IF($AO$1="X",IFERROR(VLOOKUP($D38,Tabelle_Nutzung,Nutzungen!$G$75,FALSE),no_value),$AR$1) -> - | AS38: =IF($AO$1="X",IFERROR(VLOOKUP($D38,Tabelle_Nutzung,Nutzungen!$I$75,FALSE),no_value),$AS$1) -> - | AT38: =IF($AO$1="X",IFERROR(VLOOKUP($D38,Tabelle_Nutzung,Nutzungen!$J$75,FALSE),no_value),$AT$1) -> - | AU38: =IF($AO$1="X",IFERROR(VLOOKUP(D38,Tabelle_Nutzung,Nutzungen!$R$75,FALSE),no_value),$AU$1) -> - | AV38: =IF(ISNUMBER(AU38),IF(AND(AU38>=0.9,D38<>Nutzungen!$B$93),1-AU38*0.95,1-AU38*0.5),no_value) -> - | AW38: - | AX38: - | AY38: - | AZ38: - | BA38: - | BB38: - | BC38: - | BD38: - | BE38: - | BF38: - | BG38: - | BH38: - | BI38: - | BJ38: 0 | BK38: - | BL38: - | BM38: =IFERROR(IF(AND(AG38=ja,W38=pass,AB38=pass),infla_Bel*MAX(MIN(K_day_inv_max,AP38*K_day_inv_m+K_day_inv_b),K_day_inv_min),no_valu),no_value) -> - | BN38: =IFERROR(IF(AND(AJ38=ja,W38=pass,AB38=pass),infla_Bel*MAX(MIN(K_pr_inv_max,AP38*K_pr_inv_m+K_pr_inv_b),K_pr_inv_min),no_valu),no_value) -> - | BO38: - | BP38: - | BQ38: - | BR38: - | BS38: - | BT38: - | BU38: - | BV38: - | BW38: - | BX38: - | BZ38: =IF(I38=ja,VLOOKUP(D38,Tabelle_Nutzung,Nutzungen!$AA$75,FALSE),no_value) -> - | CB38: - | CE38: - | CG38: =IF($AO$1="X",IFERROR(VLOOKUP($D38,Tabelle_Nutzung,Nutzungen!$L$75,FALSE),no_value),$CG$1) -> - | CH38: =IFERROR(VLOOKUP(D38,Tabelle_Nutzung,Nutzungen!$BN$75,FALSE),no_value) -> - | CI38: - | CJ38: - | CK38: =IF($AO$1="X",IFERROR(VLOOKUP($D38,Tabelle_Nutzung,Nutzungen!$K$75,FALSE),no_value),$CK$1) -> - | CL38: - | CM38: =IFERROR(IF(VLOOKUP($D38,Tabelle_Nutzung,Nutzungen!$AK$75,FALSE)>15,ja,nein),no_value) -> - | CN38: - | CO38: =IFERROR(IF(AND(CH38=1,CJ38>0),DATA_RLT!$AA$5,no_value),no_value) -> - | CP38: =IFERROR(IF(AND(CH38=1,CJ38>0),DATA_RLT!$AA$12,no_value),no_value) -> - | CQ38: - | CR38: - | CS38: - | CT38: - | CU38: - | CV38: - | CW38: - | CX38: - | CY38: 0 | CZ38: - | DA38: - | DB38: - | DC38: 0 | DD38: - | DE38: - | DF38: 0 | DG38: - | DH38: 0 | DI38: - | DJ38: - | DK38: -
B39: 35 | C39: A35 | J39: - | L39: =IF(H39=ja,IFERROR(VLOOKUP(D39,Tabelle_Nutzung,Nutzungen!$S$75,FALSE),no_value),no_value) -> - | M39: =VLOOKUP($D39,Tabelle_Nutzung,Nutzungen!$BC$75,FALSE) ->  | N39: =VLOOKUP($D39,Tabelle_Nutzung,Nutzungen!$BB$75,FALSE) ->  | O39: =VLOOKUP($D39,Tabelle_Nutzung,Nutzungen!$BA$75,FALSE) ->  | P39: =IFERROR(VLOOKUP(D39,Tabelle_Nutzung,Nutzungen!$P$75,FALSE),no_value) -> - | Q39: - | R39: - | S39: - | U39: =IF(H39=ja,IFERROR(VLOOKUP(D39,Tabelle_Nutzung,Nutzungen!$O$75,FALSE),no_value),no_value) -> - | V39: - | Y39: - | Z39: - | AA39: - | AD39: - | AF39: =IF($AO$1="X",IFERROR(VLOOKUP(D39,Tabelle_Nutzung,Nutzungen!$BM$75,FALSE),no_value),$AX$1) -> - | AG39: ja | AH39: =IFERROR(IF(AND(AG39=ja,W39=pass,AB39=pass,AF39>=f_day_min,AF39<>""),MAX(MIN(K_day_sub_max,AP39*K_day_sub_m+K_day_sub_b),K_day_sub_min),no_valu),no_value) -> - | AJ39: ja | AK39: =IFERROR(IF(AND(AJ39=ja,W39=pass,AB39=pass),MAX(MIN(K_pr_sub_max,AP39*K_pr_sub_m+K_pr_sub_b),K_pr_sub_min),no_valu),no_value) -> - | AM39: - | AO39: - | AP39: 0 | AQ39: 0 | AR39: =IF($AO$1="X",IFERROR(VLOOKUP($D39,Tabelle_Nutzung,Nutzungen!$G$75,FALSE),no_value),$AR$1) -> - | AS39: =IF($AO$1="X",IFERROR(VLOOKUP($D39,Tabelle_Nutzung,Nutzungen!$I$75,FALSE),no_value),$AS$1) -> - | AT39: =IF($AO$1="X",IFERROR(VLOOKUP($D39,Tabelle_Nutzung,Nutzungen!$J$75,FALSE),no_value),$AT$1) -> - | AU39: =IF($AO$1="X",IFERROR(VLOOKUP(D39,Tabelle_Nutzung,Nutzungen!$R$75,FALSE),no_value),$AU$1) -> - | AV39: =IF(ISNUMBER(AU39),IF(AND(AU39>=0.9,D39<>Nutzungen!$B$93),1-AU39*0.95,1-AU39*0.5),no_value) -> - | AW39: - | AX39: - | AY39: - | AZ39: - | BA39: - | BB39: - | BC39: - | BD39: - | BE39: - | BF39: - | BG39: - | BH39: - | BI39: - | BJ39: 0 | BK39: - | BL39: - | BM39: =IFERROR(IF(AND(AG39=ja,W39=pass,AB39=pass),infla_Bel*MAX(MIN(K_day_inv_max,AP39*K_day_inv_m+K_day_inv_b),K_day_inv_min),no_valu),no_value) -> - | BN39: =IFERROR(IF(AND(AJ39=ja,W39=pass,AB39=pass),infla_Bel*MAX(MIN(K_pr_inv_max,AP39*K_pr_inv_m+K_pr_inv_b),K_pr_inv_min),no_valu),no_value) -> - | BO39: - | BP39: - | BQ39: - | BR39: - | BS39: - | BT39: - | BU39: - | BV39: - | BW39: - | BX39: - | BZ39: =IF(I39=ja,VLOOKUP(D39,Tabelle_Nutzung,Nutzungen!$AA$75,FALSE),no_value) -> - | CB39: - | CE39: - | CG39: =IF($AO$1="X",IFERROR(VLOOKUP($D39,Tabelle_Nutzung,Nutzungen!$L$75,FALSE),no_value),$CG$1) -> - | CH39: =IFERROR(VLOOKUP(D39,Tabelle_Nutzung,Nutzungen!$BN$75,FALSE),no_value) -> - | CI39: - | CJ39: - | CK39: =IF($AO$1="X",IFERROR(VLOOKUP($D39,Tabelle_Nutzung,Nutzungen!$K$75,FALSE),no_value),$CK$1) -> - | CL39: - | CM39: =IFERROR(IF(VLOOKUP($D39,Tabelle_Nutzung,Nutzungen!$AK$75,FALSE)>15,ja,nein),no_value) -> - | CN39: - | CO39: =IFERROR(IF(AND(CH39=1,CJ39>0),DATA_RLT!$AA$5,no_value),no_value) -> - | CP39: =IFERROR(IF(AND(CH39=1,CJ39>0),DATA_RLT!$AA$12,no_value),no_value) -> - | CQ39: - | CR39: - | CS39: - | CT39: - | CU39: - | CV39: - | CW39: - | CX39: - | CY39: 0 | CZ39: - | DA39: - | DB39: - | DC39: 0 | DD39: - | DE39: - | DF39: 0 | DG39: - | DH39: 0 | DI39: - | DJ39: - | DK39: -
B41: Primärenergiekennwerte | F41: qp,Bel
B42: Bestand | F42: =SUMPRODUCT(BG5:BG39,J5:J39)/A_EBF*qpel -> 
B43: Modernisiert | F43: =SUMPRODUCT(BH5:BH39,J5:J39)/A_EBF*qpel -> 
B44: Energetische Verbesserung in % | F44: =IFERROR(1-F43/F42,no_value) -> -
B45: =Wärmeschutz!I51 -> Primärenergieeinsparung | F45: =F42-F43 -> 
B47: Anforderungen an Lüftungsanlagen | F47: Zuluft | G47: Abluft
B48: Totaldruckerhöhung Zuluft | H48: Pa
B49: Gesamtwirkungsgrad ntot | G49: (Motor, Ventilator, Antrieb, FU)
B50: Spezifische Leistungsaufnahme SFP | F50: =IF(ISNUMBER(F51),no_value,IF(ISNUMBER(SUM(F48,G48)/F49/1000),SUM(F48,G48)/F49/1000,no_value)) -> - | G50: kW/(m³/s)
B51: Spezifische Leistungsaufnahme (direkte Eingabe) SFP | G51: kW/(m³/s)
B53: =B41 -> Primärenergiekennwerte | F53: qP,RLT
B54: Abluftanlage | F54: =IFERROR((SUMPRODUCT(CR5:CR39,$J$5:$J$39)*qPh+SUMPRODUCT(CT5:CT39,$J$5:$J$39)*qpel)/A_EBF,no_value) -> -
B55: Hyg. Lüftung mit WRG | F55: =IFERROR((SUMPRODUCT(CS5:CS39,$J$5:$J$39)*qPh+SUMPRODUCT(CU5:CU39,$J$5:$J$39)*qpel)/A_EBF,no_value) -> -
B56: =B44 -> Energetische Verbesserung in % | F56: =IFERROR(1-F55/F54,no_value) -> -
B57: =B45 -> Primärenergieeinsparung | F57: =IFERROR(F54-F55,no_value) -> -
B59: Gesamtprojekt - Zielwerte | F59: vZiel,RLT | H59: qZiel,Bel
B60: Zielwert - Gesamtprojekt | F60: =IFERROR(ROUND(SUM(DATA!F45:F46)/DATA!F48/3600*F72/A_EBF,2),no_value) -> - | H60: =IFERROR(ROUND(SUMPRODUCT($J$5:$J$39,Z5:Z39)/SUM($J$5:$J$39),2),no_value) -> -
B61: Erreichter Wert - Gesamtprojekt | F61: =IFERROR(ROUND(IF(ISNUMBER(F51),F51,IF(ISNUMBER(F50),F50,no_value))/3.6*F71/A_EBF,2),no_value) -> - | H61: =IFERROR(ROUND(SUMPRODUCT($J$5:$J$39,AA5:AA39)/SUM($J$5:$J$39),2),no_value) -> -
B62: Anforderung erfüllt | F62: =IFERROR(IF(F61<=F60,pass,fail),fail) -> ü | H62: =IFERROR(IF(H61<=H60,pass,fail),fail) -> ü
B64: Förderung für die Beleuchtungssanierung | F64: fFörderung, Bel | H64: fFörderung, Bel
B65: Förderung über Sanierung | F65: =IF(H62=pass,ROUND(SUMPRODUCT(AD5:AD39,$J$5:$J$39),-1),no_value) -> 0 | H65: =IFERROR(F65/A_EBF,no_value) -> -
B66: Bonus über Tageslichtsteuerung | F66: =IF(H62=pass,ROUND(SUMPRODUCT(AH5:AH39,$J$5:$J$39),-1),no_value) -> 0 | H66: =IFERROR(F66/A_EBF,no_value) -> -
B67: Bonus über Präsenzerfassung | F67: =IF(H62=pass,ROUND(SUMPRODUCT(AK5:AK39,$J$5:$J$39),-1),no_value) -> 0 | H67: =IFERROR(F67/A_EBF,no_value) -> -
B68: Summe Förderung | F68: =IFERROR(F65+F66+F67,no_value) -> 0 | H68: =IFERROR(F68/A_EBF,no_value) -> -
B70: Förderung für Lüftungsanlagen | F70: fFörderung, RLT
B71: Projektierter Gesamtvolumenstrom aller Räume/Zonen | F71: =IFERROR(SUM(CB5:CB39),no_value) -> 0 | BZ71: VRLT=Si Ai ·nproj,i
B72: Für Förderung anrechenbarer Volumenstrom | F72: =IFERROR(SUMIF(CC5:CC39,pass,CJ5:CJ39),no_value) -> 0 | BZ72: V'RLT=Si Ai·min[nhyg,i; nproj,i]
B73: Förderhöhe bezogen auf den hygienischen Luftwechsel | F73: =IF(F62=pass,IFERROR(f_sub_RLT*MAX(f_RLT_min,MIN(f_RLT_max,f_sub_RLT_a0*LN(V_RLT_SUB)+f_sub_RLT_a1)),0),0) -> 0 | BZ73: auf V'RLT bezogen
B74: Summe Förderung Lüftungsanlagen | F74: =IFERROR(ROUND(F72*F73,-1),0) -> 0 | H74: =IFERROR(F74/A_EBF,no_value) -> -
B76: =Wärmeschutz!B57 -> Ministère du Développement durable et des Infrastructures Département de l’Environnement | CE76: ="SubCalC, Version "&version&" ("&datum&")" -> SubCalC, Version 1.02 (8.8.2014)
B77: =Wärmeschutz!B58 -> Goblet Lavandier & Associés S.A.
AY78: Berechnung von tLi,min
AZ79: man | BA79: auto
AZ80: =MIN(11,2*AZ81*AZ82*AZ83*AZ84*MAX(AZ85,AZ86)*AZ87) -> 6.6 | BA80: =MIN(11,2*BA81*BA82*BA83*BA84*MAX(BA85,BA86)*BA87) -> 3.3
AY81: kc | AZ81: 2 | BA81: 1
AY82: kre | AZ82: 1.1 | BA82: =AZ82 -> 1.1
AY83: kt | AZ83: =0.7/0.7 -> 1 | BA83: 1
AY84: ksp | AZ84: 1 | BA84: 1
AY85: kli | AZ85: =1.8/((2.7-0.3)-1.2) -> 1.5 | BA85: 1.5
AV86: Balkontefe | AW86: aB | AX86: 0 | AY86: kb | AZ86: =1/(1-(0.25*$AX$86)) -> 1 | BA86: 1 | BC86: 0 | BD86: 100
AV87: Hähenunterschied | AW87: dH | AX87: 0 | AY87: ksur | AZ87: =1/(1-(0.35*$AX$87/$AX$88)) -> 1 | BA87: =AZ87 -> 1 | BC87: 0 | BD87: 100
AV88: Entfernung | AW88: d | AX88: 20
AY90: zg0 | AZ90: Em | BA90: 0 | BB90: =BA90+0.05 -> 0.05 | BC90: =BB90+0.05 -> 0.1 | BD90: 0.15 | BE90: 0.2 | BF90: 0.25 | BG90: 0.3 | BH90: =BG90+0.05 -> 0.35 | BI90: 0.4 | BJ90: 0.45 | BK90: =BJ90+0.05 -> 0.5
AY91: =MAX(0.175,0.35*(0.375+$AZ91/800)) -> 0.175 | AZ91: 0 | BA91: =IF(BA$90>=$AY91,$AY$4,0.5*(11-$AY$4)*COS(PI()*BA$90/$AY91)+0.5*(11+$AY$4)) -> 11 | BB91: 10.17167756 | BC91: 8.310453945 | BD91: 6.817868491 | BE91: 6.6 | BF91: 6.6 | BG91: 6.6 | BH91: 6.6 | BI91: 6.6 | BJ91: 6.6 | BK91: 6.6
AY92: 0.175 | AZ92: =AZ91+100 -> 100 | BA92: 11 | BB92: 10.17167756 | BC92: 8.310453945 | BD92: 6.817868491 | BE92: 6.6 | BF92: 6.6 | BG92: 6.6 | BH92: 6.6 | BI92: 6.6 | BJ92: 6.6 | BK92: 6.6
AY93: 0.21875 | AZ93: =AZ92+100 -> 200 | BA93: 11 | BB93: 10.45675723 | BC93: 9.095313185 | BD93: 7.588026641 | BE93: 6.679281706 | BF93: 6.6 | BG93: 6.6 | BH93: 6.6 | BI93: 6.6 | BJ93: 6.6 | BK93: 6.6
AY94: 0.2625 | AZ94: 300 | BA94: 11 | BB94: 10.6177253 | BC94: 9.603750254 | BD94: 8.310453945 | BE94: 7.187285882 | BF94: 6.624572182 | BG94: 6.6 | BH94: 6.6 | BI94: 6.6 | BJ94: 6.6 | BK94: 6.6
AY95: 0.30625 | AZ95: 400 | BA95: 11 | BB95: 10.71690115 | BC95: 9.94046365 | BD95: 8.870513471 | BE95: 7.782415761 | BF95: 6.956206169 | BG95: 6.604520136 | BH95: 6.6 | BI95: 6.6 | BJ95: 6.6 | BK95: 6.6
AY96: 0.35 | AZ96: 500 | BA96: 11 | BB96: 10.78213151 | BC96: 10.17167756 | BD96: 9.289546055 | BE96: 8.310453945 | BF96: 7.428322436 | BG96: 6.817868491 | BH96: 6.6 | BI96: 6.6 | BJ96: 6.6 | BK96: 6.6
AY97: 0.39375 | AZ97: 600 | BA97: 11 | BB97: 10.82724767 | BC97: 10.336121 | BD97: 9.603750254 | BE97: 8.745152478 | BF97: 7.895168373 | BG97: 7.187285882 | BH97: 6.732676234 | BI97: 6.6 | BJ97: 6.6 | BK97: 6.6
AY98: 0.4375 | AZ98: 700 | BA98: 11 | BB98: 10.85971672 | BC98: 10.45675723 | BD98: 9.842511057 | BE98: 9.095313185 | BF98: 8.310453945 | BG98: 7.588026641 | BH98: 7.020162612 | BI98: 6.679281706 | BJ98: 6.6 | BK98: 6.6
AY99: 0.48125 | AZ99: 800 | BA99: 11 | BB99: 10.88384662 | BC99: 10.54765159 | BD99: 10.02691507 | BE99: 9.376623702 | BF99: 8.665444346 | BG99: 7.968473257 | BH99: 7.359306385 | BI99: 6.902268086 | BJ99: 6.645618851 | BK99: 6.6
AY100: 0.525 | AZ100: 900 | BA100: 11 | BB100: 10.90226017 | BC100: 10.6177253 | BD100: 10.17167756 | BE100: 9.603750254 | BF100: 8.964406206 | BG100: 8.310453945 | BH100: 7.7 | BI100: 7.187285882 | BJ100: 6.817868491 | BK100: 6.624572182
AY101: 0.56875 | AZ101: 1000 | BA101: 11 | BB101: 10.91662664 | BC101: 10.67282577 | BD101: 10.28707602 | BE101: 9.788614882 | BF101: 9.21522271 | BG101: 8.610359164 | BH101: 8.019869249 | BI101: 7.488508532 | BJ101: 7.056550948 | BK101: 6.756736272
AY103: zg0 | AZ103: =AZ90 -> Em | BA103: =BA90 -> 0 | BB103: 0.05 | BC103: 0.1 | BD103: 0.15 | BE103: 0.2 | BF103: 0.25 | BG103: 0.3 | BH103: =BH90 -> 0.35 | BI103: 0.4 | BJ103: 0.45 | BK103: =BK90 -> 0.5
AY104: =AY91 -> 0.175 | AZ104: =AZ91 -> 0 | BA104: =IF(BA$103>=$AY104,$AZ$4,0.5*(11-$AZ$4)*COS(PI()*BA$103/$AY104)+0.5*(11+$AZ$4)) -> 11 | BB104: 9.550435737 | BC104: 6.293294404 | BD104: 3.681269859 | BE104: 3.3 | BF104: 3.3 | BG104: 3.3 | BH104: 3.3 | BI104: 3.3 | BJ104: 3.3 | BK104: 3.3
AY105: =AY92 -> 0.175 | AZ105: 100 | BA105: 11 | BB105: 9.550435737 | BC105: 6.293294404 | BD105: 3.681269859 | BE105: 3.3 | BF105: 3.3 | BG105: 3.3 | BH105: 3.3 | BI105: 3.3 | BJ105: 3.3 | BK105: 3.3
AY106: 0.21875 | AZ106: 200 | BA106: 11 | BB106: 10.04932514 | BC106: 7.666798073 | BD106: 5.029046621 | BE106: 3.438742986 | BF106: 3.3 | BG106: 3.3 | BH106: 3.3 | BI106: 3.3 | BJ106: 3.3 | BK106: 3.3
AY107: 0.2625 | AZ107: 300 | BA107: 11 | BB107: 10.33101928 | BC107: 8.556562944 | BD107: 6.293294404 | BE107: 4.327750293 | BF107: 3.343001319 | BG107: 3.3 | BH107: 3.3 | BI107: 3.3 | BJ107: 3.3 | BK107: 3.3
AY108: 0.30625 | AZ108: 400 | BA108: 11 | BB108: 10.50457701 | BC108: 9.145811388 | BD108: 7.273398574 | BE108: 5.369227583 | BF108: 3.923360796 | BG108: 3.307910238 | BH108: 3.3 | BI108: 3.3 | BJ108: 3.3 | BK108: 3.3
AY109: 0.35 | AZ109: 500 | BA109: 11 | BB109: 10.61873014 | BC109: 9.550435737 | BD109: 8.006705596 | BE109: 6.293294404 | BF109: 4.749564263 | BG109: 3.681269859 | BH109: 3.3 | BI109: 3.3 | BJ109: 3.3 | BK109: 3.3
AY110: 0.39375 | AZ110: 600 | BA110: 11 | BB110: 10.69768342 | BC110: 9.83821175 | BD110: 8.556562944 | BE110: 7.054016837 | BF110: 5.566544653 | BG110: 4.327750293 | BH110: 3.53218341 | BI110: 3.3 | BJ110: 3.3 | BK110: 3.3
AY111: 0.4375 | AZ111: 700 | BA111: 11 | BB111: 10.75450425 | BC111: 10.04932514 | BD111: 8.974394351 | BE111: 7.666798073 | BF111: 6.293294404 | BG111: 5.029046621 | BH111: 4.035284572 | BI111: 3.438742986 | BJ111: 3.3 | BK111: 3.3
AY112: 0.48125 | AZ112: 800 | BA112: 11 | BB112: 10.79673159 | BC112: 10.20839028 | BD112: 9.297101368 | BE112: 8.159091479 | BF112: 6.914527606 | BG112: 5.694828199 | BH112: 4.628786174 | BI112: 3.82896915 | BJ112: 3.379832989 | BK112: 3.3
AY113: 0.525 | AZ113: 900 | BA113: 11 | BB113: 10.8289553 | BC113: 10.33101928 | BD113: 9.550435737 | BE113: 8.556562944 | BF113: 7.43771086 | BG113: 6.293294404 | BH113: 5.225 | BI113: 4.327750293 | BJ113: 3.681269859 | BK113: 3.343001319
AY114: 0.56875 | AZ114: 1000 | BA114: 11 | BB114: 10.85409663 | BC114: 10.4274451 | BD114: 9.75238303 | BE114: 8.880076044 | BF114: 7.876639742 | BG114: 6.818128537 | BH114: 5.784771185 | BI114: 4.854889931 | BJ114: 4.098964158 | BK114: 3.574288476
AY116: =BA2 -> Betriebszeit manuelle Steuerung
AY117: fBed | AZ117: =AZ103 -> Em | BA117: 0 | BB117: 0.05 | BC117: 0.1 | BD117: 0.15 | BE117: 0.2 | BF117: 0.25 | BG117: 0.3 | BH117: =BH103 -> 0.35 | BI117: 0.4 | BJ117: =BJ103 -> 0.45 | BK117: =BK103 -> 0.5
AY118: =AV166 -> 0.85 | AZ118: =AZ104 -> 0 | BA118: =$AY118*(BA91*$AU$167/$AU$169/11+$AU$168/$AU$169)*$AU$169 -> 2337.5 | BB118: 2174.730876 | BC118: 1808.991975 | BD118: 1515.692149 | BE118: 1472.88 | BF118: 1472.88 | BG118: 1472.88 | BH118: 1472.88 | BI118: 1472.88 | BJ118: 1472.88 | BK118: 1472.88
AY119: =AY118 -> 0.85 | AZ119: 100 | BA119: =$AY119*(BA92*$AU$167/$AU$169/11+$AU$168/$AU$169)*$AU$169 -> 2337.5 | BB119: 2174.730876 | BC119: 1808.991975 | BD119: 1515.692149 | BE119: 1472.88 | BF119: 1472.88 | BG119: 1472.88 | BH119: 1472.88 | BI119: 1472.88 | BJ119: 1472.88 | BK119: 1472.88
AY120: =AY119 -> 0.85 | AZ120: 200 | BA120: =$AY120*(BA93*$AU$167/$AU$169/11+$AU$168/$AU$169)*$AU$169 -> 2337.5 | BB120: 2230.750325 | BC120: 1963.220383 | BD120: 1667.031726 | BE120: 1488.459216 | BF120: 1472.88 | BG120: 1472.88 | BH120: 1472.88 | BI120: 1472.88 | BJ120: 1472.88 | BK120: 1472.88
AY121: 0.85 | AZ121: 300 | BA121: =$AY121*(BA94*$AU$167/$AU$169/11+$AU$168/$AU$169)*$AU$169 -> 2337.5 | BB121: 2262.381285 | BC121: 2063.130578 | BD121: 1808.991975 | BE121: 1588.284345 | BF121: 1477.708546 | BG121: 1472.88 | BH121: 1472.88 | BI121: 1472.88 | BJ121: 1472.88 | BK121: 1472.88
AY122: 0.85 | AZ122: 400 | BA122: =$AY122*(BA95*$AU$167/$AU$169/11+$AU$168/$AU$169)*$AU$169 -> 2337.5 | BB122: 2281.869789 | BC122: 2129.296291 | BD122: 1919.046218 | BE122: 1705.230072 | BF122: 1542.876131 | BG122: 1473.768227 | BH122: 1472.88 | BI122: 1472.88 | BJ122: 1472.88 | BK122: 1472.88
AY123: 0.85 | AZ123: 500 | BA123: =$AY123*(BA96*$AU$167/$AU$169/11+$AU$168/$AU$169)*$AU$169 -> 2337.5 | BB123: 2294.687851 | BC123: 2174.730876 | BD123: 2001.388025 | BE123: 1808.991975 | BF123: 1635.649124 | BG123: 1515.692149 | BH123: 1472.88 | BI123: 1472.88 | BJ123: 1472.88 | BK123: 1472.88
AY124: 0.85 | AZ124: 600 | BA124: =$AY124*(BA97*$AU$167/$AU$169/11+$AU$168/$AU$169)*$AU$169 -> 2337.5 | BB124: 2303.553381 | BC124: 2207.044759 | BD124: 2063.130578 | BE124: 1894.412213 | BF124: 1727.386472 | BG124: 1588.284345 | BH124: 1498.951483 | BI124: 1472.88 | BJ124: 1472.88 | BK124: 1472.88
AY125: 0.85 | AZ125: 700 | BA125: =$AY125*(BA98*$AU$167/$AU$169/11+$AU$168/$AU$169)*$AU$169 -> 2337.5 | BB125: 2309.933697 | BC125: 2230.750325 | BD125: 2110.048161 | BE125: 1963.220383 | BF125: 1808.991975 | BG125: 1667.031726 | BH125: 1555.443863 | BI125: 1488.459216 | BJ125: 1472.88 | BK125: 1472.88
AY126: 0.85 | AZ126: 800 | BA126: =$AY126*(BA99*$AU$167/$AU$169/11+$AU$168/$AU$169)*$AU$169 -> 2337.5 | BB126: 2314.675333 | BC126: 2248.611481 | BD126: 2146.284388 | BE126: 2018.499179 | BF126: 1878.749202 | BG126: 1741.791215 | BH126: 1622.087156 | BI126: 1532.277053 | BJ126: 1481.844312 | BK126: 1472.88
AY127: 0.85 | AZ127: 900 | BA127: =$AY127*(BA100*$AU$167/$AU$169/11+$AU$168/$AU$169)*$AU$169 -> 2337.5 | BB127: 2318.29368 | BC127: 2262.381285 | BD127: 2174.730876 | BE127: 2063.130578 | BF127: 1937.496567 | BG127: 1808.991975 | BH127: 1689.035 | BI127: 1588.284345 | BJ127: 1515.692149 | BK127: 1477.708546
AY128: 0.85 | AZ128: 1000 | BA128: =$AY128*(BA101*$AU$167/$AU$169/11+$AU$168/$AU$169)*$AU$169 -> 2337.5 | BB128: 2321.116757 | BC128: 2273.208777 | BD128: 2197.407197 | BE128: 2099.457318 | BF128: 1986.78315 | BG128: 1867.924714 | BH128: 1751.890761 | BI128: 1647.475965 | BJ128: 1562.594336 | BK128: 1503.67939
AY130: =BB2 -> Betriebszeit Präsenzerfassung
AY131: fBed | AZ131: =AZ117 -> Em | BA131: 0 | BB131: 0.05 | BC131: 0.1 | BD131: 0.15 | BE131: 0.2 | BF131: 0.25 | BG131: 0.3 | BH131: =BH117 -> 0.35 | BI131: 0.4 | BJ131: =BJ117 -> 0.45 | BK131: =BK117 -> 0.5
AY132: =AW166 -> 0.715 | AZ132: =AZ118 -> 0 | BA132: =$AY132*(BA91*$AU$167/$AU$169/11+$AU$168/$AU$169)*$AU$169 -> 1966.25 | BB132: 1829.332443 | BC132: 1521.681485 | BD132: 1274.964572 | BE132: 1238.952 | BF132: 1238.952 | BG132: 1238.952 | BH132: 1238.952 | BI132: 1238.952 | BJ132: 1238.952 | BK132: 1238.952
AY133: =AY132 -> 0.715 | AZ133: 100 | BA133: =$AY133*(BA92*$AU$167/$AU$169/11+$AU$168/$AU$169)*$AU$169 -> 1966.25 | BB133: 1829.332443 | BC133: 1521.681485 | BD133: 1274.964572 | BE133: 1238.952 | BF133: 1238.952 | BG133: 1238.952 | BH133: 1238.952 | BI133: 1238.952 | BJ133: 1238.952 | BK133: 1238.952
AY134: =AY133 -> 0.715 | AZ134: 200 | BA134: =$AY134*(BA93*$AU$167/$AU$169/11+$AU$168/$AU$169)*$AU$169 -> 1966.25 | BB134: 1876.454686 | BC134: 1651.414793 | BD134: 1402.267864 | BE134: 1252.05687 | BF134: 1238.952 | BG134: 1238.952 | BH134: 1238.952 | BI134: 1238.952 | BJ134: 1238.952 | BK134: 1238.952
AY135: 0.715 | AZ135: 300 | BA135: =$AY135*(BA94*$AU$167/$AU$169/11+$AU$168/$AU$169)*$AU$169 -> 1966.25 | BB135: 1903.061904 | BC135: 1735.456898 | BD135: 1521.681485 | BE135: 1336.02742 | BF135: 1243.013659 | BG135: 1238.952 | BH135: 1238.952 | BI135: 1238.952 | BJ135: 1238.952 | BK135: 1238.952
AY136: 0.715 | AZ136: 400 | BA136: =$AY136*(BA95*$AU$167/$AU$169/11+$AU$168/$AU$169)*$AU$169 -> 1966.25 | BB136: 1919.455175 | BC136: 1791.113939 | BD136: 1614.256524 | BE136: 1434.399413 | BF136: 1297.831099 | BG136: 1239.699156 | BH136: 1238.952 | BI136: 1238.952 | BJ136: 1238.952 | BK136: 1238.952
AY137: 0.715 | AZ137: 500 | BA137: =$AY137*(BA96*$AU$167/$AU$169/11+$AU$168/$AU$169)*$AU$169 -> 1966.25 | BB137: 1930.237428 | BC137: 1829.332443 | BD137: 1683.520515 | BE137: 1521.681485 | BF137: 1375.869557 | BG137: 1274.964572 | BH137: 1238.952 | BI137: 1238.952 | BJ137: 1238.952 | BK137: 1238.952
AY138: 0.715 | AZ138: 600 | BA138: =$AY138*(BA97*$AU$167/$AU$169/11+$AU$168/$AU$169)*$AU$169 -> 1966.25 | BB138: 1937.694903 | BC138: 1856.514121 | BD138: 1735.456898 | BE138: 1593.534979 | BF138: 1453.036856 | BG138: 1336.02742 | BH138: 1260.882718 | BI138: 1238.952 | BJ138: 1238.952 | BK138: 1238.952
AY139: 0.715 | AZ139: 700 | BA139: =$AY139*(BA98*$AU$167/$AU$169/11+$AU$168/$AU$169)*$AU$169 -> 1966.25 | BB139: 1943.061874 | BC139: 1876.454686 | BD139: 1774.922865 | BE139: 1651.414793 | BF139: 1521.681485 | BG139: 1402.267864 | BH139: 1308.402779 | BI139: 1252.05687 | BJ139: 1238.952 | BK139: 1238.952
AY140: 0.715 | AZ140: 800 | BA140: =$AY140*(BA99*$AU$167/$AU$169/11+$AU$168/$AU$169)*$AU$169 -> 1966.25 | BB140: 1947.050427 | BC140: 1891.479069 | BD140: 1805.403926 | BE140: 1697.914015 | BF140: 1580.359623 | BG140: 1465.153787 | BH140: 1364.461549 | BI140: 1288.915403 | BJ140: 1246.492568 | BK140: 1238.952
AY141: 0.715 | AZ141: 900 | BA141: =$AY141*(BA100*$AU$167/$AU$169/11+$AU$168/$AU$169)*$AU$169 -> 1966.25 | BB141: 1950.094095 | BC141: 1903.061904 | BD141: 1829.332443 | BE141: 1735.456898 | BF141: 1629.776524 | BG141: 1521.681485 | BH141: 1420.7765 | BI141: 1336.02742 | BJ141: 1274.964572 | BK141: 1243.013659
AY142: 0.715 | AZ142: 1000 | BA142: =$AY142*(BA101*$AU$167/$AU$169/11+$AU$168/$AU$169)*$AU$169 -> 1966.25 | BB142: 1952.468801 | BC142: 1912.169736 | BD142: 1848.40723 | BE142: 1766.014097 | BF142: 1671.235238 | BG142: 1571.254318 | BH142: 1473.649287 | BI142: 1385.818018 | BJ142: 1314.417589 | BK142: 1264.859722
AY144: =BC2 -> Betriebszeit Tageslichtsteuerung
AY145: fBed | AZ145: =AZ131 -> Em | BA145: 0 | BB145: 0.05 | BC145: 0.1 | BD145: 0.15 | BE145: 0.2 | BF145: 0.25 | BG145: 0.3 | BH145: =BH131 -> 0.35 | BI145: 0.4 | BJ145: =BJ131 -> 0.45 | BK145: =BK131 -> 0.5
AY146: =AV166 -> 0.85 | AZ146: =AZ132 -> 0 | BA146: =$AY146*(BA104*$AU$167/$AU$169/11+$AU$168/$AU$169)*$AU$169 -> 2337.5 | BB146: 2052.654033 | BC146: 1412.610956 | BD146: 899.3362603 | BE146: 824.415 | BF146: 824.415 | BG146: 824.415 | BH146: 824.415 | BI146: 824.415 | BJ146: 824.415 | BK146: 824.415
AY147: =AY146 -> 0.85 | AZ147: 100 | BA147: =$AY147*(BA105*$AU$167/$AU$169/11+$AU$168/$AU$169)*$AU$169 -> 2337.5 | BB147: 2052.654033 | BC147: 1412.610956 | BD147: 899.3362603 | BE147: 824.415 | BF147: 824.415 | BG147: 824.415 | BH147: 824.415 | BI147: 824.415 | BJ147: 824.415 | BK147: 824.415
AY148: =AY147 -> 0.85 | AZ148: 200 | BA148: =$AY148*(BA106*$AU$167/$AU$169/11+$AU$168/$AU$169)*$AU$169 -> 2337.5 | BB148: 2150.68807 | BC148: 1682.510671 | BD148: 1164.18052 | BE148: 851.6786275 | BF148: 824.415 | BG148: 824.415 | BH148: 824.415 | BI148: 824.415 | BJ148: 824.415 | BK148: 824.415
AY149: 0.85 | AZ149: 300 | BA149: =$AY149*(BA107*$AU$167/$AU$169/11+$AU$168/$AU$169)*$AU$169 -> 2337.5 | BB149: 2206.042248 | BC149: 1857.353512 | BD149: 1412.610956 | BE149: 1026.372604 | BF149: 832.8649547 | BG149: 824.415 | BH149: 824.415 | BI149: 824.415 | BJ149: 824.415 | BK149: 824.415
AY150: 0.85 | AZ150: 400 | BA150: =$AY150*(BA108*$AU$167/$AU$169/11+$AU$168/$AU$169)*$AU$169 -> 2337.5 | BB150: 2240.147131 | BC150: 1973.14351 | BD150: 1605.205881 | BE150: 1231.027626 | BF150: 946.9082299 | BG150: 825.9693977 | BH150: 824.415 | BI150: 824.415 | BJ150: 824.415 | BK150: 824.415
AY151: 0.85 | AZ151: 500 | BA151: =$AY151*(BA109*$AU$167/$AU$169/11+$AU$168/$AU$169)*$AU$169 -> 2337.5 | BB151: 2262.57874 | BC151: 2052.654033 | BD151: 1749.304044 | BE151: 1412.610956 | BF151: 1109.260967 | BG151: 899.3362603 | BH151: 824.415 | BI151: 824.415 | BJ151: 824.415 | BK151: 824.415
AY152: 0.85 | AZ152: 600 | BA152: =$AY152*(BA110*$AU$167/$AU$169/11+$AU$168/$AU$169)*$AU$169 -> 2337.5 | BB152: 2278.093417 | BC152: 2109.203328 | BD152: 1857.353512 | BE152: 1562.096372 | BF152: 1269.801327 | BG152: 1026.372604 | BH152: 870.0400954 | BI152: 824.415 | BJ152: 824.415 | BK152: 824.415
AY153: 0.85 | AZ153: 700 | BA153: =$AY153*(BA111*$AU$167/$AU$169/11+$AU$168/$AU$169)*$AU$169 -> 2337.5 | BB153: 2289.25897 | BC153: 2150.68807 | BD153: 1939.459283 | BE153: 1682.510671 | BF153: 1412.610956 | BG153: 1164.18052 | BH153: 968.9017605 | BI153: 851.6786275 | BJ153: 824.415 | BK153: 824.415
AY154: 0.85 | AZ154: 800 | BA154: =$AY154*(BA112*$AU$167/$AU$169/11+$AU$168/$AU$169)*$AU$169 -> 2337.5 | BB154: 2297.556833 | BC154: 2181.945092 | BD154: 2002.872678 | BE154: 1779.248562 | BF154: 1534.686104 | BG154: 1295.009627 | BH154: 1085.527523 | BI154: 928.3598424 | BJ154: 840.1025452 | BK154: 824.415
AY155: 0.85 | AZ155: 900 | BA155: =$AY155*(BA113*$AU$167/$AU$169/11+$AU$168/$AU$169)*$AU$169 -> 2337.5 | BB155: 2303.888939 | BC155: 2206.042248 | BD155: 2052.654033 | BE155: 1857.353512 | BF155: 1637.493992 | BG155: 1412.610956 | BH155: 1202.68625 | BI155: 1026.372604 | BJ155: 899.3362603 | BK155: 832.8649547
AY156: 0.85 | AZ156: 1000 | BA156: =$AY156*(BA114*$AU$167/$AU$169/11+$AU$168/$AU$169)*$AU$169 -> 2337.5 | BB156: 2308.829324 | BC156: 2224.99036 | BD156: 2092.337594 | BE156: 1920.925307 | BF156: 1723.745512 | BG156: 1515.743249 | BH156: 1312.683832 | BI156: 1129.957939 | BJ156: 981.4150888 | BK156: 878.3139322
AY158: =BD2 -> Betriebszeit Tages-licht + Präsenz
AY159: fBed | AZ159: =AZ145 -> Em | BA159: 0 | BB159: 0.05 | BC159: 0.1 | BD159: 0.15 | BE159: 0.2 | BF159: 0.25 | BG159: 0.3 | BH159: =BH145 -> 0.35 | BI159: 0.4 | BJ159: =BJ145 -> 0.45 | BK159: =BK145 -> 0.5
AY160: =AW166 -> 0.715 | AZ160: =AZ146 -> 0 | BA160: =$AY160*(BA104*$AU$167/$AU$169/11+$AU$168/$AU$169)*$AU$169 -> 1966.25 | BB160: 1726.644275 | BC160: 1188.255099 | BD160: 756.5005013 | BE160: 693.4785 | BF160: 693.4785 | BG160: 693.4785 | BH160: 693.4785 | BI160: 693.4785 | BJ160: 693.4785 | BK160: 693.4785
AY161: =AY160 -> 0.715 | AZ161: 100 | BA161: =$AY161*(BA105*$AU$167/$AU$169/11+$AU$168/$AU$169)*$AU$169 -> 1966.25 | BB161: 1726.644275 | BC161: 1188.255099 | BD161: 756.5005013 | BE161: 693.4785 | BF161: 693.4785 | BG161: 693.4785 | BH161: 693.4785 | BI161: 693.4785 | BJ161: 693.4785 | BK161: 693.4785
AY162: =AY161 -> 0.715 | AZ162: 200 | BA162: =$AY162*(BA106*$AU$167/$AU$169/11+$AU$168/$AU$169)*$AU$169 -> 1966.25 | BB162: 1809.1082 | BC162: 1415.288388 | BD162: 979.2812613 | BE162: 716.4120219 | BF162: 693.4785 | BG162: 693.4785 | BH162: 693.4785 | BI162: 693.4785 | BJ162: 693.4785 | BK162: 693.4785
AY163: 0.715 | AZ163: 300 | BA163: =$AY163*(BA107*$AU$167/$AU$169/11+$AU$168/$AU$169)*$AU$169 -> 1966.25 | BB163: 1855.670832 | BC163: 1562.362072 | BD163: 1188.255099 | BE163: 863.3604848 | BF163: 700.586403 | BG163: 693.4785 | BH163: 693.4785 | BI163: 693.4785 | BJ163: 693.4785 | BK163: 693.4785
AY164: 0.715 | AZ164: 400 | BA164: =$AY164*(BA108*$AU$167/$AU$169/11+$AU$168/$AU$169)*$AU$169 -> 1966.25 | BB164: 1884.359057 | BC164: 1659.761893 | BD164: 1350.261417 | BE164: 1035.511473 | BF164: 796.5169228 | BG164: 694.7860228 | BH164: 693.4785 | BI164: 693.4785 | BJ164: 693.4785 | BK164: 693.4785
AV165: fman | AW165: fprä | AY165: 0.715 | AZ165: 500 | BA165: =$AY165*(BA109*$AU$167/$AU$169/11+$AU$168/$AU$169)*$AU$169 -> 1966.25 | BB165: 1903.227999 | BC165: 1726.644275 | BD165: 1471.473401 | BE165: 1188.255099 | BF165: 933.0842248 | BG165: 756.5005013 | BH165: 693.4785 | BI165: 693.4785 | BJ165: 693.4785 | BK165: 693.4785
AT166: RelAbw | AU166: =AU1 -> 0.3 | AV166: =IF(AU166>=0.9,1-AU166*0.95,1-AU166*0.5) -> 0.85 | AW166: =1-AU166*0.95 -> 0.715 | AY166: 0.715 | AZ166: 600 | BA166: =$AY166*(BA110*$AU$167/$AU$169/11+$AU$168/$AU$169)*$AU$169 -> 1966.25 | BB166: 1916.27858 | BC166: 1774.212211 | BD166: 1562.362072 | BE166: 1313.998713 | BF166: 1068.126998 | BG166: 863.3604848 | BH166: 731.8572568 | BI166: 693.4785 | BJ166: 693.4785 | BK166: 693.4785
AT167: hday | AU167: =AS1 -> 2543 | AY167: 0.715 | AZ167: 700 | BA167: =$AY167*(BA111*$AU$167/$AU$169/11+$AU$168/$AU$169)*$AU$169 -> 1966.25 | BB167: 1925.67078 | BC167: 1809.1082 | BD167: 1631.427514 | BE167: 1415.288388 | BF167: 1188.255099 | BG167: 979.2812613 | BH167: 815.0173633 | BI167: 716.4120219 | BJ167: 693.4785 | BK167: 693.4785
AT168: hnight | AU168: =AT1 -> 207 | AY168: 0.715 | AZ168: 800 | BA168: =$AY168*(BA112*$AU$167/$AU$169/11+$AU$168/$AU$169)*$AU$169 -> 1966.25 | BB168: 1932.650748 | BC168: 1835.400871 | BD168: 1684.769371 | BE168: 1496.662026 | BF168: 1290.941841 | BG168: 1089.331627 | BH168: 913.1202107 | BI168: 780.9144556 | BJ168: 706.6744939 | BK168: 693.4785
AT169: h/d | AU169: 11 | AY169: 0.715 | AZ169: 900 | BA169: =$AY169*(BA113*$AU$167/$AU$169/11+$AU$168/$AU$169)*$AU$169 -> 1966.25 | BB169: 1937.977167 | BC169: 1855.670832 | BD169: 1726.644275 | BE169: 1562.362072 | BF169: 1377.421417 | BG169: 1188.255099 | BH169: 1011.671375 | BI169: 863.3604848 | BJ169: 756.5005013 | BK169: 700.586403
AT170: d/a | AU170: =(AU167+AU168)/AU169 -> 250 | AY170: 0.715 | AZ170: 1000 | BA170: =$AY170*(BA114*$AU$167/$AU$169/11+$AU$168/$AU$169)*$AU$169 -> 1966.25 | BB170: 1942.132902 | BC170: 1871.609538 | BD170: 1760.025153 | BE170: 1615.83717 | BF170: 1449.974166 | BG170: 1275.007557 | BH170: 1104.198753 | BI170: 950.4940311 | BJ170: 825.5432806 | BK170: 738.8170136
BA172: 2 | BB172: =BA172+1 -> 3 | BC172: =BB172+1 -> 4 | BD172: 5 | BE172: 6 | BF172: 7 | BG172: 8 | BH172: 9 | BI172: 10 | BJ172: 11 | BK172: 12
BA173: =BA159 -> 0 | BB173: =BB159 -> 0.05 | BC173: 0.1 | BD173: 0.15 | BE173: 0.2 | BF173: 0.25 | BG173: 0.3 | BH173: 0.35 | BI173: 0.4 | BJ173: 0.45 | BK173: 0.5
AY174: =AY116 -> Betriebszeit manuelle Steuerung | AZ174: 500 | BA174: =VLOOKUP($AZ174,$AZ$118:$BK$128,BA$172,FALSE) -> 2337.5 | BB174: 2294.687851 | BC174: 2174.730876 | BD174: 2001.388025 | BE174: 1808.991975 | BF174: 1635.649124 | BG174: 1515.692149 | BH174: 1472.88 | BI174: 1472.88 | BJ174: 1472.88 | BK174: 1472.88
AY175: =AY130 -> Betriebszeit Präsenzerfassung | AZ175: =AZ174 -> 500 | BA175: =VLOOKUP($AZ175,$AZ$132:$BK$142,BA$172,FALSE) -> 1966.25 | BB175: 1930.237428 | BC175: 1829.332443 | BD175: 1683.520515 | BE175: 1521.681485 | BF175: 1375.869557 | BG175: 1274.964572 | BH175: 1238.952 | BI175: 1238.952 | BJ175: 1238.952 | BK175: 1238.952
AY176: =AY144 -> Betriebszeit Tageslichtsteuerung | AZ176: =AZ175 -> 500 | BA176: =VLOOKUP($AZ176,$AZ$146:$BK$156,BA$172,FALSE) -> 2337.5 | BB176: 2262.57874 | BC176: 2052.654033 | BD176: 1749.304044 | BE176: 1412.610956 | BF176: 1109.260967 | BG176: 899.3362603 | BH176: 824.415 | BI176: 824.415 | BJ176: 824.415 | BK176: 824.415
AY177: =AY158 -> Betriebszeit Tages-licht + Präsenz | AZ177: 500 | BA177: =VLOOKUP($AZ177,$AZ$160:$BK$170,BA$172,FALSE) -> 1966.25 | BB177: 1903.227999 | BC177: 1726.644275 | BD177: 1471.473401 | BE177: 1188.255099 | BF177: 933.0842248 | BG177: 756.5005013 | BH177: 693.4785 | BI177: 693.4785 | BJ177: 693.4785 | BK177: 693.4785
AY178: ="Vollbetriebszeit bei "&AZ174&" Lux "&AU169&" h/d und "&AU170&" d/a" -> Vollbetriebszeit bei 500 Lux 11 h/d und 250 d/a
AY180: =AY174 -> Betriebszeit manuelle Steuerung | AZ180: =AZ174 -> 500 | BA180: =BA174/($AU$167+$AU$168) -> 0.85 | BB180: 0.8344319459 | BC180: 0.7908112277 | BD180: 0.7277774636 | BE180: 0.6578152637 | BF180: 0.5947814995 | BG180: 0.5511607814 | BH180: 0.5355927273 | BI180: 0.5355927273 | BJ180: 0.5355927273 | BK180: 0.5355927273
AY181: =AY175 -> Betriebszeit Präsenzerfassung | AZ181: =AZ175 -> 500 | BA181: =BA175/($AU$167+$AU$168) -> 0.715 | BB181: 0.7019045192 | BC181: 0.6652117974 | BD181: 0.6121892782 | BE181: 0.5533387218 | BF181: 0.5003162026 | BG181: 0.4636234808 | BH181: 0.450528 | BI181: 0.450528 | BJ181: 0.450528 | BK181: 0.450528
AY182: Betriebszeit Tageslichtsteuerung | AZ182: 500 | BA182: =BA176/($AU$167+$AU$168) -> 0.85 | BB182: 0.8227559054 | BC182: 0.7464196485 | BD182: 0.6361105613 | BE182: 0.5136767114 | BF182: 0.4033676242 | BG182: 0.3270313674 | BH182: 0.2997872727 | BI182: 0.2997872727 | BJ182: 0.2997872727 | BK182: 0.2997872727
AY183: Betriebszeit Tages-licht + Präsenz | AZ183: 500 | BA183: =BA177/($AU$167+$AU$168) -> 0.715 | BB183: 0.6920829086 | BC183: 0.6278706455 | BD183: 0.5350812369 | BE183: 0.4320927631 | BF183: 0.3393033545 | BG183: 0.2750910914 | BH183: 0.252174 | BI183: 0.252174 | BJ183: 0.252174 | BK183: 0.252174
AY184: ="Tageslichtautonomie bei "&AZ180&" Lux "&AU169&" h/d und "&AU170&" d/a" -> Tageslichtautonomie bei 500 Lux 11 h/d und 250 d/a

Sheet DATA (hidden)
AO1: Daten Restkonstruktion | AP1: Dicke in cm | AQ1: Lambda W/(mK)
B2: DIN V 18599: 2011, Teil 4 (aktuelle Ausgabe), 06.03.2014 | N2: Fördersätze | T2: Regression | AA2: 3 | AK2: ESIV | AO2: Dicke sonstige Bauteile | AP2: 20 | AT2: Lambda sonstige Bauteile | AU2: 2.1
O3: Büro | P3: Verkehr | Q3: sonst | T3: Förd. | U3: Kosten | AE3: Listbox_Effizienzstandard | AG3: Fördergeld | AL3: U-Wert | AM3: U-Wert | AQ3: Dicke | AR3: Dicke | AY3: energiebed. Mehrkosten | BB3: Vollkosten | BH3: Trend der Mehrkosten für Verglasung in Abhängigkeit von Uw
N4: Beleuchtung | O4: =O20 -> 500 | P4: =P20 -> 100 | Q4: =Q20 -> 300 | S4: b | T4: =INTERCEPT(O7:Q7,O4:Q4) -> 4.712125 | U4: =INTERCEPT(O5:Q5,O4:Q4) -> 15.70708333 | AE4: Liste_Effizienzstandard | AG4: =no_value -> - | AH4: ESI | AI4: ESII | AJ4: ESIII | AK4: ESIV | AL4: =no_value -> - | AM4: ESI | AN4: ESII | AO4: ESIII | AP4: =AU4 -> ESIV | AQ4: =no_value -> - | AR4: =AM4 -> ESI | AS4: =AN4 -> ESII | AT4: ESIII | AU4: ESIV | AV4: Rse | AW4: Rsi | AX4: l | AY4: Umin | AZ4: Dmin | BA4: €Basis | BB4: UAltbau | BC4: Daltbau | BD4: €Altbau | BH4: =AM8 -> 0.75 | BI4: =AN8 -> 0.8 | BJ4: =AO8 -> 0.85 | BK4: =AP8 -> 0.9 | BL4: =BH4 -> 0.75 | BM4: =BK4 -> 0.9
N5: Kosten (d/i) | O5: =O21*(1+f_planung)*(1+f_MWST) -> 63.25 | P5: =P21*(1+f_planung)*(1+f_MWST) -> 24.035 | Q5: =Q21*(1+f_planung)*(1+f_MWST) -> 48.07 | S5: m | T5: =SLOPE(O7:Q7,O4:Q4) -> 0.02941125 | U5: =SLOPE(O5:Q5,O4:Q4) -> 0.0980375 | AA5: 0.7 | AC5: 1 | AD5: =AC5+1 -> 2 | AE5: =AD5+1 -> 3 | AF5: 4 | AG5: 5 | AH5: 6 | AI5: 7 | AJ5: 8 | AK5: 9 | AL5: 10 | AM5: 11 | AN5: 12 | AO5: 13 | AP5: 14 | AQ5: 15 | AR5: 16 | AS5: 17 | AT5: 18 | AU5: 19 | AV5: 20 | AW5: 21 | AX5: 22 | AY5: 23 | AZ5: 24 | BA5: 25 | BB5: 26 | BC5: 27 | BD5: 28 | BH5: 90 | BI5: =TREND($BL$5:$BM$5,$BL$4:$BM$4,BI4) -> 70 | BJ5: =TREND($BL$5:$BM$5,$BL$4:$BM$4,BJ4) -> 50 | BK5: 30 | BL5: =BH5 -> 90 | BM5: =BK5 -> 30
N6: Begrenzung | O6: 0.3 | P6: =O6 -> 0.3 | Q6: =P6 -> 0.3 | S6: min | T6: 0 | U6: 0 | AA6: =IF(AA5<=INDEX($AM$6:$AM$20,AA2),$AM$4,IF(AA5<=INDEX($AN$6:$AN$20,AA2),$AN$4,IF(AA5<=INDEX($AO$6:$AO$20,AA2),$AO$4,IF(AA5<=INDEX($AP$6:$AP$20,$AA$2),AP4,"-")))) -> ESI | AB6: 1 | AC6: - | AD6: 1 | AE6: =no_value -> - | AF6: - | AG6: - | AH6: - | AI6: - | AJ6: - | AK6: - | AL6: - | AM6: - | AN6: - | AO6: - | AP6: - | AQ6: - | AR6: - | AS6: - | AT6: - | AU6: - | AV6: - | AW6: - | AX6: - | AY6: - | AZ6: - | BA6: - | BB6: - | BC6: =BB6 -> - | BD6: -
N7: Kosten_Förder | O7: =O5*O6 -> 18.975 | P7: =P5*P6 -> 7.2105 | Q7: =Q5*Q6 -> 14.421 | S7: max | T7: =O7*V7 -> 15.18 | U7: =O5 -> 63.25 | V7: 0.8 | AB7: 2 | AC7: Außenwand | AD7: =AD6+1 -> 2 | AE7: 1 | AF7: 1 | AG7: =no_value -> - | AH7: 36 | AI7: 30 | AJ7: 25 | AK7: 20 | AL7: =no_value -> - | AM7: 0.12 | AN7: 0.17 | AO7: 0.23 | AP7: =ROUND(1/(AV7+AW7+(AU7/100)/AX7+($AP$2/100)/$AU$2),2) -> 0.27 | AQ7: =no_value -> - | AR7: =IF($AF7=1,ROUNDUP((1/AM7-$AV7-$AW7)*$AX7*100,0),no_value) -> 29 | AS7: =IF($AF7=1,ROUNDUP((1/AN7-$AV7-$AW7)*$AX7*100,0),no_value) -> 20 | AT7: =IF($AF7=1,ROUNDUP((1/AO7-$AV7-$AW7)*$AX7*100,0),no_value) -> 15 | AU7: 12 | AV7: 0.04 | AW7: 0.13 | AX7: 0.035 | AY7: 0.32 | AZ7: =IF($AF7=1,ROUNDUP((1/AY7-$AV7-$AW7-($AP$2/100)/$AU$2)*$AX7*100,0),no_value) -> 11 | BA7: 20 | BB7: 0.9 | BC7: =IF($AF7=1,ROUNDUP((1/BB7-$AV7-$AW7-($AP$2/100)/$AU$2)*$AX7*100,0),no_value) -> 3 | BD7: 90
AB8: 3 | AC8: Außenfenster Nord | AD8: =AD7+1 -> 3 | AE8: 1 | AF8: 0 | AG8: - | AH8: 52 | AI8: 48 | AJ8: 44 | AK8: 40 | AL8: - | AM8: 0.75 | AN8: 0.8 | AO8: 0.85 | AP8: 0.9 | AQ8: - | AR8: =IF($AF8=1,ROUNDUP((1/AM8-$AV8-$AW8)*$AX8*100,0),no_value) -> - | AS8: - | AT8: - | AU8: - | AV8: 0.04 | AW8: 0.13 | AX8: =AX7 -> 0.035 | AY8: 1.5 | AZ8: - | BA8: 0 | BB8: 2.7 | BC8: - | BD8: 380 | BF8: Einfluss der Preissteigerung auf alle Inestitionskosten | BL8: 0.02
N9: Präsenz | O9: =O4 -> 500 | P9: =P4 -> 100 | Q9: 300 | S9: b | T9: =INTERCEPT(O12:Q12,O4:Q4) -> 0.94875 | U9: =INTERCEPT(O10:Q10,O4:Q4) -> 3.1625 | AB9: 4 | AC9: Außenfenster Süd | AD9: 4 | AE9: 0.9 | AF9: 0 | AG9: - | AH9: =AH8 -> 52 | AI9: =AI8 -> 48 | AJ9: 44 | AK9: 40 | AL9: - | AM9: =AM8 -> 0.75 | AN9: =AN8 -> 0.8 | AO9: 0.85 | AP9: 0.9 | AQ9: - | AR9: - | AS9: - | AT9: - | AU9: - | AV9: 0.04 | AW9: 0.13 | AX9: =AX8 -> 0.035 | AY9: =AY8 -> 1.5 | AZ9: - | BA9: =BA8 -> 0 | BB9: =BB8 -> 2.7 | BC9: - | BD9: =BD8 -> 380 | BF9: Teuerungsfaktor | BG9: 2014 | BH9: =BG9+1 -> 2015 | BI9: =BH9+1 -> 2016 | BJ9: 2017 | BK9: 2018 | BL9: 2014
N10: Kosten | O10: =O22*(1+f_planung)*(1+f_MWST) -> 12.65 | P10: =P22*(1+f_planung)*(1+f_MWST) -> 5.06 | Q10: =Q22*(1+f_planung)*(1+f_MWST) -> 8.855 | S10: m | T10: =SLOPE(O12:Q12,O4:Q4) -> 0.0056925 | U10: =SLOPE(O10:Q10,O4:Q4) -> 0.018975 | AB10: 5 | AC10: Außenfenster Ost/West | AD10: 5 | AE10: 0.95 | AF10: 0 | AG10: - | AH10: =AH8 -> 52 | AI10: 48 | AJ10: 44 | AK10: 40 | AL10: - | AM10: =AM9 -> 0.75 | AN10: 0.8 | AO10: 0.85 | AP10: 0.9 | AQ10: - | AR10: - | AS10: - | AT10: - | AU10: - | AV10: 0.04 | AW10: 0.13 | AX10: 0.035 | AY10: =AY9 -> 1.5 | AZ10: - | BA10: =BA9 -> 0 | BB10: =BB9 -> 2.7 | BC10: - | BD10: =BD9 -> 380 | BF10: Wärmedämmung | BG10: 1 | BH10: =BG10+BG10*$BL$8 -> 1.02 | BI10: 1.0404 | BJ10: 1.061208 | BK10: 1.08243216 | BL10: =HLOOKUP($BL$9,$BG$9:$BK$12,BM10,FALSE) -> 1 | BM10: 2
N11: Begrenzung | O11: 0.3 | P11: =O11 -> 0.3 | Q11: =P11 -> 0.3 | S11: min | T11: 0 | U11: 0 | AB11: 6 | AC11: Wand zu unbeheiztem Dachraum | AD11: 6 | AE11: 0.9 | AF11: 1 | AG11: - | AH11: 14 | AI11: 13 | AJ11: 13 | AK11: 12 | AL11: - | AM11: 0.15 | AN11: 0.22 | AO11: 0.28 | AP11: =ROUND(1/(AV11+AW11+(AU11/100)/AX11+($AP$2/100)/$AU$2),2) -> 0.38 | AQ11: - | AR11: 23 | AS11: 15 | AT11: 12 | AU11: 8 | AV11: 0.13 | AW11: 0.13 | AX11: 0.035 | AY11: 0.4 | AZ11: 8 | BA11: 10 | BB11: 0.9 | BC11: 3 | BD11: 40 | BF11: Lüftung | BG11: 1 | BH11: 1.02 | BI11: 1.0404 | BJ11: 1.061208 | BK11: 1.08243216 | BL11: =HLOOKUP($BL$9,$BG$9:$BK$12,BM11,FALSE) -> 1 | BM11: 3
N12: Kosten_Förder | O12: =O10*O11 -> 3.795 | P12: =P10*P11 -> 1.518 | Q12: =Q10*Q11 -> 2.6565 | S12: max | T12: =O12*V12 -> 3.036 | U12: =O10 -> 12.65 | V12: 0.8 | AB12: 8 | AC12: Wand gegen Erdreich | AD12: 7 | AE12: 0.65 | AF12: 1 | AG12: - | AH12: =AH11 -> 14 | AI12: =AI11 -> 13 | AJ12: 13 | AK12: 12 | AL12: - | AM12: =AM11 -> 0.15 | AN12: =AN11 -> 0.22 | AO12: 0.28 | AP12: 0.4 | AQ12: - | AR12: 23 | AS12: 16 | AT12: 13 | AU12: =AU11 -> 8 | AV12: 0 | AW12: 0.13 | AX12: 0.035 | AY12: =AY11 -> 0.4 | AZ12: 8 | BA12: =BA11 -> 10 | BB12: 0.9 | BC12: 4 | BD12: =BD11 -> 40 | BF12: Beleuchtung | BG12: 1 | BH12: 1.02 | BI12: 1.0404 | BJ12: 1.061208 | BK12: 1.08243216 | BL12: 1 | BM12: 4
B13: Raumindex k | C13: 0.6 | D13: 0.8 | E13: 1 | F13: 1.25 | G13: 1.5 | H13: 2 | I13: 2.5 | J13: 3 | K13: 4 | L13: 5 | AB13: 9 | AC13: Wand gegen unbeheizt | AD13: 8 | AE13: 0.8 | AF13: 1 | AG13: - | AH13: =AH12 -> 14 | AI13: 13 | AJ13: 13 | AK13: 12 | AL13: - | AM13: =AM12 -> 0.15 | AN13: 0.22 | AO13: 0.28 | AP13: 0.38 | AQ13: - | AR13: 23 | AS13: 15 | AT13: 12 | AU13: =AU12 -> 8 | AV13: 0.13 | AW13: 0.13 | AX13: 0.035 | AY13: =AY12 -> 0.4 | AZ13: 8 | BA13: =BA12 -> 10 | BB13: 0.9 | BC13: 3 | BD13: =BD12 -> 40
B14: Direkt | C14: 0.5 | D14: 0.61 | E14: 0.69 | F14: 0.78 | G14: 0.84 | H14: 0.9 | I14: 0.95 | J14: 0.99 | K14: 1.03 | L14: 1.05 | N14: Dimmung | O14: =O9 -> 500 | P14: =P9 -> 100 | Q14: 300 | S14: b | T14: =INTERCEPT(O17:Q17,O4:Q4) -> 1.1385 | U14: =INTERCEPT(O15:Q15,O4:Q4) -> 3.795 | AB14: 10 | AC14: Dach/Decke gegen außen | AD14: 9 | AE14: 1 | AF14: 1 | AG14: - | AH14: 42 | AI14: 33 | AJ14: 24 | AK14: 15 | AL14: - | AM14: 0.1 | AN14: 0.13 | AO14: 0.17 | AP14: 0.19 | AQ14: - | AR14: 35 | AS14: 27 | AT14: 21 | AU14: 18 | AV14: 0.04 | AW14: 0.1 | AX14: 0.035 | AY14: 0.25 | AZ14: 14 | BA14: 15 | BB14: 0.9 | BC14: 4 | BD14: 90 | BJ14: Dämmstoffkosten | BK14: 2.4 | BL14: €/m² je cm
B15: Direkt/Indirekt | C15: 0.29 | D15: 0.37 | E15: 0.43 | F15: 0.5 | G15: 0.55 | H15: 0.62 | I15: 0.67 | J15: 0.71 | K15: 0.76 | L15: 0.79 | N15: Kosten | O15: =O23*(1+f_planung)*(1+f_MWST) -> 22.77 | P15: =P23*(1+f_planung)*(1+f_MWST) -> 7.59 | Q15: =Q23*(1+f_planung)*(1+f_MWST) -> 15.18 | S15: m | T15: =SLOPE(O17:Q17,O4:Q4) -> 0.011385 | U15: =SLOPE(O15:Q15,O4:Q4) -> 0.03795 | AB15: 11 | AC15: Decke gegen zu unbeheiztem Dachraum | AD15: 10 | AE15: 0.9 | AF15: 1 | AG15: - | AH15: 35 | AI15: 27 | AJ15: 18 | AK15: 10 | AL15: - | AM15: =AM14 -> 0.1 | AN15: =AN14 -> 0.13 | AO15: 0.17 | AP15: 0.18 | AQ15: - | AR15: 35 | AS15: 27 | AT15: 20 | AU15: =AU14 -> 18 | AV15: 0.1 | AW15: 0.1 | AX15: =AX7 -> 0.035 | AY15: 0.3 | AZ15: 11 | BA15: 8 | BB15: 0.9 | BC15: 3 | BD15: 45 | BK15: C_cm_WB
B16: Indirekt | C16: 0.17 | D16: 0.23 | E16: 0.29 | F16: 0.36 | G16: 0.41 | H16: 0.48 | I16: 0.53 | J16: 0.57 | K16: 0.62 | L16: 0.65 | N16: Begrenzung | O16: 0.3 | P16: =O16 -> 0.3 | Q16: =P16 -> 0.3 | S16: min | T16: 0 | U16: 0 | AB16: 12 | AC16: Fußboden gegen Außenluft | AD16: 11 | AE16: 1 | AF16: 1 | AG16: - | AH16: =AH7 -> 36 | AI16: =AI7 -> 30 | AJ16: 25 | AK16: 20 | AL16: - | AM16: 0.12 | AN16: 0.17 | AO16: 0.23 | AP16: 0.26 | AQ16: - | AR16: 28 | AS16: 20 | AT16: 15 | AU16: =AU7 -> 12 | AV16: 0.17 | AW16: 0.17 | AX16: 0.035 | AY16: =AY7 -> 0.32 | AZ16: 10 | BA16: =BA7 -> 20 | BB16: 0.9 | BC16: 3 | BD16: =BD7 -> 90
N17: Kosten_Förder | O17: =O15*O16 -> 6.831 | P17: =P15*P16 -> 2.277 | Q17: =Q15*Q16 -> 4.554 | S17: max | T17: =O17*V17 -> 5.4648 | U17: =O15 -> 22.77 | V17: 0.8 | AB17: 13 | AC17: Fußboden auf Erdreich | AD17: 12 | AE17: 0.65 | AF17: 1 | AG17: - | AH17: =AH11 -> 14 | AI17: =AI11 -> 13 | AJ17: 13 | AK17: 12 | AL17: - | AM17: =AM13 -> 0.15 | AN17: =AN13 -> 0.22 | AO17: =AO13 -> 0.28 | AP17: 0.39 | AQ17: - | AR17: 23 | AS17: 16 | AT17: 12 | AU17: =AU11 -> 8 | AV17: 0 | AW17: 0.17 | AX17: 0.035 | AY17: =AY11 -> 0.4 | AZ17: 8 | BA17: =BA11 -> 10 | BB17: 0.9 | BC17: 3 | BD17: =BD11 -> 40
N18: Mindestfensterflächenateil für Förderung Tageslicht | T18: 0.1 | U18: m²/m² | AB18: 14 | AC18: Fußboden eines beheizten Kellers | AD18: 13 | AE18: 0.55 | AF18: 1 | AG18: - | AH18: =AH17 -> 14 | AI18: =AI17 -> 13 | AJ18: 13 | AK18: 12 | AL18: - | AM18: =AM17 -> 0.15 | AN18: =AN17 -> 0.22 | AO18: 0.28 | AP18: 0.39 | AQ18: - | AR18: 23 | AS18: 16 | AT18: 12 | AU18: =AU17 -> 8 | AV18: 0 | AW18: 0.17 | AX18: 0.035 | AY18: =AY17 -> 0.4 | AZ18: 8 | BA18: =BA17 -> 10 | BB18: 0.9 | BC18: 3 | BD18: =BD17 -> 40
J19: Regression | K19: y=a0*ln(x)+a1 | T19: f_day_min | AB19: 17 | AC19: Kellerdecke | AD19: 14 | AE19: 0.55 | AF19: 1 | AG19: - | AH19: =AH18 -> 14 | AI19: 13 | AJ19: 13 | AK19: 12 | AL19: - | AM19: =AM18 -> 0.15 | AN19: 0.22 | AO19: 0.28 | AP19: 0.37 | AQ19: - | AR19: 23 | AS19: 15 | AT19: 12 | AU19: =AU18 -> 8 | AV19: 0.17 | AW19: 0.17 | AX19: 0.035 | AY19: =AY18 -> 0.4 | AZ19: 8 | BA19: =BA15 -> 8 | BB19: 0.9 | BC19: 3 | BD19: =BD15 -> 45
J20: Leuchten_Art | K20: a0 | L20: a1 | N20: Kosten | O20: 500 | P20: 100 | Q20: 300 | AB20: 19 | AC20: Aufgeständerter Fußboden | AD20: 15 | AE20: 0.9 | AF20: 1 | AG20: - | AH20: 14 | AI20: 13 | AJ20: 13 | AK20: 12 | AL20: - | AM20: 0.15 | AN20: 0.22 | AO20: 0.28 | AP20: 0.37 | AQ20: - | AR20: 23 | AS20: 15 | AT20: 12 | AU20: =AU19 -> 8 | AV20: 0.17 | AW20: 0.17 | AX20: 0.035 | AY20: 0.4 | AZ20: 8 | BA20: =BA18 -> 10 | BB20: 0.9 | BC20: 3 | BD20: =BD18 -> 40
J21: =B14 -> Direkt | K21: =INDEX(LINEST(C14:L14,LN($C$13:$L$13)),1) -> 0.2604538575 | L21: =INDEX(LINEST(C14:L14,LN($C$13:$L$13)),1,2) -> 0.6881869405 | N21: Beleuchtung | O21: =50 -> 50 | P21: 19 | Q21: 38 | AC21: Listbox_Bauteile | BD21: Liste_Bauteile
J22: =B15 -> Direkt/Indirekt | K22: =INDEX(LINEST(C15:L15,LN($C$13:$L$13)),1) -> 0.2408902232 | L22: =INDEX(LINEST(C15:L15,LN($C$13:$L$13)),1,2) -> 0.4341394885 | N22: Präsenz | O22: 10 | P22: =O29 -> 4 | Q22: 7 | AG22: Bestimmung von Heizgrattagstunden in Abhängigkeit der Raumtemperatur
J23: =B16 -> Indirekt | K23: =INDEX(LINEST(C16:L16,LN($C$13:$L$13)),1) -> 0.2360562805 | L23: =INDEX(LINEST(C16:L16,LN($C$13:$L$13)),1,2) -> 0.2988457336 | N23: Dimmung | O23: 18 | P23: =P29 -> 6 | Q23: 12 | AI23: mittlere Jahresraumtemperatur (inkl Absenkung) | AJ23: 15 | AK23: =AJ23+1 -> 16 | AL23: 17 | AM23: 18 | AN23: =AM23+1 -> 19 | AO23: 20 | AP23: 21 | AQ23: 22 | AR23: 23 | AS23: 24 | AT23: 25 | AU23: 26 | AV23: 27 | AW23: 28 | AY23: Verwendete Klimadaten
AI24: Jan | AJ24: =(AJ$23-$AL49) -> 15 | AK24: 16 | AL24: 17 | AM24: 18 | AN24: 19 | AO24: 20 | AP24: 21 | AQ24: 22 | AR24: 23 | AS24: 24 | AT24: 25 | AU24: 26 | AV24: 27 | AW24: 28 | AY24: 15 | AZ24: 1 | BA24: =$BD$24*AY24+$BD$25 -> 70.944 | BB24: kKh/a | BC24: a0 | BD24: =SLOPE(AJ37:AW37,AJ23:AW23) -> 4.44 | BF24: Liste_Innentemp | BG24: HGT
N25: Nebenrechnung, Bestimmung Kosten für 100 Lux (ohne Steuern) | AI25: Feb | AJ25: =(AJ$23-$AL50) -> 13.9 | AK25: 14.9 | AL25: 15.9 | AM25: 16.9 | AN25: 17.9 | AO25: 18.9 | AP25: 19.9 | AQ25: 20.9 | AR25: 21.9 | AS25: 22.9 | AT25: 23.9 | AU25: 24.9 | AV25: 25.9 | AW25: 26.9 | AY25: =AY24+1 -> 16 | AZ25: 2 | BA25: 75.384 | BB25: kKh/a | BC25: a1 | BD25: =INTERCEPT(AJ37:AW37,AJ23:AW23) -> 4.344 | BF25: schwach beheizt (Werkhalle) | BG25: =BA26*f_SolGain -> 53.216
I26: Die grüne Gleichung wird genutzt, | N26: Em | O26: Präsenz | P26: Dimming | AI26: Mrz | AJ26: =(AJ$23-$AL51) -> 11 | AK26: 12 | AL26: 13 | AM26: 14 | AN26: 15 | AO26: 16 | AP26: 17 | AQ26: 18 | AR26: 19 | AS26: 20 | AT26: 21 | AU26: 22 | AV26: 23 | AW26: 24 | AY26: 17 | AZ26: 3 | BA26: 79.824 | BB26: kKh/a | BC26: Tr | BD26: 21 | BF26: normal beheizt (Standard) | BG26: =BA29*f_SolGain -> 62.096
I27: da die Anforderung: direkt/indirekt | N27: =O20 -> 500 | O27: =O22 -> 10 | P27: =O23 -> 18 | AI27: Apr | AJ27: =(AJ$23-$AL52) -> 7.5 | AK27: 8.5 | AL27: 9.5 | AM27: 10.5 | AN27: 11.5 | AO27: 12.5 | AP27: 13.5 | AQ27: 14.5 | AR27: 15.5 | AS27: 16.5 | AT27: 17.5 | AU27: 18.5 | AV27: 19.5 | AW27: 20.5 | AY27: 18 | AZ27: 4 | BA27: 84.264 | BB27: kKh/a | BC27: HGT | BD27: =BD24*BD26+BD25 -> 97.584 | BF27: stark beheizt (Schwimmbad) | BG27: =BA33*f_SolGain -> 73.936
I28: 06.03.2014, MLI/PJA | N28: =Q20 -> 300 | O28: =Q22 -> 7 | P28: =Q23 -> 12 | AI28: Mai | AJ28: =(AJ$23-$AL53) -> 3.2 | AK28: 4.2 | AL28: 5.2 | AM28: 6.2 | AN28: 7.2 | AO28: 8.2 | AP28: 9.2 | AQ28: 10.2 | AR28: 11.2 | AS28: 12.2 | AT28: 13.2 | AU28: 14.2 | AV28: 15.2 | AW28: 16.2 | AY28: 19 | AZ28: 5 | BA28: 88.704 | BB28: kKh/a | BF28: Anpassungsfaktor für Gewinne | BG28: =2/3 -> 0.6666666667 | BH28: f_SolGain
N29: =P20 -> 100 | O29: =TREND(O27:O28,$N$27:$N$28,$N$29) -> 4 | P29: =TREND(P27:P28,$N$27:$N$28,$N$29) -> 6 | AI29: Jun | AJ29: =(AJ$23-$AL54) -> 0.1 | AK29: 1.1 | AL29: 2.1 | AM29: 3.1 | AN29: 4.1 | AO29: 5.1 | AP29: 6.1 | AQ29: 7.1 | AR29: 8.1 | AS29: 9.1 | AT29: 10.1 | AU29: 11.1 | AV29: 12.1 | AW29: 13.1 | AY29: 20 | AZ29: 6 | BA29: 93.144 | BB29: kKh/a
B30: Randbedingungen für Mindestanforderungen Beleuchtung | I30: Allgemenes | AI30: Jul | AJ30: =(AJ$23-$AL55) -> -1.9 | AK30: -0.9 | AL30: 0.1 | AM30: 1.1 | AN30: 2.1 | AO30: 3.1 | AP30: 4.1 | AQ30: 5.1 | AR30: 6.1 | AS30: 7.1 | AT30: 8.1 | AU30: 9.1 | AV30: 10.1 | AW30: 11.1 | AY30: 21 | AZ30: 7 | BA30: 97.584 | BB30: kKh/a
B31: WF | C31: 0.8 | D31: f_WF | N31: Gleichungen für Förderung, Werte in €/m² | AI31: Aug | AJ31: =(AJ$23-$AL56) -> -1.4 | AK31: -0.4 | AL31: 0.6 | AM31: 1.6 | AN31: 2.6 | AO31: 3.6 | AP31: 4.6 | AQ31: 5.6 | AR31: 6.6 | AS31: 7.6 | AT31: 8.6 | AU31: 9.6 | AV31: 10.6 | AW31: 11.6 | AY31: =AY30+1 -> 22 | AZ31: 8 | BA31: 102.024 | BB31: kKh/a
B32: lm/W | C32: 80 | D32: f_lm | I32: û | J32: fail | N32: Em, 18599 | O32: 0 | P32: 75 | Q32: =P4 -> 100 | R32: =Q4 -> 300 | S32: =O4 -> 500 | T32: =S32+250 -> 750 | U32: =T32+250 -> 1000 | AI32: Sep | AJ32: =(AJ$23-$AL57) -> 1.6 | AK32: 2.6 | AL32: 3.6 | AM32: 4.6 | AN32: 5.6 | AO32: 6.6 | AP32: 7.6 | AQ32: 8.6 | AR32: 9.6 | AS32: 10.6 | AT32: 11.6 | AU32: 12.6 | AV32: 13.6 | AW32: 14.6 | AY32: =AY31+1 -> 23 | AZ32: 9 | BA32: 106.464 | BB32: kKh/a
B33: Wirkungsgrad | C33: 0.75 | D33: f_nlb | I33: ü | J33: pass | N33: =N4 -> Beleuchtung | O33: =P33 -> 6.91796875 | P33: =MIN($T$5*P$32+$T$4,$T$7) -> 6.91796875 | Q33: 7.65325 | R33: 13.5355 | S33: 15.18 | T33: 15.18 | U33: 15.18 | AI33: Okt | AJ33: =(AJ$23-$AL58) -> 5.9 | AK33: 6.9 | AL33: 7.9 | AM33: 8.9 | AN33: 9.9 | AO33: 10.9 | AP33: 11.9 | AQ33: 12.9 | AR33: 13.9 | AS33: 14.9 | AT33: 15.9 | AU33: 16.9 | AV33: 17.9 | AW33: 18.9 | AY33: =AY32+1 -> 24 | AZ33: 10 | BA33: 110.904 | BB33: kKh/a
B34: F_requi | C34: 0.15 | D34: f_bel_req | F34: Anpassung der anf. | N34: =N9 -> Präsenz | O34: =P34 -> 1.3756875 | P34: =MIN($T$12,$T$10*P$32+$T$9) -> 1.3756875 | Q34: 1.518 | R34: 2.6565 | S34: 3.036 | T34: 3.036 | U34: 3.036 | AI34: Nov | AJ34: =(AJ$23-$AL59) -> 11.2 | AK34: 12.2 | AL34: 13.2 | AM34: 14.2 | AN34: 15.2 | AO34: 16.2 | AP34: 17.2 | AQ34: 18.2 | AR34: 19.2 | AS34: 20.2 | AT34: 21.2 | AU34: 22.2 | AV34: 23.2 | AW34: 24.2 | AY34: =AY33+1 -> 25 | AZ34: 11 | BA34: 115.344 | BB34: kKh/a
I35: janein | N35: =N14 -> Dimmung | O35: =P35 -> 1.992375 | P35: =MIN($T$17,$T$15*P$32+$T$14) -> 1.992375 | Q35: 2.277 | R35: 4.554 | S35: 5.4648 | T35: 5.4648 | U35: 5.4648 | AI35: Dez | AJ35: =(AJ$23-$AL60) -> 14 | AK35: 15 | AL35: 16 | AM35: 17 | AN35: 18 | AO35: 19 | AP35: 20 | AQ35: 21 | AR35: 22 | AS35: 23 | AT35: 24 | AU35: 25 | AV35: 26 | AW35: 27 | AY35: =AY34+1 -> 26 | AZ35: 12 | BA35: 119.784 | BB35: kKh/a
I36: ja | J36: ja | AH36: ="HGT_Jahr_Bezogen auf Jahresmittel."&AN23&"°C" -> HGT_Jahr_Bezogen auf Jahresmittel.19°C | AI36: 19 | AJ36: =IF(AJ23=$AI$36,SUMPRODUCT(AJ24:AJ35,$AK$49:$AK$60)*0.024,"-") -> - | AK36: - | AL36: - | AM36: - | AN36: =IF(AN23=$AI$36,SUMPRODUCT(AN24:AN35,$AK$49:$AK$60)*0.024,"-") -> 93.144 | AO36: - | AP36: - | AQ36: - | AR36: - | AS36: - | AT36: - | AU36: - | AV36: - | AW36: - | AY36: =AY35+1 -> 27 | AZ36: 13 | BA36: 124.224 | BB36: kKh/a
I37: nein | J37: nein | AH37: ="HGT_Jahr_Bezogen auf Raumsolltemp."&AI37&"°C" -> HGT_Jahr_Bezogen auf Raumsolltemp.20°C | AI37: 20 | AJ37: =SUM($AJ$36:$AW$36)+(AJ23-$AI$37)*0.024*185 -> 70.944 | AK37: 75.384 | AL37: 79.824 | AM37: 84.264 | AN37: =SUM($AJ$36:$AW$36)+(AN23-$AI$37)*0.024*185 -> 88.704 | AO37: 93.144 | AP37: 97.584 | AQ37: 102.024 | AR37: 106.464 | AS37: 110.904 | AT37: 115.344 | AU37: 119.784 | AV37: 124.224 | AW37: 128.664 | AY37: =AY36+1 -> 28 | AZ37: 14 | BA37: 128.664 | BB37: kKh/a
B38: Grenzwerte für Raum-/Zonenanforderungen
B39: Zuschlag Beleuchtungsstärke | E39: 0.5 | F39: grenz_em | I39: - | J39: no_value
B40: Zuschlag Leistung | E40: 0.25 | F40: grenz_Pel
B41: Zuschlag Luftmenge | E41: 0.5 | F41: grenz_nRLT
B42: Grenzwert SFP | E42: =SFP_RLT_H70SFP -> 2.659090909 | F42: grenz_SFP
B44: Grenzwert spez. Strombedarf für Lüften | F44: Zielwert | G44: RGD
B45: Druckerhöhung Zuluft | E45: Pa | F45: =DATA_RLT!G1 -> 1080 | G45: 1200 | AG45: Bestimmung von Lüftungsgradtagstunden in Abhängigkeit von der Betriebszeit
B46: Druckerhöhung Abluft | E46: Pa | F46: =DATA_RLT!G2 -> 675 | G46: 750 | AJ46: =AI36 -> 19 | AK46: °C | AL46: 19°C Bezugstemperatur für HGT und Raumtemp da etwa 1 K Temp.Hub Ventilator
B47: Totaldruckerhöhung | E47: Pa | F47: =SUM(F45:F46) -> 1755 | G47: =SUM(G45:G46) -> 1950 | AJ47: WRG | AK47: tM | AL47: Te | AM47: dT-zu Ti | AN47: Cpl | AO47: HL | AP47: Energiekennwert | AT47: HGTRLT
B48: Totalwirkungsgrad | E48: - | F48: =DATA_RLT!I1 -> 0.66 | G48: 0.6 | AJ48: % | AK48: d/M | AL48: °C | AM48: K | AN48: =DATA_RLT!D2 -> W/(m³/h*K) | AO48: W/(m³/h) | AP48: kWh/m³ | AT48: kKh/M
B49: SFPs | E49: kW/(m³/s) | F49: =F47/F48/1000 -> 2.659090909 | G49: =G47/G48/1000 -> 3.25 | N49: Kostenzuschläge für technische Installationen | X49: check_Bel | Y49: 0 | AI49: =AI24 -> Jan | AJ49: 0 | AK49: 31 | AL49: 0 | AM49: =($AJ$46-AL49) -> 19 | AN49: =cpl -> 0.34 | AO49: =AN49*AM49*(1-AJ49) -> 6.46 | AP49: =0.024*(AO49)*AK49 -> 4.80624 | AT49: =0.024*AK49*AM49 -> 14.136
B50: SFPh | E50: W/(m³/h) | F50: =F49/3.6 -> 0.7386363636 | G50: =G49/3.6 -> 0.9027777778 | N50: Planung | O50: 0.1 | P50: f_Planung | X50: =X51&CHAR(10)&IF(check_Bel=1,X52,X53) -> Modernisierung im Bestand Wärmeschutz und hygienische Lüftung | AI50: Feb | AJ50: =AJ49 -> 0 | AK50: 28 | AL50: 1.1 | AM50: =($AJ$46-AL50) -> 17.9 | AN50: 0.34 | AO50: =AN50*AM50*(1-AJ50) -> 6.086 | AP50: =0.024*(AO50)*AK50 -> 4.089792 | AT50: 12.0288
B51: VRLT | E51: m³/h | F51: =V_RLT_SUB -> 0 | G51: =V_RLT_SUB -> 0 | N51: MwSt. | O51: 0.15 | P51: f_MWST | X51: Modernisierung im Bestand | AI51: Mrz | AJ51: =AJ50 -> 0 | AK51: 31 | AL51: 4 | AM51: =($AJ$46-AL51) -> 15 | AN51: 0.34 | AO51: 5.1 | AP51: 3.7944 | AT51: 11.16
B52: An | E52: m² | F52: =A_EBF -> 0 | G52: =A_EBF -> 0 | N52: Mehrkosten Altbau | O52: 0.15 | P52: f_Altbau | R52: ! nur für Lüftung ! | X52: Wärmeschutz, Beleuchtung, hygienische Lüftung | AI52: Apr | AJ52: 0 | AK52: 30 | AL52: 7.5 | AM52: 11.5 | AN52: 0.34 | AO52: 3.91 | AP52: 2.8152 | AT52: 8.28
B53: Va | E53: (m³/h)/m² | F53: =F51/F52 ->  | G53: =G51/G52 ->  | X53: Wärmeschutz und hygienische Lüftung | AI53: Mai | AJ53: 0 | AK53: 31 | AL53: 11.8 | AM53: 7.2 | AN53: 0.34 | AO53: 2.448 | AP53: 1.821312 | AT53: 5.3568
B54: PRLT | E54: kW | F54: =Anlagen!$F$72*F50/1000 -> 0 | G54: =Anlagen!$F$72*G50/1000 -> 0 | AI54: Jun | AJ54: 0 | AK54: 30 | AL54: 14.9 | AM54: 4.1 | AN54: 0.34 | AO54: 1.394 | AP54: 1.00368 | AT54: 2.952
B55: pRLT,Ziel | E55: W/m² | F55: =F54*1000/A_EBF ->  | G55: =G54*1000/A_EBF ->  | AI55: Jul | AJ55: 0 | AK55: 31 | AL55: 16.9 | AM55: 2.1 | AN55: 0.34 | AO55: 0.714 | AP55: 0.531216 | AT55: 1.5624
B56: pRLT,Ziel | E56: =E55 -> W/m² | F56: =F53*F50 ->  | G56: =G53*G50 ->  | AI56: Aug | AJ56: 0 | AK56: 31 | AL56: 16.4 | AM56: 2.6 | AN56: 0.34 | AO56: 0.884 | AP56: 0.657696 | AT56: 1.9344
AI57: Sep | AJ57: 0 | AK57: 30 | AL57: 13.4 | AM57: 5.6 | AN57: 0.34 | AO57: 1.904 | AP57: 1.37088 | AT57: 4.032
B58: Mindestanforderungen an Beleuchtung, Übersicht | AI58: Okt | AJ58: 0 | AK58: 31 | AL58: 9.1 | AM58: 9.9 | AN58: 0.34 | AO58: 3.366 | AP58: 2.504304 | AT58: 7.3656
B59: rindex | C59: 1000 | D59: =C59-100 -> 900 | E59: =D59-100 -> 800 | F59: 700 | G59: 600 | H59: 500 | I59: 400 | J59: 300 | K59: 200 | L59: 100 | N59: W/m² je 100 Lux | AI59: Nov | AJ59: 0 | AK59: 30 | AL59: 3.8 | AM59: 15.2 | AN59: 0.34 | AO59: 5.168 | AP59: 3.72096 | AT59: 10.944
B60: 0.5 | C60: =C$59/(f_WF*f_lm*f_nlb*(a0_ID*LN($B60)+a1_ID))*(1+f_bel_req) -> 47.19420983 | D60: 42.47478884 | E60: 37.75536786 | F60: 33.03594688 | G60: 28.3165259 | H60: 23.59710491 | I60: 18.87768393 | J60: 14.15826295 | K60: 9.438841965 | L60: 4.719420983 | N60: =C60/(C$59/100) -> 4.719420983 | AI60: Dez | AJ60: 0 | AK60: 31 | AL60: 1 | AM60: 18 | AN60: 0.34 | AO60: 6.12 | AP60: 4.55328 | AT60: 13.392
B61: =B60+0.1 -> 0.6 | C61: 43.15724773 | D61: 38.84152296 | E61: 34.52579819 | F61: 30.21007341 | G61: 25.89434864 | H61: 21.57862387 | I61: 17.26289909 | J61: 12.94717432 | K61: 8.631449547 | L61: 4.315724773 | N61: 4.315724773 | AP61: =SUM(AP49:AP60) -> 31.66896 | AS61: kWh/(a*(m³/a)) | AT61: =SUM(AT49:AT60) -> 93.144 | AU61: kKh/a | AV61: HGT_Global
B62: =B61+0.1 -> 0.7 | C62: 40.24651921 | D62: 36.22186729 | E62: 32.19721537 | F62: 28.17256345 | G62: 24.14791153 | H62: 20.12325961 | I62: 16.09860768 | J62: 12.07395576 | K62: 8.049303842 | L62: 4.024651921 | N62: 4.024651921 | AS62: Tagesbetriebszeit | AT62: 13 | AU62: h/d
B63: 0.8 | C63: 38.02497562 | D63: 34.22247806 | E63: 30.4199805 | F63: 26.61748293 | G63: 22.81498537 | H63: 19.01248781 | I63: 15.20999025 | J63: 11.40749269 | K63: 7.604995124 | L63: 3.802497562 | N63: 3.802497562 | AT63: =AT61/24*AT62 -> 50.453 | AU63: kKh/a
B64: 0.9 | C64: 36.2595544 | D64: 32.63359896 | E64: 29.00764352 | F64: 25.38168808 | G64: 21.75573264 | H64: 18.1297772 | I64: 14.50382176 | J64: 10.87786632 | K64: 7.251910881 | L64: 3.62595544 | N64: 3.62595544 | AS64: d/a | AT64: 250 | AU64: d/a | AV64: HGT_xh
B65: 1 | C65: 34.81369948 | D65: 31.33232953 | E65: 27.85095959 | F65: 24.36958964 | G65: 20.88821969 | H65: 17.40684974 | I65: 13.92547979 | J65: 10.44410984 | K65: 6.962739897 | L65: 3.481369948 | N65: 3.481369948
B66: 1.1 | C66: 33.60163947 | D66: 30.24147552 | E66: 26.88131158 | F66: 23.52114763 | G66: 20.16098368 | H66: 16.80081973 | I66: 13.44065579 | J66: 10.08049184 | K66: 6.720327894 | L66: 3.360163947 | N66: 3.360163947
B67: 1.2 | C67: 32.56653946 | D67: 29.30988551 | E67: 26.05323157 | F67: 22.79657762 | G67: 19.53992368 | H67: 16.28326973 | I67: 13.02661578 | J67: 9.769961838 | K67: 6.513307892 | L67: 3.256653946 | N67: 3.256653946
B68: 1.3 | C68: 31.66910375 | D68: 28.50219337 | E68: 25.335283 | F68: 22.16837262 | G68: 19.00146225 | H68: 15.83455187 | I68: 12.6676415 | J68: 9.500731124 | K68: 6.333820749 | L68: 3.166910375 | N68: 3.166910375
B69: 1.4 | C69: 30.88120726 | D69: 27.79308653 | E69: 24.70496581 | F69: 21.61684508 | G69: 18.52872436 | H69: 15.44060363 | I69: 12.3524829 | J69: 9.264362178 | K69: 6.176241452 | L69: 3.088120726 | N69: 3.088120726
B70: 1.5 | C70: =C$59/(f_WF*f_lm*f_nlb*(a0_ID*LN($B70)+a1_ID))*(1+f_bel_req) -> 30.1821341 | D70: 27.16392069 | E70: 24.14570728 | F70: 21.12749387 | G70: 18.10928046 | H70: 15.09106705 | I70: 12.07285364 | J70: 9.054640231 | K70: 6.036426821 | L70: 3.01821341 | N70: 3.01821341
B71: 1.6 | C71: 29.55625204 | D71: 26.60062683 | E71: 23.64500163 | F71: 20.68937643 | G71: 17.73375122 | H71: 14.77812602 | I71: 11.82250082 | J71: 8.866875612 | K71: 5.911250408 | L71: 2.955625204 | N71: 2.955625204
B72: 1.7 | C72: 28.99151853 | D72: 26.09236668 | E72: 23.19321482 | F72: 20.29406297 | G72: 17.39491112 | H72: 14.49575926 | I72: 11.59660741 | J72: 8.697455559 | K72: 5.798303706 | L72: 2.899151853 | N72: 2.899151853
B73: 1.8 | C73: 28.47848911 | D73: 25.6306402 | E73: 22.78279129 | F73: 19.93494238 | G73: 17.08709347 | H73: 14.23924456 | I73: 11.39139564 | J73: 8.543546734 | K73: 5.695697822 | L73: 2.847848911 | N73: 2.847848911
B74: 1.9 | C74: 28.00964041 | D74: 25.20867637 | E74: 22.40771233 | F74: 19.60674829 | G74: 16.80578425 | H74: 14.0048202 | I74: 11.20385616 | J74: 8.402892123 | K74: 5.601928082 | L74: 2.800964041 | N74: 2.800964041
B75: 2 | C75: 27.57889644 | D75: 24.8210068 | E75: 22.06311715 | F75: 19.30522751 | G75: 16.54733787 | H75: 13.78944822 | I75: 11.03155858 | J75: 8.273668933 | K75: 5.515779289 | L75: 2.757889644 | N75: 2.757889644
B76: 2.1 | C76: 27.18129 | D76: 24.463161 | E76: 21.745032 | F76: 19.026903 | G76: 16.308774 | H76: 13.590645 | I76: 10.872516 | J76: 8.154386999 | K76: 5.436257999 | L76: 2.718129 | N76: 2.718129
B77: =B76+0.1 -> 2.2 | C77: 26.81271581 | D77: 24.13144423 | E77: 21.45017265 | F77: 18.76890107 | G77: 16.08762949 | H77: 13.40635791 | I77: 10.72508632 | J77: 8.043814744 | K77: 5.362543162 | L77: 2.681271581 | N77: 2.681271581
B78: 2.3 | C78: 26.46974767 | D78: 23.8227729 | E78: 21.17579813 | F78: 18.52882337 | G78: 15.8818486 | H78: 13.23487383 | I78: 10.58789907 | J78: 7.9409243 | K78: 5.293949534 | L78: 2.646974767 | N78: 2.646974767
B79: 2.4 | C79: 26.14950066 | D79: 23.5345506 | E79: 20.91960053 | F79: 18.30465046 | G79: 15.6897004 | H79: 13.07475033 | I79: 10.45980027 | J79: 7.844850199 | K79: 5.229900133 | L79: 2.614950066 | N79: 2.614950066
B80: 2.5 | C80: 25.84952612 | D80: 23.26457351 | E80: 20.6796209 | F80: 18.09466829 | G80: 15.50971567 | H80: 12.92476306 | I80: 10.33981045 | J80: 7.754857836 | K80: 5.169905224 | L80: 2.584952612 | N80: =C80/(C$59/100) -> 2.584952612
B81: 2.6 | C81: 25.56773037 | D81: 23.01095733 | E81: 20.4541843 | F81: 17.89741126 | G81: 15.34063822 | H81: 12.78386519 | I81: 10.22709215 | J81: 7.670319111 | K81: 5.113546074 | L81: 2.556773037 | N81: 2.556773037
B82: 2.7 | C82: 25.30231123 | D82: 22.77208011 | E82: 20.24184899 | F82: 17.71161786 | G82: 15.18138674 | H82: 12.65115562 | I82: 10.12092449 | J82: 7.59069337 | K82: 5.060462247 | L82: 2.530231123 | N82: 2.530231123
B83: 2.8 | C83: 25.05170787 | D83: 22.54653708 | E83: 20.0413663 | F83: 17.53619551 | G83: 15.03102472 | H83: 12.52585394 | I83: 10.02068315 | J83: 7.515512362 | K83: 5.010341574 | L83: 2.505170787 | N83: 2.505170787
B84: 2.9 | C84: 24.81456077 | D84: 22.33310469 | E84: 19.85164861 | F84: 17.37019254 | G84: 14.88873646 | H84: 12.40728038 | I84: 9.925824307 | J84: 7.44436823 | K84: 4.962912154 | L84: 2.481456077 | N84: 2.481456077
B85: 3 | C85: 24.58967953 | D85: 22.13071157 | E85: 19.67174362 | F85: 17.21277567 | G85: 14.75380772 | H85: 12.29483976 | I85: 9.835871811 | J85: 7.376903858 | K85: 4.917935906 | L85: 2.458967953 | N85: 2.458967953
B86: 3.1 | C86: 24.37601675 | D86: 21.93841508 | E86: 19.5008134 | F86: 17.06321173 | G86: 14.62561005 | H86: 12.18800838 | I86: 9.7504067 | J86: 7.312805025 | K86: 4.87520335 | L86: 2.437601675 | N86: 2.437601675
B87: 3.2 | C87: 24.17264667 | D87: 21.755382 | E87: 19.33811734 | F87: 16.92085267 | G87: 14.503588 | H87: 12.08632334 | I87: 9.669058668 | J87: 7.251794001 | K87: 4.834529334 | L87: 2.417264667 | N87: 2.417264667
B88: 3.3 | C88: 23.97874757 | D88: 21.58087281 | E88: 19.18299805 | F88: 16.7851233 | G88: 14.38724854 | H88: 11.98937378 | I88: 9.591499027 | J88: 7.193624271 | K88: 4.795749514 | L88: 2.397874757 | N88: 2.397874757
B89: 3.4 | C89: 23.79358719 | D89: 21.41422847 | E89: 19.03486975 | F89: 16.65551103 | G89: 14.27615232 | H89: 11.8967936 | I89: 9.517434877 | J89: 7.138076158 | K89: 4.758717439 | L89: 2.379358719 | N89: 2.379358719
B90: 3.5 | C90: 23.6165106 | D90: 21.25485954 | E90: 18.89320848 | F90: 16.53155742 | G90: 14.16990636 | H90: 11.8082553 | I90: 9.44660424 | J90: 7.08495318 | K90: 4.72330212 | L90: 2.36165106 | N90: 2.36165106
B91: 3.6 | C91: 23.44692996 | D91: 21.10223696 | E91: 18.75754397 | F91: 16.41285097 | G91: 14.06815797 | H91: 11.72346498 | I91: 9.378771983 | J91: 7.034078987 | K91: 4.689385992 | L91: 2.344692996 | N91: 2.344692996
B92: 3.7 | C92: 23.28431595 | D92: 20.95588435 | E92: 18.62745276 | F92: 16.29902116 | G92: 13.97058957 | H92: 11.64215797 | I92: 9.313726378 | J92: 6.985294784 | K92: 4.656863189 | L92: 2.328431595 | N92: 2.328431595
B93: 3.8 | C93: 23.12819046 | D93: 20.81537142 | E93: 18.50255237 | F93: 16.18973332 | G93: 13.87691428 | H93: 11.56409523 | I93: 9.251276185 | J93: 6.938457138 | K93: 4.625638092 | L93: 2.312819046 | N93: 2.312819046
B94: 3.9 | C94: 22.97812041 | D94: 20.68030837 | E94: 18.38249633 | F94: 16.08468429 | G94: 13.78687225 | H94: =H$59/(f_WF*f_lm*f_nlb*(a0_ID*LN($B94)+a1_ID))*(1+f_bel_req) -> 11.4890602 | I94: 9.191248163 | J94: 6.893436123 | K94: 4.595624082 | L94: 2.297812041 | N94: 2.297812041
B95: 4 | C95: 22.83371239 | D95: 20.55034115 | E95: 18.26696991 | F95: 15.98359867 | G95: 13.70022743 | H95: 11.41685619 | I95: 9.133484954 | J95: 6.850113716 | K95: 4.566742477 | L95: 2.283371239 | N95: 2.283371239
B97: Mindestanforderungen an Lüftungsanlagen, Übersicht | Q97: VRLT | R97: fsub,RLT
B98: Standard | C98: RGD | D98: Zielwert | N98: W/m² | Q98: =DATA_RLT!L183 -> 500 | R98: =DATA_RLT!N183 -> 15.18873062
B99: 0 | C99: =$G$50*B99 -> 0 | D99: =$F$50*B99 -> 0 | N99: =$F$50*B99 -> 0 | Q99: =DATA_RLT!L184 -> 1000 | R99: =DATA_RLT!N184 -> 11.93629344
B100: =B99+0.5 -> 0.5 | C100: =$G$50*B100 -> 0.4513888889 | D100: =$F$50*B100 -> 0.3693181818 | N100: 0.3693181818 | Q100: =DATA_RLT!L185 -> 1500 | R100: =DATA_RLT!N185 -> 9.962961576
B101: =B100+0.5 -> 1 | C101: 0.9027777778 | D101: 0.7386363636 | N101: 0.7386363636 | Q101: =DATA_RLT!L186 -> 2000 | R101: =DATA_RLT!N186 -> 8.562860339
B102: 1.5 | C102: 1.354166667 | D102: 1.107954545 | N102: 1.107954545 | Q102: =DATA_RLT!L187 -> 2500 | R102: =DATA_RLT!N187 -> 7.476857448
B103: 2 | C103: 1.805555556 | D103: 1.477272727 | N103: 1.477272727 | Q103: =DATA_RLT!L188 -> 3000 | R103: =DATA_RLT!N188 -> 6.589528478
B104: 2.5 | C104: 2.256944444 | D104: 1.846590909 | N104: 1.846590909 | Q104: =DATA_RLT!L189 -> 3500 | R104: =DATA_RLT!N189 -> 5.839302523
B105: 3 | C105: 2.708333333 | D105: 2.215909091 | N105: 2.215909091 | Q105: =DATA_RLT!L190 -> 4000 | R105: =DATA_RLT!N190 -> 5.189427241
B106: 3.5 | C106: 3.159722222 | D106: 2.585227273 | N106: 2.585227273 | Q106: =DATA_RLT!L191 -> 4500 | R106: =DATA_RLT!N191 -> 4.616196617
B107: 4 | C107: 3.611111111 | D107: 2.954545455 | N107: 2.954545455 | Q107: =DATA_RLT!L192 -> 5000 | R107: =DATA_RLT!N192 -> 4.10342435
B108: 4.5 | C108: 4.0625 | D108: 3.323863636 | N108: 3.323863636 | Q108: =DATA_RLT!L193 -> 5500 | R108: =DATA_RLT!N193 -> 3.639565412
B109: 5 | C109: 4.513888889 | D109: 3.693181818 | N109: 3.693181818 | Q109: =DATA_RLT!L194 -> 6000 | R109: =DATA_RLT!N194 -> 3.21609538
B110: 5.5 | C110: 4.965277778 | D110: 4.0625 | N110: 4.0625 | Q110: =DATA_RLT!L195 -> 6500 | R110: =DATA_RLT!N195 -> 2.826540712
B111: 6 | C111: 5.416666667 | D111: 4.431818182 | N111: 4.431818182 | Q111: =DATA_RLT!L196 -> 7000 | R111: =DATA_RLT!N196 -> 2.465869425
B112: 6.5 | C112: 5.868055556 | D112: 4.801136364 | N112: 4.801136364 | Q112: =DATA_RLT!L197 -> 7500 | R112: =DATA_RLT!N197 -> 2.130092489
B113: 7 | C113: 6.319444444 | D113: 5.170454545 | N113: 5.170454545 | Q113: =DATA_RLT!L198 -> 8000 | R113: =DATA_RLT!N198 -> 1.815994143
B114: 7.5 | C114: 6.770833333 | D114: 5.539772727 | N114: 5.539772727 | Q114: =DATA_RLT!L199 -> 8500 | R114: =DATA_RLT!N199 -> 1.715590675
B115: 8 | C115: 7.222222222 | D115: 5.909090909 | N115: 5.909090909
B116: 8.5 | C116: 7.673611111 | D116: 6.278409091 | N116: 6.278409091
B117: 9 | C117: 8.125 | D117: 6.647727273 | N117: 6.647727273
B118: 9.5 | C118: 8.576388889 | D118: 7.017045455 | N118: 7.017045455
B119: 10 | C119: 9.027777778 | D119: 7.386363636 | N119: 7.386363636

Sheet DATA_RLT (hidden)
E1: 0.1 | F1: 1200 | G1: =F1*(1-$E$1) -> 1080 | H1: 0.6 | I1: =H1*(1+E1) -> 0.66
B2: cpl | C2: 0.34 | D2: W/(m³/h*K) | F2: 750 | G2: =F2*(1-$E$1) -> 675 | L2: =1.47025151407054 -> 1.470251514 | M2: -2
G3: SFP_Abluft | H3: WRG_Abluft | L3: 200 | M3: =L3*$L$2 -> 294.0503028 | N3: =M3*$L$2 -> 432.3279029 | O3: 635.6307539 | P3: 934.5370782 | Q3: 1374.004554 | R3: 2020.132276 | S3: 2970.102538 | T3: 4366.797753 | U3: 6420.291008 | V3: 9439.442575 | W3: 13878.35474 | X3: 20404.67207 | Y3: 30000
B4: Typ | C4: a1 | D4: a1 | E4: min | F4: max | G4: SFP | H4: WRG | I4: flagAbluft | K4: V in m³/h | L4: =ROUND(L3,$M$2) -> 200 | M4: =ROUND(M3,$M$2) -> 300 | N4: 400 | O4: 600 | P4: 900 | Q4: 1400 | R4: 2000 | S4: 3000 | T4: 4400 | U4: 6400 | V4: 9400 | W4: 13900 | X4: 20400 | Y4: 30000 | AA4: =V_RLT_SUB -> 0 | AB4: aus Datenblatt
A5: =0 -> 0 | B5: Abuftanlage | C5: 72.34768559 | D5: -0.3094279167 | E5: 4 | F5: 15.34904141 | G5: =1.25*0+F2/H1/1000 -> 1.25 | H5: 0 | I5: 1 | J5: =J16 -> 0 | K5: ="spez. Kosten für "&B5 -> spez. Kosten für Abuftanlage | L5: =$I$5*MIN($F5,MAX($E5,$C5*L$4^$D5))*(1+f_planung)*(1+f_MWST)*(1+f_Altbau) -> 20.42725877 | M5: 18.01866202 | N5: 16.48401519 | O5: 14.54036989 | P5: 12.82590159 | Q5: 11.18698781 | R5: 10.01802645 | S5: 8.836791792 | T5: 7.849229676 | U5: 6.989959646 | V5: 6.2060652 | W5: 5.819 | X5: 5.819 | Y5: 5.819 | AA5: =infla_RLT*MIN($F5,MAX($E5,$C5*AA$4^$D5))*(1+DATA!$O$50)*(1+DATA!$O$51)*(1+DATA!$O$52) ->  | AB5: =AB12 -> Spez. Kosten
A6: =A5+1 -> 1 | B6: RLT-H60 | C6: 190.5526448 | D6: -0.2981234424 | E6: 10 | F6: 42.78299304 | G6: =(1.25+2)*0+(F1+F2)/H1/1000 -> 3.25 | H6: 0.6 | J6: =J17 -> 1 | K6: ="spez. Kosten für "&B6 -> spez. Kosten für RLT-H60 | L6: =MIN($F6,MAX($E6,$C6*L$4^$D6))*(1+f_planung)*(1+f_MWST)*(1+f_Altbau) -> 57.12317833 | M6: 50.61921796 | N6: 46.45882962 | O6: 41.16909618 | P6: 36.48164394 | Q6: 31.97929069 | R6: 28.75338114 | S6: 25.4795638 | T6: 22.73027515 | U6: 20.32786981 | V6: 18.12678544 | W6: 16.13145395 | X6: 14.5475 | Y6: 14.5475 | AA6: =infla_RLT*MIN($F6,MAX($E6,$C6*AA$4^$D6))*(1+DATA!$O$50)*(1+DATA!$O$51)*(1+DATA!$O$52) -> 
A7: =A6+1 -> 2 | B7: RLT-HK60 | C7: 288.2851941 | D7: -0.2934273664 | E7: 16 | F7: 66.26704595 | G7: =(G1+G2)/I1/1000 -> 2.659090909 | H7: =H6 -> 0.6 | J7: 2 | K7: spez. Kosten für RLT-HK60 | L7: 88.5983293 | M7: 78.66028907 | N7: 72.29280794 | O7: 64.18375172 | P7: 56.98428519 | Q7: 50.05536588 | R7: 45.08148008 | S7: 40.02470795 | T7: 35.77025042 | U7: 32.04596384 | V7: 28.62768709 | W7: 25.52329748 | X7: 23.276 | Y7: 23.276 | AA7: =infla_RLT*MIN($F7,MAX($E7,$C7*AA$4^$D7))*(1+DATA!$O$50)*(1+DATA!$O$51)*(1+DATA!$O$52) -> 
A8: 3 | B8: RLT-H60SFP | C8: 219.1355415 | D8: -0.2981234424 | E8: 11.5 | F8: 49.20044199 | G8: =G7 -> 2.659090909 | H8: =H7 -> 0.6 | J8: 3 | K8: spez. Kosten für RLT-H60SFP | L8: 65.69165508 | M8: 58.21210065 | N8: 53.42765407 | O8: 47.34446061 | P8: 41.95389053 | Q8: 36.77618429 | R8: 33.06638831 | S8: 29.30149837 | T8: 26.13981642 | U8: 23.37705029 | V8: 20.84580325 | W8: 18.55117205 | X8: 16.729625 | Y8: 16.729625 | AA8: =infla_RLT*MIN($F8,MAX($E8,$C8*AA$4^$D8))*(1+DATA!$O$50)*(1+DATA!$O$51)*(1+DATA!$O$52) -> 
A9: 4 | B9: RLT-HK60SFP | C9: 331.5279732 | D9: -0.2934273664 | E9: 18.4 | F9: 76.20710284 | G9: =G6 -> 3.25 | H9: 0.75 | J9: 4 | K9: spez. Kosten für RLT-HK60SFP | L9: 101.8880787 | M9: 90.45933243 | N9: 83.13672913 | O9: 73.81131448 | P9: 65.53192796 | Q9: 57.56367076 | R9: 51.84370209 | S9: 46.02841414 | T9: 41.13578799 | U9: 36.85285841 | V9: 32.92184015 | W9: 29.3517921 | X9: 26.7674 | Y9: 26.7674 | AA9: =infla_RLT*MIN($F9,MAX($E9,$C9*AA$4^$D9))*(1+DATA!$O$50)*(1+DATA!$O$51)*(1+DATA!$O$52) -> 
A10: 5 | B10: RLT-H70 | C10: 182.4789278 | D10: -0.28623181 | E10: 10.8 | F10: 43.48567148 | G10: =G9 -> 3.25 | H10: =H9 -> 0.75 | J10: 5 | K10: spez. Kosten für RLT-H70 | L10: =MIN($F10,MAX($E10,$C10*L$4^$D10))*(1+DATA!$O$50)*(1+DATA!$O$51)*(1+DATA!$O$52) -> 58.26035221 | M10: =MIN($F10,MAX($E10,$C10*M$4^$D10))*(1+DATA!$O$50)*(1+DATA!$O$51)*(1+DATA!$O$52) -> 51.87644249 | N10: =MIN($F10,MAX($E10,$C10*N$4^$D10))*(1+DATA!$O$50)*(1+DATA!$O$51)*(1+DATA!$O$52) -> 47.7758855 | O10: =MIN($F10,MAX($E10,$C10*O$4^$D10))*(1+DATA!$O$50)*(1+DATA!$O$51)*(1+DATA!$O$52) -> 42.54081691 | P10: =MIN($F10,MAX($E10,$C10*P$4^$D10))*(1+DATA!$O$50)*(1+DATA!$O$51)*(1+DATA!$O$52) -> 37.87938381 | Q10: =MIN($F10,MAX($E10,$C10*Q$4^$D10))*(1+DATA!$O$50)*(1+DATA!$O$51)*(1+DATA!$O$52) -> 33.37944905 | R10: =MIN($F10,MAX($E10,$C10*R$4^$D10))*(1+DATA!$O$50)*(1+DATA!$O$51)*(1+DATA!$O$52) -> 30.13986452 | S10: =MIN($F10,MAX($E10,$C10*S$4^$D10))*(1+DATA!$O$50)*(1+DATA!$O$51)*(1+DATA!$O$52) -> 26.8372725 | T10: =MIN($F10,MAX($E10,$C10*T$4^$D10))*(1+DATA!$O$50)*(1+DATA!$O$51)*(1+DATA!$O$52) -> 24.0507726 | U10: =MIN($F10,MAX($E10,$C10*U$4^$D10))*(1+DATA!$O$50)*(1+DATA!$O$51)*(1+DATA!$O$52) -> 21.60485237 | V10: =MIN($F10,MAX($E10,$C10*V$4^$D10))*(1+DATA!$O$50)*(1+DATA!$O$51)*(1+DATA!$O$52) -> 19.35376705 | W10: =MIN($F10,MAX($E10,$C10*W$4^$D10))*(1+DATA!$O$50)*(1+DATA!$O$51)*(1+DATA!$O$52) -> 17.30367945 | X10: =MIN($F10,MAX($E10,$C10*X$4^$D10))*(1+DATA!$O$50)*(1+DATA!$O$51)*(1+DATA!$O$52) -> 15.7113 | Y10: =MIN($F10,MAX($E10,$C10*Y$4^$D10))*(1+DATA!$O$50)*(1+DATA!$O$51)*(1+DATA!$O$52) -> 15.7113 | AA10: =infla_RLT*MIN($F10,MAX($E10,$C10*AA$4^$D10))*(1+DATA!$O$50)*(1+DATA!$O$51)*(1+DATA!$O$52) -> 
A11: 6 | B11: RLT-HK70 | C11: 280.6019885 | D11: -0.2858962946 | E11: 16.8 | F11: 66.98141483 | G11: =G10 -> 3.25 | H11: =H10 -> 0.75 | J11: 6 | K11: spez. Kosten für RLT-HK70 | L11: =MIN($F11,MAX($E11,$C11*L$4^$D11))*(1+DATA!$O$50)*(1+DATA!$O$51)*(1+DATA!$O$52) -> 89.74766553 | M11: =MIN($F11,MAX($E11,$C11*M$4^$D11))*(1+DATA!$O$50)*(1+DATA!$O$51)*(1+DATA!$O$52) -> 79.92438852 | N11: =MIN($F11,MAX($E11,$C11*N$4^$D11))*(1+DATA!$O$50)*(1+DATA!$O$51)*(1+DATA!$O$52) -> 73.61389552 | O11: =MIN($F11,MAX($E11,$C11*O$4^$D11))*(1+DATA!$O$50)*(1+DATA!$O$51)*(1+DATA!$O$52) -> 65.55653065 | P11: =MIN($F11,MAX($E11,$C11*P$4^$D11))*(1+DATA!$O$50)*(1+DATA!$O$51)*(1+DATA!$O$52) -> 58.38107983 | Q11: =MIN($F11,MAX($E11,$C11*Q$4^$D11))*(1+DATA!$O$50)*(1+DATA!$O$51)*(1+DATA!$O$52) -> 51.45324417 | R11: =MIN($F11,MAX($E11,$C11*R$4^$D11))*(1+DATA!$O$50)*(1+DATA!$O$51)*(1+DATA!$O$52) -> 46.46509894 | S11: =MIN($F11,MAX($E11,$C11*S$4^$D11))*(1+DATA!$O$50)*(1+DATA!$O$51)*(1+DATA!$O$52) -> 41.37928934 | T11: =MIN($F11,MAX($E11,$C11*T$4^$D11))*(1+DATA!$O$50)*(1+DATA!$O$51)*(1+DATA!$O$52) -> 37.08766493 | U11: =MIN($F11,MAX($E11,$C11*U$4^$D11))*(1+DATA!$O$50)*(1+DATA!$O$51)*(1+DATA!$O$52) -> 33.32010484 | V11: =MIN($F11,MAX($E11,$C11*V$4^$D11))*(1+DATA!$O$50)*(1+DATA!$O$51)*(1+DATA!$O$52) -> 29.85221625 | W11: =MIN($F11,MAX($E11,$C11*W$4^$D11))*(1+DATA!$O$50)*(1+DATA!$O$51)*(1+DATA!$O$52) -> 26.69356203 | X11: =MIN($F11,MAX($E11,$C11*X$4^$D11))*(1+DATA!$O$50)*(1+DATA!$O$51)*(1+DATA!$O$52) -> 24.4398 | Y11: =MIN($F11,MAX($E11,$C11*Y$4^$D11))*(1+DATA!$O$50)*(1+DATA!$O$51)*(1+DATA!$O$52) -> 24.4398 | AA11: =infla_RLT*MIN($F11,MAX($E11,$C11*AA$4^$D11))*(1+DATA!$O$50)*(1+DATA!$O$51)*(1+DATA!$O$52) -> 
A12: 7 | B12: RLT-H70SFP | C12: 209.850767 | D12: -0.28623181 | E12: 12.42 | F12: 50.00852221 | G12: =G8 -> 2.659090909 | H12: =H11 -> 0.75 | I12: WRG_RLT_H70SFP | J12: 7 | K12: spez. Kosten für RLT-H70SFP | L12: =MIN($F12,MAX($E12,$C12*L$4^$D12))*(1+DATA!$O$50)*(1+DATA!$O$51)*(1+DATA!$O$52) -> 66.99940504 | M12: =MIN($F12,MAX($E12,$C12*M$4^$D12))*(1+DATA!$O$50)*(1+DATA!$O$51)*(1+DATA!$O$52) -> 59.65790886 | N12: =MIN($F12,MAX($E12,$C12*N$4^$D12))*(1+DATA!$O$50)*(1+DATA!$O$51)*(1+DATA!$O$52) -> 54.94226833 | O12: =MIN($F12,MAX($E12,$C12*O$4^$D12))*(1+DATA!$O$50)*(1+DATA!$O$51)*(1+DATA!$O$52) -> 48.92193945 | P12: =MIN($F12,MAX($E12,$C12*P$4^$D12))*(1+DATA!$O$50)*(1+DATA!$O$51)*(1+DATA!$O$52) -> 43.56129138 | Q12: =MIN($F12,MAX($E12,$C12*Q$4^$D12))*(1+DATA!$O$50)*(1+DATA!$O$51)*(1+DATA!$O$52) -> 38.38636641 | R12: =MIN($F12,MAX($E12,$C12*R$4^$D12))*(1+DATA!$O$50)*(1+DATA!$O$51)*(1+DATA!$O$52) -> 34.66084419 | S12: =MIN($F12,MAX($E12,$C12*S$4^$D12))*(1+DATA!$O$50)*(1+DATA!$O$51)*(1+DATA!$O$52) -> 30.86286337 | T12: =MIN($F12,MAX($E12,$C12*T$4^$D12))*(1+DATA!$O$50)*(1+DATA!$O$51)*(1+DATA!$O$52) -> 27.65838849 | U12: =MIN($F12,MAX($E12,$C12*U$4^$D12))*(1+DATA!$O$50)*(1+DATA!$O$51)*(1+DATA!$O$52) -> 24.84558023 | V12: =MIN($F12,MAX($E12,$C12*V$4^$D12))*(1+DATA!$O$50)*(1+DATA!$O$51)*(1+DATA!$O$52) -> 22.25683211 | W12: =MIN($F12,MAX($E12,$C12*W$4^$D12))*(1+DATA!$O$50)*(1+DATA!$O$51)*(1+DATA!$O$52) -> 19.89923136 | X12: =MIN($F12,MAX($E12,$C12*X$4^$D12))*(1+DATA!$O$50)*(1+DATA!$O$51)*(1+DATA!$O$52) -> 18.067995 | Y12: =MIN($F12,MAX($E12,$C12*Y$4^$D12))*(1+DATA!$O$50)*(1+DATA!$O$51)*(1+DATA!$O$52) -> 18.067995 | AA12: =infla_RLT*MIN($F12,MAX($E12,$C12*AA$4^$D12))*(1+DATA!$O$50)*(1+DATA!$O$51)*(1+DATA!$O$52) ->  | AB12: Spez. Kosten
A13: 8 | B13: RLT-HK70SFP | C13: 322.6922868 | D13: -0.2858962946 | E13: 19.32 | F13: 77.02862705 | G13: =G12 -> 2.659090909 | H13: =H12 -> 0.75 | J13: 8 | K13: spez. Kosten für RLT-HK70SFP | L13: =MIN($F13,MAX($E13,$C13*L$4^$D13))*(1+DATA!$O$50)*(1+DATA!$O$51)*(1+DATA!$O$52) -> 103.2098154 | M13: =MIN($F13,MAX($E13,$C13*M$4^$D13))*(1+DATA!$O$50)*(1+DATA!$O$51)*(1+DATA!$O$52) -> 91.9130468 | N13: =MIN($F13,MAX($E13,$C13*N$4^$D13))*(1+DATA!$O$50)*(1+DATA!$O$51)*(1+DATA!$O$52) -> 84.65597985 | O13: =MIN($F13,MAX($E13,$C13*O$4^$D13))*(1+DATA!$O$50)*(1+DATA!$O$51)*(1+DATA!$O$52) -> 75.39001025 | P13: =MIN($F13,MAX($E13,$C13*P$4^$D13))*(1+DATA!$O$50)*(1+DATA!$O$51)*(1+DATA!$O$52) -> 67.1382418 | Q13: =MIN($F13,MAX($E13,$C13*Q$4^$D13))*(1+DATA!$O$50)*(1+DATA!$O$51)*(1+DATA!$O$52) -> 59.1712308 | R13: =MIN($F13,MAX($E13,$C13*R$4^$D13))*(1+DATA!$O$50)*(1+DATA!$O$51)*(1+DATA!$O$52) -> 53.43486378 | S13: =MIN($F13,MAX($E13,$C13*S$4^$D13))*(1+DATA!$O$50)*(1+DATA!$O$51)*(1+DATA!$O$52) -> 47.58618275 | T13: =MIN($F13,MAX($E13,$C13*T$4^$D13))*(1+DATA!$O$50)*(1+DATA!$O$51)*(1+DATA!$O$52) -> 42.65081466 | U13: =MIN($F13,MAX($E13,$C13*U$4^$D13))*(1+DATA!$O$50)*(1+DATA!$O$51)*(1+DATA!$O$52) -> 38.31812057 | V13: =MIN($F13,MAX($E13,$C13*V$4^$D13))*(1+DATA!$O$50)*(1+DATA!$O$51)*(1+DATA!$O$52) -> 34.33004869 | W13: =MIN($F13,MAX($E13,$C13*W$4^$D13))*(1+DATA!$O$50)*(1+DATA!$O$51)*(1+DATA!$O$52) -> 30.69759633 | X13: =MIN($F13,MAX($E13,$C13*X$4^$D13))*(1+DATA!$O$50)*(1+DATA!$O$51)*(1+DATA!$O$52) -> 28.10577 | Y13: =MIN($F13,MAX($E13,$C13*Y$4^$D13))*(1+DATA!$O$50)*(1+DATA!$O$51)*(1+DATA!$O$52) -> 28.10577 | AA13: =infla_RLT*MIN($F13,MAX($E13,$C13*AA$4^$D13))*(1+DATA!$O$50)*(1+DATA!$O$51)*(1+DATA!$O$52) -> 
B14: CO2 Steuerung von Anlagen | C14: 15 | D14: *An/VRLT | G14: SFP_RLT_H70SFP
J16: =J27 -> 0 | K16: ="Kosten für "&B5 -> Kosten für Abuftanlage | L16: =ROUND(L5*L$4,$M$2) -> 4100 | M16: 5400 | N16: 6600 | O16: 8700 | P16: 11500 | Q16: 15700 | R16: 20000 | S16: 26500 | T16: 34500 | U16: 44700 | V16: 58300 | W16: 80900 | X16: 118700 | Y16: 174600
J17: =J28 -> 1 | K17: ="Kosten für "&B6 -> Kosten für RLT-H60 | L17: 11400 | M17: 15200 | N17: 18600 | O17: 24700 | P17: 32800 | Q17: 44800 | R17: 57500 | S17: 76400 | T17: 100000 | U17: 130100 | V17: 170400 | W17: 224200 | X17: 296800 | Y17: 436400
J18: 2 | K18: Kosten für RLT-HK60 | L18: 17700 | M18: 23600 | N18: 28900 | O18: 38500 | P18: 51300 | Q18: 70100 | R18: 90200 | S18: 120100 | T18: 157400 | U18: 205100 | V18: 269100 | W18: 354800 | X18: 474800 | Y18: 698300
J19: 3 | K19: Kosten für RLT-H60SFP | L19: 13100 | M19: 17500 | N19: 21400 | O19: 28400 | P19: 37800 | Q19: 51500 | R19: 66100 | S19: 87900 | T19: 115000 | U19: 149600 | V19: 196000 | W19: 257900 | X19: 341300 | Y19: 501900 | Z19: Nutzungszeit | AA19: 15 | AB19: Nutz_Global
J20: 4 | K20: Kosten für RLT-HK60SFP | L20: 20400 | M20: 27100 | N20: 33300 | O20: 44300 | P20: 59000 | Q20: 80600 | R20: 103700 | S20: 138100 | T20: 181000 | U20: 235900 | V20: 309500 | W20: 408000 | X20: 546100 | Y20: 803000 | Z20: Wartung | AA20: 0.015 | AB20: Wartung_RLT
J21: 5 | K21: Kosten für RLT-H70 | L21: 11700 | M21: 15600 | N21: 19100 | O21: 25500 | P21: 34100 | Q21: 46700 | R21: 60300 | S21: 80500 | T21: 105800 | U21: 138300 | V21: 181900 | W21: 240500 | X21: 320500 | Y21: 471300
J22: 6 | K22: Kosten für RLT-HK70 | L22: 17900 | M22: 24000 | N22: 29400 | O22: 39300 | P22: 52500 | Q22: 72000 | R22: 92900 | S22: 124100 | T22: 163200 | U22: 213200 | V22: 280600 | W22: 371000 | X22: 498600 | Y22: 733200
J23: 7 | K23: Kosten für RLT-H70SFP | L23: 13400 | M23: 17900 | N23: 22000 | O23: 29400 | P23: 39200 | Q23: 53700 | R23: 69300 | S23: 92600 | T23: 121700 | U23: 159000 | V23: 209200 | W23: 276600 | X23: 368600 | Y23: 542000
J24: 8 | K24: Kosten für RLT-HK70SFP | L24: 20600 | M24: 27600 | N24: 33900 | O24: 45200 | P24: 60400 | Q24: 82800 | R24: 106900 | S24: 142800 | T24: 187700 | U24: 245200 | V24: 322700 | W24: 426700 | X24: 573400 | Y24: 843200
K26: Laufzeit - Heizwärmebedarf | L26: HGTVent | M26: =DATA!AT63 -> 50.453 | N26: kKh/a | P26: e_Heiz | Q26: =1/0.85 -> 1.176470588 | R26: - | S26: €H | T26: =AB78 -> 0.08307514869 | U26: €/kWh | W26: qPh | X26: 1.1 | Y26: - | Z26: 4 | AA26: m³/(h·m²)
J27: =J38 -> 0 | K27: ="spez. Wärmebedarf für "&B5 -> spez. Wärmebedarf für Abuftanlage | L27: =cpl*$M$26*(1-$H5) -> 17.15402 | M27: kWh/(a*(m³/h)) | P27: =L27*$Q$26 -> 20.1812 | Q27: =M27 -> kWh/(a*(m³/h)) | S27: =P27*$T$26 -> 1.676556191 | T27: €/(a*(m³/h)) | W27: =P27*$X$26 -> 22.19932 | X27: =Q27 -> kWh/(a*(m³/h)) | Z27: =L27*Z$26 -> 68.61608
J28: =J39 -> 1 | K28: ="spez. Wärmebedarf für "&B6 -> spez. Wärmebedarf für RLT-H60 | L28: =cpl*$M$26*(1-$H6) -> 6.861608 | M28: =M27 -> kWh/(a*(m³/h)) | P28: =L28*$Q$26 -> 8.07248 | Q28: kWh/(a*(m³/h)) | S28: =P28*$T$26 -> 0.6706224763 | T28: €/(a*(m³/h)) | W28: =P28*$X$26 -> 8.879728 | X28: =Q28 -> kWh/(a*(m³/h)) | Z28: =L28*Z$26 -> 27.446432
J29: 2 | K29: spez. Wärmebedarf für RLT-HK60 | L29: 6.861608 | M29: =M28 -> kWh/(a*(m³/h)) | P29: 8.07248 | Q29: kWh/(a*(m³/h)) | S29: 0.6706224763 | T29: €/(a*(m³/h)) | W29: =P29*$X$26 -> 8.879728 | X29: kWh/(a*(m³/h)) | Z29: 27.446432
J30: 3 | K30: spez. Wärmebedarf für RLT-H60SFP | L30: 6.861608 | M30: kWh/(a*(m³/h)) | P30: 8.07248 | Q30: kWh/(a*(m³/h)) | S30: 0.6706224763 | T30: €/(a*(m³/h)) | W30: 8.879728 | X30: kWh/(a*(m³/h)) | Z30: 27.446432
J31: 4 | K31: spez. Wärmebedarf für RLT-HK60SFP | L31: 4.288505 | M31: kWh/(a*(m³/h)) | P31: 5.0453 | Q31: kWh/(a*(m³/h)) | S31: 0.4191390477 | T31: €/(a*(m³/h)) | W31: 5.54983 | X31: kWh/(a*(m³/h)) | Z31: 17.15402
J32: 5 | K32: spez. Wärmebedarf für RLT-H70 | L32: 4.288505 | M32: kWh/(a*(m³/h)) | P32: 5.0453 | Q32: kWh/(a*(m³/h)) | S32: 0.4191390477 | T32: €/(a*(m³/h)) | W32: =P32*$X$26 -> 5.54983 | X32: kWh/(a*(m³/h)) | Z32: 17.15402
J33: 6 | K33: spez. Wärmebedarf für RLT-HK70 | L33: 4.288505 | M33: kWh/(a*(m³/h)) | P33: 5.0453 | Q33: kWh/(a*(m³/h)) | S33: 0.4191390477 | T33: €/(a*(m³/h)) | W33: 5.54983 | X33: kWh/(a*(m³/h)) | Z33: 17.15402
J34: 7 | K34: spez. Wärmebedarf für RLT-H70SFP | L34: 4.288505 | M34: kWh/(a*(m³/h)) | P34: 5.0453 | Q34: kWh/(a*(m³/h)) | S34: 0.4191390477 | T34: €/(a*(m³/h)) | W34: 5.54983 | X34: kWh/(a*(m³/h)) | Z34: 17.15402
J35: 8 | K35: spez. Wärmebedarf für RLT-HK70SFP | L35: 4.288505 | M35: kWh/(a*(m³/h)) | P35: 5.0453 | Q35: kWh/(a*(m³/h)) | S35: 0.4191390477 | T35: €/(a*(m³/h)) | W35: 5.54983 | X35: kWh/(a*(m³/h)) | Z35: 17.15402
K37: Laufzeit - Heizwärmebedarf | L37: hRLT | M37: =DATA!AT62*HGT_xh -> 3250 | N37: h/a | S37: €el | T37: =AC78 -> 0.1078737005 | U37: =U26 -> €/kWh | W37: qpel | X37: 2.66 | Y37: -
J38: =J49 -> 0 | K38: ="spez. Strombedarf für "&B5 -> spez. Strombedarf für Abuftanlage | L38: =I5*$G5*$M$37/3600 -> 1.128472222 | M38: =M27 -> kWh/(a*(m³/h)) | S38: =L38*$T$37 -> 0.1217324746 | T38: =T27 -> €/(a*(m³/h)) | W38: =L38*$X$37 -> 3.001736111 | X38: =X27 -> kWh/(a*(m³/h))
J39: =J50 -> 1 | K39: ="spez. Strombedarf für "&B6 -> spez. Strombedarf für RLT-H60 | L39: =$G6*$M$37/3600 -> 2.934027778 | M39: =M28 -> kWh/(a*(m³/h)) | S39: =L39*$T$37 -> 0.3165044339 | T39: =T28 -> €/(a*(m³/h)) | W39: =L39*$X$37 -> 7.804513889 | X39: =X28 -> kWh/(a*(m³/h))
J40: 2 | K40: spez. Strombedarf für RLT-HK60 | L40: 2.400568182 | M40: kWh/(a*(m³/h)) | S40: 0.2589581732 | T40: €/(a*(m³/h)) | W40: =L40*$X$37 -> 6.385511364 | X40: kWh/(a*(m³/h))
J41: 3 | K41: spez. Strombedarf für RLT-H60SFP | L41: 2.400568182 | M41: kWh/(a*(m³/h)) | S41: 0.2589581732 | T41: €/(a*(m³/h)) | W41: 6.385511364 | X41: kWh/(a*(m³/h))
J42: 4 | K42: spez. Strombedarf für RLT-HK60SFP | L42: 2.934027778 | M42: kWh/(a*(m³/h)) | S42: 0.3165044339 | T42: €/(a*(m³/h)) | W42: 7.804513889 | X42: kWh/(a*(m³/h))
J43: 5 | K43: spez. Strombedarf für RLT-H70 | L43: 2.934027778 | M43: kWh/(a*(m³/h)) | S43: 0.3165044339 | T43: €/(a*(m³/h)) | W43: 7.804513889 | X43: kWh/(a*(m³/h))
J44: 6 | K44: spez. Strombedarf für RLT-HK70 | L44: 2.934027778 | M44: kWh/(a*(m³/h)) | S44: 0.3165044339 | T44: €/(a*(m³/h)) | W44: 7.804513889 | X44: kWh/(a*(m³/h))
J45: 7 | K45: spez. Strombedarf für RLT-H70SFP | L45: =$G12*$M$37/3600 -> 2.400568182 | M45: kWh/(a*(m³/h)) | S45: 0.2589581732 | T45: €/(a*(m³/h)) | W45: 6.385511364 | X45: kWh/(a*(m³/h))
J46: 8 | K46: spez. Strombedarf für RLT-HK70SFP | L46: 2.400568182 | M46: kWh/(a*(m³/h)) | S46: 0.2589581732 | T46: €/(a*(m³/h)) | W46: 6.385511364 | X46: kWh/(a*(m³/h)) | AB46: 0.03 | AC46: /a | AD46: Abluft
AA47: 1 | AB47: 0.067 | AC47: 0.087 | AD47: =AB47*$P$27+$L$38*AC47 -> 1.450317483
L48: Energiekosten | O48: =L48&" über "&AA19&" a" -> Energiekosten über 15 a | R48: Primärenergie | U48: CO2-Emissionen | X48: QelCO2 | Y48: 0.651 | Z48: co2_el | AA48: =AA47+1 -> 2 | AB48: =IF($AA48<=$AA$19,AB47+AB47*$AB$46,0) -> 0.06901 | AC48: =IF($AA48<=$AA$19,AC47+AC47*$AB$46,0) -> 0.08961 | AD48: =AB48*$P$27+$L$38*AC48 -> 1.493827008
I49: Anlagentyp | J49: =A5 -> 0 | K49: =I49&" "&B5 -> Anlagentyp Abuftanlage | L49: =S27+S38 -> 1.798288665 | M49: =T38 -> €/(a*(m³/h)) | O49: =L49*$AA$19 -> 26.97432998 | P49: ="€/(m³/h) über "&$AA$19&" a" -> €/(m³/h) über 15 a | R49: =W27+W38 -> 25.20105611 | S49: =Q27 -> kWh/(a*(m³/h)) | U49: =P27*$Y$49+L38*$Y$48 -> 6.788995417 | V49: kgCO2/(a*(m³/h)) | X49: QhCO2 | Y49: 0.3 | Z49: co2_h | AA49: =AA48+1 -> 3 | AB49: 0.0710803 | AC49: 0.0922983 | AD49: 1.538641818
I50: =I49 -> Anlagentyp | J50: =A6 -> 1 | K50: =I50&" "&B6 -> Anlagentyp RLT-H60 | L50: =S28+S39 -> 0.9871269102 | M50: =T39 -> €/(a*(m³/h)) | O50: 14.80690365 | P50: =P49 -> €/(m³/h) über 15 a | R50: =W28+W39 -> 16.68424189 | S50: kWh/(a*(m³/h)) | U50: 4.331796083 | V50: kgCO2/(a*(m³/h)) | AA50: 4 | AB50: 0.073212709 | AC50: 0.095067249 | AD50: 1.584801073
I51: =I50 -> Anlagentyp | J51: 2 | K51: Anlagentyp RLT-HK60 | L51: =S29+S40 -> 0.9295806495 | M51: €/(a*(m³/h)) | O51: 13.94370974 | P51: =P50 -> €/(m³/h) über 15 a | R51: 15.26523936 | S51: kWh/(a*(m³/h)) | U51: 3.984513886 | V51: kgCO2/(a*(m³/h)) | AA51: 5 | AB51: 0.07540909027 | AC51: 0.09791926647 | AD51: 1.632345105
I52: Anlagentyp | J52: 3 | K52: Anlagentyp RLT-H60SFP | L52: 0.9295806495 | M52: €/(a*(m³/h)) | O52: 13.94370974 | P52: €/(m³/h) über 15 a | R52: 15.26523936 | S52: kWh/(a*(m³/h)) | U52: 3.984513886 | V52: kgCO2/(a*(m³/h)) | AA52: 6 | AB52: 0.07767136298 | AC52: 0.1008568445 | AD52: 1.681315458
I53: Anlagentyp | J53: 4 | K53: Anlagentyp RLT-HK60SFP | L53: 0.7356434816 | M53: €/(a*(m³/h)) | O53: 11.03465222 | P53: €/(m³/h) über 15 a | R53: 13.35434389 | S53: kWh/(a*(m³/h)) | U53: 3.423642083 | V53: kgCO2/(a*(m³/h)) | AA53: 7 | AB53: 0.08000150387 | AC53: 0.1038825498 | AD53: 1.731754922
I54: Anlagentyp | J54: 5 | K54: Anlagentyp RLT-H70 | L54: =S32+S43 -> 0.7356434816 | M54: €/(a*(m³/h)) | O54: 11.03465222 | P54: €/(m³/h) über 15 a | R54: 13.35434389 | S54: kWh/(a*(m³/h)) | U54: 3.423642083 | V54: kgCO2/(a*(m³/h)) | Y54: =R49-R56 -> 13.26571475 | AA54: 8 | AB54: 0.08240154898 | AC54: 0.1069990263 | AD54: 1.783707569
I55: Anlagentyp | J55: 6 | K55: Anlagentyp RLT-HK70 | L55: 0.7356434816 | M55: €/(a*(m³/h)) | O55: 11.03465222 | P55: €/(m³/h) über 15 a | R55: 13.35434389 | S55: kWh/(a*(m³/h)) | U55: 3.423642083 | V55: kgCO2/(a*(m³/h)) | AA55: 9 | AB55: 0.08487359545 | AC55: 0.1102089971 | AD55: 1.837218796
I56: Anlagentyp | J56: 7 | K56: Anlagentyp RLT-H70SFP | L56: 0.6780972209 | M56: €/(a*(m³/h)) | O56: 10.17145831 | P56: €/(m³/h) über 15 a | R56: 11.93534136 | S56: kWh/(a*(m³/h)) | U56: 3.076359886 | V56: kgCO2/(a*(m³/h)) | AA56: 10 | AB56: 0.08741980332 | AC56: 0.113515267 | AD56: 1.89233536
I57: Anlagentyp | J57: 8 | K57: Anlagentyp RLT-HK70SFP | L57: 0.6780972209 | M57: €/(a*(m³/h)) | O57: 10.17145831 | P57: €/(m³/h) über 15 a | R57: 11.93534136 | S57: kWh/(a*(m³/h)) | U57: 3.076359886 | V57: kgCO2/(a*(m³/h)) | AA57: 11 | AB57: 0.09004239742 | AC57: 0.116920725 | AD57: 1.949105421
AA58: 12 | AB58: 0.09274366934 | AC58: 0.1204283468 | AD58: 2.007578584
AA59: 13 | AB59: 0.09552597942 | AC59: 0.1240411972 | AD59: 2.067805941
K60: DKosten zur Abluftanlage | L60: =L4 -> 200 | M60: 300 | N60: 400 | O60: 600 | P60: 900 | Q60: 1400 | R60: 2000 | S60: 3000 | T60: 4400 | U60: 6400 | V60: 9400 | W60: 13900 | X60: 20400 | Y60: 30000 | AA60: 14 | AB60: 0.0983917588 | AC60: 0.1277624331 | AD60: 2.129840119
I61: Kostendifferenz Abluft zu | J61: =J50 -> 1 | K61: =I61&" "&B6 -> Kostendifferenz Abluft zu RLT-H60 | L61: =L6-L$5 -> 36.69591955 | M61: =M6-M$5 -> 32.60055594 | N61: 29.97481443 | O61: 26.62872628 | P61: 23.65574235 | Q61: 20.79230288 | R61: 18.73535469 | S61: 16.64277201 | T61: 14.88104547 | U61: 13.33791017 | V61: 11.92072024 | W61: 10.31245395 | X61: 8.7285 | Y61: 8.7285 | AA61: 15 | AB61: 0.1013435116 | AC61: 0.1315953061 | AD61: 2.193735323
I62: =I61 -> Kostendifferenz Abluft zu | J62: =J51 -> 2 | K62: =I62&" "&B7 -> Kostendifferenz Abluft zu RLT-HK60 | L62: =L7-L$5 -> 68.17107052 | M62: 60.64162705 | N62: 55.80879275 | O62: 49.64338182 | P62: 44.1583836 | Q62: 38.86837808 | R62: 35.06345363 | S62: 31.18791616 | T62: 27.92102075 | U62: 25.05600419 | V62: 22.42162189 | W62: 19.70429748 | X62: 17.457 | Y62: 17.457 | AA62: 16 | AB62: 0 | AC62: 0 | AD62: 0
I63: =I62 -> Kostendifferenz Abluft zu | J63: 3 | K63: Kostendifferenz Abluft zu RLT-H60SFP | L63: 45.2643963 | M63: 40.19343863 | N63: 36.94363887 | O63: 32.80409071 | P63: 29.12798894 | Q63: 25.58919649 | R63: 23.04836186 | S63: 20.46470658 | T63: 18.29058674 | U63: 16.38709064 | V63: 14.63973805 | W63: 12.73217205 | X63: 10.910625 | Y63: 10.910625 | AA63: 17 | AB63: 0 | AC63: 0 | AD63: 0
I64: Kostendifferenz Abluft zu | J64: 4 | K64: Kostendifferenz Abluft zu RLT-HK60SFP | L64: 81.46081992 | M64: 72.44067041 | N64: 66.65271394 | O64: 59.27094458 | P64: 52.70602637 | Q64: 46.37668296 | R64: 41.82567565 | S64: 37.19162235 | T64: 33.28655831 | U64: 29.86289877 | V64: 26.71577495 | W64: 23.5327921 | X64: 20.9484 | Y64: 20.9484 | AA64: 18 | AB64: 0 | AC64: 0 | AD64: 0
I65: Kostendifferenz Abluft zu | J65: 5 | K65: Kostendifferenz Abluft zu RLT-H70 | L65: =L10-L$5 -> 37.83309343 | M65: 33.85778047 | N65: 31.29187031 | O65: 28.00044702 | P65: 25.05348222 | Q65: 22.19246125 | R65: 20.12183807 | S65: 18.00048071 | T65: 16.20154292 | U65: 14.61489273 | V65: 13.14770185 | W65: 11.48467945 | X65: 9.8923 | Y65: 9.8923 | AA65: 19 | AB65: 0 | AC65: 0 | AD65: 0
I66: Kostendifferenz Abluft zu | J66: 6 | K66: Kostendifferenz Abluft zu RLT-HK70 | L66: 69.32040676 | M66: 61.90572651 | N66: 57.12988033 | O66: 51.01616076 | P66: 45.55517824 | Q66: 40.26625636 | R66: 36.44707249 | S66: 32.54249755 | T66: 29.23843525 | U66: 26.33014519 | V66: 23.64615105 | W66: 20.87456203 | X66: 18.6208 | Y66: 18.6208 | AA66: 20 | AB66: 0 | AC66: 0 | AD66: 0
I67: Kostendifferenz Abluft zu | J67: 7 | K67: Kostendifferenz Abluft zu RLT-H70SFP | L67: 46.57214626 | M67: 41.63924684 | N67: 38.45825313 | O67: 34.38156956 | P67: 30.73538979 | Q67: 27.19937861 | R67: 24.64281774 | S67: 22.02607158 | T67: 19.80915881 | U67: 17.85562058 | V67: 16.05076691 | W67: 14.08023136 | X67: 12.248995 | Y67: 12.248995 | AA67: 21 | AB67: 0 | AC67: 0 | AD67: 0
I68: Kostendifferenz Abluft zu | J68: 8 | K68: Kostendifferenz Abluft zu RLT-HK70SFP | L68: =L13-L$5 -> 82.78255659 | M68: 73.89438478 | N68: 68.17196466 | O68: 60.84964035 | P68: 54.31234021 | Q68: 47.98424299 | R68: 43.41683733 | S68: 38.74939096 | T68: 34.80158499 | U68: 31.32816092 | V68: 28.12398349 | W68: 24.87859633 | X68: 22.28677 | Y68: 22.28677 | AA68: 22 | AB68: 0 | AC68: 0 | AD68: 0
AA69: 23 | AB69: 0 | AC69: 0 | AD69: 0
K70: DWartungskosten zur Abluftanlage | L70: =L13 -> 103.2098154 | M70: =M13 -> 91.9130468 | N70: 84.65597985 | O70: 75.39001025 | P70: 67.1382418 | Q70: 59.1712308 | R70: 53.43486378 | S70: 47.58618275 | T70: 42.65081466 | U70: 38.31812057 | V70: 34.33004869 | W70: 30.69759633 | X70: 28.10577 | Y70: 28.10577 | AA70: 24 | AB70: 0 | AC70: 0 | AD70: 0
I71: Wartungskosten Abluft zu | J71: =J60 -> 0 | K71: =I71&" "&B6 -> Wartungskosten Abluft zu RLT-H60 | L71: =L61*$AA$20 -> 0.5504387933 | M71: 0.4890083391 | N71: 0.4496222164 | O71: 0.3994308943 | P71: 0.3548361353 | Q71: 0.3118845432 | R71: 0.2810303204 | S71: 0.2496415802 | T71: 0.223215682 | U71: 0.2000686525 | V71: 0.1788108036 | W71: 0.1546868093 | X71: 0.1309275 | Y71: 0.1309275 | AA71: 25 | AB71: 0 | AC71: 0 | AD71: 0
I72: =I71 -> Wartungskosten Abluft zu | J72: =J61 -> 1 | K72: =I72&" "&B7 -> Wartungskosten Abluft zu RLT-HK60 | L72: =L62*$AA$20 -> 1.022566058 | M72: 0.9096244057 | N72: 0.8371318912 | O72: 0.7446507274 | P72: 0.662375754 | Q72: 0.5830256711 | R72: 0.5259518045 | S72: 0.4678187423 | T72: 0.4188153112 | U72: 0.3758400629 | V72: 0.3363243284 | W72: 0.2955644622 | X72: 0.261855 | Y72: 0.261855 | AA72: 26 | AB72: 0 | AC72: 0 | AD72: 0
I73: =I72 -> Wartungskosten Abluft zu | J73: 2 | K73: Wartungskosten Abluft zu RLT-H60SFP | L73: =L63*$AA$20 -> 0.6789659446 | M73: 0.6029015795 | N73: 0.5541545831 | O73: 0.4920613607 | P73: 0.4369198341 | Q73: 0.3838379473 | R73: 0.3457254279 | S73: 0.3069705987 | T73: 0.2743588011 | U73: 0.2458063596 | V73: 0.2195960708 | W73: 0.1909825807 | X73: 0.163659375 | Y73: 0.163659375 | AA73: 27 | AB73: 0 | AC73: 0 | AD73: 0
I74: Wartungskosten Abluft zu | J74: 3 | K74: Wartungskosten Abluft zu RLT-HK60SFP | L74: =L64*$AA$20 -> 1.221912299 | M74: 1.086610056 | N74: 0.9997907091 | O74: 0.8890641687 | P74: 0.7905903956 | Q74: 0.6956502444 | R74: 0.6273851347 | S74: 0.5578743352 | T74: 0.4992983747 | U74: 0.4479434815 | V74: 0.4007366243 | W74: 0.3529918815 | X74: 0.314226 | Y74: 0.314226 | AA74: 28 | AB74: 0 | AC74: 0 | AD74: 0
I75: Wartungskosten Abluft zu | J75: 4 | K75: Wartungskosten Abluft zu RLT-H70 | L75: =L65*$AA$20 -> 0.5674964015 | M75: 0.507866707 | N75: 0.4693780546 | O75: 0.4200067053 | P75: 0.3758022333 | Q75: 0.3328869187 | R75: 0.301827571 | S75: 0.2700072106 | T75: 0.2430231438 | U75: 0.2192233909 | V75: 0.1972155277 | W75: 0.1722701917 | X75: 0.1483845 | Y75: 0.1483845 | AA75: 29 | AB75: 0 | AC75: 0 | AD75: 0
I76: Wartungskosten Abluft zu | J76: 5 | K76: Wartungskosten Abluft zu RLT-HK70 | L76: =L66*$AA$20 -> 1.039806101 | M76: 0.9285858976 | N76: 0.8569482049 | O76: 0.7652424113 | P76: 0.6833276736 | Q76: 0.6039938455 | R76: 0.5467060873 | S76: 0.4881374633 | T76: 0.4385765287 | U76: 0.3949521779 | V76: 0.3546922658 | W76: 0.3131184304 | X76: 0.279312 | Y76: 0.279312 | AA76: 30 | AB76: 0 | AC76: 0 | AD76: 0
I77: Wartungskosten Abluft zu | J77: 6 | K77: Wartungskosten Abluft zu RLT-H70SFP | L77: =L67*$AA$20 -> 0.6985821939 | M77: 0.6245887026 | N77: 0.576873797 | O77: 0.5157235433 | P77: 0.4610308468 | Q77: 0.4079906791 | R77: 0.3696422662 | S77: 0.3303910737 | T77: 0.2971373821 | U77: 0.2678343088 | V77: 0.2407615036 | W77: 0.2112034704 | X77: 0.183734925 | Y77: 0.183734925 | AB77: =SUM(AB47:AB76) -> 1.24612723 | AC77: =SUM(AC47:AC76) -> 1.618105508 | AD77: =SUM(AD47:AD76) -> 26.97432998
I78: Wartungskosten Abluft zu | J78: 7 | K78: Wartungskosten Abluft zu RLT-HK70SFP | L78: =L68*$AA$20 -> 1.241738349 | M78: 1.108415772 | N78: 1.02257947 | O78: 0.9127446053 | P78: 0.8146851032 | Q78: 0.7197636449 | R78: 0.6512525599 | S78: 0.5812408643 | T78: 0.5220237748 | U78: 0.4699224138 | V78: 0.4218597524 | W78: 0.3731789449 | X78: 0.33430155 | Y78: 0.33430155 | AB78: =AB77/AA19 -> 0.08307514869 | AC78: =AC77/AA19 -> 0.1078737005 | AD78: =AD77/AA19 -> 1.798288665
AB79: c_H | AC79: C_el
K80: DEnergiekosten zur Abluftanlage
I81: Energiekostendifferenz Abluft zu | J81: =J61 -> 1 | K81: =I81&" "&B6 -> Energiekostendifferenz Abluft zu RLT-H60 | L81: =$L50-$L$49 -> -0.8111617552 | M81: =$L50-$L$49 -> -0.8111617552 | N81: -0.8111617552 | O81: -0.8111617552 | P81: -0.8111617552 | Q81: -0.8111617552 | R81: -0.8111617552 | S81: -0.8111617552 | T81: -0.8111617552 | U81: -0.8111617552 | V81: -0.8111617552 | W81: -0.8111617552 | X81: -0.8111617552 | Y81: -0.8111617552
I82: =I81 -> Energiekostendifferenz Abluft zu | J82: =J62 -> 2 | K82: Energiekostendifferenz Abluft zu RLT-HK60 | L82: =$L51-$L$49 -> -0.8687080159 | M82: =$L51-$L$49 -> -0.8687080159 | N82: -0.8687080159 | O82: -0.8687080159 | P82: -0.8687080159 | Q82: -0.8687080159 | R82: -0.8687080159 | S82: -0.8687080159 | T82: -0.8687080159 | U82: -0.8687080159 | V82: -0.8687080159 | W82: -0.8687080159 | X82: -0.8687080159 | Y82: -0.8687080159
I83: =I82 -> Energiekostendifferenz Abluft zu | J83: 3 | K83: Energiekostendifferenz Abluft zu RLT-H60SFP | L83: -0.8687080159 | M83: -0.8687080159 | N83: -0.8687080159 | O83: -0.8687080159 | P83: -0.8687080159 | Q83: -0.8687080159 | R83: -0.8687080159 | S83: -0.8687080159 | T83: -0.8687080159 | U83: -0.8687080159 | V83: -0.8687080159 | W83: -0.8687080159 | X83: -0.8687080159 | Y83: -0.8687080159
I84: Energiekostendifferenz Abluft zu | J84: 4 | K84: Energiekostendifferenz Abluft zu RLT-HK60SFP | L84: -1.062645184 | M84: -1.062645184 | N84: -1.062645184 | O84: -1.062645184 | P84: -1.062645184 | Q84: -1.062645184 | R84: -1.062645184 | S84: -1.062645184 | T84: -1.062645184 | U84: -1.062645184 | V84: -1.062645184 | W84: -1.062645184 | X84: -1.062645184 | Y84: -1.062645184
I85: Energiekostendifferenz Abluft zu | J85: 5 | K85: Energiekostendifferenz Abluft zu RLT-H70 | L85: -1.062645184 | M85: -1.062645184 | N85: -1.062645184 | O85: -1.062645184 | P85: -1.062645184 | Q85: -1.062645184 | R85: -1.062645184 | S85: -1.062645184 | T85: -1.062645184 | U85: -1.062645184 | V85: -1.062645184 | W85: -1.062645184 | X85: -1.062645184 | Y85: -1.062645184
I86: Energiekostendifferenz Abluft zu | J86: 6 | K86: Energiekostendifferenz Abluft zu RLT-HK70 | L86: -1.062645184 | M86: -1.062645184 | N86: -1.062645184 | O86: -1.062645184 | P86: -1.062645184 | Q86: -1.062645184 | R86: -1.062645184 | S86: -1.062645184 | T86: -1.062645184 | U86: -1.062645184 | V86: -1.062645184 | W86: -1.062645184 | X86: -1.062645184 | Y86: -1.062645184
I87: Energiekostendifferenz Abluft zu | J87: 7 | K87: Energiekostendifferenz Abluft zu RLT-H70SFP | L87: -1.120191445 | M87: -1.120191445 | N87: -1.120191445 | O87: -1.120191445 | P87: -1.120191445 | Q87: -1.120191445 | R87: -1.120191445 | S87: -1.120191445 | T87: =$L56-$L$49 -> -1.120191445 | U87: -1.120191445 | V87: -1.120191445 | W87: -1.120191445 | X87: -1.120191445 | Y87: -1.120191445
I88: Energiekostendifferenz Abluft zu | J88: 8 | K88: Energiekostendifferenz Abluft zu RLT-HK70SFP | L88: -1.120191445 | M88: -1.120191445 | N88: -1.120191445 | O88: -1.120191445 | P88: -1.120191445 | Q88: -1.120191445 | R88: -1.120191445 | S88: -1.120191445 | T88: -1.120191445 | U88: -1.120191445 | V88: -1.120191445 | W88: -1.120191445 | X88: -1.120191445 | Y88: -1.120191445
K90: DEnergie- und Betriebskosten zur Abluftanlage
I91: Energie- und Betriebskostendifferenz Abluft zu | J91: =J71 -> 0 | K91: =I91&" "&B6 -> Energie- und Betriebskostendifferenz Abluft zu RLT-H60 | L91: =L71+L81 -> -0.2607229619 | M91: =M71+M81 -> -0.3221534161 | N91: -0.3615395388 | O91: -0.4117308609 | P91: -0.4563256199 | Q91: -0.499277212 | R91: -0.5301314348 | S91: -0.561520175 | T91: -0.5879460731 | U91: -0.6110931026 | V91: -0.6323509516 | W91: -0.6564749459 | X91: -0.6802342552 | Y91: -0.6802342552
I92: =I91 -> Energie- und Betriebskostendifferenz Abluft zu | J92: =J72 -> 1 | K92: =I92&" "&B7 -> Energie- und Betriebskostendifferenz Abluft zu RLT-HK60 | L92: =L72+L82 -> 0.153858042 | M92: 0.04091638985 | N92: -0.03157612467 | O92: -0.1240572885 | P92: -0.2063322619 | Q92: -0.2856823448 | R92: -0.3427562114 | S92: -0.4008892735 | T92: -0.4498927047 | U92: -0.492867953 | V92: -0.5323836875 | W92: -0.5731435537 | X92: -0.6068530159 | Y92: -0.6068530159
I93: =I92 -> Energie- und Betriebskostendifferenz Abluft zu | J93: 2 | K93: Energie- und Betriebskostendifferenz Abluft zu RLT-H60SFP | L93: -0.1897420713 | M93: -0.2658064364 | N93: -0.3145534328 | O93: -0.3766466552 | P93: -0.4317881817 | Q93: -0.4848700686 | R93: -0.5229825879 | S93: -0.5617374171 | T93: -0.5943492148 | U93: -0.6229016563 | V93: -0.6491119451 | W93: -0.6777254352 | X93: -0.7050486409 | Y93: -0.7050486409
I94: Energie- und Betriebskostendifferenz Abluft zu | J94: 3 | K94: Energie- und Betriebskostendifferenz Abluft zu RLT-HK60SFP | L94: 0.159267115 | M94: 0.02396487234 | N94: -0.06285447471 | O94: -0.1735810151 | P94: -0.2720547882 | Q94: -0.3669949394 | R94: -0.4352600491 | S94: -0.5047708486 | T94: -0.5633468092 | U94: -0.6147017023 | V94: -0.6619085595 | W94: -0.7096533023 | X94: -0.7484191838 | Y94: -0.7484191838
I95: Energie- und Betriebskostendifferenz Abluft zu | J95: 4 | K95: Energie- und Betriebskostendifferenz Abluft zu RLT-H70 | L95: -0.4951487823 | M95: -0.5547784768 | N95: -0.5932671292 | O95: -0.6426384785 | P95: -0.6868429505 | Q95: -0.7297582651 | R95: -0.7608176128 | S95: -0.7926379732 | T95: -0.81962204 | U95: -0.8434217929 | V95: -0.8654296561 | W95: -0.8903749921 | X95: -0.9142606838 | Y95: -0.9142606838
I96: Energie- und Betriebskostendifferenz Abluft zu | J96: 5 | K96: Energie- und Betriebskostendifferenz Abluft zu RLT-HK70 | L96: -0.02283908239 | M96: -0.1340592862 | N96: -0.2056969789 | O96: -0.2974027725 | P96: -0.3793175102 | Q96: -0.4586513383 | R96: -0.5159390965 | S96: -0.5745077205 | T96: -0.6240686551 | U96: -0.6676930059 | V96: -0.707952918 | W96: -0.7495267534 | X96: -0.7833331838 | Y96: -0.7833331838
I97: Energie- und Betriebskostendifferenz Abluft zu | J97: 6 | K97: Energie- und Betriebskostendifferenz Abluft zu RLT-H70SFP | L97: =L77+L87 -> -0.4216092506 | M97: -0.4956027419 | N97: -0.5433176475 | O97: -0.6044679012 | P97: -0.6591605977 | Q97: -0.7122007654 | R97: -0.7505491783 | S97: -0.7898003708 | T97: =T77+T87 -> -0.8230540624 | U97: -0.8523571358 | V97: -0.8794299409 | W97: -0.9089879741 | X97: -0.9364565195 | Y97: -0.9364565195
I98: Energie- und Betriebskostendifferenz Abluft zu | J98: 7 | K98: Energie- und Betriebskostendifferenz Abluft zu RLT-HK70SFP | L98: 0.1215469044 | M98: -0.01177567275 | N98: -0.09761197468 | O98: -0.2074468392 | P98: -0.3055063413 | Q98: -0.4004277997 | R98: -0.4689388846 | S98: -0.5389505802 | T98: -0.5981676697 | U98: -0.6502690307 | V98: -0.6983316921 | W98: -0.7470124996 | X98: -0.7858898945 | Y98: -0.7858898945
K100: DPrimärenergiebedarf zur Abluftanlage
I101: Differenz Qp Abluft zu | J101: =J81 -> 1 | K101: =I101&" "&B6 -> Differenz Qp Abluft zu RLT-H60 | L101: =R50-R$49 -> -8.516814222 | M101: =L101 -> -8.516814222 | N101: =M101 -> -8.516814222 | O101: -8.516814222 | P101: -8.516814222 | Q101: -8.516814222 | R101: -8.516814222 | S101: -8.516814222 | T101: -8.516814222 | U101: -8.516814222 | V101: -8.516814222 | W101: -8.516814222 | X101: -8.516814222 | Y101: -8.516814222
I102: =I101 -> Differenz Qp Abluft zu | J102: =J82 -> 2 | K102: Differenz Qp Abluft zu RLT-HK60 | L102: =R51-R$49 -> -9.935816747 | M102: =L102 -> -9.935816747 | N102: -9.935816747 | O102: -9.935816747 | P102: -9.935816747 | Q102: -9.935816747 | R102: -9.935816747 | S102: -9.935816747 | T102: -9.935816747 | U102: -9.935816747 | V102: -9.935816747 | W102: -9.935816747 | X102: -9.935816747 | Y102: -9.935816747
I103: =I102 -> Differenz Qp Abluft zu | J103: 3 | K103: Differenz Qp Abluft zu RLT-H60SFP | L103: -9.935816747 | M103: -9.935816747 | N103: -9.935816747 | O103: -9.935816747 | P103: -9.935816747 | Q103: -9.935816747 | R103: -9.935816747 | S103: -9.935816747 | T103: -9.935816747 | U103: -9.935816747 | V103: -9.935816747 | W103: -9.935816747 | X103: -9.935816747 | Y103: -9.935816747
I104: Differenz Qp Abluft zu | J104: 4 | K104: Differenz Qp Abluft zu RLT-HK60SFP | L104: -11.84671222 | M104: -11.84671222 | N104: -11.84671222 | O104: -11.84671222 | P104: -11.84671222 | Q104: -11.84671222 | R104: -11.84671222 | S104: -11.84671222 | T104: -11.84671222 | U104: -11.84671222 | V104: -11.84671222 | W104: -11.84671222 | X104: -11.84671222 | Y104: -11.84671222
I105: Differenz Qp Abluft zu | J105: 5 | K105: Differenz Qp Abluft zu RLT-H70 | L105: -11.84671222 | M105: -11.84671222 | N105: -11.84671222 | O105: -11.84671222 | P105: -11.84671222 | Q105: -11.84671222 | R105: -11.84671222 | S105: -11.84671222 | T105: -11.84671222 | U105: -11.84671222 | V105: -11.84671222 | W105: -11.84671222 | X105: -11.84671222 | Y105: -11.84671222
I106: Differenz Qp Abluft zu | J106: 6 | K106: Differenz Qp Abluft zu RLT-HK70 | L106: -11.84671222 | M106: -11.84671222 | N106: -11.84671222 | O106: -11.84671222 | P106: -11.84671222 | Q106: -11.84671222 | R106: -11.84671222 | S106: -11.84671222 | T106: -11.84671222 | U106: -11.84671222 | V106: -11.84671222 | W106: -11.84671222 | X106: -11.84671222 | Y106: -11.84671222
I107: Differenz Qp Abluft zu | J107: 7 | K107: Differenz Qp Abluft zu RLT-H70SFP | L107: =R56-R$49 -> -13.26571475 | M107: -13.26571475 | N107: -13.26571475 | O107: -13.26571475 | P107: -13.26571475 | Q107: -13.26571475 | R107: -13.26571475 | S107: -13.26571475 | T107: -13.26571475 | U107: -13.26571475 | V107: -13.26571475 | W107: -13.26571475 | X107: -13.26571475 | Y107: -13.26571475
I108: Differenz Qp Abluft zu | J108: 8 | K108: Differenz Qp Abluft zu RLT-HK70SFP | L108: -13.26571475 | M108: -13.26571475 | N108: -13.26571475 | O108: -13.26571475 | P108: -13.26571475 | Q108: -13.26571475 | R108: -13.26571475 | S108: -13.26571475 | T108: -13.26571475 | U108: -13.26571475 | V108: -13.26571475 | W108: -13.26571475 | X108: -13.26571475 | Y108: =X108 -> -13.26571475
K110: Kapitalrücklaufzeit | L110: =L4 -> 200 | M110: 300 | N110: 400 | O110: 600 | P110: 900 | Q110: 1400 | R110: 2000 | S110: 3000 | T110: 4400 | U110: 6400 | V110: 9400 | W110: 13900 | X110: 20400 | Y110: 30000
I111: Kapitalrücklaufzeit | J111: =J101 -> 1 | K111: =I111&" "&B6 -> Kapitalrücklaufzeit RLT-H60 | L111: =L61/(-1*L91) -> 140.7467884 | M111: =M61/(-1*M91) -> 101.1957481 | N111: 82.90881415 | O111: 64.6750798 | P111: 51.8396104 | Q111: 41.6448065 | R111: 35.34096162 | S111: 29.63877836 | T111: 25.31022172 | U111: 21.82631437 | V111: 18.85143085 | W111: 15.70883096 | X111: 12.83160901 | Y111: 12.83160901
I112: =I111 -> Kapitalrücklaufzeit | J112: =J102 -> 2 | K112: Kapitalrücklaufzeit RLT-HK60 | L112: =L62/(-1*L92) -> -443.0777206 | M112: -1482.086452 | N112: =N62/(-1*N92) -> 1767.43642 | O112: 400.1649755 | P112: 214.0158945 | Q112: 136.0545333 | R112: 102.2985214 | S112: 77.79683372 | T112: 62.06151035 | U112: 50.83715432 | V112: 42.11553137 | W112: 34.37934065 | X112: 28.76643857 | Y112: 28.76643857
I113: =I112 -> Kapitalrücklaufzeit | J113: 3 | K113: Kapitalrücklaufzeit RLT-H60SFP | L113: 238.5575112 | M113: 151.213188 | N113: 117.447896 | O113: 87.09513348 | P113: 67.45897682 | Q113: 52.77536838 | R113: 44.07099279 | S113: 36.43109032 | T113: 30.77414134 | U113: 26.30766908 | V113: 22.55348737 | W113: 18.7866227 | X113: 15.47499615 | Y113: 15.47499615
I114: Kapitalrücklaufzeit | J114: 4 | K114: Kapitalrücklaufzeit RLT-HK60SFP | L114: -511.4729424 | M114: -3022.785575 | N114: 1060.429098 | O114: 341.4598339 | P114: 193.7331327 | Q114: 126.368726 | R114: 96.09353243 | S114: 73.68021044 | T114: 59.08715159 | U114: 48.5811226 | V114: 40.36173059 | W114: 33.16097032 | X114: 27.99019647 | Y114: 27.99019647
I115: Kapitalrücklaufzeit | J115: 5 | K115: Kapitalrücklaufzeit RLT-H70 | L115: 76.40752594 | M115: 61.02936917 | N115: 52.74499255 | O115: 43.57107138 | P115: 36.47628938 | Q115: 30.41070216 | R115: 26.44765017 | S115: 22.70958662 | T115: 19.76709035 | U115: 17.32809473 | V115: 15.19210921 | W115: 12.89869948 | X115: 10.81999935 | Y115: 10.81999935
I116: Kapitalrücklaufzeit | J116: 6 | K116: Kapitalrücklaufzeit RLT-HK70 | L116: 3035.166018 | M116: 461.7787268 | N116: 277.7380622 | O116: 171.5389548 | P116: 120.0977466 | Q116: 87.7927371 | R116: 70.64219932 | S116: 56.64414314 | T116: 46.85131197 | U116: 39.43450802 | V116: 33.40073959 | W116: 27.85032279 | X116: 23.77123858 | Y116: 23.77123858
